Workbook

Sheet Hinweise
B3: STIFF - Lehrprogramm zur Tragwerksberechnung
B5: ©Prof. Dr.-Ing. Kai-Uwe Bletzinger, Lehrstuhl für Statik, Technische Universität München
B6: Feedback, Anregungen und Kommentare bitte an: stiff.statik@tum.de
B8: Hinweise zu den Versionen Oktober 2017 bis Februar 2025
B10: STIFF ist ein interaktives Programm für die statische Berechnung ebener Stabtragwerke. Es entstand in Begleitung der Lehre im Fach Statik an der Technischen Universität München. Die erste, tabellenorientierte Version entstand 1999. Seitdem wird es stetig weiterentwickelt. Die interaktive, graphische Oberfläche kam 2011 dazu. Über die Jahre sind viele Anregungen der Studierenden eingeflossen, wie überhaupt unsere Studierenden für eine intensive und sehr kritische Qualitätskontrolle sorgen. Vielen Dank dafür! STIFF ist insbesondere dafür gedacht, das eigene Studium zu begleiten. Mit STIFF kann jeder Schritt der Handrechnung kontrolliert werden. Mit wenig Übung können mit STIFF individuelle Musterlösungen für Hausaufgaben, Prüfungen früherer Jahre oder alle weiteren Aufgabenstellungen entwickelt werden. Die Einbindung in Excel erlaubt, dass sämtliche Ergebnisse in Tabellen vorliegen und weiterverwendet werden können, z.B. für Bemessungsaufgaben im konstruktiven Ingenieurbau. Der Quellcode von STIFF ist frei verfügbar und kann jederzeit selbst mit eigenen Makros oder Funktionen ergänzt werden. Selbstverständlich ist STIFF auch als kleines Statikprogramm für die schnelle Analyse in der Baupraxis geeignet. Wir freuen uns über jede Anwendung. Konkret begleitet STIFF die Statik-Lehre im Fach in den Themen (die stetig erweitert und ergänzt werden):
B11: - Verschiebungsgrößen- und Kraftgrößenverfahren - Formfinden in 3D mit der Kraftdichtemethode (STIFF3D) - Theorie 1. Ordnung - Theorie 2. und 3. Ordnung (nur STIFF2D) - schubsteifer Balken nach der Euler-Bernoulli-Theorie - schubweicher Balken nach der Timoshenko-Theorie (nur STIFF2D) - elastisch gelagerter Balken (Winkler Modell, nur STIFF2D) - Knoten- und Elementbelastungen - diskrete Lager- und Koppelfedern - starre Elemente (dehn-, biege-, torsionsstarr) - Berechnung aller Schnittgrößen und Lagerkräfte - interaktive Modellierung (u.a. Kopieren, Teilen, Verschmelzen, Verschieben, Hintergrundbilder, ...) - interaktive Auswertung - Animation der Verformungen und Eigenformen (Beulformen, kinematische Moden) - Modellierung beliebiger Gelenkbedingungen mit doppelten Knoten - beliebige Ausrichtung der Verschiebungsfreiheitsgrade - Identifikation mehrfach kinematischer Tragwerke - Polplan für einfach kinematische Tragwerke (nur STIFF2D) - Vor- und Zwangsverformungen - Vorspannen durch Verlängerung aus dem "Zuschnitt", Zuschnittsermittlung (STIFF2D) - Baufortschrittsmodellierung (nur STIFF2D) - Einflusslinien für Kraft- und Verschiebungsgrößen (nur STIFF2D) - direkte und adjungierte Sensitivitätsanalyse (nur STIFF2D) - Instabilität von Systemen, Element- und Systemimperfektionen, Beulwertanalyse, Beulformen (nur STIFF2D) - Traglastverfahren mit der Fließgelenkmethode nach Theorie I Ordnung (nur STIFF2D) - beliebig große Starrkörperverformungen bei Theorie III Ordnung (nur STIFF2D) - Fachwerkmodelle im Massivbau (ThIO, STIFF2D) - Programmierung von Statik-Programmen (alle Algorithmen sind frei verfügbar, allerdings ohne Gewähr)
B13: STIFF ist in VBA geschrieben und lauffähig in den MicrosoftOffice-Versionen (32-bit und 64-bit) ab Office 2007 (derzeit getestet bis Office 2016).
B14: Die Kompatibilität mit anderen Systemen wird ständig erweitert. Derzeit ist das Berechnen einfacher Systeme auch für Office auf Mac möglich, allerdings ist hier die GUI nicht verwendbar.
B16: Da STIFF auf Macros basiert, ist die Verwendung nur möglich, wenn das Ausführen von Macros zugelassen ist und ggf. entsprechende Einstellungen im Sicherheitscenter vorgenommen wurden.
B17: Achtung: Obwohl größtmögliche Sorgfalt bei der Programmierung angewandt wurde, lehnen die Autoren jegliche Haftung bezüglich des Einsatzes der Software sowie Schäden durch die Software (Viren,…) ausdrücklich ab.
B19: STIFF wird ständig weiterentwickelt und verbessert. Wir wünschen uns, dass unsere Begeisterung und Engangement für die Statik im Allgemeinen und für das Arbeiten mit STIFF im Besonderen anregt und inspiriert. Haben Sie Freude an STIFF, dann sagen Sie es weiter. Sollten Sie Fehler finden oder Anregungen haben, dann sagen Sie es bitte uns.
B21: München, Oktober 2017, September 2019, April 2021, April 2022, Januar 2023, Februar 2024, August 2024, Februar 2025
B23: die Autoren

Sheet PreProzessor
G28: =INDIRECT("Versionsverlauf!B" & COUNTA(Versionsverlauf!B:B)) -> 2025-05.01
G29: ="Version " & TEXT((INDIRECT("Versionsverlauf!A" & COUNTA(Versionsverlauf!A:A))),"MMMM TT, JJJJ") -> Version Mai 20, 2025

Sheet Knoten
C1: Koordinaten | E1: Freiheitsgrad Nummer | H1: Knotenlasten | K1: Verschiebung | N1: Auflagerkräfte | Q1: Federhärte | T1: Federkräfte | W1: Knoten- verdrehung | X1: plast. Moment | Y1: plast. Verdrehung | Z1: Versatz | AB1: Vorverformung | AE1: Einflusslinie
B2: Knoten | C2: x | D2: z | E2: u | F2: w | G2: phi | H2: Px | I2: Pz | J2: My | K2: u | L2: w | M2: phi | N2: A x | O2: Az | P2: My | Q2: k_u | R2: k_w | S2: k_phi | T2: A x | U2: Az | V2: My | W2: θ | X2: Mpl | Y2: j_pl | Z2: x0 | AA2: z0 | AB2: u0 | AC2: w0 | AD2: j0 | AE2: Wert
B3: 1 | C3: -13 | D3: 4 | E3: 0 | F3: 0 | G3: 3 | K3: 0 | L3: 0 | M3: 0 | N3: -2.48257144e-13 | O3: -12 | P3: ##
B4: 2 | C4: -7 | D4: 4 | E4: 4 | F4: 5 | G4: 6 | K4: 0.054 | L4: 0.3867350647 | M4: 0 | N4: ## | O4: ## | P4: ##
B5: 3 | C5: -1 | D5: 4 | E5: 7 | F5: 8 | G5: 9 | K5: 0.126 | L5: 0.545646753 | M5: 0 | N5: ## | O5: ## | P5: ##
B6: 4 | C6: 5 | D6: 4 | E6: 10 | F6: 11 | G6: 12 | K6: 0.198 | L6: 0.3867350647 | M6: 0 | N6: ## | O6: ## | P6: ##
B7: 5 | C7: 11 | D7: 4 | E7: 13 | F7: 0 | G7: 15 | K7: 0.252 | L7: 0 | M7: 0 | N7: ## | O7: -12 | P7: ##
B8: 6 | C8: -7 | D8: -2 | E8: 16 | F8: 17 | G8: 18 | K8: 0.18 | L8: 0.3327350647 | M8: 0 | N8: ## | O8: ## | P8: ##
B9: 7 | C9: -1 | D9: -2 | E9: 19 | F9: 20 | G9: 21 | K9: 0.126 | L9: 0.509646753 | M9: 0 | N9: ## | O9: ## | P9: ##
B10: 8 | C10: 5 | D10: -2 | E10: 22 | F10: 23 | G10: 24 | K10: 0.072 | L10: 0.3327350647 | M10: 0 | N10: ## | O10: ## | P10: ##
B11: 9
B12: 10
B13: 11
B14: 12
B15: 13
B16: 14
B17: 15
B18: 16
B19: 17
B20: 18
B21: 19
B22: 20
B23: 21 | AG23: 1
B24: 22
B25: 23
B26: 24
B27: 25
B28: 26
B29: 27
B30: 28
B31: 29
B32: 30
B33: 31
B34: 32
B35: 33
B36: 34
B37: 35
B38: 36
B39: 37
B40: 38
B41: 39
B42: 40
A51: Verschiebungs-
A52: skalierung
A53: 1

Sheet Element
C1: Element | D1: 3 | G1: Knotenlasten | J1: Knotenvorverformung | M1: Knotenverschiebung
C2: Knoten | D2: Nummer | E2: x | F2: z | G2: Px | H2: Pz | I2: My | J2: u0 | K2: w0 | L2: j0 | M2: u | N2: w | O2: j
C3: a | D3: =INDIRECT(ADDRESS(ROW(System!$B$3)+$D$1,COLUMN(System!$B$3)+1,,,"System")) -> 3 | E3: =INDEX(x_node,D3+1,1) -> -1 | F3: =INDEX(z_node,D3+1,1) -> 4 | G3: =INDEX(Px_node,D3+1,1) -> 0 | H3: =INDEX(Pz_node,D3+1,1) -> 0 | I3: =INDEX(My_node,D3+1,1) -> 0 | J3: =INDEX(u0_node,D3+1,1) -> 0 | K3: =INDEX(w0_node,D3+1,1) -> 0 | L3: =INDEX(phi0_node,D3+1,1) -> 0 | M3: =INDEX(u_node,D3+1,1) -> 0.126 | N3: =INDEX(w_node,D3+1,1) -> 0.545646753 | O3: =INDEX(phi_node,D3+1,1) -> 0
C4: b | D4: =INDIRECT(ADDRESS(ROW(System!$B$3)+$D$1,COLUMN(System!$B$3)+2,,,"System")) -> 4 | E4: =INDEX(x_node,D4+1,1) -> 5 | F4: =INDEX(z_node,D4+1,1) -> 4 | G4: =INDEX(Px_node,D4+1,1) -> 0 | H4: =INDEX(Pz_node,D4+1,1) -> 0 | I4: =INDEX(My_node,D4+1,1) -> 0 | J4: =INDEX(u0_node,D4+1,1) -> 0 | K4: =INDEX(w0_node,D4+1,1) -> 0 | L4: =INDEX(phi0_node,D4+1,1) -> 0 | M4: =INDEX(u_node,D4+1,1) -> 0.198 | N4: =INDEX(w_node,D4+1,1) -> 0.3867350647 | O4: =INDEX(phi_node,D4+1,1) -> 0
C5: Steifigkeiten | E5: Elementlasten | G5: Geometrie | I5: Vorspannung | M5: Temperatur | O5: Bettung | R5: Schub- steifigkeit
C6: EI | D6: EA | E6: qx | F6: qz | G6: L | H6: alpha [° ] | I6: F0 | J6: e1 | K6: e2 | L6: f | M6: e T | N6: k T | O6: k | P6: λ L | Q6: "langer Balken" | R6: GAs
C7: =INDEX(EI_ele,ElementNummer+1,1) -> 100 | D7: =INDEX(EA_ele,ElementNummer+1,1) -> 1000 | E7: =INDEX(qxLoc_ele,ElementNummer+1,1) - INDEX(qzGlob_ele,ElementNummer+1,1)*sin+INDEX(qxGlob_ele,ElementNummer+1,1)*cos -> 0 | F7: =INDEX(qzLoc_ele,ElementNummer+1,1) + INDEX(qzGlob_ele,ElementNummer+1,1)*cos+INDEX(qxGlob_ele,ElementNummer+1,1)*sin -> 1 | G7: =SQRT( (E4-E3)^2+(F4-F3)^2) -> 6 | H7: =IF(sin>=0,ACOS(cos),-ACOS(cos))*180/PI() -> 0 | I7: =INDIRECT("System!X" & 3+ElementNummer) -> 0 | J7: =INDIRECT("System!Y" & 3+ElementNummer) -> 0 | K7: =INDIRECT("System!Z" & 3+ElementNummer) -> 0 | L7: =INDIRECT("System!AA" & 3+ElementNummer) -> 0 | M7: =INDIRECT("System!AC" & 3+ElementNummer) *INDIRECT("System!AD" & 3+ElementNummer) -> 0 | N7: =IF( INDIRECT("System!AE" & 3+ElementNummer) <> 0, INDIRECT("System!AB"&3+ElementNummer)*INDIRECT("System!AD"&3+ElementNummer)/INDIRECT("System!AE"&3+ElementNummer), 0) -> 0 | O7: =IF(N10=4,ABS(INDIRECT("System!AP" & 3+ElementNummer)),"n. verw.") -> n. verw. | P7: =IF(N10=4,(O7/(4*EI))^0.25*L,"n. verw.") -> n. verw. | Q7: =IF(N10=4,IF(SIGN(INDIRECT("System!AP" & 3+ElementNummer))<0,"ja","nein"),"n.verw.") -> n.verw. | R7: =IF(N10=5,INDIRECT("System!I" & 3+ElementNummer),"n. verw.") -> n. verw.
C8: Th.II.O.
C9: S | D9: w0 | E9: y0 | F9: a | G9: A' | H9: B' | I9: C' | J9: D' | K9: V' | M9: Grundele. | N9: Theorie
C10: =INDIRECT(ADDRESS(ROW(System!$B$3)+$D$1,COLUMN(System!$AH$3),,,"System")) -> 0 | D10: =INDIRECT(ADDRESS(ROW(System!$B$3)+$D$1,COLUMN(System!$AF$3),,,"System")) -> 0 | E10: =INDIRECT(ADDRESS(ROW(System!$B$3)+$D$1,COLUMN(System!$AG$3),,,"System")) -> 0 | F10: =L*SQRT(ABS(C10)/EI) -> 0 | G10: =IF(ISNUMBER(D1),Ap($F$10,$C$10),"??") -> 4 | H10: =IF(ISNUMBER(D1),Bp($F$10,$C$10),"??") -> 2 | I10: =IF(ISNUMBER(D1),Cp($F$10,$C$10),"??") -> 3 | J10: =IF(ISNUMBER(D1),Dp($F$10,$C$10),"??") -> 6 | K10: =IF(ISNUMBER(D1),vp($F$10,$C$10),"??") -> 1 | M10: =INDEX(GE_ele,ElementNummer+1,1) -> 3 | N10: =IF(INDEX(Theorie_ele,ElementNummer+1,1)>1000,INDEX(Theorie_ele,ElementNummer+1,1)-1000,INDEX(Theorie_ele,ElementNummer+1,1)) -> 0 | O10: =IF(N10=0,"Default",IF(N10=1,"Th.I.O.",IF(N10=2,"Th.II.O.",IF(N10=3,"FG-Theorie",IF(N10=4,"El. Bettung",IF(N10=5,"Timoshenko","??")))))) -> Default
C14: k_e : Elementsteifigkeitsmatrix in lokalen FG | J14: lokaler Lastvektor
B15: lok. FG | C15: 1 | D15: 2 | E15: 3 | F15: 4 | G15: 5 | H15: 6 | J15: Belast. | K15: Vorver. | L15: Summe | N15: F | O15: LZ
B16: 1 | C16: =GetEleStiff(ElementNummer,1) -> 166.6666667 | D16: 0 | E16: 0 | F16: -166.6666667 | G16: 0 | H16: 0 | J16: =TRANSPOSE(GetEleLoad(ElementNummer,1)) -> 0 | K16: =-MMULT(k_e,D35:D40) -> 0 | L16: =J16:J21+K16:K21 -> 0 | N16: =qx*L/2+F0- EA * epsT -> 0 | O16: =-qx*L/2 + EA*epsT -> 0
B17: 2 | C17: 0 | D17: -8.881784197e-16 | E17: 0 | F17: 0 | G17: 8.881784197e-16 | H17: 0 | J17: 3 | K17: 0 | L17: 3 | N17: =IStGE(GE,qz*L/2+F0*(e_2-e_1)/L,(qz/2*L^2-(Mk))/L,(qz/2*L^2+(-Mi))/L- 0*F0/ (2 * L) * (2 * e_1 + e_2 ))-N*psi -> 0 | O17: =-IStGE(GE,(qz+qs-8*f*F0/L^2)*L/2,((qz+qs-8*f*F0/L^2)/2*L^2-(Mk))/L - F0*(e_2-e_1)/L, ((qz+qs-8*f*F0/L^2)/2*L^2+(-Mi))/L - F0*(e_2-e_1)/L, qz*L/2 - 4*F0*f/L - F0*(e_2-e_1)/L ) -> 
B18: 3 | C18: 0 | D18: 0 | E18: 0 | F18: 0 | G18: 0 | H18: 0 | J18: 0 | K18: 0 | L18: 0 | N18: =IStGE(GE,-(Astr-Bstr)*Vstr*(qz+qs)*L^2/24+ F0* ( e_1 + 2/3 * f)-EI*kappaT,0,-Cstr*Vstr*(qz+qs)*L^2/24+ F0/ 2 * (2 * e_1 + e_2 + 2 * f)- 3 / 2 * EI*kappaT) -> 0 | O18: =-IStGE(GE,-(Astr-Bstr)*Vstr*(qz+qs-8*f*F0/L^2)*L^2/24 - EI*kappaT,-F0*e_1,-Cstr*Vstr*(qz+qs-8*f*F0/L^2)*L^2/24 + F0*e_2/2-3/2*EI*kappaT,-F0*e_1) -> 0
B19: 4 | C19: -166.6666667 | D19: 0 | E19: 0 | F19: 166.6666667 | G19: 0 | H19: 0 | J19: 0 | K19: 0 | L19: 0 | N19: =qx*L/2-F0+EA * epsT -> 0 | O19: =-qx*L/2 - EA*epsT -> 0
B20: 5 | C20: 0 | D20: 8.881784197e-16 | E20: 0 | F20: 0 | G20: -8.881784197e-16 | H20: 0 | J20: 3 | K20: 0 | L20: 3 | N20: =IStGE(GE,qz*L/2-F0*(e_2-e_1)/L,(qz/2*L^2+(Mk))/L- 0*F0/ (2 * L) * (2 * e_1 + e_2 ),(qz/2*L^2-(-Mi))/L+ 0*F0/ (2 * L) * (2 * e_1 + e_2 ))+N*psi -> 0 | O20: =-IStGE(GE,(qz+qs-8*f*F0/L^2)*L/2,((qz+qs-8*f*F0/L^2)/2*L^2+(Mk))/L + F0*(e_2-e_1)/L,((qz+qs-8*f*F0/L^2)/2*L^2-(-Mi))/L + F0*(e_2-e_1)/L,qz*L/2 - 4*F0*f/L + F0*(e_2-e_1)/L) -> 
B21: 6 | C21: 0 | D21: 0 | E21: 0 | F21: 0 | G21: 0 | H21: 0 | J21: 0 | K21: 0 | L21: 0 | N21: =IStGE(GE,(Astr-Bstr)*Vstr*(qz+qs)*L^2/24 - F0 * ( e_2 + 2/3 * f)+EI*kappaT,Cstr*Vstr*(qz+qs)*L^2/24- F0 / 2 * (e_1 + 2 * e_2 + 2 * f)+3/2*EI*kappaT,0) -> 0 | O21: =-IStGE(GE,(Astr-Bstr)*Vstr*(qz+qs-8*f*F0/L^2)*L^2/24+EI*kappaT,Cstr*Vstr*(qz+qs-8*f*F0/L^2)*L^2/24 - F0*(e_1/2)+ 3/2*EI*kappaT,F0*e_2,F0*e_2) -> 0
C23: k_Global : Elementsteifigkeitsmatrix in globalen FG
B24: glob. FG | C24: =INDIRECT("Knoten!E" & (D3+2)) -> 7 | D24: =INDIRECT("Knoten!F" & (D3+2)) -> 8 | E24: =INDIRECT("Knoten!G" & (D3+2)) -> 9 | F24: =INDIRECT("Knoten!E" & (D4+2)) -> 10 | G24: =INDIRECT("Knoten!F" & (D4+2)) -> 11 | H24: =INDIRECT("Knoten!G" & (D4+2)) -> 12 | I24: FG | J24: globaler Lastvektor
B25: lok. FG | C25: 1 | D25: 2 | E25: 3 | F25: 4 | G25: 5 | H25: 6 | I25: global | J25: Belast. | K25: Vorver. | L25: Summe
B26: 1 | C26: =MMULT(TRANSPOSE(T),MMULT(k_e,T)) -> 166.6666667 | D26: 0 | E26: 0 | F26: -166.6666667 | G26: 0 | H26: 0 | I26: =INDIRECT("Knoten!E" & (D3+2)) -> 7 | J26: =MMULT(TRANSPOSE(T),J16:J21) -> 0 | K26: =-MMULT(k_Global,E35:E40) -> 0 | L26: =J26+K26 -> 0
B27: 2 | C27: 0 | D27: -8.881784197e-16 | E27: 0 | F27: 0 | G27: 8.881784197e-16 | H27: 0 | I27: =INDIRECT("Knoten!F" & (D3+2)) -> 8 | J27: 3 | K27: 0 | L27: 3
B28: 3 | C28: 0 | D28: 0 | E28: 0 | F28: 0 | G28: 0 | H28: 0 | I28: =INDIRECT("Knoten!G" & (D3+2)) -> 9 | J28: 0 | K28: 0 | L28: 0
B29: 4 | C29: -166.6666667 | D29: 0 | E29: 0 | F29: 166.6666667 | G29: 0 | H29: 0 | I29: =INDIRECT("Knoten!E" & (D4+2)) -> 10 | J29: 0 | K29: 0 | L29: 0
B30: 5 | C30: 0 | D30: 8.881784197e-16 | E30: 0 | F30: 0 | G30: -8.881784197e-16 | H30: 0 | I30: =INDIRECT("Knoten!F" & (D4+2)) -> 11 | J30: 3 | K30: 0 | L30: 3
B31: 6 | C31: 0 | D31: 0 | E31: 0 | F31: 0 | G31: 0 | H31: 0 | I31: =INDIRECT("Knoten!G" & (D4+2)) -> 12 | J31: 0 | K31: 0 | L31: 0
B33: FG | C33: FG | D33: Vorverformung
B34: lokal | C34: global | D34: lokal | E34: global
B35: 1 | C35: =I26 -> 7 | D35: =(MMULT(T,E35:E40)) -> 0 | E35: =J3 -> 0
B36: 2 | C36: 8 | D36: 0 | E36: =K3 -> 0
B37: 3 | C37: 9 | D37: 0 | E37: =L3 -> 0
B38: 4 | C38: 10 | D38: 0 | E38: =J4 -> 0
B39: 5 | C39: 11 | D39: 0 | E39: =K4 -> 0
B40: 6 | C40: 12 | D40: 0 | E40: =L4 -> 0
D42: Stabendverschiebungen | G42: Stabendkraftgrößen (Vorzeichen nach VV!)
B43: lok. FG | C43: glob. FG | D43: Typ | E43: global | F43: lokal | G43: Typ | H43: lokal | I43: LZ | J43: Typ | K43: lokal
B44: 1 | C44: =INDIRECT("Knoten!E" & ($D$3+2)) -> 7 | D44: ua | E44: =M3+J3 -> 0.126 | F44: =MMULT(T,E44:E49) -> 0.126 | G44: Sa | H44: =MMULT(k_e,v)+I44:I49 -> -12 | I44: =TRANSPOSE(GetEleLZ(ElementNummer,1)) -> 0 | J44: Na | K44: =-INDIRECT(ADDRESS(ROW(Normalkraft!$J$4)+$D$1,COLUMN(Normalkraft!$J$4),,,"Normalkraft")) -> -12
B45: 2 | C45: =INDIRECT("Knoten!F" & ($D$3+2)) -> 8 | D45: wa | E45: =N3+K3 -> 0.545646753 | F45: 0.545646753 | G45: Ta | H45: -3 | I45: -3 | J45: Qa | K45: =-INDIRECT(ADDRESS(ROW(Querkraft!$J$4)+$D$1,COLUMN(Querkraft!$J$4),,,"Querkraft")) -> -3
B46: 3 | C46: =INDIRECT("Knoten!G" & ($D$3+2)) -> 9 | D46: ja | E46: =O3+L3 -> 0 | F46: 0 | G46: Ma | H46: 0 | I46: 0 | J46: Ma | K46: =-INDIRECT(ADDRESS(ROW(Momente!$J$4)+$D$1,COLUMN(Momente!$J$4),,,"Momente")) -> 0
B47: 4 | C47: =INDIRECT("Knoten!E" & ($D$4+2)) -> 10 | D47: ub | E47: =M4+J4 -> 0.198 | F47: 0.198 | G47: Sb | H47: 12 | I47: 0 | J47: Nb | K47: =INDIRECT(ADDRESS(ROW(Normalkraft!$T$4)+$D$1,COLUMN(Normalkraft!$T$4),,,"Normalkraft")) -> 12
B48: 5 | C48: =INDIRECT("Knoten!F" & ($D$4+2)) -> 11 | D48: wb | E48: =N4+K4 -> 0.3867350647 | F48: 0.3867350647 | G48: Tb | H48: -3 | I48: -3 | J48: Qb | K48: =INDIRECT(ADDRESS(ROW(Querkraft!$T$4)+$D$1,COLUMN(Querkraft!$T$4),,,"Querkraft")) -> -3
B49: 6 | C49: =INDIRECT("Knoten!G" & ($D$4+2)) -> 12 | D49: jb | E49: =O4+L4 -> 0 | F49: 0 | G49: Mb | H49: 0 | I49: 0 | J49: Mb | K49: =INDIRECT(ADDRESS(ROW(Momente!$T$4)+$D$1,COLUMN(Momente!$T$4),,,"Momente")) -> 0
C51: Transformationsmatrix T
C52: 1 | D52: 2 | E52: 3 | F52: 4 | G52: 5 | H52: 6 | J52: sin(alpha) | K52: cos(alpha)
B53: 1 | C53: =cos -> 1 | D53: =-sin -> 0 | E53: 0 | F53: 0 | G53: 0 | H53: 0 | J53: =-(F4-F3)/L -> 0 | K53: =(E4-E3)/L -> 1
B54: 2 | C54: =sin -> 0 | D54: =cos -> 1 | E54: 0 | F54: 0 | G54: 0 | H54: 0
B55: 3 | C55: 0 | D55: 0 | E55: 1 | F55: 0 | G55: 0 | H55: 0
B56: 4 | C56: 0 | D56: 0 | E56: 0 | F56: =cos -> 1 | G56: =-sin -> 0 | H56: 0
B57: 5 | C57: 0 | D57: 0 | E57: 0 | F57: =sin -> 0 | G57: =cos -> 1 | H57: 0
B58: 6 | C58: 0 | D58: 0 | E58: 0 | F58: 0 | G58: 0 | H58: 1

Sheet System
E1: Geometrie | L1: konstante Linienlasten | P1: lineare Linienlasten | X1: Vorspannung | AB1: Temperaturlasten | AF1: Theorie II. Ordnung | AM1: Tragwerkslasten | AP1: elast. Bettung | AR1: Fließgelenk | AU1: Element
C2: Knotennummer | E2: Länge | F2: Winkel | G2: Steifigkeiten | L2: lokal | N2: global | P2: lokal | T2: global | X2: Spannkraft | Y2: Abstände am Rand | AA2: Seilstich | AB2: deltaT | AC2: T const. | AD2: alphaT | AE2: Höhe | AF2: Vorverkrümmung | AG2: Schrägstellung | AH2: Stablängs | AI2: kraft | AK2: ThIIIO | AM2: ständig | AN2: veränderlich | AP2: Bettungsziffer | AQ2: Einflusslinie | AR2: plast. Moment | AS2: Sensitivität | AU2: gesplittet
B3: Element | C3: a | D3: b | E3: L | F3: alpha | G3: EI | H3: EA | I3: GAs | J3: GE | K3: Theorie | L3: qx | M3: qz | N3: qx | O3: qz | P3: qxi | Q3: qxk | R3: qzi | S3: qzk | T3: qxi | U3: qxk | V3: qzi | W3: qzk | X3: P | Y3: e1 | Z3: e2 | AA3: f | AB3: Tu -To | AC3: T || | AD3: αT | AE3: h | AF3: w0 | AG3: psi0 | AH3: S | AI3: S geschätzt | AJ3: dx | AK3: dy | AL3: psi | AM3: Eigengewicht | AN3: Schnee | AO3: Wind | AP3: k | AQ3: Lastgurt | AR3: Mpl | AS3: Response | AT3: Parameter | AU3: ja/nein
B4: 1 | C4: 1 | D4: 2 | E4: 6 | F4: 0 | G4: 100 | H4: 1000 | I4: 0 | J4: 3 | K4: 0 | L4: 0 | M4: 1 | N4: 0 | O4: 0 | P4: 0 | Q4: 0 | R4: 0 | S4: 0 | T4: 0 | U4: 0 | V4: 0 | W4: 0 | X4: 0 | Y4: 0 | Z4: 0 | AA4: 0 | AB4: 0 | AC4: 0 | AD4: 0 | AE4: 0 | AF4: 0 | AG4: 0 | AH4: 0 | AI4: 0 | AJ4: 0 | AK4: 0 | AL4: 0 | AM4: 0 | AN4: 0 | AO4: 0 | AP4: 0 | AQ4: 0 | AR4: 0 | AS4: 0 | AT4: 0 | AU4: FALSE
B5: 2 | C5: 2 | D5: 3 | E5: 6 | F5: 0 | G5: 100 | H5: 1000 | I5: 0 | J5: 3 | K5: 0 | L5: 0 | M5: 1 | N5: 0 | O5: 0 | P5: 0 | Q5: 0 | R5: 0 | S5: 0 | T5: 0 | U5: 0 | V5: 0 | W5: 0 | X5: 0 | Y5: 0 | Z5: 0 | AA5: 0 | AB5: 0 | AC5: 0 | AD5: 0 | AE5: 0 | AF5: 0 | AG5: 0 | AH5: 0 | AI5: 0 | AJ5: 0 | AK5: 0 | AL5: 0 | AM5: 0 | AN5: 0 | AO5: 0 | AP5: 0 | AQ5: 0 | AR5: 0 | AS5: 0 | AT5: 0 | AU5: FALSE
B6: 3 | C6: 3 | D6: 4 | E6: 6 | F6: 0 | G6: 100 | H6: 1000 | I6: 0 | J6: 3 | K6: 0 | L6: 0 | M6: 1 | N6: 0 | O6: 0 | P6: 0 | Q6: 0 | R6: 0 | S6: 0 | T6: 0 | U6: 0 | V6: 0 | W6: 0 | X6: 0 | Y6: 0 | Z6: 0 | AA6: 0 | AB6: 0 | AC6: 0 | AD6: 0 | AE6: 0 | AF6: 0 | AG6: 0 | AH6: 0 | AI6: 0 | AJ6: 0 | AK6: 0 | AL6: 0 | AM6: 0 | AN6: 0 | AO6: 0 | AP6: 0 | AQ6: 0 | AR6: 0 | AS6: 0 | AT6: 0 | AU6: FALSE
B7: 4 | C7: 4 | D7: 5 | E7: 6 | F7: 0 | G7: 100 | H7: 1000 | I7: 0 | J7: 3 | K7: 0 | L7: 0 | M7: 1 | N7: 0 | O7: 0 | P7: 0 | Q7: 0 | R7: 0 | S7: 0 | T7: 0 | U7: 0 | V7: 0 | W7: 0 | X7: 0 | Y7: 0 | Z7: 0 | AA7: 0 | AB7: 0 | AC7: 0 | AD7: 0 | AE7: 0 | AF7: 0 | AG7: 0 | AH7: 0 | AI7: 0 | AJ7: 0 | AK7: 0 | AL7: 0 | AM7: 0 | AN7: 0 | AO7: 0 | AP7: 0 | AQ7: 0 | AR7: 0 | AS7: 0 | AT7: 0 | AU7: FALSE
B8: 5 | C8: 2 | D8: 6 | E8: 6 | F8: 90 | G8: 100 | H8: 1000 | I8: 0 | J8: 3 | K8: 0 | L8: 0 | M8: 0 | N8: 0 | O8: 0 | P8: 0 | Q8: 0 | R8: 0 | S8: 0 | T8: 0 | U8: 0 | V8: 0 | W8: 0 | X8: 0 | Y8: 0 | Z8: 0 | AA8: 0 | AB8: 0 | AC8: 0 | AD8: 0 | AE8: 0 | AF8: 0 | AG8: 0 | AH8: 0 | AI8: 0 | AJ8: 0 | AK8: 0 | AL8: 0 | AM8: 0 | AN8: 0 | AO8: 0 | AP8: 0 | AQ8: 0 | AR8: 0 | AS8: 0 | AT8: 0 | AU8: FALSE
B9: 6 | C9: 3 | D9: 7 | E9: 6 | F9: 90 | G9: 100 | H9: 1000 | I9: 0 | J9: 3 | K9: 0 | L9: 0 | M9: 0 | N9: 0 | O9: 0 | P9: 0 | Q9: 0 | R9: 0 | S9: 0 | T9: 0 | U9: 0 | V9: 0 | W9: 0 | X9: 0 | Y9: 0 | Z9: 0 | AA9: 0 | AB9: 0 | AC9: 0 | AD9: 0 | AE9: 0 | AF9: 0 | AG9: 0 | AH9: 0 | AI9: 0 | AJ9: 0 | AK9: 0 | AL9: 0 | AM9: 0 | AN9: 0 | AO9: 0 | AP9: 0 | AQ9: 0 | AR9: 0 | AS9: 0 | AT9: 0 | AU9: FALSE
B10: 7 | C10: 4 | D10: 8 | E10: 6 | F10: 90 | G10: 100 | H10: 1000 | I10: 0 | J10: 3 | K10: 0 | L10: 0 | M10: 0 | N10: 0 | O10: 0 | P10: 0 | Q10: 0 | R10: 0 | S10: 0 | T10: 0 | U10: 0 | V10: 0 | W10: 0 | X10: 0 | Y10: 0 | Z10: 0 | AA10: 0 | AB10: 0 | AC10: 0 | AD10: 0 | AE10: 0 | AF10: 0 | AG10: 0 | AH10: 0 | AI10: 0 | AJ10: 0 | AK10: 0 | AL10: 0 | AM10: 0 | AN10: 0 | AO10: 0 | AP10: 0 | AQ10: 0 | AR10: 0 | AS10: 0 | AT10: 0 | AU10: FALSE
B11: 8 | C11: 1 | D11: 6 | E11: 8.485281374 | F11: 45 | G11: 100 | H11: 1000 | I11: 0 | J11: 3 | K11: 0 | L11: 0 | M11: 0 | N11: 0 | O11: 0 | P11: 0 | Q11: 0 | R11: 0 | S11: 0 | T11: 0 | U11: 0 | V11: 0 | W11: 0 | X11: 0 | Y11: 0 | Z11: 0 | AA11: 0 | AB11: 0 | AC11: 0 | AD11: 0 | AE11: 0 | AF11: 0 | AG11: 0 | AH11: 0 | AI11: 0 | AJ11: 0 | AK11: 0 | AL11: 0 | AM11: 0 | AN11: 0 | AO11: 0 | AP11: 0 | AQ11: 0 | AR11: 0 | AS11: 0 | AT11: 0 | AU11: FALSE
B12: 9 | C12: 6 | D12: 7 | E12: 6 | F12: 0 | G12: 100 | H12: 1000 | I12: 0 | J12: 3 | K12: 0 | L12: 0 | M12: 0 | N12: 0 | O12: 0 | P12: 0 | Q12: 0 | R12: 0 | S12: 0 | T12: 0 | U12: 0 | V12: 0 | W12: 0 | X12: 0 | Y12: 0 | Z12: 0 | AA12: 0 | AB12: 0 | AC12: 0 | AD12: 0 | AE12: 0 | AF12: 0 | AG12: 0 | AH12: 0 | AI12: 0 | AJ12: 0 | AK12: 0 | AL12: 0 | AM12: 0 | AN12: 0 | AO12: 0 | AP12: 0 | AQ12: 0 | AR12: 0 | AS12: 0 | AT12: 0 | AU12: FALSE
B13: 10 | C13: 7 | D13: 8 | E13: 6 | F13: 0 | G13: 100 | H13: 1000 | I13: 0 | J13: 3 | K13: 0 | L13: 0 | M13: 0 | N13: 0 | O13: 0 | P13: 0 | Q13: 0 | R13: 0 | S13: 0 | T13: 0 | U13: 0 | V13: 0 | W13: 0 | X13: 0 | Y13: 0 | Z13: 0 | AA13: 0 | AB13: 0 | AC13: 0 | AD13: 0 | AE13: 0 | AF13: 0 | AG13: 0 | AH13: 0 | AI13: 0 | AJ13: 0 | AK13: 0 | AL13: 0 | AM13: 0 | AN13: 0 | AO13: 0 | AP13: 0 | AQ13: 0 | AR13: 0 | AS13: 0 | AT13: 0 | AU13: FALSE
B14: 11 | C14: 8 | D14: 5 | E14: 8.485281374 | F14: -45 | G14: 100 | H14: 1000 | I14: 0 | J14: 3 | K14: 0 | L14: 0 | M14: 0 | N14: 0 | O14: 0 | P14: 0 | Q14: 0 | R14: 0 | S14: 0 | T14: 0 | U14: 0 | V14: 0 | W14: 0 | X14: 0 | Y14: 0 | Z14: 0 | AA14: 0 | AB14: 0 | AC14: 0 | AD14: 0 | AE14: 0 | AF14: 0 | AG14: 0 | AH14: 0 | AI14: 0 | AJ14: 0 | AK14: 0 | AL14: 0 | AM14: 0 | AN14: 0 | AO14: 0 | AP14: 0 | AQ14: 0 | AR14: 0 | AS14: 0 | AT14: 0 | AU14: FALSE
B15: 12 | C15: 2 | D15: 7 | E15: 8.485281374 | F15: 45 | G15: 100 | H15: 1000 | I15: 0 | J15: 3 | K15: 0 | L15: 0 | M15: 0 | N15: 0 | O15: 0 | P15: 0 | Q15: 0 | R15: 0 | S15: 0 | T15: 0 | U15: 0 | V15: 0 | W15: 0 | X15: 0 | Y15: 0 | Z15: 0 | AA15: 0 | AB15: 0 | AC15: 0 | AD15: 0 | AE15: 0 | AF15: 0 | AG15: 0 | AH15: 0 | AI15: 0 | AJ15: 0 | AK15: 0 | AL15: 0 | AM15: 0 | AN15: 0 | AO15: 0 | AP15: 0 | AQ15: 0 | AR15: 0 | AS15: 0 | AT15: 0 | AU15: FALSE
B16: 13 | C16: 7 | D16: 4 | E16: 8.485281374 | F16: -45 | G16: 100 | H16: 1000 | I16: 0 | J16: 3 | K16: 0 | L16: 0 | M16: 0 | N16: 0 | O16: 0 | P16: 0 | Q16: 0 | R16: 0 | S16: 0 | T16: 0 | U16: 0 | V16: 0 | W16: 0 | X16: 0 | Y16: 0 | Z16: 0 | AA16: 0 | AB16: 0 | AC16: 0 | AD16: 0 | AE16: 0 | AF16: 0 | AG16: 0 | AH16: 0 | AI16: 0 | AJ16: 0 | AK16: 0 | AL16: 0 | AM16: 0 | AN16: 0 | AO16: 0 | AP16: 0 | AQ16: 0 | AR16: 0 | AS16: 0 | AT16: 0 | AU16: FALSE
B17: 14
B18: 15
B19: 16
B20: 17
B21: 18
B22: 19
B23: 20
B24: 21
B25: 22
B26: 23
B27: 24
B28: 25
B29: 26
B30: 27
B31: 28
B32: 29
B33: 30
B34: 31
B35: 32
B36: 33
B37: 34
B38: 35
B39: 36
B40: 37
B41: 38
B42: 39
B43: 40
BC110: =COLUMN(Knoten!C4) -> 3 | BD110: =COLUMN(Knoten!D5) -> 4
BC119: Cx | BD119: =(MIN(Knoten!C3:C43)+MAX(Knoten!C3:C43))/2 -> -1 | BF119: Cz | BG119: =(MIN(Knoten!D3:D43)+MAX(Knoten!D3:D43))/2 -> 1
BC121: xa | BD121: xb | BE121: za | BF121: zb | BG121: L | BH121: alpha | BI121: alpha | BJ121: sin | BK121: cos | BL121: qx | BM121: qz | BN121: qxi | BO121: qxk | BP121: qzi | BQ121: qzk
BB122: 1 | BC122: =IF(ISNUMBER(C4),INDIRECT("Knoten!C" &C4+ 2)-$BD$119,0) -> -12 | BD122: =IF(ISNUMBER(D4),INDIRECT("Knoten!"&ADDRESS(D4+2,3))-$BD$119,0) -> -6 | BE122: =IF(ISNUMBER(C4),INDIRECT("Knoten!"&ADDRESS(C4+2,4))-$BG$119,0) -> 3 | BF122: 3 | BG122: =IF(ISNUMBER(C4),SQRT((BD122-BC122)^2+(BF122-BE122)^2),"") -> 6 | BH122: =IF(ISNUMBER(BG122),IF(BJ122>=0,ACOS(BK122),-ACOS(BK122))*180/PI(),"") -> 0 | BI122: 90 | BJ122: =IF(ISNUMBER(BG122),-(BF122-BE122)/BG122,0) -> 0 | BK122: =IF(ISNUMBER(BG122),(BD122-BC122)/BG122,"") -> 1 | BL122: =L4+(N4*BK122-O4*BJ122) -> 0 | BM122: =M4+(N4*BJ122+O4*BK122) -> 1 | BN122: =P4+(T4*BK122-V4*BJ122) -> 0 | BO122: =Q4+(U4*BK122-W4*BJ122) -> 0 | BP122: =R4+(T4*BJ122+V4*BK122) -> 0 | BQ122: =S4+(U4*BJ122+W4*BK122) -> 0
BB123: 2 | BC123: =IF(ISNUMBER(C5),INDIRECT("Knoten!C" &C5+ 2)-$BD$119,0) -> -6 | BD123: =IF(ISNUMBER(D5),INDIRECT("Knoten!"&ADDRESS(D5+2,3))-$BD$119,0) -> 0 | BE123: 3 | BF123: 3 | BG123: 6 | BH123: 0 | BI123: 90 | BJ123: =IF(ISNUMBER(BG123),-(BF123-BE123)/BG123,0) -> 0 | BK123: 1 | BL123: 0 | BM123: 1 | BN123: 0 | BO123: 0 | BP123: 0 | BQ123: 0
BB124: 3 | BC124: 0 | BD124: 6 | BE124: 3 | BF124: 3 | BG124: 6 | BH124: 0 | BI124: 90 | BJ124: =IF(ISNUMBER(BG124),-(BF124-BE124)/BG124,0) -> 0 | BK124: 1 | BL124: 0 | BM124: 1 | BN124: 0 | BO124: 0 | BP124: 0 | BQ124: 0
BB125: 4 | BC125: 6 | BD125: 12 | BE125: 3 | BF125: 3 | BG125: 6 | BH125: 0 | BI125: 90 | BJ125: 0 | BK125: 1 | BL125: 0 | BM125: 1 | BN125: 0 | BO125: 0 | BP125: 0 | BQ125: 0
BB126: 5 | BC126: -6 | BD126: -6 | BE126: 3 | BF126: -3 | BG126: 6 | BH126: 90 | BI126: 90 | BJ126: 1 | BK126: 0 | BL126: 0 | BM126: 0 | BN126: 0 | BO126: 0 | BP126: 0 | BQ126: 0
BB127: 6 | BC127: 0 | BD127: 0 | BE127: 3 | BF127: -3 | BG127: 6 | BH127: 90 | BI127: 90 | BJ127: 1 | BK127: 0 | BL127: 0 | BM127: 0 | BN127: 0 | BO127: 0 | BP127: 0 | BQ127: 0
BB128: 7 | BC128: 6 | BD128: 6 | BE128: 3 | BF128: -3 | BG128: 6 | BH128: 90 | BI128: 90 | BJ128: 1 | BK128: 0 | BL128: 0 | BM128: 0 | BN128: 0 | BO128: 0 | BP128: 0 | BQ128: 0
BB129: 8 | BC129: -12 | BD129: =IF(ISNUMBER(D11),INDIRECT("Knoten!"&ADDRESS(D11+2,COLUMN(Knoten!C10)))-$BD$119,0) -> -6 | BE129: 3 | BF129: -3 | BG129: 8.485281374 | BH129: 45 | BI129: 90 | BJ129: 0.7071067812 | BK129: 0.7071067812 | BL129: 0 | BM129: 0 | BN129: 0 | BO129: 0 | BP129: 0 | BQ129: 0
BB130: 9 | BC130: -6 | BD130: =IF(ISNUMBER(D12),INDIRECT("Knoten!"&ADDRESS(D12+2,COLUMN(Knoten!C11)))-$BD$119,0) -> 0 | BE130: -3 | BF130: -3 | BG130: 6 | BH130: 0 | BI130: 90 | BJ130: 0 | BK130: 1 | BL130: 0 | BM130: 0 | BN130: 0 | BO130: 0 | BP130: 0 | BQ130: 0
BB131: 10 | BC131: 0 | BD131: =IF(ISNUMBER(D13),INDIRECT("Knoten!"&ADDRESS(D13+2,COLUMN(Knoten!C12)))-$BD$119,0) -> 6 | BE131: -3 | BF131: -3 | BG131: 6 | BH131: 0 | BI131: 90 | BJ131: 0 | BK131: 1 | BL131: 0 | BM131: 0 | BN131: 0 | BO131: 0 | BP131: 0 | BQ131: 0
BB132: 11 | BC132: 6 | BD132: =IF(ISNUMBER(D14),INDIRECT("Knoten!"&ADDRESS(D14+2,COLUMN(Knoten!C13)))-$BD$119,0) -> 12 | BE132: -3 | BF132: 3 | BG132: 8.485281374 | BH132: -45 | BI132: 90 | BJ132: -0.7071067812 | BK132: 0.7071067812 | BL132: 0 | BM132: 0 | BN132: 0 | BO132: 0 | BP132: 0 | BQ132: 0
BB133: 12 | BC133: -6 | BD133: =IF(ISNUMBER(D15),INDIRECT("Knoten!"&ADDRESS(D15+2,COLUMN(Knoten!C14)))-$BD$119,0) -> 0 | BE133: 3 | BF133: -3 | BG133: 8.485281374 | BH133: 45 | BI133: 90 | BJ133: 0.7071067812 | BK133: 0.7071067812 | BL133: 0 | BM133: 0 | BN133: 0 | BO133: 0 | BP133: 0 | BQ133: 0
BB134: 13 | BC134: 0 | BD134: =IF(ISNUMBER(D16),INDIRECT("Knoten!"&ADDRESS(D16+2,COLUMN(Knoten!C15)))-$BD$119,0) -> 6 | BE134: -3 | BF134: 3 | BG134: 8.485281374 | BH134: -45 | BI134: 90 | BJ134: -0.7071067812 | BK134: 0.7071067812 | BL134: 0 | BM134: 0 | BN134: 0 | BO134: 0 | BP134: 0 | BQ134: 0
BB135: 14 | BC135: 0 | BD135: =IF(ISNUMBER(D17),INDIRECT("Knoten!"&ADDRESS(D17+2,COLUMN(Knoten!C16)))-$BD$119,0) -> 0 | BE135: 0 | BF135: 0 | BJ135: 0
BB136: 15 | BC136: 0 | BD136: =IF(ISNUMBER(D18),INDIRECT("Knoten!"&ADDRESS(D18+2,COLUMN(Knoten!C17)))-$BD$119,0) -> 0 | BE136: 0 | BF136: 0 | BJ136: 0
BB137: 16 | BC137: 0 | BD137: =IF(ISNUMBER(D19),INDIRECT("Knoten!"&ADDRESS(D19+2,COLUMN(Knoten!C18)))-$BD$119,0) -> 0 | BE137: 0 | BF137: 0 | BJ137: 0 | BK137: =IF(ISNUMBER(BG137),(BD137-BC137)/BG137,0) -> 0 | BL137: 0 | BM137: 0 | BN137: 0 | BO137: 0 | BP137: 0 | BQ137: 0
BB138: 17 | BC138: 0 | BD138: =IF(ISNUMBER(D20),INDIRECT("Knoten!"&ADDRESS(D20+2,COLUMN(Knoten!C19)))-$BD$119,0) -> 0 | BE138: 0 | BF138: 0 | BJ138: 0 | BK138: =IF(ISNUMBER(BG138),(BD138-BC138)/BG138,0) -> 0 | BL138: 0 | BM138: 0 | BN138: 0 | BO138: 0 | BP138: 0 | BQ138: 0
BB139: 18 | BC139: 0 | BD139: =IF(ISNUMBER(D21),INDIRECT("Knoten!"&ADDRESS(D21+2,COLUMN(Knoten!C20)))-$BD$119,0) -> 0 | BE139: 0 | BF139: 0 | BJ139: 0 | BK139: 0 | BL139: 0 | BM139: 0 | BN139: 0 | BO139: 0 | BP139: 0 | BQ139: 0
BB140: 19 | BC140: 0 | BD140: =IF(ISNUMBER(D22),INDIRECT("Knoten!"&ADDRESS(D22+2,COLUMN(Knoten!C21)))-$BD$119,0) -> 0 | BE140: 0 | BF140: 0 | BJ140: 0 | BK140: 0 | BL140: 0 | BM140: 0 | BN140: 0 | BO140: 0 | BP140: 0 | BQ140: 0
BB141: 20 | BC141: 0 | BD141: =IF(ISNUMBER(D23),INDIRECT("Knoten!"&ADDRESS(D23+2,COLUMN(Knoten!C22)))-$BD$119,0) -> 0 | BE141: 0 | BF141: 0 | BJ141: 0 | BK141: 0 | BL141: 0 | BM141: 0 | BN141: 0 | BO141: 0 | BP141: 0 | BQ141: 0
BB142: 21 | BC142: 0 | BD142: =IF(ISNUMBER(D24),INDIRECT("Knoten!"&ADDRESS(D24+2,COLUMN(Knoten!C23)))-$BD$119,0) -> 0 | BE142: 0 | BF142: 0 | BJ142: 0 | BK142: 0 | BL142: 0 | BM142: 0 | BN142: 0 | BO142: 0 | BP142: 0 | BQ142: 0
BB143: 22 | BC143: 0 | BD143: =IF(ISNUMBER(D25),INDIRECT("Knoten!"&ADDRESS(D25+2,COLUMN(Knoten!C24)))-$BD$119,0) -> 0 | BE143: 0 | BF143: 0 | BJ143: 0 | BK143: 0 | BL143: 0 | BM143: 0 | BN143: 0 | BO143: 0 | BP143: 0 | BQ143: 0
BB144: 23 | BC144: 0 | BD144: =IF(ISNUMBER(D26),INDIRECT("Knoten!"&ADDRESS(D26+2,COLUMN(Knoten!C25)))-$BD$119,0) -> 0 | BE144: 0 | BF144: 0 | BJ144: 0 | BK144: 0 | BL144: 0 | BM144: 0 | BN144: 0 | BO144: 0 | BP144: 0 | BQ144: 0
BB145: 24 | BC145: 0 | BD145: =IF(ISNUMBER(D27),INDIRECT("Knoten!"&ADDRESS(D27+2,COLUMN(Knoten!C26)))-$BD$119,0) -> 0 | BE145: 0 | BF145: 0 | BJ145: 0 | BK145: 0 | BL145: 0 | BM145: 0 | BN145: 0 | BO145: 0 | BP145: 0 | BQ145: 0
BB146: 25 | BC146: 0 | BD146: =IF(ISNUMBER(D28),INDIRECT("Knoten!"&ADDRESS(D28+2,COLUMN(Knoten!C27)))-$BD$119,0) -> 0 | BE146: 0 | BF146: 0 | BG146: =IF(ISNUMBER(C28),SQRT((BD146-BC146)^2+(BF146-BE146)^2),"") ->  | BJ146: 0 | BK146: 0 | BL146: 0 | BM146: 0 | BN146: 0 | BO146: 0 | BP146: 0 | BQ146: 0
BB147: 26 | BC147: 0 | BD147: =IF(ISNUMBER(D29),INDIRECT("Knoten!"&ADDRESS(D29+2,COLUMN(Knoten!C28)))-$BD$119,0) -> 0 | BE147: 0 | BF147: 0 | BJ147: 0 | BK147: 0 | BL147: 0 | BM147: 0 | BN147: 0 | BO147: 0 | BP147: 0 | BQ147: 0
BB148: 27 | BC148: 0 | BD148: =IF(ISNUMBER(D30),INDIRECT("Knoten!"&ADDRESS(D30+2,COLUMN(Knoten!C29)))-$BD$119,0) -> 0 | BE148: 0 | BF148: 0 | BJ148: 0 | BK148: 0 | BL148: 0 | BM148: 0 | BN148: 0 | BO148: 0 | BP148: 0 | BQ148: 0
BB149: 28 | BC149: 0 | BD149: =IF(ISNUMBER(D31),INDIRECT("Knoten!"&ADDRESS(D31+2,COLUMN(Knoten!C30)))-$BD$119,0) -> 0 | BE149: 0 | BF149: 0 | BJ149: 0 | BK149: 0 | BL149: 0 | BM149: 0 | BN149: 0 | BO149: 0 | BP149: 0 | BQ149: 0
BB150: 29 | BC150: 0 | BD150: =IF(ISNUMBER(D32),INDIRECT("Knoten!"&ADDRESS(D32+2,COLUMN(Knoten!C31)))-$BD$119,0) -> 0 | BE150: 0 | BF150: 0 | BJ150: 0 | BK150: 0 | BL150: 0 | BM150: 0 | BN150: 0 | BO150: 0 | BP150: 0 | BQ150: 0
BB151: 30 | BC151: 0 | BD151: =IF(ISNUMBER(D33),INDIRECT("Knoten!"&ADDRESS(D33+2,COLUMN(Knoten!C32)))-$BD$119,0) -> 0 | BE151: 0 | BF151: 0 | BJ151: 0 | BK151: 0 | BL151: 0 | BM151: 0 | BN151: 0 | BO151: 0 | BP151: 0 | BQ151: 0
BB152: 31 | BC152: 0 | BD152: =IF(ISNUMBER(D34),INDIRECT("Knoten!"&ADDRESS(D34+2,COLUMN(Knoten!C33)))-$BD$119,0) -> 0 | BE152: 0 | BF152: 0 | BJ152: 0 | BK152: 0 | BL152: 0 | BM152: 0 | BN152: 0 | BO152: 0 | BP152: 0 | BQ152: 0
BB153: 32 | BC153: 0 | BD153: =IF(ISNUMBER(D35),INDIRECT("Knoten!"&ADDRESS(D35+2,COLUMN(Knoten!C34)))-$BD$119,0) -> 0 | BE153: 0 | BF153: 0 | BJ153: 0 | BK153: 0 | BL153: 0 | BM153: 0 | BN153: 0 | BO153: 0 | BP153: 0 | BQ153: 0
BB154: 33 | BC154: 0 | BD154: =IF(ISNUMBER(D36),INDIRECT("Knoten!"&ADDRESS(D36+2,COLUMN(Knoten!C35)))-$BD$119,0) -> 0 | BE154: 0 | BF154: 0 | BJ154: 0 | BK154: 0 | BL154: 0 | BM154: 0 | BN154: 0 | BO154: 0 | BP154: 0 | BQ154: 0
BB155: 34 | BC155: 0 | BD155: =IF(ISNUMBER(D37),INDIRECT("Knoten!"&ADDRESS(D37+2,COLUMN(Knoten!C36)))-$BD$119,0) -> 0 | BE155: 0 | BF155: 0 | BJ155: 0 | BK155: 0 | BL155: 0 | BM155: 0 | BN155: 0 | BO155: 0 | BP155: 0 | BQ155: 0
BB156: 35 | BC156: 0 | BD156: =IF(ISNUMBER(D38),INDIRECT("Knoten!"&ADDRESS(D38+2,COLUMN(Knoten!C37)))-$BD$119,0) -> 0 | BE156: 0 | BF156: 0 | BJ156: 0 | BK156: 0 | BL156: 0 | BM156: 0 | BN156: 0 | BO156: 0 | BP156: 0 | BQ156: 0
BB157: 36 | BC157: 0 | BD157: =IF(ISNUMBER(D39),INDIRECT("Knoten!"&ADDRESS(D39+2,COLUMN(Knoten!C38)))-$BD$119,0) -> 0 | BE157: 0 | BF157: 0 | BJ157: 0 | BK157: 0 | BL157: 0 | BM157: 0 | BN157: 0 | BO157: 0 | BP157: 0 | BQ157: 0
BB158: 37 | BC158: 0 | BD158: =IF(ISNUMBER(D40),INDIRECT("Knoten!"&ADDRESS(D40+2,COLUMN(Knoten!C39)))-$BD$119,0) -> 0 | BE158: 0 | BF158: 0 | BJ158: 0 | BK158: 0 | BL158: 0 | BM158: 0 | BN158: 0 | BO158: 0 | BP158: 0 | BQ158: 0
BB159: 38 | BC159: 0 | BD159: =IF(ISNUMBER(D41),INDIRECT("Knoten!"&ADDRESS(D41+2,COLUMN(Knoten!C40)))-$BD$119,0) -> 0 | BE159: 0 | BF159: 0 | BJ159: 0 | BK159: 0 | BL159: 0 | BM159: 0 | BN159: 0 | BO159: 0 | BP159: 0 | BQ159: 0
BB160: 39 | BC160: 0 | BD160: =IF(ISNUMBER(D42),INDIRECT("Knoten!"&ADDRESS(D42+2,COLUMN(Knoten!C41)))-$BD$119,0) -> 0 | BE160: 0 | BF160: 0 | BJ160: 0 | BK160: 0 | BL160: 0 | BM160: 0 | BN160: 0 | BO160: 0 | BP160: 0 | BQ160: 0
BB161: 40 | BC161: 0 | BD161: =IF(ISNUMBER(D43),INDIRECT("Knoten!"&ADDRESS(D43+2,COLUMN(Knoten!C42)))-$BD$119,0) -> 0 | BE161: 0 | BF161: 0 | BJ161: 0 | BK161: 0 | BL161: 0 | BM161: 0 | BN161: 0 | BO161: 0 | BP161: 0 | BQ161: 0
BC163: =MIN(BC122:BD161) -> -12 | BE163: =MIN(BE122:BF161) -> -3
BC164: =MAX(BC123:BD162) -> 12 | BE164: =MAX(BE122:BF161) -> 3

Sheet Ksys
B1: Fsys | C1: Usys | D1: Ksys | E1: 1 | F1: 2 | G1: 3 | H1: 4 | I1: 5 | J1: 6 | K1: 7 | L1: 8 | M1: 9 | N1: 10 | O1: 11 | P1: 12 | Q1: 13 | R1: 14 | S1: 15 | T1: 16 | U1: 17 | V1: 18 | W1: 19 | X1: 20 | Y1: 21 | Z1: 22 | AA1: 23 | AB1: 24
A2: 1 | B2: 0 | C2: 0 | D2: 1 | E2: 1 | F2: 0 | G2: 0 | H2: 0 | I2: 0 | J2: 0 | K2: 0 | L2: 0 | M2: 0 | N2: 0 | O2: 0 | P2: 0 | Q2: 0 | R2: 0 | S2: 0 | T2: 0 | U2: 0 | V2: 0 | W2: 0 | X2: 0 | Y2: 0 | Z2: 0 | AA2: 0 | AB2: 0
A3: 2 | B3: 0 | C3: 0 | D3: 2 | E3: 0 | F3: 1 | G3: 0 | H3: 0 | I3: 0 | J3: 0 | K3: 0 | L3: 0 | M3: 0 | N3: 0 | O3: 0 | P3: 0 | Q3: 0 | R3: 0 | S3: 0 | T3: 0 | U3: 0 | V3: 0 | W3: 0 | X3: 0 | Y3: 0 | Z3: 0 | AA3: 0 | AB3: 0
A4: 3 | B4: 0 | C4: 0 | D4: 3 | E4: 0 | F4: 0 | G4: 1 | H4: 0 | I4: 0 | J4: 0 | K4: 0 | L4: 0 | M4: 0 | N4: 0 | O4: 0 | P4: 0 | Q4: 0 | R4: 0 | S4: 0 | T4: 0 | U4: 0 | V4: 0 | W4: 0 | X4: 0 | Y4: 0 | Z4: 0 | AA4: 0 | AB4: 0
A5: 4 | B5: 0 | C5: 0.054 | D5: 4 | E5: 0 | F5: 0 | G5: 0 | H5: 392.2588984 | I5: -58.9255651 | J5: 0 | K5: -166.6666667 | L5: 0 | M5: 0 | N5: 0 | O5: 0 | P5: 0 | Q5: 0 | R5: 0 | S5: 0 | T5: 8.881784197e-16 | U5: 0 | V5: 0 | W5: -58.9255651 | X5: 58.9255651 | Y5: 0 | Z5: 0 | AA5: 0 | AB5: 0
A6: 5 | B6: 6 | C6: 0.3867350647 | D6: 5 | E6: 0 | F6: 0 | G6: 0 | H6: -58.9255651 | I6: 225.5922318 | J6: 0 | K6: 0 | L6: 8.881784197e-16 | M6: 0 | N6: 0 | O6: 0 | P6: 0 | Q6: 0 | R6: 0 | S6: 0 | T6: 0 | U6: -166.6666667 | V6: 0 | W6: 58.9255651 | X6: -58.9255651 | Y6: 0 | Z6: 0 | AA6: 0 | AB6: 0
A7: 6 | B7: 0 | C7: 0 | D7: 6 | E7: 0 | F7: 0 | G7: 0 | H7: 0 | I7: 0 | J7: 1 | K7: 0 | L7: 0 | M7: 0 | N7: 0 | O7: 0 | P7: 0 | Q7: 0 | R7: 0 | S7: 0 | T7: 0 | U7: 0 | V7: 0 | W7: 0 | X7: 0 | Y7: 0 | Z7: 0 | AA7: 0 | AB7: 0
A8: 7 | B8: 0 | C8: 0.126 | D8: 7 | E8: 0 | F8: 0 | G8: 0 | H8: -166.6666667 | I8: 0 | J8: 0 | K8: 333.3333333 | L8: 0 | M8: 0 | N8: -166.6666667 | O8: 0 | P8: 0 | Q8: 0 | R8: 0 | S8: 0 | T8: 0 | U8: 0 | V8: 0 | W8: 8.881784197e-16 | X8: 0 | Y8: 0 | Z8: 0 | AA8: 0 | AB8: 0
A9: 8 | B9: 6 | C9: 0.545646753 | D9: 8 | E9: 0 | F9: 0 | G9: 0 | H9: 0 | I9: 8.881784197e-16 | J9: 0 | K9: 0 | L9: 166.6666667 | M9: 0 | N9: 0 | O9: 8.881784197e-16 | P9: 0 | Q9: 0 | R9: 0 | S9: 0 | T9: 0 | U9: 0 | V9: 0 | W9: 0 | X9: -166.6666667 | Y9: 0 | Z9: 0 | AA9: 0 | AB9: 0
A10: 9 | B10: 0 | C10: 0 | D10: 9 | E10: 0 | F10: 0 | G10: 0 | H10: 0 | I10: 0 | J10: 0 | K10: 0 | L10: 0 | M10: 1 | N10: 0 | O10: 0 | P10: 0 | Q10: 0 | R10: 0 | S10: 0 | T10: 0 | U10: 0 | V10: 0 | W10: 0 | X10: 0 | Y10: 0 | Z10: 0 | AA10: 0 | AB10: 0
A11: 10 | B11: 0 | C11: 0.198 | D11: 10 | E11: 0 | F11: 0 | G11: 0 | H11: 0 | I11: 0 | J11: 0 | K11: -166.6666667 | L11: 0 | M11: 0 | N11: 392.2588984 | O11: 58.9255651 | P11: 0 | Q11: -166.6666667 | R11: 0 | S11: 0 | T11: 0 | U11: 0 | V11: 0 | W11: -58.9255651 | X11: -58.9255651 | Y11: 0 | Z11: 8.881784197e-16 | AA11: 0 | AB11: 0
A12: 11 | B12: 6 | C12: 0.3867350647 | D12: 11 | E12: 0 | F12: 0 | G12: 0 | H12: 0 | I12: 0 | J12: 0 | K12: 0 | L12: 8.881784197e-16 | M12: 0 | N12: 58.9255651 | O12: 225.5922318 | P12: 0 | Q12: 0 | R12: 0 | S12: 0 | T12: 0 | U12: 0 | V12: 0 | W12: -58.9255651 | X12: -58.9255651 | Y12: 0 | Z12: 0 | AA12: -166.6666667 | AB12: 0
A13: 12 | B13: 0 | C13: 0 | D13: 12 | E13: 0 | F13: 0 | G13: 0 | H13: 0 | I13: 0 | J13: 0 | K13: 0 | L13: 0 | M13: 0 | N13: 0 | O13: 0 | P13: 1 | Q13: 0 | R13: 0 | S13: 0 | T13: 0 | U13: 0 | V13: 0 | W13: 0 | X13: 0 | Y13: 0 | Z13: 0 | AA13: 0 | AB13: 0
A14: 13 | B14: 0 | C14: 0.252 | D14: 13 | E14: 0 | F14: 0 | G14: 0 | H14: 0 | I14: 0 | J14: 0 | K14: 0 | L14: 0 | M14: 0 | N14: -166.6666667 | O14: 0 | P14: 0 | Q14: 225.5922318 | R14: 0 | S14: 0 | T14: 0 | U14: 0 | V14: 0 | W14: 0 | X14: 0 | Y14: 0 | Z14: -58.9255651 | AA14: -58.9255651 | AB14: 0
A15: 14 | B15: 0 | C15: 0 | D15: 14 | E15: 0 | F15: 0 | G15: 0 | H15: 0 | I15: 0 | J15: 0 | K15: 0 | L15: 0 | M15: 0 | N15: 0 | O15: 0 | P15: 0 | Q15: 0 | R15: 1 | S15: 0 | T15: 0 | U15: 0 | V15: 0 | W15: 0 | X15: 0 | Y15: 0 | Z15: 0 | AA15: 0 | AB15: 0
A16: 15 | B16: 0 | C16: 0 | D16: 15 | E16: 0 | F16: 0 | G16: 0 | H16: 0 | I16: 0 | J16: 0 | K16: 0 | L16: 0 | M16: 0 | N16: 0 | O16: 0 | P16: 0 | Q16: 0 | R16: 0 | S16: 1 | T16: 0 | U16: 0 | V16: 0 | W16: 0 | X16: 0 | Y16: 0 | Z16: 0 | AA16: 0 | AB16: 0
A17: 16 | B17: 0 | C17: 0.18 | D17: 16 | E17: 0 | F17: 0 | G17: 0 | H17: 8.881784197e-16 | I17: 0 | J17: 0 | K17: 0 | L17: 0 | M17: 0 | N17: 0 | O17: 0 | P17: 0 | Q17: 0 | R17: 0 | S17: 0 | T17: 225.5922318 | U17: -58.9255651 | V17: 0 | W17: -166.6666667 | X17: 0 | Y17: 0 | Z17: 0 | AA17: 0 | AB17: 0
A18: 17 | B18: 0 | C18: 0.3327350647 | D18: 17 | E18: 0 | F18: 0 | G18: 0 | H18: 0 | I18: -166.6666667 | J18: 0 | K18: 0 | L18: 0 | M18: 0 | N18: 0 | O18: 0 | P18: 0 | Q18: 0 | R18: 0 | S18: 0 | T18: -58.9255651 | U18: 225.5922318 | V18: 0 | W18: 0 | X18: 8.881784197e-16 | Y18: 0 | Z18: 0 | AA18: 0 | AB18: 0
A19: 18 | B19: 0 | C19: 0 | D19: 18 | E19: 0 | F19: 0 | G19: 0 | H19: 0 | I19: 0 | J19: 0 | K19: 0 | L19: 0 | M19: 0 | N19: 0 | O19: 0 | P19: 0 | Q19: 0 | R19: 0 | S19: 0 | T19: 0 | U19: 0 | V19: 1 | W19: 0 | X19: 0 | Y19: 0 | Z19: 0 | AA19: 0 | AB19: 0
A20: 19 | B20: 0 | C20: 0.126 | D20: 19 | E20: 0 | F20: 0 | G20: 0 | H20: -58.9255651 | I20: 58.9255651 | J20: 0 | K20: 8.881784197e-16 | L20: 0 | M20: 0 | N20: -58.9255651 | O20: -58.9255651 | P20: 0 | Q20: 0 | R20: 0 | S20: 0 | T20: -166.6666667 | U20: 0 | V20: 0 | W20: 451.1844635 | X20: 0 | Y20: 0 | Z20: -166.6666667 | AA20: 0 | AB20: 0
A21: 20 | B21: 0 | C21: 0.509646753 | D21: 20 | E21: 0 | F21: 0 | G21: 0 | H21: 58.9255651 | I21: -58.9255651 | J21: 0 | K21: 0 | L21: -166.6666667 | M21: 0 | N21: -58.9255651 | O21: -58.9255651 | P21: 0 | Q21: 0 | R21: 0 | S21: 0 | T21: 0 | U21: 8.881784197e-16 | V21: 0 | W21: 0 | X21: 284.5177969 | Y21: 0 | Z21: 0 | AA21: 8.881784197e-16 | AB21: 0
A22: 21 | B22: 0 | C22: 0 | D22: 21 | E22: 0 | F22: 0 | G22: 0 | H22: 0 | I22: 0 | J22: 0 | K22: 0 | L22: 0 | M22: 0 | N22: 0 | O22: 0 | P22: 0 | Q22: 0 | R22: 0 | S22: 0 | T22: 0 | U22: 0 | V22: 0 | W22: 0 | X22: 0 | Y22: 1 | Z22: 0 | AA22: 0 | AB22: 0
A23: 22 | B23: 0 | C23: 0.072 | D23: 22 | E23: 0 | F23: 0 | G23: 0 | H23: 0 | I23: 0 | J23: 0 | K23: 0 | L23: 0 | M23: 0 | N23: 8.881784197e-16 | O23: 0 | P23: 0 | Q23: -58.9255651 | R23: 0 | S23: 0 | T23: 0 | U23: 0 | V23: 0 | W23: -166.6666667 | X23: 0 | Y23: 0 | Z23: 225.5922318 | AA23: 58.9255651 | AB23: 0
A24: 23 | B24: 0 | C24: 0.3327350647 | D24: 23 | E24: 0 | F24: 0 | G24: 0 | H24: 0 | I24: 0 | J24: 0 | K24: 0 | L24: 0 | M24: 0 | N24: 0 | O24: -166.6666667 | P24: 0 | Q24: -58.9255651 | R24: 0 | S24: 0 | T24: 0 | U24: 0 | V24: 0 | W24: 0 | X24: 8.881784197e-16 | Y24: 0 | Z24: 58.9255651 | AA24: 225.5922318 | AB24: 0
A25: 24 | B25: 0 | C25: 0 | D25: 24 | E25: 0 | F25: 0 | G25: 0 | H25: 0 | I25: 0 | J25: 0 | K25: 0 | L25: 0 | M25: 0 | N25: 0 | O25: 0 | P25: 0 | Q25: 0 | R25: 0 | S25: 0 | T25: 0 | U25: 0 | V25: 0 | W25: 0 | X25: 0 | Y25: 0 | Z25: 0 | AA25: 0 | AB25: 1
E33: L(transponiert)
E34: 1 | F34: 0 | G34: 0 | H34: 0 | I34: 0 | J34: 0 | K34: 0 | L34: 0 | M34: 0 | N34: 0 | O34: 0 | P34: 0 | Q34: 0 | R34: 0 | S34: 0 | T34: 0 | U34: 0 | V34: 0 | W34: 0 | X34: 0 | Y34: 0 | Z34: 0 | AA34: 0 | AB34: 0
E35: 0 | F35: 1 | G35: 0 | H35: 0 | I35: 0 | J35: 0 | K35: 0 | L35: 0 | M35: 0 | N35: 0 | O35: 0 | P35: 0 | Q35: 0 | R35: 0 | S35: 0 | T35: 0 | U35: 0 | V35: 0 | W35: 0 | X35: 0 | Y35: 0 | Z35: 0 | AA35: 0 | AB35: 0
E36: 0 | F36: 0 | G36: 1 | H36: 0 | I36: 0 | J36: 0 | K36: 0 | L36: 0 | M36: 0 | N36: 0 | O36: 0 | P36: 0 | Q36: 0 | R36: 0 | S36: 0 | T36: 0 | U36: 0 | V36: 0 | W36: 0 | X36: 0 | Y36: 0 | Z36: 0 | AA36: 0 | AB36: 0
E37: 0 | F37: 0 | G37: 0 | H37: 1 | I37: -0.1502211048 | J37: 0 | K37: -0.4248894476 | L37: 0 | M37: 0 | N37: 0 | O37: 0 | P37: 0 | Q37: 0 | R37: 0 | S37: 0 | T37: 2.264265829e-18 | U37: 0 | V37: 0 | W37: -0.1502211048 | X37: 0.1502211048 | Y37: 0 | Z37: 0 | AA37: 0 | AB37: 0
E38: 0 | F38: 0 | G38: 0 | H38: 0 | I38: 1 | J38: 0 | K38: -0.1155154022 | L38: 4.09789107e-18 | M38: 0 | N38: 0 | O38: 0 | P38: 0 | Q38: 0 | R38: 0 | S38: 0 | T38: 6.15589724e-19 | U38: -0.7689691957 | V38: 0 | W38: 0.2310308043 | X38: -0.2310308043 | Y38: 0 | Z38: 0 | AA38: 0 | AB38: 0
E39: 0 | F39: 0 | G39: 0 | H39: 0 | I39: 0 | J39: 1 | K39: 0 | L39: 0 | M39: 0 | N39: 0 | O39: 0 | P39: 0 | Q39: 0 | R39: 0 | S39: 0 | T39: 0 | U39: 0 | V39: 0 | W39: 0 | X39: 0 | Y39: 0 | Z39: 0 | AA39: 0 | AB39: 0
E40: 0 | F40: 0 | G40: 0 | H40: 0 | I40: 0 | J40: 0 | K40: 1 | L40: 3.951768132e-19 | M40: 0 | N40: -0.641948359 | O40: 0 | P40: 0 | Q40: 0 | R40: 0 | S40: 0 | T40: 1.512905631e-18 | U40: -0.07415492286 | V40: 0 | W40: -0.07415492286 | X40: 0.07415492286 | Y40: 0 | Z40: 0 | AA40: 0 | AB40: 0
E41: 0 | F41: 0 | G41: 0 | H41: 0 | I41: 0 | J41: 0 | K41: 0 | L41: 1 | M41: 0 | N41: 3.951768132e-19 | O41: 5.329070518e-18 | P41: 0 | Q41: 0 | R41: 0 | S41: 0 | T41: -4.211850209e-36 | U41: 4.143540079e-18 | V41: 0 | W41: -1.18553044e-18 | X41: -1 | Y41: 0 | Z41: 0 | AA41: 0 | AB41: 0
E42: 0 | F42: 0 | G42: 0 | H42: 0 | I42: 0 | J42: 0 | K42: 0 | L42: 0 | M42: 1 | N42: 0 | O42: 0 | P42: 0 | Q42: 0 | R42: 0 | S42: 0 | T42: 0 | U42: 0 | V42: 0 | W42: 0 | X42: 0 | Y42: 0 | Z42: 0 | AA42: 0 | AB42: 0
E43: 0 | F43: 0 | G43: 0 | H43: 0 | I43: 0 | J43: 0 | K43: 0 | L43: 0 | M43: 0 | N43: 1 | O43: 0.2065624861 | P43: 0 | Q43: -0.5842469387 | R43: 0 | S43: 0 | T43: 8.839104833e-19 | U43: -0.04332478667 | V43: 0 | W43: -0.2498872728 | X43: -0.1632376995 | Y43: 0 | Z43: 3.113493137e-18 | AA43: 0 | AB43: 0
E44: 0 | F44: 0 | G44: 0 | H44: 0 | I44: 0 | J44: 0 | K44: 0 | L44: 0 | M44: 0 | N44: 0 | O44: 1 | P44: 0 | Q44: 0.1613110917 | R44: 0 | S44: 0 | T44: -2.440484589e-19 | U44: 0.01196201156 | V44: 0 | W44: -0.2071067812 | X44: -0.2310308043 | Y44: 0 | Z44: -8.596381829e-19 | AA44: -0.7809312073 | AB44: 0
E45: 0 | F45: 0 | G45: 0 | H45: 0 | I45: 0 | J45: 0 | K45: 0 | L45: 0 | M45: 0 | N45: 0 | O45: 0 | P45: 1 | Q45: 0 | R45: 0 | S45: 0 | T45: 0 | U45: 0 | V45: 0 | W45: 0 | X45: 0 | Y45: 0 | Z45: 0 | AA45: 0 | AB45: 0
E46: 0 | F46: 0 | G46: 0 | H46: 0 | I46: 0 | J46: 0 | K46: 0 | L46: 0 | M46: 0 | N46: 0 | O46: 0 | P46: 0 | Q46: 1 | R46: 0 | S46: 0 | T46: 1.269483668e-18 | U46: -0.06222361897 | V46: 0 | W46: -0.2814005767 | X46: -0.1569533387 | Y46: 0 | Z46: -0.4803808327 | AA46: -0.261203875 | AB46: 0
E47: 0 | F47: 0 | G47: 0 | H47: 0 | I47: 0 | J47: 0 | K47: 0 | L47: 0 | M47: 0 | N47: 0 | O47: 0 | P47: 0 | Q47: 0 | R47: 1 | S47: 0 | T47: 0 | U47: 0 | V47: 0 | W47: 0 | X47: 0 | Y47: 0 | Z47: 0 | AA47: 0 | AB47: 0
E48: 0 | F48: 0 | G48: 0 | H48: 0 | I48: 0 | J48: 0 | K48: 0 | L48: 0 | M48: 0 | N48: 0 | O48: 0 | P48: 0 | Q48: 0 | R48: 0 | S48: 1 | T48: 0 | U48: 0 | V48: 0 | W48: 0 | X48: 0 | Y48: 0 | Z48: 0 | AA48: 0 | AB48: 0
E49: 0 | F49: 0 | G49: 0 | H49: 0 | I49: 0 | J49: 0 | K49: 0 | L49: 0 | M49: 0 | N49: 0 | O49: 0 | P49: 0 | Q49: 0 | R49: 0 | S49: 0 | T49: 1 | U49: -0.261203875 | V49: 0 | W49: -0.738796125 | X49: -3.464546067e-19 | Y49: 0 | Z49: 3.315940534e-19 | AA49: 1.928877574e-35 | AB49: 0
E50: 0 | F50: 0 | G50: 0 | H50: 0 | I50: 0 | J50: 0 | K50: 0 | L50: 0 | M50: 0 | N50: 0 | O50: 0 | P50: 0 | Q50: 0 | R50: 0 | S50: 0 | T50: 0 | U50: 1 | V50: 0 | W50: -0.1403032824 | X50: -0.4989674642 | Y50: 0 | Z50: -0.04607940364 | AA50: -5.467984316e-18 | AB50: 0
E51: 0 | F51: 0 | G51: 0 | H51: 0 | I51: 0 | J51: 0 | K51: 0 | L51: 0 | M51: 0 | N51: 0 | O51: 0 | P51: 0 | Q51: 0 | R51: 0 | S51: 0 | T51: 0 | U51: 0 | V51: 1 | W51: 0 | X51: 0 | Y51: 0 | Z51: 0 | AA51: 0 | AB51: 0
E52: 0 | F52: 0 | G52: 0 | H52: 0 | I52: 0 | J52: 0 | K52: 0 | L52: 0 | M52: 0 | N52: 0 | O52: 0 | P52: 0 | Q52: 0 | R52: 0 | S52: 0 | T52: 0 | U52: 0 | V52: 0 | W52: 1 | X52: -0.04100723747 | Y52: 0 | Z52: -0.6857931816 | AA52: -0.1624665518 | AB52: 0
E53: 0 | F53: 0 | G53: 0 | H53: 0 | I53: 0 | J53: 0 | K53: 0 | L53: 0 | M53: 0 | N53: 0 | O53: 0 | P53: 0 | Q53: 0 | R53: 0 | S53: 0 | T53: 0 | U53: 0 | V53: 0 | W53: 0 | X53: 1 | Y53: 0 | Z53: -0.3464466094 | AA53: -0.8435028843 | AB53: 0
E54: 0 | F54: 0 | G54: 0 | H54: 0 | I54: 0 | J54: 0 | K54: 0 | L54: 0 | M54: 0 | N54: 0 | O54: 0 | P54: 0 | Q54: 0 | R54: 0 | S54: 0 | T54: 0 | U54: 0 | V54: 0 | W54: 0 | X54: 0 | Y54: 1 | Z54: 0 | AA54: 0 | AB54: 0
E55: 0 | F55: 0 | G55: 0 | H55: 0 | I55: 0 | J55: 0 | K55: 0 | L55: 0 | M55: 0 | N55: 0 | O55: 0 | P55: 0 | Q55: 0 | R55: 0 | S55: 0 | T55: 0 | U55: 0 | V55: 0 | W55: 0 | X55: 0 | Y55: 0 | Z55: 1 | AA55: -0.03127877379 | AB55: 0
E56: 0 | F56: 0 | G56: 0 | H56: 0 | I56: 0 | J56: 0 | K56: 0 | L56: 0 | M56: 0 | N56: 0 | O56: 0 | P56: 0 | Q56: 0 | R56: 0 | S56: 0 | T56: 0 | U56: 0 | V56: 0 | W56: 0 | X56: 0 | Y56: 0 | Z56: 0 | AA56: 1 | AB56: 0
E57: 0 | F57: 0 | G57: 0 | H57: 0 | I57: 0 | J57: 0 | K57: 0 | L57: 0 | M57: 0 | N57: 0 | O57: 0 | P57: 0 | Q57: 0 | R57: 0 | S57: 0 | T57: 0 | U57: 0 | V57: 0 | W57: 0 | X57: 0 | Y57: 0 | Z57: 0 | AA57: 0 | AB57: 1
E59: D
E60: 1 | F60: 0 | G60: 0 | H60: 0 | I60: 0 | J60: 0 | K60: 0 | L60: 0 | M60: 0 | N60: 0 | O60: 0 | P60: 0 | Q60: 0 | R60: 0 | S60: 0 | T60: 0 | U60: 0 | V60: 0 | W60: 0 | X60: 0 | Y60: 0 | Z60: 0 | AA60: 0 | AB60: 0
E61: 0 | F61: 1 | G61: 0 | H61: 0 | I61: 0 | J61: 0 | K61: 0 | L61: 0 | M61: 0 | N61: 0 | O61: 0 | P61: 0 | Q61: 0 | R61: 0 | S61: 0 | T61: 0 | U61: 0 | V61: 0 | W61: 0 | X61: 0 | Y61: 0 | Z61: 0 | AA61: 0 | AB61: 0
E62: 0 | F62: 0 | G62: 1 | H62: 0 | I62: 0 | J62: 0 | K62: 0 | L62: 0 | M62: 0 | N62: 0 | O62: 0 | P62: 0 | Q62: 0 | R62: 0 | S62: 0 | T62: 0 | U62: 0 | V62: 0 | W62: 0 | X62: 0 | Y62: 0 | Z62: 0 | AA62: 0 | AB62: 0
E63: 0 | F63: 0 | G63: 0 | H63: 392.2588984 | I63: 0 | J63: 0 | K63: 0 | L63: 0 | M63: 0 | N63: 0 | O63: 0 | P63: 0 | Q63: 0 | R63: 0 | S63: 0 | T63: 0 | U63: 0 | V63: 0 | W63: 0 | X63: 0 | Y63: 0 | Z63: 0 | AA63: 0 | AB63: 0
E64: 0 | F64: 0 | G64: 0 | H64: 0 | I64: 216.7403683 | J64: 0 | K64: 0 | L64: 0 | M64: 0 | N64: 0 | O64: 0 | P64: 0 | Q64: 0 | R64: 0 | S64: 0 | T64: 0 | U64: 0 | V64: 0 | W64: 0 | X64: 0 | Y64: 0 | Z64: 0 | AA64: 0 | AB64: 0
E65: 0 | F65: 0 | G65: 0 | H65: 0 | I65: 0 | J65: 1 | K65: 0 | L65: 0 | M65: 0 | N65: 0 | O65: 0 | P65: 0 | Q65: 0 | R65: 0 | S65: 0 | T65: 0 | U65: 0 | V65: 0 | W65: 0 | X65: 0 | Y65: 0 | Z65: 0 | AA65: 0 | AB65: 0
E66: 0 | F66: 0 | G66: 0 | H66: 0 | I66: 0 | J66: 0 | K66: 259.6262835 | L66: 0 | M66: 0 | N66: 0 | O66: 0 | P66: 0 | Q66: 0 | R66: 0 | S66: 0 | T66: 0 | U66: 0 | V66: 0 | W66: 0 | X66: 0 | Y66: 0 | Z66: 0 | AA66: 0 | AB66: 0
E67: 0 | F67: 0 | G67: 0 | H67: 0 | I67: 0 | J67: 0 | K67: 0 | L67: 166.6666667 | M67: 0 | N67: 0 | O67: 0 | P67: 0 | Q67: 0 | R67: 0 | S67: 0 | T67: 0 | U67: 0 | V67: 0 | W67: 0 | X67: 0 | Y67: 0 | Z67: 0 | AA67: 0 | AB67: 0
E68: 0 | F68: 0 | G68: 0 | H68: 0 | I68: 0 | J68: 0 | K68: 0 | L68: 0 | M68: 1 | N68: 0 | O68: 0 | P68: 0 | Q68: 0 | R68: 0 | S68: 0 | T68: 0 | U68: 0 | V68: 0 | W68: 0 | X68: 0 | Y68: 0 | Z68: 0 | AA68: 0 | AB68: 0
E69: 0 | F69: 0 | G69: 0 | H69: 0 | I69: 0 | J69: 0 | K69: 0 | L69: 0 | M69: 0 | N69: 285.2675053 | O69: 0 | P69: 0 | Q69: 0 | R69: 0 | S69: 0 | T69: 0 | U69: 0 | V69: 0 | W69: 0 | X69: 0 | Y69: 0 | Z69: 0 | AA69: 0 | AB69: 0
E70: 0 | F70: 0 | G70: 0 | H70: 0 | I70: 0 | J70: 0 | K70: 0 | L70: 0 | M70: 0 | N70: 0 | O70: 213.4204205 | P70: 0 | Q70: 0 | R70: 0 | S70: 0 | T70: 0 | U70: 0 | V70: 0 | W70: 0 | X70: 0 | Y70: 0 | Z70: 0 | AA70: 0 | AB70: 0
E71: 0 | F71: 0 | G71: 0 | H71: 0 | I71: 0 | J71: 0 | K71: 0 | L71: 0 | M71: 0 | N71: 0 | O71: 0 | P71: 1 | Q71: 0 | R71: 0 | S71: 0 | T71: 0 | U71: 0 | V71: 0 | W71: 0 | X71: 0 | Y71: 0 | Z71: 0 | AA71: 0 | AB71: 0
E72: 0 | F72: 0 | G72: 0 | H72: 0 | I72: 0 | J72: 0 | K72: 0 | L72: 0 | M72: 0 | N72: 0 | O72: 0 | P72: 0 | Q72: 122.664272 | R72: 0 | S72: 0 | T72: 0 | U72: 0 | V72: 0 | W72: 0 | X72: 0 | Y72: 0 | Z72: 0 | AA72: 0 | AB72: 0
E73: 0 | F73: 0 | G73: 0 | H73: 0 | I73: 0 | J73: 0 | K73: 0 | L73: 0 | M73: 0 | N73: 0 | O73: 0 | P73: 0 | Q73: 0 | R73: 1 | S73: 0 | T73: 0 | U73: 0 | V73: 0 | W73: 0 | X73: 0 | Y73: 0 | Z73: 0 | AA73: 0 | AB73: 0
E74: 0 | F74: 0 | G74: 0 | H74: 0 | I74: 0 | J74: 0 | K74: 0 | L74: 0 | M74: 0 | N74: 0 | O74: 0 | P74: 0 | Q74: 0 | R74: 0 | S74: 1 | T74: 0 | U74: 0 | V74: 0 | W74: 0 | X74: 0 | Y74: 0 | Z74: 0 | AA74: 0 | AB74: 0
E75: 0 | F75: 0 | G75: 0 | H75: 0 | I75: 0 | J75: 0 | K75: 0 | L75: 0 | M75: 0 | N75: 0 | O75: 0 | P75: 0 | Q75: 0 | R75: 0 | S75: 0 | T75: 225.5922318 | U75: 0 | V75: 0 | W75: 0 | X75: 0 | Y75: 0 | Z75: 0 | AA75: 0 | AB75: 0
E76: 0 | F76: 0 | G76: 0 | H76: 0 | I76: 0 | J76: 0 | K76: 0 | L76: 0 | M76: 0 | N76: 0 | O76: 0 | P76: 0 | Q76: 0 | R76: 0 | S76: 0 | T76: 0 | U76: 79.5705157 | V76: 0 | W76: 0 | X76: 0 | Y76: 0 | Z76: 0 | AA76: 0 | AB76: 0
E77: 0 | F77: 0 | G77: 0 | H77: 0 | I77: 0 | J77: 0 | K77: 0 | L77: 0 | M77: 0 | N77: 0 | O77: 0 | P77: 0 | Q77: 0 | R77: 0 | S77: 0 | T77: 0 | U77: 0 | V77: 1 | W77: 0 | X77: 0 | Y77: 0 | Z77: 0 | AA77: 0 | AB77: 0
E78: 0 | F78: 0 | G78: 0 | H78: 0 | I78: 0 | J78: 0 | K78: 0 | L78: 0 | M78: 0 | N78: 0 | O78: 0 | P78: 0 | Q78: 0 | R78: 0 | S78: 0 | T78: 0 | U78: 0 | V78: 0 | W78: 267.9565651 | X78: 0 | Y78: 0 | Z78: 0 | AA78: 0 | AB78: 0
E79: 0 | F79: 0 | G79: 0 | H79: 0 | I79: 0 | J79: 0 | K79: 0 | L79: 0 | M79: 0 | N79: 0 | O79: 0 | P79: 0 | Q79: 0 | R79: 0 | S79: 0 | T79: 0 | U79: 0 | V79: 0 | W79: 0 | X79: 53.72736505 | Y79: 0 | Z79: 0 | AA79: 0 | AB79: 0
E80: 0 | F80: 0 | G80: 0 | H80: 0 | I80: 0 | J80: 0 | K80: 0 | L80: 0 | M80: 0 | N80: 0 | O80: 0 | P80: 0 | Q80: 0 | R80: 0 | S80: 0 | T80: 0 | U80: 0 | V80: 0 | W80: 0 | X80: 0 | Y80: 1 | Z80: 0 | AA80: 0 | AB80: 0
E81: 0 | F81: 0 | G81: 0 | H81: 0 | I81: 0 | J81: 0 | K81: 0 | L81: 0 | M81: 0 | N81: 0 | O81: 0 | P81: 0 | Q81: 0 | R81: 0 | S81: 0 | T81: 0 | U81: 0 | V81: 0 | W81: 0 | X81: 0 | Y81: 0 | Z81: 64.64466094 | AA81: 0 | AB81: 0
E82: 0 | F82: 0 | G82: 0 | H82: 0 | I82: 0 | J82: 0 | K82: 0 | L82: 0 | M82: 0 | N82: 0 | O82: 0 | P82: 0 | Q82: 0 | R82: 0 | S82: 0 | T82: 0 | U82: 0 | V82: 0 | W82: 0 | X82: 0 | Y82: 0 | Z82: 0 | AA82: 41.70503171 | AB82: 0
E83: 0 | F83: 0 | G83: 0 | H83: 0 | I83: 0 | J83: 0 | K83: 0 | L83: 0 | M83: 0 | N83: 0 | O83: 0 | P83: 0 | Q83: 0 | R83: 0 | S83: 0 | T83: 0 | U83: 0 | V83: 0 | W83: 0 | X83: 0 | Y83: 0 | Z83: 0 | AA83: 0 | AB83: 1
E85: L
E86: 1 | F86: 0 | G86: 0 | H86: 0 | I86: 0 | J86: 0 | K86: 0 | L86: 0 | M86: 0 | N86: 0 | O86: 0 | P86: 0 | Q86: 0 | R86: 0 | S86: 0 | T86: 0 | U86: 0 | V86: 0 | W86: 0 | X86: 0 | Y86: 0 | Z86: 0 | AA86: 0 | AB86: 0
E87: 0 | F87: 1 | G87: 0 | H87: 0 | I87: 0 | J87: 0 | K87: 0 | L87: 0 | M87: 0 | N87: 0 | O87: 0 | P87: 0 | Q87: 0 | R87: 0 | S87: 0 | T87: 0 | U87: 0 | V87: 0 | W87: 0 | X87: 0 | Y87: 0 | Z87: 0 | AA87: 0 | AB87: 0
E88: 0 | F88: 0 | G88: 1 | H88: 0 | I88: 0 | J88: 0 | K88: 0 | L88: 0 | M88: 0 | N88: 0 | O88: 0 | P88: 0 | Q88: 0 | R88: 0 | S88: 0 | T88: 0 | U88: 0 | V88: 0 | W88: 0 | X88: 0 | Y88: 0 | Z88: 0 | AA88: 0 | AB88: 0
E89: 0 | F89: 0 | G89: 0 | H89: 1 | I89: 0 | J89: 0 | K89: 0 | L89: 0 | M89: 0 | N89: 0 | O89: 0 | P89: 0 | Q89: 0 | R89: 0 | S89: 0 | T89: 0 | U89: 0 | V89: 0 | W89: 0 | X89: 0 | Y89: 0 | Z89: 0 | AA89: 0 | AB89: 0
E90: 0 | F90: 0 | G90: 0 | H90: -0.1502211048 | I90: 1 | J90: 0 | K90: 0 | L90: 0 | M90: 0 | N90: 0 | O90: 0 | P90: 0 | Q90: 0 | R90: 0 | S90: 0 | T90: 0 | U90: 0 | V90: 0 | W90: 0 | X90: 0 | Y90: 0 | Z90: 0 | AA90: 0 | AB90: 0
E91: 0 | F91: 0 | G91: 0 | H91: 0 | I91: 0 | J91: 1 | K91: 0 | L91: 0 | M91: 0 | N91: 0 | O91: 0 | P91: 0 | Q91: 0 | R91: 0 | S91: 0 | T91: 0 | U91: 0 | V91: 0 | W91: 0 | X91: 0 | Y91: 0 | Z91: 0 | AA91: 0 | AB91: 0
E92: 0 | F92: 0 | G92: 0 | H92: -0.4248894476 | I92: -0.1155154022 | J92: 0 | K92: 1 | L92: 0 | M92: 0 | N92: 0 | O92: 0 | P92: 0 | Q92: 0 | R92: 0 | S92: 0 | T92: 0 | U92: 0 | V92: 0 | W92: 0 | X92: 0 | Y92: 0 | Z92: 0 | AA92: 0 | AB92: 0
E93: 0 | F93: 0 | G93: 0 | H93: 0 | I93: 4.09789107e-18 | J93: 0 | K93: 3.951768132e-19 | L93: 1 | M93: 0 | N93: 0 | O93: 0 | P93: 0 | Q93: 0 | R93: 0 | S93: 0 | T93: 0 | U93: 0 | V93: 0 | W93: 0 | X93: 0 | Y93: 0 | Z93: 0 | AA93: 0 | AB93: 0
E94: 0 | F94: 0 | G94: 0 | H94: 0 | I94: 0 | J94: 0 | K94: 0 | L94: 0 | M94: 1 | N94: 0 | O94: 0 | P94: 0 | Q94: 0 | R94: 0 | S94: 0 | T94: 0 | U94: 0 | V94: 0 | W94: 0 | X94: 0 | Y94: 0 | Z94: 0 | AA94: 0 | AB94: 0
E95: 0 | F95: 0 | G95: 0 | H95: 0 | I95: 0 | J95: 0 | K95: -0.641948359 | L95: 3.951768132e-19 | M95: 0 | N95: 1 | O95: 0 | P95: 0 | Q95: 0 | R95: 0 | S95: 0 | T95: 0 | U95: 0 | V95: 0 | W95: 0 | X95: 0 | Y95: 0 | Z95: 0 | AA95: 0 | AB95: 0
E96: 0 | F96: 0 | G96: 0 | H96: 0 | I96: 0 | J96: 0 | K96: 0 | L96: 5.329070518e-18 | M96: 0 | N96: 0.2065624861 | O96: 1 | P96: 0 | Q96: 0 | R96: 0 | S96: 0 | T96: 0 | U96: 0 | V96: 0 | W96: 0 | X96: 0 | Y96: 0 | Z96: 0 | AA96: 0 | AB96: 0
E97: 0 | F97: 0 | G97: 0 | H97: 0 | I97: 0 | J97: 0 | K97: 0 | L97: 0 | M97: 0 | N97: 0 | O97: 0 | P97: 1 | Q97: 0 | R97: 0 | S97: 0 | T97: 0 | U97: 0 | V97: 0 | W97: 0 | X97: 0 | Y97: 0 | Z97: 0 | AA97: 0 | AB97: 0
E98: 0 | F98: 0 | G98: 0 | H98: 0 | I98: 0 | J98: 0 | K98: 0 | L98: 0 | M98: 0 | N98: -0.5842469387 | O98: 0.1613110917 | P98: 0 | Q98: 1 | R98: 0 | S98: 0 | T98: 0 | U98: 0 | V98: 0 | W98: 0 | X98: 0 | Y98: 0 | Z98: 0 | AA98: 0 | AB98: 0
E99: 0 | F99: 0 | G99: 0 | H99: 0 | I99: 0 | J99: 0 | K99: 0 | L99: 0 | M99: 0 | N99: 0 | O99: 0 | P99: 0 | Q99: 0 | R99: 1 | S99: 0 | T99: 0 | U99: 0 | V99: 0 | W99: 0 | X99: 0 | Y99: 0 | Z99: 0 | AA99: 0 | AB99: 0
E100: 0 | F100: 0 | G100: 0 | H100: 0 | I100: 0 | J100: 0 | K100: 0 | L100: 0 | M100: 0 | N100: 0 | O100: 0 | P100: 0 | Q100: 0 | R100: 0 | S100: 1 | T100: 0 | U100: 0 | V100: 0 | W100: 0 | X100: 0 | Y100: 0 | Z100: 0 | AA100: 0 | AB100: 0
E101: 0 | F101: 0 | G101: 0 | H101: 2.264265829e-18 | I101: 6.15589724e-19 | J101: 0 | K101: 1.512905631e-18 | L101: -4.211850209e-36 | M101: 0 | N101: 8.839104833e-19 | O101: -2.440484589e-19 | P101: 0 | Q101: 1.269483668e-18 | R101: 0 | S101: 0 | T101: 1 | U101: 0 | V101: 0 | W101: 0 | X101: 0 | Y101: 0 | Z101: 0 | AA101: 0 | AB101: 0
E102: 0 | F102: 0 | G102: 0 | H102: 0 | I102: -0.7689691957 | J102: 0 | K102: -0.07415492286 | L102: 4.143540079e-18 | M102: 0 | N102: -0.04332478667 | O102: 0.01196201156 | P102: 0 | Q102: -0.06222361897 | R102: 0 | S102: 0 | T102: -0.261203875 | U102: 1 | V102: 0 | W102: 0 | X102: 0 | Y102: 0 | Z102: 0 | AA102: 0 | AB102: 0
E103: 0 | F103: 0 | G103: 0 | H103: 0 | I103: 0 | J103: 0 | K103: 0 | L103: 0 | M103: 0 | N103: 0 | O103: 0 | P103: 0 | Q103: 0 | R103: 0 | S103: 0 | T103: 0 | U103: 0 | V103: 1 | W103: 0 | X103: 0 | Y103: 0 | Z103: 0 | AA103: 0 | AB103: 0
E104: 0 | F104: 0 | G104: 0 | H104: -0.1502211048 | I104: 0.2310308043 | J104: 0 | K104: -0.07415492286 | L104: -1.18553044e-18 | M104: 0 | N104: -0.2498872728 | O104: -0.2071067812 | P104: 0 | Q104: -0.2814005767 | R104: 0 | S104: 0 | T104: -0.738796125 | U104: -0.1403032824 | V104: 0 | W104: 1 | X104: 0 | Y104: 0 | Z104: 0 | AA104: 0 | AB104: 0
E105: 0 | F105: 0 | G105: 0 | H105: 0.1502211048 | I105: -0.2310308043 | J105: 0 | K105: 0.07415492286 | L105: -1 | M105: 0 | N105: -0.1632376995 | O105: -0.2310308043 | P105: 0 | Q105: -0.1569533387 | R105: 0 | S105: 0 | T105: -3.464546067e-19 | U105: -0.4989674642 | V105: 0 | W105: -0.04100723747 | X105: 1 | Y105: 0 | Z105: 0 | AA105: 0 | AB105: 0
E106: 0 | F106: 0 | G106: 0 | H106: 0 | I106: 0 | J106: 0 | K106: 0 | L106: 0 | M106: 0 | N106: 0 | O106: 0 | P106: 0 | Q106: 0 | R106: 0 | S106: 0 | T106: 0 | U106: 0 | V106: 0 | W106: 0 | X106: 0 | Y106: 1 | Z106: 0 | AA106: 0 | AB106: 0
E107: 0 | F107: 0 | G107: 0 | H107: 0 | I107: 0 | J107: 0 | K107: 0 | L107: 0 | M107: 0 | N107: 3.113493137e-18 | O107: -8.596381829e-19 | P107: 0 | Q107: -0.4803808327 | R107: 0 | S107: 0 | T107: 3.315940534e-19 | U107: -0.04607940364 | V107: 0 | W107: -0.6857931816 | X107: -0.3464466094 | Y107: 0 | Z107: 1 | AA107: 0 | AB107: 0
E108: 0 | F108: 0 | G108: 0 | H108: 0 | I108: 0 | J108: 0 | K108: 0 | L108: 0 | M108: 0 | N108: 0 | O108: -0.7809312073 | P108: 0 | Q108: -0.261203875 | R108: 0 | S108: 0 | T108: 1.928877574e-35 | U108: -5.466621748e-18 | V108: 0 | W108: -0.1624665518 | X108: -0.8435028843 | Y108: 0 | Z108: -0.03127877379 | AA108: 1 | AB108: 0
E109: 0 | F109: 0 | G109: 0 | H109: 0 | I109: 0 | J109: 0 | K109: 0 | L109: 0 | M109: 0 | N109: 0 | O109: 0 | P109: 0 | Q109: 0 | R109: 0 | S109: 0 | T109: 0 | U109: 0 | V109: 0 | W109: 0 | X109: 0 | Y109: 0 | Z109: 0 | AA109: 0 | AB109: 1

Sheet L-V
A1: Lastschritt | B1: Verschiebung | C1: Lastfaktor | D1: FG | E1: Last-Verschiebungs-Diagramm | J1: minX | K1: =MIN(B2:B100) -> -0.2522658706 | L1: minY | M1: =MIN(C2:C100) -> 0
A2: 1 | B2: 0 | C2: 0 | D2: 0 | J2: maxX | K2: =MAX(B2:B100) -> 0 | L2: maxY | M2: =MAX(C2:C100) -> 8.850000381 | N2: 1 | O2: =IF(ISBLANK(A2),INDIRECT(COLUMN($O$1)&$K$4),(B2-$K$1)/$K$3) -> 1 | P2: =IF(ISBLANK(A2),INDIRECT(COLUMN(P1)&$K$4),(C2-$M$1)/$M$3) -> 0
A3: 2 | B3: -0.2522658706 | C3: 8.850000381 | D3: 1 | J3: deltaX | K3: =IF(K2-K1=0,1,K2-K1) -> 0.2522658706 | L3: deltaY | M3: =IF(M2-M1=0,1,M2-M1) -> 8.850000381 | N3: 2 | O3: =IF(ISBLANK(A3),INDIRECT(COLUMN($O$1)&$K$4),(B3-$K$1)/$K$3) -> 0 | P3: =IF(ISBLANK(A3),INDIRECT(COLUMN(P2)&$K$4),(C3-$M$1)/$M$3) -> 1
J4: maxN | K4: =MAX(A2:A100)+1 -> 3 | N4: 3 | O4: =IF(ISBLANK(A4),INDIRECT(COLUMN($O$1)&$K$4),(B4-$K$1)/$K$3) ->  | P4: =IF(ISBLANK(A4),INDIRECT(COLUMN(P3)&$K$4),(C4-$M$1)/$M$3) -> 
N5: 4 | O5: =IF(ISBLANK(A5),INDIRECT(COLUMN($O$1)&$K$4),(B5-$K$1)/$K$3) ->  | P5: =IF(ISBLANK(A5),INDIRECT(COLUMN(P4)&$K$4),(C5-$M$1)/$M$3) -> 
N6: 5 | O6: =IF(ISBLANK(A6),INDIRECT(COLUMN($O$1)&$K$4),(B6-$K$1)/$K$3) ->  | P6: =IF(ISBLANK(A6),INDIRECT(COLUMN(P5)&$K$4),(C6-$M$1)/$M$3) -> 
N7: 6 | O7: =IF(ISBLANK(A7),INDIRECT(ADDRESS($K$4,COLUMN($O$1))),(B7-$K$1)/$K$3) -> 0 | P7: =IF(ISBLANK(A7),INDIRECT(ADDRESS($K$4,COLUMN(P6))),(C7-$M$1)/$M$3) -> 1
N8: 7 | O8: 0 | P8: 1
N9: 8 | O9: 0 | P9: 1
N10: 9 | O10: 0 | P10: 1
N11: 10 | O11: 0 | P11: 1
N12: 11 | O12: 0 | P12: 1

Sheet Normalkraft
B2: Normalkräfte | D2: Skalierung | E2: 1 | F2: Größe | G2: 1 | I2: Schnittkraftverläufe
I4: Element | J4: 0 | K4: 0.1 | L4: 0.2 | M4: 0.3 | N4: 0.4 | O4: 0.5 | P4: 0.6 | Q4: 0.7 | R4: 0.8 | S4: 0.9 | T4: 1 | V4: Länge
C5: max. N | D5: =MAX(MAX(J5:T44),ABS(MIN(J5:T44))) -> 12.72792206 | I5: 1 | J5: 9 | K5: 9 | L5: 9 | M5: 9 | N5: 9 | O5: 9 | P5: 9 | Q5: 9 | R5: 9 | S5: 9 | T5: 9 | V5: 6
C6: Korrektur | D6: =IF(D9<0.000001,1,D7/D9) -> 0.3498571137 | I6: 2 | J6: 12 | K6: 12 | L6: 12 | M6: 12 | N6: 12 | O6: 12 | P6: 12 | Q6: 12 | R6: 12 | S6: 12 | T6: 12 | V6: 6
C7: Ref.Größe | D7: 0.3 | I7: 3 | J7: 12 | K7: 12 | L7: 12 | M7: 12 | N7: 12 | O7: 12 | P7: 12 | Q7: 12 | R7: 12 | S7: 12 | T7: 12 | V7: 6
C8: R | D8: =PlotData!CB5 -> 14.84318025 | I8: 4 | J8: 9 | K8: 9 | L8: 9 | M8: 9 | N8: 9 | O8: 9 | P8: 9 | Q8: 9 | R8: 9 | S8: 9 | T8: 9 | V8: 6
C9: relatv | D9: =D5/MAX(0.0001,D8) -> 0.8574929257 | I9: 5 | J9: 9 | K9: 9 | L9: 9 | M9: 9 | N9: 9 | O9: 9 | P9: 9 | Q9: 9 | R9: 9 | S9: 9 | T9: 9 | V9: 6
I10: 6 | J10: 6 | K10: 6 | L10: 6 | M10: 6 | N10: 6 | O10: 6 | P10: 6 | Q10: 6 | R10: 6 | S10: 6 | T10: 6 | V10: 6
I11: 7 | J11: 9 | K11: 9 | L11: 9 | M11: 9 | N11: 9 | O11: 9 | P11: 9 | Q11: 9 | R11: 9 | S11: 9 | T11: 9 | V11: 6
I12: 8 | J12: -12.72792206 | K12: -12.72792206 | L12: -12.72792206 | M12: -12.72792206 | N12: -12.72792206 | O12: -12.72792206 | P12: -12.72792206 | Q12: -12.72792206 | R12: -12.72792206 | S12: -12.72792206 | T12: -12.72792206 | V12: 8.485281374
I13: 9 | J13: -9 | K13: -9 | L13: -9 | M13: -9 | N13: -9 | O13: -9 | P13: -9 | Q13: -9 | R13: -9 | S13: -9 | T13: -9 | V13: 6
I14: 10 | J14: -9 | K14: -9 | L14: -9 | M14: -9 | N14: -9 | O14: -9 | P14: -9 | Q14: -9 | R14: -9 | S14: -9 | T14: -9 | V14: 6
I15: 11 | J15: -12.72792206 | K15: -12.72792206 | L15: -12.72792206 | M15: -12.72792206 | N15: -12.72792206 | O15: -12.72792206 | P15: -12.72792206 | Q15: -12.72792206 | R15: -12.72792206 | S15: -12.72792206 | T15: -12.72792206 | V15: 8.485281374
I16: 12 | J16: -4.242640687 | K16: -4.242640687 | L16: -4.242640687 | M16: -4.242640687 | N16: -4.242640687 | O16: -4.242640687 | P16: -4.242640687 | Q16: -4.242640687 | R16: -4.242640687 | S16: -4.242640687 | T16: -4.242640687 | V16: 8.485281374
I17: 13 | J17: -4.242640687 | K17: -4.242640687 | L17: -4.242640687 | M17: -4.242640687 | N17: -4.242640687 | O17: -4.242640687 | P17: -4.242640687 | Q17: -4.242640687 | R17: -4.242640687 | S17: -4.242640687 | T17: -4.242640687 | V17: 8.485281374
I18: 14
I19: 15
I20: 16
I21: 17
I22: 18
I23: 19
I24: 20
I25: 21
I26: 22
I27: 23
I28: 24
I29: 25
I30: 26
I31: 27
I32: 28
I33: 29
I34: 30
I35: 31
D36: maxN | E36: =MAX(J5:T44) -> 12 | I36: 32
D37: minN | E37: =MIN(J5:T44) -> -12.72792206 | I37: 33
I38: 34
I39: 35
I40: 36
I41: 37
I42: 38
I43: 39
I44: 40

Sheet Querkraft
B2: Querkräfte | D2: Skalierung | E2: 1 | F2: Größe | G2: 1 | I2: Schnittkraftverläufe
I4: Element | J4: 0 | K4: 0.1 | L4: 0.2 | M4: 0.3 | N4: 0.4 | O4: 0.5 | P4: 0.6 | Q4: 0.7 | R4: 0.8 | S4: 0.9 | T4: 1 | V4: Länge
C5: max. Q | D5: =MAX(MAX(J5:T44),ABS(MIN(J5:T44))) -> 3 | I5: 1 | J5: 3 | K5: 2.4 | L5: 1.8 | M5: 1.2 | N5: 0.6 | O5: 0 | P5: -0.6 | Q5: -1.2 | R5: -1.8 | S5: -2.4 | T5: -3 | V5: 6
C6: Korrektur | D6: =IF(D9<0.000001,1,D7/D9) -> 1.484318025 | I6: 2 | J6: 3 | K6: 2.4 | L6: 1.8 | M6: 1.2 | N6: 0.6 | O6: 0 | P6: -0.6 | Q6: -1.2 | R6: -1.8 | S6: -2.4 | T6: -3 | V6: 6
C7: Ref.Größe | D7: 0.3 | I7: 3 | J7: 3 | K7: 2.4 | L7: 1.8 | M7: 1.2 | N7: 0.6 | O7: 0 | P7: -0.6 | Q7: -1.2 | R7: -1.8 | S7: -2.4 | T7: -3 | V7: 6
C8: R | D8: =PlotData!CB5 -> 14.84318025 | I8: 4 | J8: 3 | K8: 2.4 | L8: 1.8 | M8: 1.2 | N8: 0.6 | O8: 0 | P8: -0.6 | Q8: -1.2 | R8: -1.8 | S8: -2.4 | T8: -3 | V8: 6
C9: relativ | D9: =D5/MAX(0.0001,D8) -> 0.2021130209 | I9: 5 | J9: 0 | K9: 0 | L9: 0 | M9: 0 | N9: 0 | O9: 0 | P9: 0 | Q9: 0 | R9: 0 | S9: 0 | T9: 0 | V9: 6
I10: 6 | J10: 0 | K10: 0 | L10: 0 | M10: 0 | N10: 0 | O10: 0 | P10: 0 | Q10: 0 | R10: 0 | S10: 0 | T10: 0 | V10: 6
I11: 7 | J11: 0 | K11: 0 | L11: 0 | M11: 0 | N11: 0 | O11: 0 | P11: 0 | Q11: 0 | R11: 0 | S11: 0 | T11: 0 | V11: 6
I12: 8 | J12: 0 | K12: 0 | L12: 0 | M12: 0 | N12: 0 | O12: 0 | P12: 0 | Q12: 0 | R12: 0 | S12: 0 | T12: 0 | V12: 8.485281374
I13: 9 | J13: 0 | K13: 0 | L13: 0 | M13: 0 | N13: 0 | O13: 0 | P13: 0 | Q13: 0 | R13: 0 | S13: 0 | T13: 0 | V13: 6
I14: 10 | J14: 0 | K14: 0 | L14: 0 | M14: 0 | N14: 0 | O14: 0 | P14: 0 | Q14: 0 | R14: 0 | S14: 0 | T14: 0 | V14: 6
I15: 11 | J15: 0 | K15: 0 | L15: 0 | M15: 0 | N15: 0 | O15: 0 | P15: 0 | Q15: 0 | R15: 0 | S15: 0 | T15: 0 | V15: 8.485281374
I16: 12 | J16: 0 | K16: 0 | L16: 0 | M16: 0 | N16: 0 | O16: 0 | P16: 0 | Q16: 0 | R16: 0 | S16: 0 | T16: 0 | V16: 8.485281374
I17: 13 | J17: 0 | K17: 0 | L17: 0 | M17: 0 | N17: 0 | O17: 0 | P17: 0 | Q17: 0 | R17: 0 | S17: 0 | T17: 0 | V17: 8.485281374
I18: 14
I19: 15
I20: 16
I21: 17
I22: 18
I23: 19
I24: 20
I25: 21
I26: 22
I27: 23
I28: 24
I29: 25
I30: 26
I31: 27
I32: 28
I33: 29
I34: 30
I35: 31
D36: maxQ | E36: =MAX(J5:T44) -> 3 | I36: 32
D37: minQ | E37: =MIN(J5:T44) -> -3 | I37: 33
I38: 34
I39: 35
I40: 36
I41: 37
I42: 38
I43: 39
I44: 40

Sheet Momente
B2: Biegemomente | D2: Skalierung | E2: 1 | F2: Größe | G2: 1 | I2: Schnittkraftverläufe
I4: Element | J4: 0 | K4: 0.1 | L4: 0.2 | M4: 0.3 | N4: 0.4 | O4: 0.5 | P4: 0.6 | Q4: 0.7 | R4: 0.8 | S4: 0.9 | T4: 1 | V4: Länge
C5: max. M | D5: =MAX(MAX(J5:T44),ABS(MIN(J5:T44))) -> 4.5 | I5: 1 | J5: 0 | K5: 1.62 | L5: 2.88 | M5: 3.78 | N5: 4.32 | O5: 4.5 | P5: 4.32 | Q5: 3.78 | R5: 2.88 | S5: 1.62 | T5: 0 | V5: 6
C6: Korrektur | D6: =IF(D9<0.000001,1,D7/D9) -> 0.9895453501 | I6: 2 | J6: 0 | K6: 1.62 | L6: 2.88 | M6: 3.78 | N6: 4.32 | O6: 4.5 | P6: 4.32 | Q6: 3.78 | R6: 2.88 | S6: 1.62 | T6: 0 | V6: 6
C7: Ref.Größe | D7: 0.3 | I7: 3 | J7: 0 | K7: 1.62 | L7: 2.88 | M7: 3.78 | N7: 4.32 | O7: 4.5 | P7: 4.32 | Q7: 3.78 | R7: 2.88 | S7: 1.62 | T7: 0 | V7: 6
C8: R | D8: =PlotData!CB5 -> 14.84318025 | I8: 4 | J8: 0 | K8: 1.62 | L8: 2.88 | M8: 3.78 | N8: 4.32 | O8: 4.5 | P8: 4.32 | Q8: 3.78 | R8: 2.88 | S8: 1.62 | T8: 0 | V8: 6
C9: relativ | D9: =D5/MAX(0.0001,D8) -> 0.3031695313 | I9: 5 | J9: 0 | K9: 0 | L9: 0 | M9: 0 | N9: 0 | O9: 0 | P9: 0 | Q9: 0 | R9: 0 | S9: 0 | T9: 0 | V9: 6
I10: 6 | J10: 0 | K10: 0 | L10: 0 | M10: 0 | N10: 0 | O10: 0 | P10: 0 | Q10: 0 | R10: 0 | S10: 0 | T10: 0 | V10: 6
I11: 7 | J11: 0 | K11: 0 | L11: 0 | M11: 0 | N11: 0 | O11: 0 | P11: 0 | Q11: 0 | R11: 0 | S11: 0 | T11: 0 | V11: 6
I12: 8 | J12: 0 | K12: 0 | L12: 0 | M12: 0 | N12: 0 | O12: 0 | P12: 0 | Q12: 0 | R12: 0 | S12: 0 | T12: 0 | V12: 8.485281374
I13: 9 | J13: 0 | K13: 0 | L13: 0 | M13: 0 | N13: 0 | O13: 0 | P13: 0 | Q13: 0 | R13: 0 | S13: 0 | T13: 0 | V13: 6
I14: 10 | J14: 0 | K14: 0 | L14: 0 | M14: 0 | N14: 0 | O14: 0 | P14: 0 | Q14: 0 | R14: 0 | S14: 0 | T14: 0 | V14: 6
I15: 11 | J15: 0 | K15: 0 | L15: 0 | M15: 0 | N15: 0 | O15: 0 | P15: 0 | Q15: 0 | R15: 0 | S15: 0 | T15: 0 | V15: 8.485281374
I16: 12 | J16: 0 | K16: 0 | L16: 0 | M16: 0 | N16: 0 | O16: 0 | P16: 0 | Q16: 0 | R16: 0 | S16: 0 | T16: 0 | V16: 8.485281374
I17: 13 | J17: 0 | K17: 0 | L17: 0 | M17: 0 | N17: 0 | O17: 0 | P17: 0 | Q17: 0 | R17: 0 | S17: 0 | T17: 0 | V17: 8.485281374
I18: 14
I19: 15
I20: 16
I21: 17
I22: 18
I23: 19
I24: 20
I25: 21
I26: 22
I27: 23
I28: 24
I29: 25
I30: 26
I31: 27
I32: 28
I33: 29
I34: 30
I35: 31
D36: maxM | E36: =MAX(J5:T44) -> 4.5 | I36: 32
D37: minM | E37: =MIN(J5:T44) -> 0 | I37: 33
I38: 34
I39: 35
I40: 36
I41: 37
I42: 38
I43: 39
I44: 40

Sheet Querverschiebung
B2: Querverschiebung | D2: Skalierung | E2: 2 | F2: Größe | G2: 1 | I2: Biegelinie
I4: Element | J4: 0 | K4: 0.1 | L4: 0.2 | M4: 0.3 | N4: 0.4 | O4: 0.5 | P4: 0.6 | Q4: 0.7 | R4: 0.8 | S4: 0.9 | T4: 1 | V4: Länge
C5: max. N | D5: =MAX(MAX(J5:T44),ABS(MIN(J5:T44))) -> 0.6427860777 | I5: 1 | J5: 0 | K5: 0.09164750647 | L5: 0.1775710129 | M5: 0.2532345194 | N5: 0.3153980259 | O5: 0.3621175324 | P5: 0.3927450388 | Q5: 0.4079285453 | R5: 0.4096120518 | S5: 0.4010355583 | T5: 0.3867350647 | V5: 6
C6: Korrektur | D6: =IF(D9<0.000001,1,D7/D9) -> 6.927583266 | I6: 2 | J6: 0.3867350647 | K6: 0.4556002336 | L6: 0.5187414024 | M6: 0.5716225712 | N6: 0.61100374 | O6: 0.6349409089 | P6: 0.6427860777 | Q6: 0.6351872465 | R6: 0.6140884153 | S6: 0.5827295842 | T6: 0.545646753 | V6: 6
C7: Ref.Größe | D7: 0.3 | I7: 3 | J7: 0.545646753 | K7: 0.5827295842 | L7: 0.6140884153 | M7: 0.6351872465 | N7: 0.6427860777 | O7: 0.6349409089 | P7: 0.61100374 | Q7: 0.5716225712 | R7: 0.5187414024 | S7: 0.4556002336 | T7: 0.3867350647 | V7: 6
C8: R | D8: =PlotData!CB5 -> 14.84318025 | I8: 4 | J8: 0.3867350647 | K8: 0.4010355583 | L8: 0.4096120518 | M8: 0.4079285453 | N8: 0.3927450388 | O8: 0.3621175324 | P8: 0.3153980259 | Q8: 0.2532345194 | R8: 0.1775710129 | S8: 0.09164750647 | T8: 1.028882607e-16 | V8: 6
C9: relativ | D9: =D5/MAX(0.0001,D8) -> 0.04330514531 | I9: 5 | J9: 0.054 | K9: 0.0666 | L9: 0.0792 | M9: 0.0918 | N9: 0.1044 | O9: 0.117 | P9: 0.1296 | Q9: 0.1422 | R9: 0.1548 | S9: 0.1674 | T9: 0.18 | V9: 6
I10: 6 | J10: 0.126 | K10: 0.126 | L10: 0.126 | M10: 0.126 | N10: 0.126 | O10: 0.126 | P10: 0.126 | Q10: 0.126 | R10: 0.126 | S10: 0.126 | T10: 0.126 | V10: 6
I11: 7 | J11: 0.198 | K11: 0.1854 | L11: 0.1728 | M11: 0.1602 | N11: 0.1476 | O11: 0.135 | P11: 0.1224 | Q11: 0.1098 | R11: 0.0972 | S11: 0.0846 | T11: 0.072 | V11: 6
I12: 8 | J12: 0 | K12: 0.03625584412 | L12: 0.07251168825 | M12: 0.1087675324 | N12: 0.1450233765 | O12: 0.1812792206 | P12: 0.2175350647 | Q12: 0.2537909089 | R12: 0.290046753 | S12: 0.3263025971 | T12: 0.3625584412 | V12: 8.485281374
I13: 9 | J13: 0.3327350647 | K13: 0.3504262336 | L13: 0.3681174024 | M13: 0.3858085712 | N13: 0.40349974 | O13: 0.4211909089 | P13: 0.4388820777 | Q13: 0.4565732465 | R13: 0.4742644153 | S13: 0.4919555842 | T13: 0.509646753 | V13: 6
I14: 10 | J14: 0.509646753 | K14: 0.4919555842 | L14: 0.4742644153 | M14: 0.4565732465 | N14: 0.4388820777 | O14: 0.4211909089 | P14: 0.40349974 | Q14: 0.3858085712 | R14: 0.3681174024 | S14: 0.3504262336 | T14: 0.3327350647 | V14: 6
I15: 11 | J15: 0.1843675324 | K15: 0.1481116882 | L15: 0.1118558441 | M15: 0.0756 | N15: 0.03934415588 | O15: 0.003088311755 | P15: -0.03316753237 | Q15: -0.06942337649 | R15: -0.1056792206 | S15: -0.1419350647 | T15: -0.1781909089 | V15: 8.485281374
I16: 12 | J16: 0.311646753 | K16: 0.3254290906 | L16: 0.3392114283 | M16: 0.3529937659 | N16: 0.3667761036 | O16: 0.3805584412 | P16: 0.3943407789 | Q16: 0.4081231165 | R16: 0.4219054542 | S16: 0.4356877918 | T16: 0.4494701295 | V16: 8.485281374
I17: 13 | J17: 0.2712792206 | K17: 0.257496883 | L17: 0.2437145453 | M17: 0.2299322077 | N17: 0.21614987 | O17: 0.2023675324 | P17: 0.1885851947 | Q17: 0.1748028571 | R17: 0.1610205194 | S17: 0.1472381818 | T17: 0.1334558441 | V17: 8.485281374
I18: 14
I19: 15
I20: 16
I21: 17
I22: 18
I23: 19
I24: 20
I25: 21
I26: 22
I27: 23
I28: 24
I29: 25
I30: 26
I31: 27
I32: 28
I33: 29
I34: 30
I35: 31
D36: maxw | E36: =MAX(J5:T44) -> 0.6427860777 | I36: 32
D37: minw | E37: =MIN(J5:T44) -> -0.1781909089 | I37: 33
I38: 34
I39: 35
I40: 36
I41: 37
I42: 38
I43: 39
I44: 40

Sheet SensA
B2: Sensitivität | D2: Skalierung | E2: 1 | F2: Größe | G2: 1 | I2: Verläufe | K2: Keine Sensitivität
I4: Element | J4: 0 | K4: 0.1 | L4: 0.2 | M4: 0.3 | N4: 0.4 | O4: 0.5 | P4: 0.6 | Q4: 0.7 | R4: 0.8 | S4: 0.9 | T4: 1 | U4: Antwort | V4: Parameter
C5: max. M | D5: =MAX(MAX(J5:T44),ABS(MIN(J5:T44))) -> 0 | I5: 1
C6: Korrektur | D6: =IF(D9<0.000001,1,D7/D9) -> 1 | I6: 2
C7: Ref.Größe | D7: 0.3 | I7: 3
C8: R | D8: =PlotData!CB5 -> 14.84318025 | I8: 4
C9: relativ | D9: =D5/MAX(0.0001,D8) -> 0 | I9: 5
I10: 6
I11: 7
I12: 8
I13: 9
I14: 10
I15: 11
I16: 12
I17: 13
I18: 14
I19: 15
I20: 16
I21: 17
I22: 18
I23: 19
I24: 20
I25: 21
I26: 22
I27: 23
I28: 24
I29: 25
I30: 26
I31: 27
I32: 28
I33: 29
I34: 30
I35: 31
D36: maxSens | E36: =MAX(J5:T44) -> 0 | I36: 32
D37: minSens | E37: =MIN(J5:T44) -> 0 | I37: 33
I38: 34
I39: 35
I40: 36
I41: 37
I42: 38
I43: 39
I44: 40

Sheet Einflusslinie
B2: Einflusslinie | D2: Skalierung | E2: 1 | F2: Größe | G2: 1 | I2: Verlauf in 1 / 10 Punkten:
I4: Element | J4: 0 | K4: 0.1 | L4: 0.2 | M4: 0.3 | N4: 0.4 | O4: 0.5 | P4: 0.6 | Q4: 0.7 | R4: 0.8 | S4: 0.9 | T4: 1 | V4: Länge
C5: max. N | D5: =MAX(MAX(J5:T44),ABS(MIN(J5:T44))) -> 0 | I5: 1 | V5: 6
C6: Korrektur | D6: =IF(D9<0.000001,1,D7/D9) -> 1 | I6: 2 | V6: 6
C7: Ref.Größe | D7: 0.3 | I7: 3 | V7: 6
C8: R | D8: =PlotData!CB5 -> 14.84318025 | I8: 4 | V8: 6
C9: relativ | D9: =D5/MAX(0.0001,D8) -> 0 | I9: 5 | V9: 6
I10: 6 | V10: 6
I11: 7 | V11: 6
I12: 8 | V12: 8.485281374
I13: 9 | V13: 6
I14: 10 | V14: 6
I15: 11 | V15: 8.485281374
I16: 12 | V16: 8.485281374
I17: 13 | V17: 8.485281374
I18: 14
I19: 15
I20: 16
I21: 17
I22: 18
I23: 19
I24: 20
I25: 21
I26: 22
I27: 23
I28: 24
I29: 25
I30: 26
I31: 27
I32: 28
I33: 29
I34: 30
I35: 31
D36: maxη | E36: =MAX(J5:T44) -> 0 | I36: 32
D37: minη | E37: =MIN(J5:T44) -> 0 | I37: 33
I38: 34
I39: 35
I40: 36
I41: 37
I42: 38
I43: 39
I44: 40

Sheet Symbole
A1: Skalierung | B1: 0.1 | D1: R | E1: =$B$1*PlotData!$CB$5 -> 1.484318025 | G1: frot | H1: 0.25 | M1: Verschiebungsskalierung | O1: =Knoten!A53 -> 1 | Q1: Korrektur | R1: =Knoten!AG19 -> 0 | T1: Cx | U1: =System!$BD$119 -> -1 | W1: Cy | X1: =System!$BG$119 -> 1
K3: Datenreihen zur Darstellung der Lagersymbole | AC3: scal | AD3: =Knoten!AG19 -> 0
E4: unverformt | Q4: verformt | Y4: verformte Knoten
A5: LagerV unverformt | C5: x | G5: y | K5: Verdrehung | N5: LagerV verformt | P5: x | T5: y | Y5: Knoten | AC5: x | AD5: z | AE5: u | AF5: w | AG5: u0 | AH5: w0 | AI5: sin(theta) | AJ5: cos(theta)
A6: 1 | B6: =1-ABS(SIGN(Knoten!F3)) -> 1 | C6: =IF(ISNUMBER(Knoten!C3),Knoten!C3-$U$1,PlotData!$CB$3) -> -12 | D6: =IF(ISNUMBER(Knoten!C3),C6+($D$26*COS(K6*PI()/180)*B6-$H$26*SIN(K6*PI()/180))*B6,C6) -> -11.25784099 | E6: =IF(ISNUMBER(Knoten!C3),C6+($E$26*COS(K6*PI()/180)*B6-$I$26*SIN(K6*PI()/180))*B6,C6) -> -12.74215901 | F6: =C6 -> -12 | G6: =IF(ISNUMBER(Knoten!D3),Knoten!D3-$X$1,PlotData!$CB$4) -> 3 | H6: =IF(ISNUMBER(Knoten!D3),G6+$D$26*(SIN(K6*PI()/180))*B6+$H$26*COS(K6*PI()/180)*B6,G6) -> 4.28541941 | I6: =IF(ISNUMBER(Knoten!D3),G6+$E$26*(SIN(K6*PI()/180))*B6+$I$26*COS(K6*PI()/180)*B6,G6) -> 4.28541941 | J6: =G6 -> 3 | K6: =-Knoten!W3 -> 0 | N6: 1 | O6: =1-ABS(SIGN(Knoten!F3)) -> 1 | P6: =IF(ISNUMBER(Knoten!C3),Z6,PlotData!$CB$3) -> -12 | Q6: =IF(ISNUMBER(Knoten!C3),P6+($Q$26*COS(K6*PI()/180)*O6-$U$26*SIN(K6*PI()/180))*O6,P6) -> -11.25784099 | R6: =IF(ISNUMBER(Knoten!C3),P6+($R$26*COS(K6*PI()/180)*O6-$V$26*SIN(K6*PI()/180))*O6,P6) -> -12.74215901 | S6: =P6 -> -12 | T6: =IF(ISNUMBER(Knoten!D3),AA6,PlotData!$CB$4) -> 3 | U6: =IF(ISNUMBER(Knoten!D3),T6+($Q$26*SIN(K6*PI()/180)*O6+$U$26*COS(K6*PI()/180))*O6,T6) -> 4.28541941 | V6: =IF(ISNUMBER(Knoten!D3),T6+($R$26*SIN(K6*PI()/180)*O6+$V$26*COS(K6*PI()/180))*O6,T6) -> 4.28541941 | W6: =T6 -> 3 | Y6: 1 | Z6: =AC6+AE6+AG6 -> -12 | AA6: =AD6+AF6+AH6 -> 3 | AC6: =Knoten!C3-$U$1 -> -12 | AD6: =Knoten!D3-$X$1 -> 3 | AE6: =$AD$3*(Knoten!$K3*$AJ6 + Knoten!$L3*$AI6) -> 0 | AF6: =$AD$3*(-Knoten!$K3*$AI6 + Knoten!$L3*$AJ6) -> 0 | AG6: =$AD$3*(Knoten!$AB3*$AJ6 + Knoten!$AC3*$AI6) -> 0 | AH6: =$AD$3*(-Knoten!$AB3*$AI6 + Knoten!$AC3*$AJ6) -> 0 | AI6: =SIN(Knoten!$W3*PI()/180) -> 0 | AJ6: =COS(Knoten!$W3*PI()/180) -> 1
A7: 2 | B7: =1-ABS(SIGN(Knoten!F4)) -> 0 | C7: =IF(ISNUMBER(Knoten!C4),Knoten!C4-$U$1,PlotData!$CB$3) -> -6 | D7: =IF(ISNUMBER(Knoten!C4),C7+($D$26*COS(K7*PI()/180)*B7-$H$26*SIN(K7*PI()/180))*B7,C7) -> -6 | E7: =IF(ISNUMBER(Knoten!C4),C7+($E$26*COS(K7*PI()/180)*B7-$I$26*SIN(K7*PI()/180))*B7,C7) -> -6 | F7: -6 | G7: =IF(ISNUMBER(Knoten!D4),Knoten!D4-$X$1,PlotData!$CB$4) -> 3 | H7: =IF(ISNUMBER(Knoten!D4),G7+$D$26*(SIN(K7*PI()/180))*B7+$H$26*COS(K7*PI()/180)*B7,G7) -> 3 | I7: =IF(ISNUMBER(Knoten!D4),G7+$E$26*(SIN(K7*PI()/180))*B7+$I$26*COS(K7*PI()/180)*B7,G7) -> 3 | J7: 3 | K7: =-Knoten!W4 -> 0 | N7: 2 | O7: =1-ABS(SIGN(Knoten!F4)) -> 0 | P7: =IF(ISNUMBER(Knoten!C4),Z7,PlotData!$CB$3) -> -6 | Q7: =IF(ISNUMBER(Knoten!C4),P7+($Q$26*COS(K7*PI()/180)*O7-$U$26*SIN(K7*PI()/180))*O7,P7) -> -6 | R7: =IF(ISNUMBER(Knoten!C4),P7+($R$26*COS(K7*PI()/180)*O7-$V$26*SIN(K7*PI()/180))*O7,P7) -> -6 | S7: -6 | T7: =IF(ISNUMBER(Knoten!D4),AA7,PlotData!$CB$4) -> 3 | U7: =IF(ISNUMBER(Knoten!D4),T7+($Q$26*SIN(K7*PI()/180)*O7+$U$26*COS(K7*PI()/180))*O7,T7) -> 3 | V7: =IF(ISNUMBER(Knoten!D4),T7+($R$26*SIN(K7*PI()/180)*O7+$V$26*COS(K7*PI()/180))*O7,T7) -> 3 | W7: 3 | Y7: 2 | Z7: =AC7+AE7+AG7 -> -6 | AA7: =AD7+AF7+AH7 -> 3 | AC7: =Knoten!C4-$U$1 -> -6 | AD7: =Knoten!D4-$X$1 -> 3 | AE7: =$AD$3*(Knoten!$K4*$AJ7 + Knoten!$L4*$AI7) -> 0 | AF7: =$AD$3*(-Knoten!$K4*$AI7 + Knoten!$L4*$AJ7) -> 0 | AG7: =$AD$3*(Knoten!$AB4*$AJ7 + Knoten!$AC4*$AI7) -> 0 | AH7: =$AD$3*(-Knoten!$AB4*$AI7 + Knoten!$AC4*$AJ7) -> 0 | AI7: =SIN(Knoten!$W4*PI()/180) -> 0 | AJ7: =COS(Knoten!$W4*PI()/180) -> 1
A8: 3 | B8: =1-ABS(SIGN(Knoten!F5)) -> 0 | C8: =IF(ISNUMBER(Knoten!C5),Knoten!C5-$U$1,PlotData!$CB$3) -> 0 | D8: =IF(ISNUMBER(Knoten!C5),C8+($D$26*COS(K8*PI()/180)*B8-$H$26*SIN(K8*PI()/180))*B8,C8) -> 0 | E8: =IF(ISNUMBER(Knoten!C5),C8+($E$26*COS(K8*PI()/180)*B8-$I$26*SIN(K8*PI()/180))*B8,C8) -> 0 | F8: 0 | G8: =IF(ISNUMBER(Knoten!D5),Knoten!D5-$X$1,PlotData!$CB$4) -> 3 | H8: =IF(ISNUMBER(Knoten!D5),G8+$D$26*(SIN(K8*PI()/180))*B8+$H$26*COS(K8*PI()/180)*B8,G8) -> 3 | I8: =IF(ISNUMBER(Knoten!D5),G8+$E$26*(SIN(K8*PI()/180))*B8+$I$26*COS(K8*PI()/180)*B8,G8) -> 3 | J8: 3 | K8: =-Knoten!W5 -> 0 | N8: 3 | O8: =1-ABS(SIGN(Knoten!F5)) -> 0 | P8: =IF(ISNUMBER(Knoten!C5),Z8,PlotData!$CB$3) -> 0 | Q8: =IF(ISNUMBER(Knoten!C5),P8+($Q$26*COS(K8*PI()/180)*O8-$U$26*SIN(K8*PI()/180))*O8,P8) -> 0 | R8: =IF(ISNUMBER(Knoten!C5),P8+($R$26*COS(K8*PI()/180)*O8-$V$26*SIN(K8*PI()/180))*O8,P8) -> 0 | S8: 0 | T8: =IF(ISNUMBER(Knoten!D5),AA8,PlotData!$CB$4) -> 3 | U8: =IF(ISNUMBER(Knoten!D5),T8+($Q$26*SIN(K8*PI()/180)*O8+$U$26*COS(K8*PI()/180))*O8,T8) -> 3 | V8: =IF(ISNUMBER(Knoten!D5),T8+($R$26*SIN(K8*PI()/180)*O8+$V$26*COS(K8*PI()/180))*O8,T8) -> 3 | W8: 3 | Y8: 3 | Z8: =AC8+AE8+AG8 -> 0 | AA8: 3 | AC8: =Knoten!C5-$U$1 -> 0 | AD8: =Knoten!D5-$X$1 -> 3 | AE8: =$AD$3*(Knoten!$K5*$AJ8 + Knoten!$L5*$AI8) -> 0 | AF8: =$AD$3*(-Knoten!$K5*$AI8 + Knoten!$L5*$AJ8) -> 0 | AG8: =$AD$3*(Knoten!$AB5*$AJ8 + Knoten!$AC5*$AI8) -> 0 | AH8: =$AD$3*(-Knoten!$AB5*$AI8 + Knoten!$AC5*$AJ8) -> 0 | AI8: =SIN(Knoten!$W5*PI()/180) -> 0 | AJ8: =COS(Knoten!$W5*PI()/180) -> 1
A9: 4 | B9: =1-ABS(SIGN(Knoten!F6)) -> 0 | C9: =IF(ISNUMBER(Knoten!C6),Knoten!C6-$U$1,PlotData!$CB$3) -> 6 | D9: =IF(ISNUMBER(Knoten!C6),C9+($D$26*COS(K9*PI()/180)*B9-$H$26*SIN(K9*PI()/180))*B9,C9) -> 6 | E9: =IF(ISNUMBER(Knoten!C6),C9+($E$26*COS(K9*PI()/180)*B9-$I$26*SIN(K9*PI()/180))*B9,C9) -> 6 | F9: 6 | G9: =IF(ISNUMBER(Knoten!D6),Knoten!D6-$X$1,PlotData!$CB$4) -> 3 | H9: =IF(ISNUMBER(Knoten!D6),G9+$D$26*(SIN(K9*PI()/180))*B9+$H$26*COS(K9*PI()/180)*B9,G9) -> 3 | I9: =IF(ISNUMBER(Knoten!D6),G9+$E$26*(SIN(K9*PI()/180))*B9+$I$26*COS(K9*PI()/180)*B9,G9) -> 3 | J9: 3 | K9: =-Knoten!W6 -> 0 | N9: 4 | O9: =1-ABS(SIGN(Knoten!F6)) -> 0 | P9: =IF(ISNUMBER(Knoten!C6),Z9,PlotData!$CB$3) -> 6 | Q9: =IF(ISNUMBER(Knoten!C6),P9+($Q$26*COS(K9*PI()/180)*O9-$U$26*SIN(K9*PI()/180))*O9,P9) -> 6 | R9: =IF(ISNUMBER(Knoten!C6),P9+($R$26*COS(K9*PI()/180)*O9-$V$26*SIN(K9*PI()/180))*O9,P9) -> 6 | S9: 6 | T9: =IF(ISNUMBER(Knoten!D6),AA9,PlotData!$CB$4) -> 3 | U9: =IF(ISNUMBER(Knoten!D6),T9+($Q$26*SIN(K9*PI()/180)*O9+$U$26*COS(K9*PI()/180))*O9,T9) -> 3 | V9: =IF(ISNUMBER(Knoten!D6),T9+($R$26*SIN(K9*PI()/180)*O9+$V$26*COS(K9*PI()/180))*O9,T9) -> 3 | W9: 3 | Y9: 4 | Z9: 6 | AA9: 3 | AC9: =Knoten!C6-$U$1 -> 6 | AD9: =Knoten!D6-$X$1 -> 3 | AE9: =$AD$3*(Knoten!$K6*$AJ9 + Knoten!$L6*$AI9) -> 0 | AF9: =$AD$3*(-Knoten!$K6*$AI9 + Knoten!$L6*$AJ9) -> 0 | AG9: =$AD$3*(Knoten!$AB6*$AJ9 + Knoten!$AC6*$AI9) -> 0 | AH9: =$AD$3*(-Knoten!$AB6*$AI9 + Knoten!$AC6*$AJ9) -> 0 | AI9: =SIN(Knoten!$W6*PI()/180) -> 0 | AJ9: =COS(Knoten!$W6*PI()/180) -> 1
A10: 5 | B10: =1-ABS(SIGN(Knoten!F7)) -> 1 | C10: =IF(ISNUMBER(Knoten!C7),Knoten!C7-$U$1,PlotData!$CB$3) -> 12 | D10: =IF(ISNUMBER(Knoten!C7),C10+($D$26*COS(K10*PI()/180)*B10-$H$26*SIN(K10*PI()/180))*B10,C10) -> 12.74215901 | E10: =IF(ISNUMBER(Knoten!C7),C10+($E$26*COS(K10*PI()/180)*B10-$I$26*SIN(K10*PI()/180))*B10,C10) -> 11.25784099 | F10: 12 | G10: =IF(ISNUMBER(Knoten!D7),Knoten!D7-$X$1,PlotData!$CB$4) -> 3 | H10: =IF(ISNUMBER(Knoten!D7),G10+$D$26*(SIN(K10*PI()/180))*B10+$H$26*COS(K10*PI()/180)*B10,G10) -> 4.28541941 | I10: =IF(ISNUMBER(Knoten!D7),G10+$E$26*(SIN(K10*PI()/180))*B10+$I$26*COS(K10*PI()/180)*B10,G10) -> 4.28541941 | J10: 3 | K10: =-Knoten!W7 -> 0 | N10: 5 | O10: =1-ABS(SIGN(Knoten!F7)) -> 1 | P10: =IF(ISNUMBER(Knoten!C7),Z10,PlotData!$CB$3) -> 12 | Q10: =IF(ISNUMBER(Knoten!C7),P10+($Q$26*COS(K10*PI()/180)*O10-$U$26*SIN(K10*PI()/180))*O10,P10) -> 12.74215901 | R10: =IF(ISNUMBER(Knoten!C7),P10+($R$26*COS(K10*PI()/180)*O10-$V$26*SIN(K10*PI()/180))*O10,P10) -> 11.25784099 | S10: 12 | T10: =IF(ISNUMBER(Knoten!D7),AA10,PlotData!$CB$4) -> 3 | U10: =IF(ISNUMBER(Knoten!D7),T10+($Q$26*SIN(K10*PI()/180)*O10+$U$26*COS(K10*PI()/180))*O10,T10) -> 4.28541941 | V10: =IF(ISNUMBER(Knoten!D7),T10+($R$26*SIN(K10*PI()/180)*O10+$V$26*COS(K10*PI()/180))*O10,T10) -> 4.28541941 | W10: 3 | Y10: 5 | Z10: 12 | AA10: 3 | AC10: =Knoten!C7-$U$1 -> 12 | AD10: =Knoten!D7-$X$1 -> 3 | AE10: =$AD$3*(Knoten!$K7*$AJ10 + Knoten!$L7*$AI10) -> 0 | AF10: =$AD$3*(-Knoten!$K7*$AI10 + Knoten!$L7*$AJ10) -> 0 | AG10: =$AD$3*(Knoten!$AB7*$AJ10 + Knoten!$AC7*$AI10) -> 0 | AH10: =$AD$3*(-Knoten!$AB7*$AI10 + Knoten!$AC7*$AJ10) -> 0 | AI10: =SIN(Knoten!$W7*PI()/180) -> 0 | AJ10: =COS(Knoten!$W7*PI()/180) -> 1
A11: 6 | B11: =1-ABS(SIGN(Knoten!F8)) -> 0 | C11: =IF(ISNUMBER(Knoten!C8),Knoten!C8-$U$1,PlotData!$CB$3) -> -6 | D11: =IF(ISNUMBER(Knoten!C8),C11+($D$26*COS(K11*PI()/180)*B11-$H$26*SIN(K11*PI()/180))*B11,C11) -> -6 | E11: =IF(ISNUMBER(Knoten!C8),C11+($E$26*COS(K11*PI()/180)*B11-$I$26*SIN(K11*PI()/180))*B11,C11) -> -6 | F11: -6 | G11: =IF(ISNUMBER(Knoten!D8),Knoten!D8-$X$1,PlotData!$CB$4) -> -3 | H11: =IF(ISNUMBER(Knoten!D8),G11+$D$26*(SIN(K11*PI()/180))*B11+$H$26*COS(K11*PI()/180)*B11,G11) -> -3 | I11: =IF(ISNUMBER(Knoten!D8),G11+$E$26*(SIN(K11*PI()/180))*B11+$I$26*COS(K11*PI()/180)*B11,G11) -> -3 | J11: -3 | K11: =-Knoten!W8 -> 0 | N11: 6 | O11: =1-ABS(SIGN(Knoten!F8)) -> 0 | P11: =IF(ISNUMBER(Knoten!C8),Z11,PlotData!$CB$3) -> -6 | Q11: =IF(ISNUMBER(Knoten!C8),P11+($Q$26*COS(K11*PI()/180)*O11-$U$26*SIN(K11*PI()/180))*O11,P11) -> -6 | R11: =IF(ISNUMBER(Knoten!C8),P11+($R$26*COS(K11*PI()/180)*O11-$V$26*SIN(K11*PI()/180))*O11,P11) -> -6 | S11: -6 | T11: =IF(ISNUMBER(Knoten!D8),AA11,PlotData!$CB$4) -> -3 | U11: =IF(ISNUMBER(Knoten!D8),T11+($Q$26*SIN(K11*PI()/180)*O11+$U$26*COS(K11*PI()/180))*O11,T11) -> -3 | V11: =IF(ISNUMBER(Knoten!D8),T11+($R$26*SIN(K11*PI()/180)*O11+$V$26*COS(K11*PI()/180))*O11,T11) -> -3 | W11: -3 | Y11: 6 | Z11: -6 | AA11: -3 | AC11: =Knoten!C8-$U$1 -> -6 | AD11: =Knoten!D8-$X$1 -> -3 | AE11: =$AD$3*(Knoten!$K8*$AJ11 + Knoten!$L8*$AI11) -> 0 | AF11: =$AD$3*(-Knoten!$K8*$AI11 + Knoten!$L8*$AJ11) -> 0 | AG11: =$AD$3*(Knoten!$AB8*$AJ11 + Knoten!$AC8*$AI11) -> 0 | AH11: =$AD$3*(-Knoten!$AB8*$AI11 + Knoten!$AC8*$AJ11) -> 0 | AI11: =SIN(Knoten!$W8*PI()/180) -> 0 | AJ11: =COS(Knoten!$W8*PI()/180) -> 1
A12: 7 | B12: =1-ABS(SIGN(Knoten!F9)) -> 0 | C12: =IF(ISNUMBER(Knoten!C9),Knoten!C9-$U$1,PlotData!$CB$3) -> 0 | D12: =IF(ISNUMBER(Knoten!C9),C12+($D$26*COS(K12*PI()/180)*B12-$H$26*SIN(K12*PI()/180))*B12,C12) -> 0 | E12: =IF(ISNUMBER(Knoten!C9),C12+($E$26*COS(K12*PI()/180)*B12-$I$26*SIN(K12*PI()/180))*B12,C12) -> 0 | F12: 0 | G12: =IF(ISNUMBER(Knoten!D9),Knoten!D9-$X$1,PlotData!$CB$4) -> -3 | H12: =IF(ISNUMBER(Knoten!D9),G12+$D$26*(SIN(K12*PI()/180))*B12+$H$26*COS(K12*PI()/180)*B12,G12) -> -3 | I12: =IF(ISNUMBER(Knoten!D9),G12+$E$26*(SIN(K12*PI()/180))*B12+$I$26*COS(K12*PI()/180)*B12,G12) -> -3 | J12: -3 | K12: =-Knoten!W9 -> 0 | N12: 7 | O12: =1-ABS(SIGN(Knoten!F9)) -> 0 | P12: =IF(ISNUMBER(Knoten!C9),Z12,PlotData!$CB$3) -> 0 | Q12: =IF(ISNUMBER(Knoten!C9),P12+($Q$26*COS(K12*PI()/180)*O12-$U$26*SIN(K12*PI()/180))*O12,P12) -> 0 | R12: =IF(ISNUMBER(Knoten!C9),P12+($R$26*COS(K12*PI()/180)*O12-$V$26*SIN(K12*PI()/180))*O12,P12) -> 0 | S12: 0 | T12: =IF(ISNUMBER(Knoten!D9),AA12,PlotData!$CB$4) -> -3 | U12: =IF(ISNUMBER(Knoten!D9),T12+($Q$26*SIN(K12*PI()/180)*O12+$U$26*COS(K12*PI()/180))*O12,T12) -> -3 | V12: =IF(ISNUMBER(Knoten!D9),T12+($R$26*SIN(K12*PI()/180)*O12+$V$26*COS(K12*PI()/180))*O12,T12) -> -3 | W12: -3 | Y12: 7 | Z12: 0 | AA12: -3 | AC12: =Knoten!C9-$U$1 -> 0 | AD12: =Knoten!D9-$X$1 -> -3 | AE12: =$AD$3*(Knoten!$K9*$AJ12 + Knoten!$L9*$AI12) -> 0 | AF12: =$AD$3*(-Knoten!$K9*$AI12 + Knoten!$L9*$AJ12) -> 0 | AG12: =$AD$3*(Knoten!$AB9*$AJ12 + Knoten!$AC9*$AI12) -> 0 | AH12: =$AD$3*(-Knoten!$AB9*$AI12 + Knoten!$AC9*$AJ12) -> 0 | AI12: =SIN(Knoten!$W9*PI()/180) -> 0 | AJ12: =COS(Knoten!$W9*PI()/180) -> 1
A13: 8 | B13: =1-ABS(SIGN(Knoten!F10)) -> 0 | C13: =IF(ISNUMBER(Knoten!C10),Knoten!C10-$U$1,PlotData!$CB$3) -> 6 | D13: =IF(ISNUMBER(Knoten!C10),C13+($D$26*COS(K13*PI()/180)*B13-$H$26*SIN(K13*PI()/180))*B13,C13) -> 6 | E13: =IF(ISNUMBER(Knoten!C10),C13+($E$26*COS(K13*PI()/180)*B13-$I$26*SIN(K13*PI()/180))*B13,C13) -> 6 | F13: 6 | G13: =IF(ISNUMBER(Knoten!D10),Knoten!D10-$X$1,PlotData!$CB$4) -> -3 | H13: =IF(ISNUMBER(Knoten!D10),G13+$D$26*(SIN(K13*PI()/180))*B13+$H$26*COS(K13*PI()/180)*B13,G13) -> -3 | I13: =IF(ISNUMBER(Knoten!D10),G13+$E$26*(SIN(K13*PI()/180))*B13+$I$26*COS(K13*PI()/180)*B13,G13) -> -3 | J13: -3 | K13: =-Knoten!W10 -> 0 | N13: 8 | O13: =1-ABS(SIGN(Knoten!F10)) -> 0 | P13: =IF(ISNUMBER(Knoten!C10),Z13,PlotData!$CB$3) -> 6 | Q13: =IF(ISNUMBER(Knoten!C10),P13+($Q$26*COS(K13*PI()/180)*O13-$U$26*SIN(K13*PI()/180))*O13,P13) -> 6 | R13: =IF(ISNUMBER(Knoten!C10),P13+($R$26*COS(K13*PI()/180)*O13-$V$26*SIN(K13*PI()/180))*O13,P13) -> 6 | S13: 6 | T13: =IF(ISNUMBER(Knoten!D10),AA13,PlotData!$CB$4) -> -3 | U13: =IF(ISNUMBER(Knoten!D10),T13+($Q$26*SIN(K13*PI()/180)*O13+$U$26*COS(K13*PI()/180))*O13,T13) -> -3 | V13: =IF(ISNUMBER(Knoten!D10),T13+($R$26*SIN(K13*PI()/180)*O13+$V$26*COS(K13*PI()/180))*O13,T13) -> -3 | W13: -3 | Y13: 8 | Z13: 6 | AA13: -3 | AC13: =Knoten!C10-$U$1 -> 6 | AD13: =Knoten!D10-$X$1 -> -3 | AE13: =$AD$3*(Knoten!$K10*$AJ13 + Knoten!$L10*$AI13) -> 0 | AF13: =$AD$3*(-Knoten!$K10*$AI13 + Knoten!$L10*$AJ13) -> 0 | AG13: =$AD$3*(Knoten!$AB10*$AJ13 + Knoten!$AC10*$AI13) -> 0 | AH13: =$AD$3*(-Knoten!$AB10*$AI13 + Knoten!$AC10*$AJ13) -> 0 | AI13: =SIN(Knoten!$W10*PI()/180) -> 0 | AJ13: =COS(Knoten!$W10*PI()/180) -> 1
A14: 9 | B14: =1-ABS(SIGN(Knoten!F11)) -> 1 | C14: =IF(ISNUMBER(Knoten!C11),Knoten!C11-$U$1,PlotData!$CB$3) -> 0 | D14: =IF(ISNUMBER(Knoten!C11),C14+($D$26*COS(K14*PI()/180)*B14-$H$26*SIN(K14*PI()/180))*B14,C14) -> 0 | E14: =IF(ISNUMBER(Knoten!C11),C14+($E$26*COS(K14*PI()/180)*B14-$I$26*SIN(K14*PI()/180))*B14,C14) -> 0 | F14: 0 | G14: =IF(ISNUMBER(Knoten!D11),Knoten!D11-$X$1,PlotData!$CB$4) -> 0 | H14: =IF(ISNUMBER(Knoten!D11),G14+$D$26*(SIN(K14*PI()/180))*B14+$H$26*COS(K14*PI()/180)*B14,G14) -> 0 | I14: =IF(ISNUMBER(Knoten!D11),G14+$E$26*(SIN(K14*PI()/180))*B14+$I$26*COS(K14*PI()/180)*B14,G14) -> 0 | J14: 0 | K14: =-Knoten!W11 -> 0 | N14: 9 | O14: =1-ABS(SIGN(Knoten!F11)) -> 1 | P14: =IF(ISNUMBER(Knoten!C11),Z14,PlotData!$CB$3) -> 0 | Q14: =IF(ISNUMBER(Knoten!C11),P14+($Q$26*COS(K14*PI()/180)*O14-$U$26*SIN(K14*PI()/180))*O14,P14) -> 0 | R14: =IF(ISNUMBER(Knoten!C11),P14+($R$26*COS(K14*PI()/180)*O14-$V$26*SIN(K14*PI()/180))*O14,P14) -> 0 | S14: 0 | T14: =IF(ISNUMBER(Knoten!D11),AA14,PlotData!$CB$4) -> 0 | U14: =IF(ISNUMBER(Knoten!D11),T14+($Q$26*SIN(K14*PI()/180)*O14+$U$26*COS(K14*PI()/180))*O14,T14) -> 0 | V14: =IF(ISNUMBER(Knoten!D11),T14+($R$26*SIN(K14*PI()/180)*O14+$V$26*COS(K14*PI()/180))*O14,T14) -> 0 | W14: 0 | Y14: 9 | Z14: 1 | AA14: -1 | AC14: =Knoten!C11-$U$1 -> 1 | AD14: =Knoten!D11-$X$1 -> -1 | AE14: =$AD$3*(Knoten!$K11*$AJ14 + Knoten!$L11*$AI14) -> 0 | AF14: =$AD$3*(-Knoten!$K11*$AI14 + Knoten!$L11*$AJ14) -> 0 | AG14: =$AD$3*(Knoten!$AB11*$AJ14 + Knoten!$AC11*$AI14) -> 0 | AH14: =$AD$3*(-Knoten!$AB11*$AI14 + Knoten!$AC11*$AJ14) -> 0 | AI14: =SIN(Knoten!$W11*PI()/180) -> 0 | AJ14: =COS(Knoten!$W11*PI()/180) -> 1
A15: 10 | B15: =1-ABS(SIGN(Knoten!F12)) -> 1 | C15: =IF(ISNUMBER(Knoten!C12),Knoten!C12-$U$1,PlotData!$CB$3) -> 0 | D15: =IF(ISNUMBER(Knoten!C12),C15+($D$26*COS(K15*PI()/180)*B15-$H$26*SIN(K15*PI()/180))*B15,C15) -> 0 | E15: =IF(ISNUMBER(Knoten!C12),C15+($E$26*COS(K15*PI()/180)*B15-$I$26*SIN(K15*PI()/180))*B15,C15) -> 0 | F15: 0 | G15: =IF(ISNUMBER(Knoten!D12),Knoten!D12-$X$1,PlotData!$CB$4) -> 0 | H15: =IF(ISNUMBER(Knoten!D12),G15+$D$26*(SIN(K15*PI()/180))*B15+$H$26*COS(K15*PI()/180)*B15,G15) -> 0 | I15: =IF(ISNUMBER(Knoten!D12),G15+$E$26*(SIN(K15*PI()/180))*B15+$I$26*COS(K15*PI()/180)*B15,G15) -> 0 | J15: 0 | K15: =-Knoten!W12 -> 0 | N15: 10 | O15: =1-ABS(SIGN(Knoten!F12)) -> 1 | P15: =IF(ISNUMBER(Knoten!C12),Z15,PlotData!$CB$3) -> 0 | Q15: =IF(ISNUMBER(Knoten!C12),P15+($Q$26*COS(K15*PI()/180)*O15-$U$26*SIN(K15*PI()/180))*O15,P15) -> 0 | R15: =IF(ISNUMBER(Knoten!C12),P15+($R$26*COS(K15*PI()/180)*O15-$V$26*SIN(K15*PI()/180))*O15,P15) -> 0 | S15: 0 | T15: =IF(ISNUMBER(Knoten!D12),AA15,PlotData!$CB$4) -> 0 | U15: =IF(ISNUMBER(Knoten!D12),T15+($Q$26*SIN(K15*PI()/180)*O15+$U$26*COS(K15*PI()/180))*O15,T15) -> 0 | V15: =IF(ISNUMBER(Knoten!D12),T15+($R$26*SIN(K15*PI()/180)*O15+$V$26*COS(K15*PI()/180))*O15,T15) -> 0 | W15: 0 | Y15: 10 | Z15: 1 | AA15: -1 | AC15: =Knoten!C12-$U$1 -> 1 | AD15: =Knoten!D12-$X$1 -> -1 | AE15: =$AD$3*(Knoten!$K12*$AJ15 + Knoten!$L12*$AI15) -> 0 | AF15: =$AD$3*(-Knoten!$K12*$AI15 + Knoten!$L12*$AJ15) -> 0 | AG15: =$AD$3*(Knoten!$AB12*$AJ15 + Knoten!$AC12*$AI15) -> 0 | AH15: =$AD$3*(-Knoten!$AB12*$AI15 + Knoten!$AC12*$AJ15) -> 0 | AI15: =SIN(Knoten!$W12*PI()/180) -> 0 | AJ15: =COS(Knoten!$W12*PI()/180) -> 1
A16: 11 | B16: =1-ABS(SIGN(Knoten!F13)) -> 1 | C16: =IF(ISNUMBER(Knoten!C13),Knoten!C13-$U$1,PlotData!$CB$3) -> 0 | D16: =IF(ISNUMBER(Knoten!C13),C16+($D$26*COS(K16*PI()/180)*B16-$H$26*SIN(K16*PI()/180))*B16,C16) -> 0 | E16: =IF(ISNUMBER(Knoten!C13),C16+($E$26*COS(K16*PI()/180)*B16-$I$26*SIN(K16*PI()/180))*B16,C16) -> 0 | F16: 0 | G16: =IF(ISNUMBER(Knoten!D13),Knoten!D13-$X$1,PlotData!$CB$4) -> 0 | H16: =IF(ISNUMBER(Knoten!D13),G16+$D$26*(SIN(K16*PI()/180))*B16+$H$26*COS(K16*PI()/180)*B16,G16) -> 0 | I16: =IF(ISNUMBER(Knoten!D13),G16+$E$26*(SIN(K16*PI()/180))*B16+$I$26*COS(K16*PI()/180)*B16,G16) -> 0 | J16: 0 | K16: =-Knoten!W13 -> 0 | N16: 11 | O16: =1-ABS(SIGN(Knoten!F13)) -> 1 | P16: =IF(ISNUMBER(Knoten!C13),Z16,PlotData!$CB$3) -> 0 | Q16: =IF(ISNUMBER(Knoten!C13),P16+($Q$26*COS(K16*PI()/180)*O16-$U$26*SIN(K16*PI()/180))*O16,P16) -> 0 | R16: =IF(ISNUMBER(Knoten!C13),P16+($R$26*COS(K16*PI()/180)*O16-$V$26*SIN(K16*PI()/180))*O16,P16) -> 0 | S16: 0 | T16: =IF(ISNUMBER(Knoten!D13),AA16,PlotData!$CB$4) -> 0 | U16: =IF(ISNUMBER(Knoten!D13),T16+($Q$26*SIN(K16*PI()/180)*O16+$U$26*COS(K16*PI()/180))*O16,T16) -> 0 | V16: =IF(ISNUMBER(Knoten!D13),T16+($R$26*SIN(K16*PI()/180)*O16+$V$26*COS(K16*PI()/180))*O16,T16) -> 0 | W16: 0 | Y16: 11 | Z16: 1 | AA16: -1 | AC16: =Knoten!C13-$U$1 -> 1 | AD16: =Knoten!D13-$X$1 -> -1 | AE16: =$AD$3*(Knoten!$K13*$AJ16 + Knoten!$L13*$AI16) -> 0 | AF16: =$AD$3*(-Knoten!$K13*$AI16 + Knoten!$L13*$AJ16) -> 0 | AG16: =$AD$3*(Knoten!$AB13*$AJ16 + Knoten!$AC13*$AI16) -> 0 | AH16: =$AD$3*(-Knoten!$AB13*$AI16 + Knoten!$AC13*$AJ16) -> 0 | AI16: =SIN(Knoten!$W13*PI()/180) -> 0 | AJ16: =COS(Knoten!$W13*PI()/180) -> 1
A17: 12 | B17: =1-ABS(SIGN(Knoten!F14)) -> 1 | C17: =IF(ISNUMBER(Knoten!C14),Knoten!C14-$U$1,PlotData!$CB$3) -> 0 | D17: =IF(ISNUMBER(Knoten!C14),C17+($D$26*COS(K17*PI()/180)*B17-$H$26*SIN(K17*PI()/180))*B17,C17) -> 0 | E17: =IF(ISNUMBER(Knoten!C14),C17+($E$26*COS(K17*PI()/180)*B17-$I$26*SIN(K17*PI()/180))*B17,C17) -> 0 | F17: 0 | G17: =IF(ISNUMBER(Knoten!D14),Knoten!D14-$X$1,PlotData!$CB$4) -> 0 | H17: =IF(ISNUMBER(Knoten!D14),G17+$D$26*(SIN(K17*PI()/180))*B17+$H$26*COS(K17*PI()/180)*B17,G17) -> 0 | I17: =IF(ISNUMBER(Knoten!D14),G17+$E$26*(SIN(K17*PI()/180))*B17+$I$26*COS(K17*PI()/180)*B17,G17) -> 0 | J17: 0 | K17: =-Knoten!W14 -> 0 | N17: 12 | O17: =1-ABS(SIGN(Knoten!F14)) -> 1 | P17: =IF(ISNUMBER(Knoten!C14),Z17,PlotData!$CB$3) -> 0 | Q17: =IF(ISNUMBER(Knoten!C14),P17+($Q$26*COS(K17*PI()/180)*O17-$U$26*SIN(K17*PI()/180))*O17,P17) -> 0 | R17: =IF(ISNUMBER(Knoten!C14),P17+($R$26*COS(K17*PI()/180)*O17-$V$26*SIN(K17*PI()/180))*O17,P17) -> 0 | S17: 0 | T17: =IF(ISNUMBER(Knoten!D14),AA17,PlotData!$CB$4) -> 0 | U17: =IF(ISNUMBER(Knoten!D14),T17+($Q$26*SIN(K17*PI()/180)*O17+$U$26*COS(K17*PI()/180))*O17,T17) -> 0 | V17: =IF(ISNUMBER(Knoten!D14),T17+($R$26*SIN(K17*PI()/180)*O17+$V$26*COS(K17*PI()/180))*O17,T17) -> 0 | W17: 0 | Y17: 12 | Z17: 1 | AA17: -1 | AC17: =Knoten!C14-$U$1 -> 1 | AD17: =Knoten!D14-$X$1 -> -1 | AE17: =$AD$3*(Knoten!$K14*$AJ17 + Knoten!$L14*$AI17) -> 0 | AF17: =$AD$3*(-Knoten!$K14*$AI17 + Knoten!$L14*$AJ17) -> 0 | AG17: =$AD$3*(Knoten!$AB14*$AJ17 + Knoten!$AC14*$AI17) -> 0 | AH17: =$AD$3*(-Knoten!$AB14*$AI17 + Knoten!$AC14*$AJ17) -> 0 | AI17: =SIN(Knoten!$W14*PI()/180) -> 0 | AJ17: =COS(Knoten!$W14*PI()/180) -> 1
A18: 13 | B18: =1-ABS(SIGN(Knoten!F15)) -> 1 | C18: =IF(ISNUMBER(Knoten!C15),Knoten!C15-$U$1,PlotData!$CB$3) -> 0 | D18: =IF(ISNUMBER(Knoten!C15),C18+($D$26*COS(K18*PI()/180)*B18-$H$26*SIN(K18*PI()/180))*B18,C18) -> 0 | E18: =IF(ISNUMBER(Knoten!C15),C18+($E$26*COS(K18*PI()/180)*B18-$I$26*SIN(K18*PI()/180))*B18,C18) -> 0 | F18: 0 | G18: =IF(ISNUMBER(Knoten!D15),Knoten!D15-$X$1,PlotData!$CB$4) -> 0 | H18: =IF(ISNUMBER(Knoten!D15),G18+$D$26*(SIN(K18*PI()/180))*B18+$H$26*COS(K18*PI()/180)*B18,G18) -> 0 | I18: =IF(ISNUMBER(Knoten!D15),G18+$E$26*(SIN(K18*PI()/180))*B18+$I$26*COS(K18*PI()/180)*B18,G18) -> 0 | J18: 0 | K18: =-Knoten!W15 -> 0 | N18: 13 | O18: =1-ABS(SIGN(Knoten!F15)) -> 1 | P18: =IF(ISNUMBER(Knoten!C15),Z18,PlotData!$CB$3) -> 0 | Q18: =IF(ISNUMBER(Knoten!C15),P18+($Q$26*COS(K18*PI()/180)*O18-$U$26*SIN(K18*PI()/180))*O18,P18) -> 0 | R18: =IF(ISNUMBER(Knoten!C15),P18+($R$26*COS(K18*PI()/180)*O18-$V$26*SIN(K18*PI()/180))*O18,P18) -> 0 | S18: 0 | T18: =IF(ISNUMBER(Knoten!D15),AA18,PlotData!$CB$4) -> 0 | U18: =IF(ISNUMBER(Knoten!D15),T18+($Q$26*SIN(K18*PI()/180)*O18+$U$26*COS(K18*PI()/180))*O18,T18) -> 0 | V18: =IF(ISNUMBER(Knoten!D15),T18+($R$26*SIN(K18*PI()/180)*O18+$V$26*COS(K18*PI()/180))*O18,T18) -> 0 | W18: 0 | Y18: 13 | Z18: 1 | AA18: -1 | AC18: =Knoten!C15-$U$1 -> 1 | AD18: =Knoten!D15-$X$1 -> -1 | AE18: =$AD$3*(Knoten!$K15*$AJ18 + Knoten!$L15*$AI18) -> 0 | AF18: =$AD$3*(-Knoten!$K15*$AI18 + Knoten!$L15*$AJ18) -> 0 | AG18: =$AD$3*(Knoten!$AB15*$AJ18 + Knoten!$AC15*$AI18) -> 0 | AH18: =$AD$3*(-Knoten!$AB15*$AI18 + Knoten!$AC15*$AJ18) -> 0 | AI18: =SIN(Knoten!$W15*PI()/180) -> 0 | AJ18: =COS(Knoten!$W15*PI()/180) -> 1
A19: 14 | B19: =1-ABS(SIGN(Knoten!F16)) -> 1 | C19: =IF(ISNUMBER(Knoten!C16),Knoten!C16-$U$1,PlotData!$CB$3) -> 0 | D19: =IF(ISNUMBER(Knoten!C16),C19+($D$26*COS(K19*PI()/180)*B19-$H$26*SIN(K19*PI()/180))*B19,C19) -> 0 | E19: =IF(ISNUMBER(Knoten!C16),C19+($E$26*COS(K19*PI()/180)*B19-$I$26*SIN(K19*PI()/180))*B19,C19) -> 0 | F19: 0 | G19: =IF(ISNUMBER(Knoten!D16),Knoten!D16-$X$1,PlotData!$CB$4) -> 0 | H19: =IF(ISNUMBER(Knoten!D16),G19+$D$26*(SIN(K19*PI()/180))*B19+$H$26*COS(K19*PI()/180)*B19,G19) -> 0 | I19: =IF(ISNUMBER(Knoten!D16),G19+$E$26*(SIN(K19*PI()/180))*B19+$I$26*COS(K19*PI()/180)*B19,G19) -> 0 | J19: 0 | K19: =-Knoten!W16 -> 0 | N19: 14 | O19: =1-ABS(SIGN(Knoten!F16)) -> 1 | P19: =IF(ISNUMBER(Knoten!C16),Z19,PlotData!$CB$3) -> 0 | Q19: =IF(ISNUMBER(Knoten!C16),P19+($Q$26*COS(K19*PI()/180)*O19-$U$26*SIN(K19*PI()/180))*O19,P19) -> 0 | R19: =IF(ISNUMBER(Knoten!C16),P19+($R$26*COS(K19*PI()/180)*O19-$V$26*SIN(K19*PI()/180))*O19,P19) -> 0 | S19: 0 | T19: =IF(ISNUMBER(Knoten!D16),AA19,PlotData!$CB$4) -> 0 | U19: =IF(ISNUMBER(Knoten!D16),T19+($Q$26*SIN(K19*PI()/180)*O19+$U$26*COS(K19*PI()/180))*O19,T19) -> 0 | V19: =IF(ISNUMBER(Knoten!D16),T19+($R$26*SIN(K19*PI()/180)*O19+$V$26*COS(K19*PI()/180))*O19,T19) -> 0 | W19: 0 | Y19: 14 | Z19: 1 | AA19: -1 | AC19: =Knoten!C16-$U$1 -> 1 | AD19: =Knoten!D16-$X$1 -> -1 | AE19: =$AD$3*(Knoten!$K16*$AJ19 + Knoten!$L16*$AI19) -> 0 | AF19: =$AD$3*(-Knoten!$K16*$AI19 + Knoten!$L16*$AJ19) -> 0 | AG19: =$AD$3*(Knoten!$AB16*$AJ19 + Knoten!$AC16*$AI19) -> 0 | AH19: =$AD$3*(-Knoten!$AB16*$AI19 + Knoten!$AC16*$AJ19) -> 0 | AI19: =SIN(Knoten!$W16*PI()/180) -> 0 | AJ19: =COS(Knoten!$W16*PI()/180) -> 1
A20: 15 | B20: =1-ABS(SIGN(Knoten!F17)) -> 1 | C20: =IF(ISNUMBER(Knoten!C17),Knoten!C17-$U$1,PlotData!$CB$3) -> 0 | D20: =IF(ISNUMBER(Knoten!C17),C20+($D$26*COS(K20*PI()/180)*B20-$H$26*SIN(K20*PI()/180))*B20,C20) -> 0 | E20: =IF(ISNUMBER(Knoten!C17),C20+($E$26*COS(K20*PI()/180)*B20-$I$26*SIN(K20*PI()/180))*B20,C20) -> 0 | F20: 0 | G20: =IF(ISNUMBER(Knoten!D17),Knoten!D17-$X$1,PlotData!$CB$4) -> 0 | H20: =IF(ISNUMBER(Knoten!D17),G20+$D$26*(SIN(K20*PI()/180))*B20+$H$26*COS(K20*PI()/180)*B20,G20) -> 0 | I20: =IF(ISNUMBER(Knoten!D17),G20+$E$26*(SIN(K20*PI()/180))*B20+$I$26*COS(K20*PI()/180)*B20,G20) -> 0 | J20: 0 | K20: =-Knoten!W17 -> 0 | N20: 15 | O20: =1-ABS(SIGN(Knoten!F17)) -> 1 | P20: =IF(ISNUMBER(Knoten!C17),Z20,PlotData!$CB$3) -> 0 | Q20: =IF(ISNUMBER(Knoten!C17),P20+($Q$26*COS(K20*PI()/180)*O20-$U$26*SIN(K20*PI()/180))*O20,P20) -> 0 | R20: =IF(ISNUMBER(Knoten!C17),P20+($R$26*COS(K20*PI()/180)*O20-$V$26*SIN(K20*PI()/180))*O20,P20) -> 0 | S20: 0 | T20: =IF(ISNUMBER(Knoten!D17),AA20,PlotData!$CB$4) -> 0 | U20: =IF(ISNUMBER(Knoten!D17),T20+($Q$26*SIN(K20*PI()/180)*O20+$U$26*COS(K20*PI()/180))*O20,T20) -> 0 | V20: =IF(ISNUMBER(Knoten!D17),T20+($R$26*SIN(K20*PI()/180)*O20+$V$26*COS(K20*PI()/180))*O20,T20) -> 0 | W20: 0 | Y20: 15 | Z20: 1 | AA20: -1 | AC20: =Knoten!C17-$U$1 -> 1 | AD20: =Knoten!D17-$X$1 -> -1 | AE20: =$AD$3*(Knoten!$K17*$AJ20 + Knoten!$L17*$AI20) -> 0 | AF20: =$AD$3*(-Knoten!$K17*$AI20 + Knoten!$L17*$AJ20) -> 0 | AG20: =$AD$3*(Knoten!$AB17*$AJ20 + Knoten!$AC17*$AI20) -> 0 | AH20: =$AD$3*(-Knoten!$AB17*$AI20 + Knoten!$AC17*$AJ20) -> 0 | AI20: =SIN(Knoten!$W17*PI()/180) -> 0 | AJ20: =COS(Knoten!$W17*PI()/180) -> 1
A21: 16 | B21: =1-ABS(SIGN(Knoten!F18)) -> 1 | C21: =IF(ISNUMBER(Knoten!C18),Knoten!C18-$U$1,PlotData!$CB$3) -> 0 | D21: =IF(ISNUMBER(Knoten!C18),C21+($D$26*COS(K21*PI()/180)*B21-$H$26*SIN(K21*PI()/180))*B21,C21) -> 0 | E21: =IF(ISNUMBER(Knoten!C18),C21+($E$26*COS(K21*PI()/180)*B21-$I$26*SIN(K21*PI()/180))*B21,C21) -> 0 | F21: 0 | G21: =IF(ISNUMBER(Knoten!D18),Knoten!D18-$X$1,PlotData!$CB$4) -> 0 | H21: =IF(ISNUMBER(Knoten!D18),G21+$D$26*(SIN(K21*PI()/180))*B21+$H$26*COS(K21*PI()/180)*B21,G21) -> 0 | I21: =IF(ISNUMBER(Knoten!D18),G21+$E$26*(SIN(K21*PI()/180))*B21+$I$26*COS(K21*PI()/180)*B21,G21) -> 0 | J21: 0 | K21: =-Knoten!W18 -> 0 | N21: 16 | O21: =1-ABS(SIGN(Knoten!F18)) -> 1 | P21: =IF(ISNUMBER(Knoten!C18),Z21,PlotData!$CB$3) -> 0 | Q21: =IF(ISNUMBER(Knoten!C18),P21+($Q$26*COS(K21*PI()/180)*O21-$U$26*SIN(K21*PI()/180))*O21,P21) -> 0 | R21: =IF(ISNUMBER(Knoten!C18),P21+($R$26*COS(K21*PI()/180)*O21-$V$26*SIN(K21*PI()/180))*O21,P21) -> 0 | S21: 0 | T21: =IF(ISNUMBER(Knoten!D18),AA21,PlotData!$CB$4) -> 0 | U21: =IF(ISNUMBER(Knoten!D18),T21+($Q$26*SIN(K21*PI()/180)*O21+$U$26*COS(K21*PI()/180))*O21,T21) -> 0 | V21: =IF(ISNUMBER(Knoten!D18),T21+($R$26*SIN(K21*PI()/180)*O21+$V$26*COS(K21*PI()/180))*O21,T21) -> 0 | W21: 0 | Y21: 16 | Z21: 1 | AA21: -1 | AC21: =Knoten!C18-$U$1 -> 1 | AD21: =Knoten!D18-$X$1 -> -1 | AE21: =$AD$3*(Knoten!$K18*$AJ21 + Knoten!$L18*$AI21) -> 0 | AF21: =$AD$3*(-Knoten!$K18*$AI21 + Knoten!$L18*$AJ21) -> 0 | AG21: =$AD$3*(Knoten!$AB18*$AJ21 + Knoten!$AC18*$AI21) -> 0 | AH21: =$AD$3*(-Knoten!$AB18*$AI21 + Knoten!$AC18*$AJ21) -> 0 | AI21: =SIN(Knoten!$W18*PI()/180) -> 0 | AJ21: =COS(Knoten!$W18*PI()/180) -> 1
A22: 17 | B22: =1-ABS(SIGN(Knoten!F19)) -> 1 | C22: =IF(ISNUMBER(Knoten!C19),Knoten!C19-$U$1,PlotData!$CB$3) -> 0 | D22: =IF(ISNUMBER(Knoten!C19),C22+($D$26*COS(K22*PI()/180)*B22-$H$26*SIN(K22*PI()/180))*B22,C22) -> 0 | E22: =IF(ISNUMBER(Knoten!C19),C22+($E$26*COS(K22*PI()/180)*B22-$I$26*SIN(K22*PI()/180))*B22,C22) -> 0 | F22: 0 | G22: =IF(ISNUMBER(Knoten!D19),Knoten!D19-$X$1,PlotData!$CB$4) -> 0 | H22: =IF(ISNUMBER(Knoten!D19),G22+$D$26*(SIN(K22*PI()/180))*B22+$H$26*COS(K22*PI()/180)*B22,G22) -> 0 | I22: =IF(ISNUMBER(Knoten!D19),G22+$E$26*(SIN(K22*PI()/180))*B22+$I$26*COS(K22*PI()/180)*B22,G22) -> 0 | J22: 0 | K22: =-Knoten!W19 -> 0 | N22: 17 | O22: =1-ABS(SIGN(Knoten!F19)) -> 1 | P22: =IF(ISNUMBER(Knoten!C19),Z22,PlotData!$CB$3) -> 0 | Q22: =IF(ISNUMBER(Knoten!C19),P22+($Q$26*COS(K22*PI()/180)*O22-$U$26*SIN(K22*PI()/180))*O22,P22) -> 0 | R22: =IF(ISNUMBER(Knoten!C19),P22+($R$26*COS(K22*PI()/180)*O22-$V$26*SIN(K22*PI()/180))*O22,P22) -> 0 | S22: 0 | T22: =IF(ISNUMBER(Knoten!D19),AA22,PlotData!$CB$4) -> 0 | U22: =IF(ISNUMBER(Knoten!D19),T22+($Q$26*SIN(K22*PI()/180)*O22+$U$26*COS(K22*PI()/180))*O22,T22) -> 0 | V22: =IF(ISNUMBER(Knoten!D19),T22+($R$26*SIN(K22*PI()/180)*O22+$V$26*COS(K22*PI()/180))*O22,T22) -> 0 | W22: 0 | Y22: 17 | Z22: 1 | AA22: -1 | AC22: =Knoten!C19-$U$1 -> 1 | AD22: =Knoten!D19-$X$1 -> -1 | AE22: =$AD$3*(Knoten!$K19*$AJ22 + Knoten!$L19*$AI22) -> 0 | AF22: =$AD$3*(-Knoten!$K19*$AI22 + Knoten!$L19*$AJ22) -> 0 | AG22: =$AD$3*(Knoten!$AB19*$AJ22 + Knoten!$AC19*$AI22) -> 0 | AH22: =$AD$3*(-Knoten!$AB19*$AI22 + Knoten!$AC19*$AJ22) -> 0 | AI22: =SIN(Knoten!$W19*PI()/180) -> 0 | AJ22: =COS(Knoten!$W19*PI()/180) -> 1
A23: 18 | B23: =1-ABS(SIGN(Knoten!F20)) -> 1 | C23: =IF(ISNUMBER(Knoten!C20),Knoten!C20-$U$1,PlotData!$CB$3) -> 0 | D23: =IF(ISNUMBER(Knoten!C20),C23+($D$26*COS(K23*PI()/180)*B23-$H$26*SIN(K23*PI()/180))*B23,C23) -> 0 | E23: =IF(ISNUMBER(Knoten!C20),C23+($E$26*COS(K23*PI()/180)*B23-$I$26*SIN(K23*PI()/180))*B23,C23) -> 0 | F23: =C23 -> 0 | G23: =IF(ISNUMBER(Knoten!D20),Knoten!D20-$X$1,PlotData!$CB$4) -> 0 | H23: =IF(ISNUMBER(Knoten!D20),G23+$D$26*(SIN(K23*PI()/180))*B23+$H$26*COS(K23*PI()/180)*B23,G23) -> 0 | I23: =IF(ISNUMBER(Knoten!D20),G23+$E$26*(SIN(K23*PI()/180))*B23+$I$26*COS(K23*PI()/180)*B23,G23) -> 0 | J23: =G23 -> 0 | K23: =-Knoten!W20 -> 0 | N23: 18 | O23: =1-ABS(SIGN(Knoten!F20)) -> 1 | P23: =IF(ISNUMBER(Knoten!C20),Z23,PlotData!$CB$3) -> 0 | Q23: =IF(ISNUMBER(Knoten!C20),P23+($Q$26*COS(K23*PI()/180)*O23-$U$26*SIN(K23*PI()/180))*O23,P23) -> 0 | R23: =IF(ISNUMBER(Knoten!C20),P23+($R$26*COS(K23*PI()/180)*O23-$V$26*SIN(K23*PI()/180))*O23,P23) -> 0 | S23: =P23 -> 0 | T23: =IF(ISNUMBER(Knoten!D20),AA23,PlotData!$CB$4) -> 0 | U23: =IF(ISNUMBER(Knoten!D20),T23+($Q$26*SIN(K23*PI()/180)*O23+$U$26*COS(K23*PI()/180))*O23,T23) -> 0 | V23: =IF(ISNUMBER(Knoten!D20),T23+($R$26*SIN(K23*PI()/180)*O23+$V$26*COS(K23*PI()/180))*O23,T23) -> 0 | W23: =T23 -> 0 | Y23: 18 | Z23: 1 | AA23: -1 | AC23: =Knoten!C20-$U$1 -> 1 | AD23: =Knoten!D20-$X$1 -> -1 | AE23: =$AD$3*(Knoten!$K20*$AJ23 + Knoten!$L20*$AI23) -> 0 | AF23: =$AD$3*(-Knoten!$K20*$AI23 + Knoten!$L20*$AJ23) -> 0 | AG23: =$AD$3*(Knoten!$AB20*$AJ23 + Knoten!$AC20*$AI23) -> 0 | AH23: =$AD$3*(-Knoten!$AB20*$AI23 + Knoten!$AC20*$AJ23) -> 0 | AI23: =SIN(Knoten!$W20*PI()/180) -> 0 | AJ23: =COS(Knoten!$W20*PI()/180) -> 1
A24: 19 | B24: =1-ABS(SIGN(Knoten!F21)) -> 1 | C24: =IF(ISNUMBER(Knoten!C21),Knoten!C21-$U$1,PlotData!$CB$3) -> 0 | D24: =IF(ISNUMBER(Knoten!C21),C24+($D$26*COS(K24*PI()/180)*B24-$H$26*SIN(K24*PI()/180))*B24,C24) -> 0 | E24: =IF(ISNUMBER(Knoten!C21),C24+($E$26*COS(K24*PI()/180)*B24-$I$26*SIN(K24*PI()/180))*B24,C24) -> 0 | F24: =C24 -> 0 | G24: =IF(ISNUMBER(Knoten!D21),Knoten!D21-$X$1,PlotData!$CB$4) -> 0 | H24: =IF(ISNUMBER(Knoten!D21),G24+$D$26*(SIN(K24*PI()/180))*B24+$H$26*COS(K24*PI()/180)*B24,G24) -> 0 | I24: =IF(ISNUMBER(Knoten!D21),G24+$E$26*(SIN(K24*PI()/180))*B24+$I$26*COS(K24*PI()/180)*B24,G24) -> 0 | J24: =G24 -> 0 | K24: =-Knoten!W21 -> 0 | N24: 19 | O24: =1-ABS(SIGN(Knoten!F21)) -> 1 | P24: =IF(ISNUMBER(Knoten!C21),Z24,PlotData!$CB$3) -> 0 | Q24: =IF(ISNUMBER(Knoten!C21),P24+($Q$26*COS(K24*PI()/180)*O24-$U$26*SIN(K24*PI()/180))*O24,P24) -> 0 | R24: =IF(ISNUMBER(Knoten!C21),P24+($R$26*COS(K24*PI()/180)*O24-$V$26*SIN(K24*PI()/180))*O24,P24) -> 0 | S24: =P24 -> 0 | T24: =IF(ISNUMBER(Knoten!D21),AA24,PlotData!$CB$4) -> 0 | U24: =IF(ISNUMBER(Knoten!D21),T24+($Q$26*SIN(K24*PI()/180)*O24+$U$26*COS(K24*PI()/180))*O24,T24) -> 0 | V24: =IF(ISNUMBER(Knoten!D21),T24+($R$26*SIN(K24*PI()/180)*O24+$V$26*COS(K24*PI()/180))*O24,T24) -> 0 | W24: =T24 -> 0 | Y24: 19 | Z24: 1 | AA24: -1 | AC24: =Knoten!C21-$U$1 -> 1 | AD24: =Knoten!D21-$X$1 -> -1 | AE24: =$AD$3*(Knoten!$K21*$AJ24 + Knoten!$L21*$AI24) -> 0 | AF24: =$AD$3*(-Knoten!$K21*$AI24 + Knoten!$L21*$AJ24) -> 0 | AG24: =$AD$3*(Knoten!$AB21*$AJ24 + Knoten!$AC21*$AI24) -> 0 | AH24: =$AD$3*(-Knoten!$AB21*$AI24 + Knoten!$AC21*$AJ24) -> 0 | AI24: =SIN(Knoten!$W21*PI()/180) -> 0 | AJ24: =COS(Knoten!$W21*PI()/180) -> 1
A25: 20 | B25: =1-ABS(SIGN(Knoten!F22)) -> 1 | C25: =IF(ISNUMBER(Knoten!C22),Knoten!C22-$U$1,PlotData!$CB$3) -> 0 | D25: =IF(ISNUMBER(Knoten!C22),C25+($D$26*COS(K25*PI()/180)*B25-$H$26*SIN(K25*PI()/180))*B25,C25) -> 0 | E25: =IF(ISNUMBER(Knoten!C22),C25+($E$26*COS(K25*PI()/180)*B25-$I$26*SIN(K25*PI()/180))*B25,C25) -> 0 | F25: =C25 -> 0 | G25: =IF(ISNUMBER(Knoten!D22),Knoten!D22-$X$1,PlotData!$CB$4) -> 0 | H25: =IF(ISNUMBER(Knoten!D22),G25+$D$26*(SIN(K25*PI()/180))*B25+$H$26*COS(K25*PI()/180)*B25,G25) -> 0 | I25: =IF(ISNUMBER(Knoten!D22),G25+$E$26*(SIN(K25*PI()/180))*B25+$I$26*COS(K25*PI()/180)*B25,G25) -> 0 | J25: =G25 -> 0 | K25: =-Knoten!W22 -> 0 | N25: 20 | O25: =1-ABS(SIGN(Knoten!F22)) -> 1 | P25: =IF(ISNUMBER(Knoten!C22),Z25,PlotData!$CB$3) -> 0 | Q25: =IF(ISNUMBER(Knoten!C22),P25+($Q$26*COS(K25*PI()/180)*O25-$U$26*SIN(K25*PI()/180))*O25,P25) -> 0 | R25: =IF(ISNUMBER(Knoten!C22),P25+($R$26*COS(K25*PI()/180)*O25-$V$26*SIN(K25*PI()/180))*O25,P25) -> 0 | S25: =P25 -> 0 | T25: =IF(ISNUMBER(Knoten!D22),AA25,PlotData!$CB$4) -> 0 | U25: =IF(ISNUMBER(Knoten!D22),T25+($Q$26*SIN(K25*PI()/180)*O25+$U$26*COS(K25*PI()/180))*O25,T25) -> 0 | V25: =IF(ISNUMBER(Knoten!D22),T25+($R$26*SIN(K25*PI()/180)*O25+$V$26*COS(K25*PI()/180))*O25,T25) -> 0 | W25: =T25 -> 0 | Y25: 20 | Z25: 1 | AA25: -1 | AC25: =Knoten!C22-$U$1 -> 1 | AD25: =Knoten!D22-$X$1 -> -1 | AE25: =$AD$3*(Knoten!$K22*$AJ25 + Knoten!$L22*$AI25) -> 0 | AF25: =$AD$3*(-Knoten!$K22*$AI25 + Knoten!$L22*$AJ25) -> 0 | AG25: =$AD$3*(Knoten!$AB22*$AJ25 + Knoten!$AC22*$AI25) -> 0 | AH25: =$AD$3*(-Knoten!$AB22*$AI25 + Knoten!$AC22*$AJ25) -> 0 | AI25: =SIN(Knoten!$W22*PI()/180) -> 0 | AJ25: =COS(Knoten!$W22*PI()/180) -> 1
C26: R * 0,5 = | D26: =0.5*$E$1 -> 0.7421590126 | E26: =-D26 -> -0.7421590126 | G26: R * 0,866 = | H26: =0.866*$E$1 -> 1.28541941 | I26: =H26 -> 1.28541941 | P26: R * 0,5 = | Q26: =D26 -> 0.7421590126 | R26: =E26 -> -0.7421590126 | T26: R * 0,866 = | U26: =H26 -> 1.28541941 | V26: =I26 -> 1.28541941
A28: Lager H unverformt | C28: x | G28: y | K28: Verdrehung | N28: Lager H verformt | P28: x | T28: y
A29: 1 | B29: =1-ABS(SIGN(Knoten!E3)) -> 1 | C29: =IF(ISNUMBER(Knoten!C3),Knoten!C3-$U$1,PlotData!$CB$3) -> -12 | D29: =IF(ISNUMBER(Knoten!C3),C29+(D$49*COS($K29*PI()/180)*B29-H$49*SIN($K29*PI()/180))*$B29,C29) -> -10.71458059 | E29: =IF(ISNUMBER(Knoten!C3),C29+(E$49*COS($K29*PI()/180)*B29-I$49*SIN($K29*PI()/180))*$B29,C29) -> -10.71458059 | F29: =C29 -> -12 | G29: =IF(ISNUMBER(Knoten!D3),Knoten!D3-$X$1,PlotData!$CB$4) -> 3 | H29: =IF(ISNUMBER(Knoten!D3),G29+(D$49*SIN($K29*PI()/180)*B29+H$49*COS($K29*PI()/180))*$B29,G29) -> 3.742159013 | I29: =IF(ISNUMBER(Knoten!D3),G29+(E$49*SIN($K29*PI()/180)*B29+I$49*COS($K29*PI()/180))*$B29,G29) -> 2.257840987 | J29: =G29 -> 3 | K29: =-Knoten!W3 -> 0 | N29: 1 | O29: =1-ABS(SIGN(Knoten!E3)) -> 1 | P29: =IF(ISNUMBER(Knoten!C3),Z6,PlotData!$CB$3) -> -12 | Q29: =IF(ISNUMBER(Knoten!C3),P29+($Q$49*COS(K29*PI()/180)*O29-$U$49*SIN(K29*PI()/180))*O29,P29) -> -10.71458059 | R29: =IF(ISNUMBER(Knoten!C3),P29+($R$49*COS(K29*PI()/180)*O29-$V$49*SIN(K29*PI()/180))*O29,P29) -> -10.71458059 | S29: =P29 -> -12 | T29: =IF(ISNUMBER(Knoten!D3),AA6,PlotData!$CB$4) -> 3 | U29: =IF(ISNUMBER(Knoten!D3),T29+($Q$49*SIN(K29*PI()/180)*O29+$U$49*COS(K29*PI()/180))*O29,T29) -> 3.742159013 | V29: =IF(ISNUMBER(Knoten!D3),T29+($R$49*SIN(K29*PI()/180)*O29+$V$49*COS(K29*PI()/180))*O29,T29) -> 2.257840987 | W29: =T29 -> 3
A30: 2 | B30: =1-ABS(SIGN(Knoten!E4)) -> 0 | C30: =IF(ISNUMBER(Knoten!C4),Knoten!C4-$U$1,PlotData!$CB$3) -> -6 | D30: =IF(ISNUMBER(Knoten!C4),C30+(D$49*COS($K30*PI()/180)*B30-H$49*SIN($K30*PI()/180))*$B30,C30) -> -6 | E30: =IF(ISNUMBER(Knoten!C4),C30+(E$49*COS($K30*PI()/180)*B30-I$49*SIN($K30*PI()/180))*$B30,C30) -> -6 | F30: -6 | G30: =IF(ISNUMBER(Knoten!D4),Knoten!D4-$X$1,PlotData!$CB$4) -> 3 | H30: =IF(ISNUMBER(Knoten!D4),G30+(D$49*SIN($K30*PI()/180)*B30+H$49*COS($K30*PI()/180))*$B30,G30) -> 3 | I30: =IF(ISNUMBER(Knoten!D4),G30+(E$49*SIN($K30*PI()/180)*B30+I$49*COS($K30*PI()/180))*$B30,G30) -> 3 | J30: 3 | K30: =-Knoten!W4 -> 0 | N30: 2 | O30: =1-ABS(SIGN(Knoten!E4)) -> 0 | P30: =IF(ISNUMBER(Knoten!C4),Z7,PlotData!$CB$3) -> -6 | Q30: =IF(ISNUMBER(Knoten!C4),P30+($Q$49*COS(K30*PI()/180)*O30-$U$49*SIN(K30*PI()/180))*O30,P30) -> -6 | R30: =IF(ISNUMBER(Knoten!C4),P30+($R$49*COS(K30*PI()/180)*O30-$V$49*SIN(K30*PI()/180))*O30,P30) -> -6 | S30: =P30 -> -6 | T30: =IF(ISNUMBER(Knoten!D4),AA7,PlotData!$CB$4) -> 3 | U30: =IF(ISNUMBER(Knoten!D4),T30+($Q$49*SIN(K30*PI()/180)*O30+$U$49*COS(K30*PI()/180))*O30,T30) -> 3 | V30: =IF(ISNUMBER(Knoten!D4),T30+($R$49*SIN(K30*PI()/180)*O30+$V$49*COS(K30*PI()/180))*O30,T30) -> 3 | W30: =T30 -> 3
A31: 3 | B31: =1-ABS(SIGN(Knoten!E5)) -> 0 | C31: =IF(ISNUMBER(Knoten!C5),Knoten!C5-$U$1,PlotData!$CB$3) -> 0 | D31: =IF(ISNUMBER(Knoten!C5),C31+(D$49*COS($K31*PI()/180)*B31-H$49*SIN($K31*PI()/180))*$B31,C31) -> 0 | E31: =IF(ISNUMBER(Knoten!C5),C31+(E$49*COS($K31*PI()/180)*B31-I$49*SIN($K31*PI()/180))*$B31,C31) -> 0 | F31: 0 | G31: =IF(ISNUMBER(Knoten!D5),Knoten!D5-$X$1,PlotData!$CB$4) -> 3 | H31: =IF(ISNUMBER(Knoten!D5),G31+(D$49*SIN($K31*PI()/180)*B31+H$49*COS($K31*PI()/180))*$B31,G31) -> 3 | I31: =IF(ISNUMBER(Knoten!D5),G31+(E$49*SIN($K31*PI()/180)*B31+I$49*COS($K31*PI()/180))*$B31,G31) -> 3 | J31: 3 | K31: =-Knoten!W5 -> 0 | N31: 3 | O31: =1-ABS(SIGN(Knoten!E5)) -> 0 | P31: =IF(ISNUMBER(Knoten!C5),Z8,PlotData!$CB$3) -> 0 | Q31: =IF(ISNUMBER(Knoten!C5),P31+($Q$49*COS(K31*PI()/180)*O31-$U$49*SIN(K31*PI()/180))*O31,P31) -> 0 | R31: =IF(ISNUMBER(Knoten!C5),P31+($R$49*COS(K31*PI()/180)*O31-$V$49*SIN(K31*PI()/180))*O31,P31) -> 0 | S31: 0 | T31: =IF(ISNUMBER(Knoten!D5),AA8,PlotData!$CB$4) -> 3 | U31: =IF(ISNUMBER(Knoten!D5),T31+($Q$49*SIN(K31*PI()/180)*O31+$U$49*COS(K31*PI()/180))*O31,T31) -> 3 | V31: =IF(ISNUMBER(Knoten!D5),T31+($R$49*SIN(K31*PI()/180)*O31+$V$49*COS(K31*PI()/180))*O31,T31) -> 3 | W31: 3
A32: 4 | B32: =1-ABS(SIGN(Knoten!E6)) -> 0 | C32: =IF(ISNUMBER(Knoten!C6),Knoten!C6-$U$1,PlotData!$CB$3) -> 6 | D32: =IF(ISNUMBER(Knoten!C6),C32+(D$49*COS($K32*PI()/180)*B32-H$49*SIN($K32*PI()/180))*$B32,C32) -> 6 | E32: =IF(ISNUMBER(Knoten!C6),C32+(E$49*COS($K32*PI()/180)*B32-I$49*SIN($K32*PI()/180))*$B32,C32) -> 6 | F32: 6 | G32: =IF(ISNUMBER(Knoten!D6),Knoten!D6-$X$1,PlotData!$CB$4) -> 3 | H32: =IF(ISNUMBER(Knoten!D6),G32+(D$49*SIN($K32*PI()/180)*B32+H$49*COS($K32*PI()/180))*$B32,G32) -> 3 | I32: =IF(ISNUMBER(Knoten!D6),G32+(E$49*SIN($K32*PI()/180)*B32+I$49*COS($K32*PI()/180))*$B32,G32) -> 3 | J32: 3 | K32: =-Knoten!W6 -> 0 | N32: 4 | O32: =1-ABS(SIGN(Knoten!E6)) -> 0 | P32: =IF(ISNUMBER(Knoten!C6),Z9,PlotData!$CB$3) -> 6 | Q32: =IF(ISNUMBER(Knoten!C6),P32+($Q$49*COS(K32*PI()/180)*O32-$U$49*SIN(K32*PI()/180))*O32,P32) -> 6 | R32: =IF(ISNUMBER(Knoten!C6),P32+($R$49*COS(K32*PI()/180)*O32-$V$49*SIN(K32*PI()/180))*O32,P32) -> 6 | S32: 6 | T32: =IF(ISNUMBER(Knoten!D6),AA9,PlotData!$CB$4) -> 3 | U32: =IF(ISNUMBER(Knoten!D6),T32+($Q$49*SIN(K32*PI()/180)*O32+$U$49*COS(K32*PI()/180))*O32,T32) -> 3 | V32: =IF(ISNUMBER(Knoten!D6),T32+($R$49*SIN(K32*PI()/180)*O32+$V$49*COS(K32*PI()/180))*O32,T32) -> 3 | W32: 3
A33: 5 | B33: =1-ABS(SIGN(Knoten!E7)) -> 0 | C33: =IF(ISNUMBER(Knoten!C7),Knoten!C7-$U$1,PlotData!$CB$3) -> 12 | D33: =IF(ISNUMBER(Knoten!C7),C33+(D$49*COS($K33*PI()/180)*B33-H$49*SIN($K33*PI()/180))*$B33,C33) -> 12 | E33: =IF(ISNUMBER(Knoten!C7),C33+(E$49*COS($K33*PI()/180)*B33-I$49*SIN($K33*PI()/180))*$B33,C33) -> 12 | F33: 12 | G33: =IF(ISNUMBER(Knoten!D7),Knoten!D7-$X$1,PlotData!$CB$4) -> 3 | H33: =IF(ISNUMBER(Knoten!D7),G33+(D$49*SIN($K33*PI()/180)*B33+H$49*COS($K33*PI()/180))*$B33,G33) -> 3 | I33: =IF(ISNUMBER(Knoten!D7),G33+(E$49*SIN($K33*PI()/180)*B33+I$49*COS($K33*PI()/180))*$B33,G33) -> 3 | J33: 3 | K33: =-Knoten!W7 -> 0 | N33: 5 | O33: =1-ABS(SIGN(Knoten!E7)) -> 0 | P33: =IF(ISNUMBER(Knoten!C7),Z10,PlotData!$CB$3) -> 12 | Q33: =IF(ISNUMBER(Knoten!C7),P33+($Q$49*COS(K33*PI()/180)*O33-$U$49*SIN(K33*PI()/180))*O33,P33) -> 12 | R33: =IF(ISNUMBER(Knoten!C7),P33+($R$49*COS(K33*PI()/180)*O33-$V$49*SIN(K33*PI()/180))*O33,P33) -> 12 | S33: 12 | T33: =IF(ISNUMBER(Knoten!D7),AA10,PlotData!$CB$4) -> 3 | U33: =IF(ISNUMBER(Knoten!D7),T33+($Q$49*SIN(K33*PI()/180)*O33+$U$49*COS(K33*PI()/180))*O33,T33) -> 3 | V33: =IF(ISNUMBER(Knoten!D7),T33+($R$49*SIN(K33*PI()/180)*O33+$V$49*COS(K33*PI()/180))*O33,T33) -> 3 | W33: =T33 -> 3
A34: 6 | B34: =1-ABS(SIGN(Knoten!E8)) -> 0 | C34: =IF(ISNUMBER(Knoten!C8),Knoten!C8-$U$1,PlotData!$CB$3) -> -6 | D34: =IF(ISNUMBER(Knoten!C8),C34+(D$49*COS($K34*PI()/180)*B34-H$49*SIN($K34*PI()/180))*$B34,C34) -> -6 | E34: =IF(ISNUMBER(Knoten!C8),C34+(E$49*COS($K34*PI()/180)*B34-I$49*SIN($K34*PI()/180))*$B34,C34) -> -6 | F34: -6 | G34: =IF(ISNUMBER(Knoten!D8),Knoten!D8-$X$1,PlotData!$CB$4) -> -3 | H34: =IF(ISNUMBER(Knoten!D8),G34+(D$49*SIN($K34*PI()/180)*B34+H$49*COS($K34*PI()/180))*$B34,G34) -> -3 | I34: =IF(ISNUMBER(Knoten!D8),G34+(E$49*SIN($K34*PI()/180)*B34+I$49*COS($K34*PI()/180))*$B34,G34) -> -3 | J34: -3 | K34: =-Knoten!W8 -> 0 | N34: 6 | O34: =1-ABS(SIGN(Knoten!E8)) -> 0 | P34: =IF(ISNUMBER(Knoten!C8),Z11,PlotData!$CB$3) -> -6 | Q34: =IF(ISNUMBER(Knoten!C8),P34+($Q$49*COS(K34*PI()/180)*O34-$U$49*SIN(K34*PI()/180))*O34,P34) -> -6 | R34: =IF(ISNUMBER(Knoten!C8),P34+($R$49*COS(K34*PI()/180)*O34-$V$49*SIN(K34*PI()/180))*O34,P34) -> -6 | S34: -6 | T34: =IF(ISNUMBER(Knoten!D8),AA11,PlotData!$CB$4) -> -3 | U34: =IF(ISNUMBER(Knoten!D8),T34+($Q$49*SIN(K34*PI()/180)*O34+$U$49*COS(K34*PI()/180))*O34,T34) -> -3 | V34: =IF(ISNUMBER(Knoten!D8),T34+($R$49*SIN(K34*PI()/180)*O34+$V$49*COS(K34*PI()/180))*O34,T34) -> -3 | W34: -3
A35: 7 | B35: =1-ABS(SIGN(Knoten!E9)) -> 0 | C35: =IF(ISNUMBER(Knoten!C9),Knoten!C9-$U$1,PlotData!$CB$3) -> 0 | D35: =IF(ISNUMBER(Knoten!C9),C35+(D$49*COS($K35*PI()/180)*B35-H$49*SIN($K35*PI()/180))*$B35,C35) -> 0 | E35: =IF(ISNUMBER(Knoten!C9),C35+(E$49*COS($K35*PI()/180)*B35-I$49*SIN($K35*PI()/180))*$B35,C35) -> 0 | F35: 0 | G35: =IF(ISNUMBER(Knoten!D9),Knoten!D9-$X$1,PlotData!$CB$4) -> -3 | H35: =IF(ISNUMBER(Knoten!D9),G35+(D$49*SIN($K35*PI()/180)*B35+H$49*COS($K35*PI()/180))*$B35,G35) -> -3 | I35: =IF(ISNUMBER(Knoten!D9),G35+(E$49*SIN($K35*PI()/180)*B35+I$49*COS($K35*PI()/180))*$B35,G35) -> -3 | J35: -3 | K35: =-Knoten!W9 -> 0 | N35: 7 | O35: =1-ABS(SIGN(Knoten!E9)) -> 0 | P35: =IF(ISNUMBER(Knoten!C9),Z12,PlotData!$CB$3) -> 0 | Q35: =IF(ISNUMBER(Knoten!C9),P35+($Q$49*COS(K35*PI()/180)*O35-$U$49*SIN(K35*PI()/180))*O35,P35) -> 0 | R35: =IF(ISNUMBER(Knoten!C9),P35+($R$49*COS(K35*PI()/180)*O35-$V$49*SIN(K35*PI()/180))*O35,P35) -> 0 | S35: 0 | T35: =IF(ISNUMBER(Knoten!D9),AA12,PlotData!$CB$4) -> -3 | U35: =IF(ISNUMBER(Knoten!D9),T35+($Q$49*SIN(K35*PI()/180)*O35+$U$49*COS(K35*PI()/180))*O35,T35) -> -3 | V35: =IF(ISNUMBER(Knoten!D9),T35+($R$49*SIN(K35*PI()/180)*O35+$V$49*COS(K35*PI()/180))*O35,T35) -> -3 | W35: -3
A36: 8 | B36: =1-ABS(SIGN(Knoten!E10)) -> 0 | C36: =IF(ISNUMBER(Knoten!C10),Knoten!C10-$U$1,PlotData!$CB$3) -> 6 | D36: =IF(ISNUMBER(Knoten!C10),C36+(D$49*COS($K36*PI()/180)*B36-H$49*SIN($K36*PI()/180))*$B36,C36) -> 6 | E36: =IF(ISNUMBER(Knoten!C10),C36+(E$49*COS($K36*PI()/180)*B36-I$49*SIN($K36*PI()/180))*$B36,C36) -> 6 | F36: 6 | G36: =IF(ISNUMBER(Knoten!D10),Knoten!D10-$X$1,PlotData!$CB$4) -> -3 | H36: =IF(ISNUMBER(Knoten!D10),G36+(D$49*SIN($K36*PI()/180)*B36+H$49*COS($K36*PI()/180))*$B36,G36) -> -3 | I36: =IF(ISNUMBER(Knoten!D10),G36+(E$49*SIN($K36*PI()/180)*B36+I$49*COS($K36*PI()/180))*$B36,G36) -> -3 | J36: -3 | K36: =-Knoten!W10 -> 0 | N36: 8 | O36: =1-ABS(SIGN(Knoten!E10)) -> 0 | P36: =IF(ISNUMBER(Knoten!C10),Z13,PlotData!$CB$3) -> 6 | Q36: =IF(ISNUMBER(Knoten!C10),P36+($Q$49*COS(K36*PI()/180)*O36-$U$49*SIN(K36*PI()/180))*O36,P36) -> 6 | R36: =IF(ISNUMBER(Knoten!C10),P36+($R$49*COS(K36*PI()/180)*O36-$V$49*SIN(K36*PI()/180))*O36,P36) -> 6 | S36: 6 | T36: =IF(ISNUMBER(Knoten!D10),AA13,PlotData!$CB$4) -> -3 | U36: =IF(ISNUMBER(Knoten!D10),T36+($Q$49*SIN(K36*PI()/180)*O36+$U$49*COS(K36*PI()/180))*O36,T36) -> -3 | V36: =IF(ISNUMBER(Knoten!D10),T36+($R$49*SIN(K36*PI()/180)*O36+$V$49*COS(K36*PI()/180))*O36,T36) -> -3 | W36: -3
A37: 9 | B37: =1-ABS(SIGN(Knoten!E11)) -> 1 | C37: =IF(ISNUMBER(Knoten!C11),Knoten!C11-$U$1,PlotData!$CB$3) -> 0 | D37: =IF(ISNUMBER(Knoten!C11),C37+(D$49*COS($K37*PI()/180)*B37-H$49*SIN($K37*PI()/180))*$B37,C37) -> 0 | E37: =IF(ISNUMBER(Knoten!C11),C37+(E$49*COS($K37*PI()/180)*B37-I$49*SIN($K37*PI()/180))*$B37,C37) -> 0 | F37: 0 | G37: =IF(ISNUMBER(Knoten!D11),Knoten!D11-$X$1,PlotData!$CB$4) -> 0 | H37: =IF(ISNUMBER(Knoten!D11),G37+(D$49*SIN($K37*PI()/180)*B37+H$49*COS($K37*PI()/180))*$B37,G37) -> 0 | I37: =IF(ISNUMBER(Knoten!D11),G37+(E$49*SIN($K37*PI()/180)*B37+I$49*COS($K37*PI()/180))*$B37,G37) -> 0 | J37: 0 | K37: =-Knoten!W11 -> 0 | N37: 9 | O37: =1-ABS(SIGN(Knoten!E11)) -> 1 | P37: =IF(ISNUMBER(Knoten!C11),Z14,PlotData!$CB$3) -> 0 | Q37: =IF(ISNUMBER(Knoten!C11),P37+($Q$49*COS(K37*PI()/180)*O37-$U$49*SIN(K37*PI()/180))*O37,P37) -> 0 | R37: =IF(ISNUMBER(Knoten!C11),P37+($R$49*COS(K37*PI()/180)*O37-$V$49*SIN(K37*PI()/180))*O37,P37) -> 0 | S37: 0 | T37: =IF(ISNUMBER(Knoten!D11),AA14,PlotData!$CB$4) -> 0 | U37: =IF(ISNUMBER(Knoten!D11),T37+($Q$49*SIN(K37*PI()/180)*O37+$U$49*COS(K37*PI()/180))*O37,T37) -> 0 | V37: =IF(ISNUMBER(Knoten!D11),T37+($R$49*SIN(K37*PI()/180)*O37+$V$49*COS(K37*PI()/180))*O37,T37) -> 0 | W37: 0
A38: 10 | B38: =1-ABS(SIGN(Knoten!E12)) -> 1 | C38: =IF(ISNUMBER(Knoten!C12),Knoten!C12-$U$1,PlotData!$CB$3) -> 0 | D38: =IF(ISNUMBER(Knoten!C12),C38+(D$49*COS($K38*PI()/180)*B38-H$49*SIN($K38*PI()/180))*$B38,C38) -> 0 | E38: =IF(ISNUMBER(Knoten!C12),C38+(E$49*COS($K38*PI()/180)*B38-I$49*SIN($K38*PI()/180))*$B38,C38) -> 0 | F38: 0 | G38: =IF(ISNUMBER(Knoten!D12),Knoten!D12-$X$1,PlotData!$CB$4) -> 0 | H38: =IF(ISNUMBER(Knoten!D12),G38+(D$49*SIN($K38*PI()/180)*B38+H$49*COS($K38*PI()/180))*$B38,G38) -> 0 | I38: =IF(ISNUMBER(Knoten!D12),G38+(E$49*SIN($K38*PI()/180)*B38+I$49*COS($K38*PI()/180))*$B38,G38) -> 0 | J38: 0 | K38: =-Knoten!W12 -> 0 | N38: 10 | O38: =1-ABS(SIGN(Knoten!E12)) -> 1 | P38: =IF(ISNUMBER(Knoten!C12),Z15,PlotData!$CB$3) -> 0 | Q38: =IF(ISNUMBER(Knoten!C12),P38+($Q$49*COS(K38*PI()/180)*O38-$U$49*SIN(K38*PI()/180))*O38,P38) -> 0 | R38: =IF(ISNUMBER(Knoten!C12),P38+($R$49*COS(K38*PI()/180)*O38-$V$49*SIN(K38*PI()/180))*O38,P38) -> 0 | S38: 0 | T38: =IF(ISNUMBER(Knoten!D12),AA15,PlotData!$CB$4) -> 0 | U38: =IF(ISNUMBER(Knoten!D12),T38+($Q$49*SIN(K38*PI()/180)*O38+$U$49*COS(K38*PI()/180))*O38,T38) -> 0 | V38: =IF(ISNUMBER(Knoten!D12),T38+($R$49*SIN(K38*PI()/180)*O38+$V$49*COS(K38*PI()/180))*O38,T38) -> 0 | W38: 0
A39: 11 | B39: =1-ABS(SIGN(Knoten!E13)) -> 1 | C39: =IF(ISNUMBER(Knoten!C13),Knoten!C13-$U$1,PlotData!$CB$3) -> 0 | D39: =IF(ISNUMBER(Knoten!C13),C39+(D$49*COS($K39*PI()/180)*B39-H$49*SIN($K39*PI()/180))*$B39,C39) -> 0 | E39: =IF(ISNUMBER(Knoten!C13),C39+(E$49*COS($K39*PI()/180)*B39-I$49*SIN($K39*PI()/180))*$B39,C39) -> 0 | F39: 0 | G39: =IF(ISNUMBER(Knoten!D13),Knoten!D13-$X$1,PlotData!$CB$4) -> 0 | H39: =IF(ISNUMBER(Knoten!D13),G39+(D$49*SIN($K39*PI()/180)*B39+H$49*COS($K39*PI()/180))*$B39,G39) -> 0 | I39: =IF(ISNUMBER(Knoten!D13),G39+(E$49*SIN($K39*PI()/180)*B39+I$49*COS($K39*PI()/180))*$B39,G39) -> 0 | J39: 0 | K39: =-Knoten!W13 -> 0 | N39: 11 | O39: =1-ABS(SIGN(Knoten!E13)) -> 1 | P39: =IF(ISNUMBER(Knoten!C13),Z16,PlotData!$CB$3) -> 0 | Q39: =IF(ISNUMBER(Knoten!C13),P39+($Q$49*COS(K39*PI()/180)*O39-$U$49*SIN(K39*PI()/180))*O39,P39) -> 0 | R39: =IF(ISNUMBER(Knoten!C13),P39+($R$49*COS(K39*PI()/180)*O39-$V$49*SIN(K39*PI()/180))*O39,P39) -> 0 | S39: 0 | T39: =IF(ISNUMBER(Knoten!D13),AA16,PlotData!$CB$4) -> 0 | U39: =IF(ISNUMBER(Knoten!D13),T39+($Q$49*SIN(K39*PI()/180)*O39+$U$49*COS(K39*PI()/180))*O39,T39) -> 0 | V39: =IF(ISNUMBER(Knoten!D13),T39+($R$49*SIN(K39*PI()/180)*O39+$V$49*COS(K39*PI()/180))*O39,T39) -> 0 | W39: 0
A40: 12 | B40: =1-ABS(SIGN(Knoten!E14)) -> 1 | C40: =IF(ISNUMBER(Knoten!C14),Knoten!C14-$U$1,PlotData!$CB$3) -> 0 | D40: =IF(ISNUMBER(Knoten!C14),C40+(D$49*COS($K40*PI()/180)*B40-H$49*SIN($K40*PI()/180))*$B40,C40) -> 0 | E40: =IF(ISNUMBER(Knoten!C14),C40+(E$49*COS($K40*PI()/180)*B40-I$49*SIN($K40*PI()/180))*$B40,C40) -> 0 | F40: 0 | G40: =IF(ISNUMBER(Knoten!D14),Knoten!D14-$X$1,PlotData!$CB$4) -> 0 | H40: =IF(ISNUMBER(Knoten!D14),G40+(D$49*SIN($K40*PI()/180)*B40+H$49*COS($K40*PI()/180))*$B40,G40) -> 0 | I40: =IF(ISNUMBER(Knoten!D14),G40+(E$49*SIN($K40*PI()/180)*B40+I$49*COS($K40*PI()/180))*$B40,G40) -> 0 | J40: 0 | K40: =-Knoten!W14 -> 0 | N40: 12 | O40: =1-ABS(SIGN(Knoten!E14)) -> 1 | P40: =IF(ISNUMBER(Knoten!C14),Z17,PlotData!$CB$3) -> 0 | Q40: =IF(ISNUMBER(Knoten!C14),P40+($Q$49*COS(K40*PI()/180)*O40-$U$49*SIN(K40*PI()/180))*O40,P40) -> 0 | R40: =IF(ISNUMBER(Knoten!C14),P40+($R$49*COS(K40*PI()/180)*O40-$V$49*SIN(K40*PI()/180))*O40,P40) -> 0 | S40: 0 | T40: =IF(ISNUMBER(Knoten!D14),AA17,PlotData!$CB$4) -> 0 | U40: =IF(ISNUMBER(Knoten!D14),T40+($Q$49*SIN(K40*PI()/180)*O40+$U$49*COS(K40*PI()/180))*O40,T40) -> 0 | V40: =IF(ISNUMBER(Knoten!D14),T40+($R$49*SIN(K40*PI()/180)*O40+$V$49*COS(K40*PI()/180))*O40,T40) -> 0 | W40: 0
A41: 13 | B41: =1-ABS(SIGN(Knoten!E15)) -> 1 | C41: =IF(ISNUMBER(Knoten!C15),Knoten!C15-$U$1,PlotData!$CB$3) -> 0 | D41: =IF(ISNUMBER(Knoten!C15),C41+(D$49*COS($K41*PI()/180)*B41-H$49*SIN($K41*PI()/180))*$B41,C41) -> 0 | E41: =IF(ISNUMBER(Knoten!C15),C41+(E$49*COS($K41*PI()/180)*B41-I$49*SIN($K41*PI()/180))*$B41,C41) -> 0 | F41: 0 | G41: =IF(ISNUMBER(Knoten!D15),Knoten!D15-$X$1,PlotData!$CB$4) -> 0 | H41: =IF(ISNUMBER(Knoten!D15),G41+(D$49*SIN($K41*PI()/180)*B41+H$49*COS($K41*PI()/180))*$B41,G41) -> 0 | I41: =IF(ISNUMBER(Knoten!D15),G41+(E$49*SIN($K41*PI()/180)*B41+I$49*COS($K41*PI()/180))*$B41,G41) -> 0 | J41: 0 | K41: =-Knoten!W15 -> 0 | N41: 13 | O41: =1-ABS(SIGN(Knoten!E15)) -> 1 | P41: =IF(ISNUMBER(Knoten!C15),Z18,PlotData!$CB$3) -> 0 | Q41: =IF(ISNUMBER(Knoten!C15),P41+($Q$49*COS(K41*PI()/180)*O41-$U$49*SIN(K41*PI()/180))*O41,P41) -> 0 | R41: =IF(ISNUMBER(Knoten!C15),P41+($R$49*COS(K41*PI()/180)*O41-$V$49*SIN(K41*PI()/180))*O41,P41) -> 0 | S41: 0 | T41: =IF(ISNUMBER(Knoten!D15),AA18,PlotData!$CB$4) -> 0 | U41: =IF(ISNUMBER(Knoten!D15),T41+($Q$49*SIN(K41*PI()/180)*O41+$U$49*COS(K41*PI()/180))*O41,T41) -> 0 | V41: =IF(ISNUMBER(Knoten!D15),T41+($R$49*SIN(K41*PI()/180)*O41+$V$49*COS(K41*PI()/180))*O41,T41) -> 0 | W41: 0
A42: 14 | B42: =1-ABS(SIGN(Knoten!E16)) -> 1 | C42: =IF(ISNUMBER(Knoten!C16),Knoten!C16-$U$1,PlotData!$CB$3) -> 0 | D42: =IF(ISNUMBER(Knoten!C16),C42+(D$49*COS($K42*PI()/180)*B42-H$49*SIN($K42*PI()/180))*$B42,C42) -> 0 | E42: =IF(ISNUMBER(Knoten!C16),C42+(E$49*COS($K42*PI()/180)*B42-I$49*SIN($K42*PI()/180))*$B42,C42) -> 0 | F42: 0 | G42: =IF(ISNUMBER(Knoten!D16),Knoten!D16-$X$1,PlotData!$CB$4) -> 0 | H42: =IF(ISNUMBER(Knoten!D16),G42+(D$49*SIN($K42*PI()/180)*B42+H$49*COS($K42*PI()/180))*$B42,G42) -> 0 | I42: =IF(ISNUMBER(Knoten!D16),G42+(E$49*SIN($K42*PI()/180)*B42+I$49*COS($K42*PI()/180))*$B42,G42) -> 0 | J42: 0 | K42: =-Knoten!W16 -> 0 | N42: 14 | O42: =1-ABS(SIGN(Knoten!E16)) -> 1 | P42: =IF(ISNUMBER(Knoten!C16),Z19,PlotData!$CB$3) -> 0 | Q42: =IF(ISNUMBER(Knoten!C16),P42+($Q$49*COS(K42*PI()/180)*O42-$U$49*SIN(K42*PI()/180))*O42,P42) -> 0 | R42: =IF(ISNUMBER(Knoten!C16),P42+($R$49*COS(K42*PI()/180)*O42-$V$49*SIN(K42*PI()/180))*O42,P42) -> 0 | S42: 0 | T42: =IF(ISNUMBER(Knoten!D16),AA19,PlotData!$CB$4) -> 0 | U42: =IF(ISNUMBER(Knoten!D16),T42+($Q$49*SIN(K42*PI()/180)*O42+$U$49*COS(K42*PI()/180))*O42,T42) -> 0 | V42: =IF(ISNUMBER(Knoten!D16),T42+($R$49*SIN(K42*PI()/180)*O42+$V$49*COS(K42*PI()/180))*O42,T42) -> 0 | W42: 0
A43: 15 | B43: =1-ABS(SIGN(Knoten!E17)) -> 1 | C43: =IF(ISNUMBER(Knoten!C17),Knoten!C17-$U$1,PlotData!$CB$3) -> 0 | D43: =IF(ISNUMBER(Knoten!C17),C43+(D$49*COS($K43*PI()/180)*B43-H$49*SIN($K43*PI()/180))*$B43,C43) -> 0 | E43: =IF(ISNUMBER(Knoten!C17),C43+(E$49*COS($K43*PI()/180)*B43-I$49*SIN($K43*PI()/180))*$B43,C43) -> 0 | F43: 0 | G43: =IF(ISNUMBER(Knoten!D17),Knoten!D17-$X$1,PlotData!$CB$4) -> 0 | H43: =IF(ISNUMBER(Knoten!D17),G43+(D$49*SIN($K43*PI()/180)*B43+H$49*COS($K43*PI()/180))*$B43,G43) -> 0 | I43: =IF(ISNUMBER(Knoten!D17),G43+(E$49*SIN($K43*PI()/180)*B43+I$49*COS($K43*PI()/180))*$B43,G43) -> 0 | J43: 0 | K43: =-Knoten!W17 -> 0 | N43: 15 | O43: =1-ABS(SIGN(Knoten!E17)) -> 1 | P43: =IF(ISNUMBER(Knoten!C17),Z20,PlotData!$CB$3) -> 0 | Q43: =IF(ISNUMBER(Knoten!C17),P43+($Q$49*COS(K43*PI()/180)*O43-$U$49*SIN(K43*PI()/180))*O43,P43) -> 0 | R43: =IF(ISNUMBER(Knoten!C17),P43+($R$49*COS(K43*PI()/180)*O43-$V$49*SIN(K43*PI()/180))*O43,P43) -> 0 | S43: 0 | T43: =IF(ISNUMBER(Knoten!D17),AA20,PlotData!$CB$4) -> 0 | U43: =IF(ISNUMBER(Knoten!D17),T43+($Q$49*SIN(K43*PI()/180)*O43+$U$49*COS(K43*PI()/180))*O43,T43) -> 0 | V43: =IF(ISNUMBER(Knoten!D17),T43+($R$49*SIN(K43*PI()/180)*O43+$V$49*COS(K43*PI()/180))*O43,T43) -> 0 | W43: 0
A44: 16 | B44: =1-ABS(SIGN(Knoten!E18)) -> 1 | C44: =IF(ISNUMBER(Knoten!C18),Knoten!C18-$U$1,PlotData!$CB$3) -> 0 | D44: =IF(ISNUMBER(Knoten!C18),C44+(D$49*COS($K44*PI()/180)*B44-H$49*SIN($K44*PI()/180))*$B44,C44) -> 0 | E44: =IF(ISNUMBER(Knoten!C18),C44+(E$49*COS($K44*PI()/180)*B44-I$49*SIN($K44*PI()/180))*$B44,C44) -> 0 | F44: 0 | G44: =IF(ISNUMBER(Knoten!D18),Knoten!D18-$X$1,PlotData!$CB$4) -> 0 | H44: =IF(ISNUMBER(Knoten!D18),G44+(D$49*SIN($K44*PI()/180)*B44+H$49*COS($K44*PI()/180))*$B44,G44) -> 0 | I44: =IF(ISNUMBER(Knoten!D18),G44+(E$49*SIN($K44*PI()/180)*B44+I$49*COS($K44*PI()/180))*$B44,G44) -> 0 | J44: 0 | K44: =-Knoten!W18 -> 0 | N44: 16 | O44: =1-ABS(SIGN(Knoten!E18)) -> 1 | P44: =IF(ISNUMBER(Knoten!C18),Z21,PlotData!$CB$3) -> 0 | Q44: =IF(ISNUMBER(Knoten!C18),P44+($Q$49*COS(K44*PI()/180)*O44-$U$49*SIN(K44*PI()/180))*O44,P44) -> 0 | R44: =IF(ISNUMBER(Knoten!C18),P44+($R$49*COS(K44*PI()/180)*O44-$V$49*SIN(K44*PI()/180))*O44,P44) -> 0 | S44: 0 | T44: =IF(ISNUMBER(Knoten!D18),AA21,PlotData!$CB$4) -> 0 | U44: =IF(ISNUMBER(Knoten!D18),T44+($Q$49*SIN(K44*PI()/180)*O44+$U$49*COS(K44*PI()/180))*O44,T44) -> 0 | V44: =IF(ISNUMBER(Knoten!D18),T44+($R$49*SIN(K44*PI()/180)*O44+$V$49*COS(K44*PI()/180))*O44,T44) -> 0 | W44: 0
A45: 17 | B45: =1-ABS(SIGN(Knoten!E19)) -> 1 | C45: =IF(ISNUMBER(Knoten!C19),Knoten!C19-$U$1,PlotData!$CB$3) -> 0 | D45: =IF(ISNUMBER(Knoten!C19),C45+(D$49*COS($K45*PI()/180)*B45-H$49*SIN($K45*PI()/180))*$B45,C45) -> 0 | E45: =IF(ISNUMBER(Knoten!C19),C45+(E$49*COS($K45*PI()/180)*B45-I$49*SIN($K45*PI()/180))*$B45,C45) -> 0 | F45: 0 | G45: =IF(ISNUMBER(Knoten!D19),Knoten!D19-$X$1,PlotData!$CB$4) -> 0 | H45: =IF(ISNUMBER(Knoten!D19),G45+(D$49*SIN($K45*PI()/180)*B45+H$49*COS($K45*PI()/180))*$B45,G45) -> 0 | I45: =IF(ISNUMBER(Knoten!D19),G45+(E$49*SIN($K45*PI()/180)*B45+I$49*COS($K45*PI()/180))*$B45,G45) -> 0 | J45: 0 | K45: =-Knoten!W19 -> 0 | N45: 17 | O45: =1-ABS(SIGN(Knoten!E19)) -> 1 | P45: =IF(ISNUMBER(Knoten!C19),Z22,PlotData!$CB$3) -> 0 | Q45: =IF(ISNUMBER(Knoten!C19),P45+($Q$49*COS(K45*PI()/180)*O45-$U$49*SIN(K45*PI()/180))*O45,P45) -> 0 | R45: =IF(ISNUMBER(Knoten!C19),P45+($R$49*COS(K45*PI()/180)*O45-$V$49*SIN(K45*PI()/180))*O45,P45) -> 0 | S45: 0 | T45: =IF(ISNUMBER(Knoten!D19),AA22,PlotData!$CB$4) -> 0 | U45: =IF(ISNUMBER(Knoten!D19),T45+($Q$49*SIN(K45*PI()/180)*O45+$U$49*COS(K45*PI()/180))*O45,T45) -> 0 | V45: =IF(ISNUMBER(Knoten!D19),T45+($R$49*SIN(K45*PI()/180)*O45+$V$49*COS(K45*PI()/180))*O45,T45) -> 0 | W45: 0
A46: 18 | B46: =1-ABS(SIGN(Knoten!E20)) -> 1 | C46: =IF(ISNUMBER(Knoten!C20),Knoten!C20-$U$1,PlotData!$CB$3) -> 0 | D46: =IF(ISNUMBER(Knoten!C20),C46+(D$49*COS($K46*PI()/180)*B46-H$49*SIN($K46*PI()/180))*$B46,C46) -> 0 | E46: =IF(ISNUMBER(Knoten!C20),C46+(E$49*COS($K46*PI()/180)*B46-I$49*SIN($K46*PI()/180))*$B46,C46) -> 0 | F46: 0 | G46: =IF(ISNUMBER(Knoten!D20),Knoten!D20-$X$1,PlotData!$CB$4) -> 0 | H46: =IF(ISNUMBER(Knoten!D20),G46+(D$49*SIN($K46*PI()/180)*B46+H$49*COS($K46*PI()/180))*$B46,G46) -> 0 | I46: =IF(ISNUMBER(Knoten!D20),G46+(E$49*SIN($K46*PI()/180)*B46+I$49*COS($K46*PI()/180))*$B46,G46) -> 0 | J46: 0 | K46: =-Knoten!W20 -> 0 | N46: 18 | O46: =1-ABS(SIGN(Knoten!E20)) -> 1 | P46: =IF(ISNUMBER(Knoten!C20),Z23,PlotData!$CB$3) -> 0 | Q46: =IF(ISNUMBER(Knoten!C20),P46+($Q$49*COS(K46*PI()/180)*O46-$U$49*SIN(K46*PI()/180))*O46,P46) -> 0 | R46: =IF(ISNUMBER(Knoten!C20),P46+($R$49*COS(K46*PI()/180)*O46-$V$49*SIN(K46*PI()/180))*O46,P46) -> 0 | S46: 0 | T46: =IF(ISNUMBER(Knoten!D20),AA23,PlotData!$CB$4) -> 0 | U46: =IF(ISNUMBER(Knoten!D20),T46+($Q$49*SIN(K46*PI()/180)*O46+$U$49*COS(K46*PI()/180))*O46,T46) -> 0 | V46: =IF(ISNUMBER(Knoten!D20),T46+($R$49*SIN(K46*PI()/180)*O46+$V$49*COS(K46*PI()/180))*O46,T46) -> 0 | W46: 0
A47: 19 | B47: =1-ABS(SIGN(Knoten!E21)) -> 1 | C47: =IF(ISNUMBER(Knoten!C21),Knoten!C21-$U$1,PlotData!$CB$3) -> 0 | D47: =IF(ISNUMBER(Knoten!C21),C47+(D$49*COS($K47*PI()/180)*B47-H$49*SIN($K47*PI()/180))*$B47,C47) -> 0 | E47: =IF(ISNUMBER(Knoten!C21),C47+(E$49*COS($K47*PI()/180)*B47-I$49*SIN($K47*PI()/180))*$B47,C47) -> 0 | F47: =C47 -> 0 | G47: =IF(ISNUMBER(Knoten!D21),Knoten!D21-$X$1,PlotData!$CB$4) -> 0 | H47: =IF(ISNUMBER(Knoten!D21),G47+(D$49*SIN($K47*PI()/180)*B47+H$49*COS($K47*PI()/180))*$B47,G47) -> 0 | I47: =IF(ISNUMBER(Knoten!D21),G47+(E$49*SIN($K47*PI()/180)*B47+I$49*COS($K47*PI()/180))*$B47,G47) -> 0 | J47: =G47 -> 0 | K47: =-Knoten!W21 -> 0 | N47: 19 | O47: =1-ABS(SIGN(Knoten!E21)) -> 1 | P47: =IF(ISNUMBER(Knoten!C21),Z24,PlotData!$CB$3) -> 0 | Q47: =IF(ISNUMBER(Knoten!C21),P47+($Q$49*COS(K47*PI()/180)*O47-$U$49*SIN(K47*PI()/180))*O47,P47) -> 0 | R47: =IF(ISNUMBER(Knoten!C21),P47+($R$49*COS(K47*PI()/180)*O47-$V$49*SIN(K47*PI()/180))*O47,P47) -> 0 | S47: 0 | T47: =IF(ISNUMBER(Knoten!D21),AA24,PlotData!$CB$4) -> 0 | U47: =IF(ISNUMBER(Knoten!D21),T47+($Q$49*SIN(K47*PI()/180)*O47+$U$49*COS(K47*PI()/180))*O47,T47) -> 0 | V47: =IF(ISNUMBER(Knoten!D21),T47+($R$49*SIN(K47*PI()/180)*O47+$V$49*COS(K47*PI()/180))*O47,T47) -> 0 | W47: 0
A48: 20 | B48: =1-ABS(SIGN(Knoten!E22)) -> 1 | C48: =IF(ISNUMBER(Knoten!C22),Knoten!C22-$U$1,PlotData!$CB$3) -> 0 | D48: =IF(ISNUMBER(Knoten!C22),C48+(D$49*COS($K48*PI()/180)*B48-H$49*SIN($K48*PI()/180))*$B48,C48) -> 0 | E48: =IF(ISNUMBER(Knoten!C22),C48+(E$49*COS($K48*PI()/180)*B48-I$49*SIN($K48*PI()/180))*$B48,C48) -> 0 | F48: =C48 -> 0 | G48: =IF(ISNUMBER(Knoten!D22),Knoten!D22-$X$1,PlotData!$CB$4) -> 0 | H48: =IF(ISNUMBER(Knoten!D22),G48+(D$49*SIN($K48*PI()/180)*B48+H$49*COS($K48*PI()/180))*$B48,G48) -> 0 | I48: =IF(ISNUMBER(Knoten!D22),G48+(E$49*SIN($K48*PI()/180)*B48+I$49*COS($K48*PI()/180))*$B48,G48) -> 0 | J48: =G48 -> 0 | K48: =-Knoten!W22 -> 0 | N48: 20 | O48: =1-ABS(SIGN(Knoten!E22)) -> 1 | P48: =IF(ISNUMBER(Knoten!C22),Z25,PlotData!$CB$3) -> 0 | Q48: =IF(ISNUMBER(Knoten!C22),P48+($Q$49*COS(K48*PI()/180)*O48-$U$49*SIN(K48*PI()/180))*O48,P48) -> 0 | R48: =IF(ISNUMBER(Knoten!C22),P48+($R$49*COS(K48*PI()/180)*O48-$V$49*SIN(K48*PI()/180))*O48,P48) -> 0 | S48: 0 | T48: =IF(ISNUMBER(Knoten!D22),AA25,PlotData!$CB$4) -> 0 | U48: =IF(ISNUMBER(Knoten!D22),T48+($Q$49*SIN(K48*PI()/180)*O48+$U$49*COS(K48*PI()/180))*O48,T48) -> 0 | V48: =IF(ISNUMBER(Knoten!D22),T48+($R$49*SIN(K48*PI()/180)*O48+$V$49*COS(K48*PI()/180))*O48,T48) -> 0 | W48: 0
C49: R * 0,866 = | D49: =0.866*$E$1 -> 1.28541941 | E49: =D49 -> 1.28541941 | G49: R * 0,5 = | H49: =0.5*$E$1 -> 0.7421590126 | I49: =-H49 -> -0.7421590126 | P49: R * 0,866 = | Q49: =D49 -> 1.28541941 | R49: =E49 -> 1.28541941 | T49: R * 0,5 = | U49: =H49 -> 0.7421590126 | V49: =I49 -> -0.7421590126
A51: Lager R unverfomt | C51: x | H51: y | N51: Lager R verfomt | P51: x | U51: y
A52: 1 | B52: =1-ABS(SIGN(Knoten!G3)) -> 0 | C52: =IF(ISNUMBER(Knoten!C3),Knoten!C3-$U$1+$H$1*$E$1*B52*COS(-K29*PI()/180)-$H$1*$E$1*B52*SIN(-K29*PI()/180),PlotData!$CB$3) -> -12 | D52: =IF(ISNUMBER(Knoten!C3),C52-2*$H$1*$E$1*B52*COS(-K29*PI()/180),C52) -> -12 | E52: =IF(ISNUMBER(Knoten!C3),D52+2*$H$1*$E$1*B52*SIN(-K29*PI()/180),C52) -> -12 | F52: =IF(ISNUMBER(Knoten!C3),C52+2*$H$1*$E$1*B52*SIN(-K29*PI()/180),C52) -> -12 | G52: =C52 -> -12 | H52: =IF(ISNUMBER(Knoten!D3),Knoten!D3-$X$1-$H$1*$E$1*B52*COS(-K29*PI()/180)-$H$1*$E$1*B52*SIN(-K29*PI()/180),PlotData!$CB$4) -> 3 | I52: =IF(ISNUMBER(Knoten!D3),H52+2*$H$1*$E$1*B52*SIN(-K29*PI()/180),PlotData!$CB$4) -> 3 | J52: =IF(ISNUMBER(Knoten!D3),I52+2*$H$1*$E$1*B52*COS(-K29*PI()/180),PlotData!$CB$4) -> 3 | K52: =IF(ISNUMBER(Knoten!D3),H52+2*$H$1*$E$1*B52*COS(-K29*PI()/180),PlotData!$CB$4) -> 3 | L52: =H52 -> 3 | N52: 1 | O52: =1-ABS(SIGN(Knoten!G3)) -> 0 | P52: =IF(ISNUMBER(Knoten!C3),Z6+$H$1*$E$1*O52*COS(-K29*PI()/180)-$H$1*$E$1*O52*SIN(-K29*PI()/180),PlotData!$CB$3) -> -12 | Q52: =IF(ISNUMBER(Knoten!C3),P52-2*$H$1*$E$1*O52*COS(-K29*PI()/180),P52) -> -12 | R52: =IF(ISNUMBER(Knoten!C3),Q52+2*$H$1*$E$1*O52*SIN(-K29*PI()/180),P52) -> -12 | S52: =IF(ISNUMBER(Knoten!C3),P52+2*$H$1*$E$1*O52*SIN(-K29*PI()/180),P52) -> -12 | T52: =P52 -> -12 | U52: =IF(ISNUMBER(Knoten!D3),AA6-$H$1*$E$1*O52*COS(-K29*PI()/180)-$H$1*$E$1*O52*SIN(-K29*PI()/180),PlotData!$CB$4) -> 3 | V52: =IF(ISNUMBER(Knoten!D3),U52+2*$H$1*$E$1*O52*SIN(-K29*PI()/180),PlotData!$CB$4) -> 3 | W52: =IF(ISNUMBER(Knoten!D3),V52+2*$H$1*$E$1*O52*COS(-K29*PI()/180),PlotData!$CB$4) -> 3 | X52: =IF(ISNUMBER(Knoten!D3),U52+2*$H$1*$E$1*O52*COS(-K29*PI()/180),PlotData!$CB$4) -> 3 | Y52: =U52 -> 3
A53: 2 | B53: =1-ABS(SIGN(Knoten!G4)) -> 0 | C53: =IF(ISNUMBER(Knoten!C4),Knoten!C4-$U$1+$H$1*$E$1*B53*COS(-K30*PI()/180)-$H$1*$E$1*B53*SIN(-K30*PI()/180),PlotData!$CB$3) -> -6 | D53: =IF(ISNUMBER(Knoten!C4),C53-2*$H$1*$E$1*B53*COS(-K30*PI()/180),C53) -> -6 | E53: =IF(ISNUMBER(Knoten!C4),D53+2*$H$1*$E$1*B53*SIN(-K30*PI()/180),C53) -> -6 | F53: =IF(ISNUMBER(Knoten!C4),C53+2*$H$1*$E$1*B53*SIN(-K30*PI()/180),C53) -> -6 | G53: =C53 -> -6 | H53: =IF(ISNUMBER(Knoten!D4),Knoten!D4-$X$1-$H$1*$E$1*B53*COS(-K30*PI()/180)-$H$1*$E$1*B53*SIN(-K30*PI()/180),PlotData!$CB$4) -> 3 | I53: =IF(ISNUMBER(Knoten!D4),H53+2*$H$1*$E$1*B53*SIN(-K30*PI()/180),PlotData!$CB$4) -> 3 | J53: =IF(ISNUMBER(Knoten!D4),I53+2*$H$1*$E$1*B53*COS(-K30*PI()/180),PlotData!$CB$4) -> 3 | K53: =IF(ISNUMBER(Knoten!D4),H53+2*$H$1*$E$1*B53*COS(-K30*PI()/180),PlotData!$CB$4) -> 3 | L53: =H53 -> 3 | N53: 2 | O53: =1-ABS(SIGN(Knoten!G4)) -> 0 | P53: =IF(ISNUMBER(Knoten!C4),Z7+$H$1*$E$1*O53*COS(-K30*PI()/180)-$H$1*$E$1*O53*SIN(-K30*PI()/180),PlotData!$CB$3) -> -6 | Q53: =IF(ISNUMBER(Knoten!C4),P53-2*$H$1*$E$1*O53*COS(-K30*PI()/180),P53) -> -6 | R53: =IF(ISNUMBER(Knoten!C4),Q53+2*$H$1*$E$1*O53*SIN(-K30*PI()/180),P53) -> -6 | S53: =IF(ISNUMBER(Knoten!C4),P53+2*$H$1*$E$1*O53*SIN(-K30*PI()/180),P53) -> -6 | T53: -6 | U53: =IF(ISNUMBER(Knoten!D4),AA7-$H$1*$E$1*O53*COS(-K30*PI()/180)-$H$1*$E$1*O53*SIN(-K30*PI()/180),PlotData!$CB$4) -> 3 | V53: =IF(ISNUMBER(Knoten!D4),U53+2*$H$1*$E$1*O53*SIN(-K30*PI()/180),PlotData!$CB$4) -> 3 | W53: =IF(ISNUMBER(Knoten!D4),V53+2*$H$1*$E$1*O53*COS(-K30*PI()/180),PlotData!$CB$4) -> 3 | X53: =IF(ISNUMBER(Knoten!D4),U53+2*$H$1*$E$1*O53*COS(-K30*PI()/180),PlotData!$CB$4) -> 3 | Y53: 3
A54: 3 | B54: =1-ABS(SIGN(Knoten!G5)) -> 0 | C54: =IF(ISNUMBER(Knoten!C5),Knoten!C5-$U$1+$H$1*$E$1*B54*COS(-K31*PI()/180)-$H$1*$E$1*B54*SIN(-K31*PI()/180),PlotData!$CB$3) -> 0 | D54: =IF(ISNUMBER(Knoten!C5),C54-2*$H$1*$E$1*B54*COS(-K31*PI()/180),C54) -> 0 | E54: =IF(ISNUMBER(Knoten!C5),D54+2*$H$1*$E$1*B54*SIN(-K31*PI()/180),C54) -> 0 | F54: =IF(ISNUMBER(Knoten!C5),C54+2*$H$1*$E$1*B54*SIN(-K31*PI()/180),C54) -> 0 | G54: 0 | H54: =IF(ISNUMBER(Knoten!D5),Knoten!D5-$X$1-$H$1*$E$1*B54*COS(-K31*PI()/180)-$H$1*$E$1*B54*SIN(-K31*PI()/180),PlotData!$CB$4) -> 3 | I54: =IF(ISNUMBER(Knoten!D5),H54+2*$H$1*$E$1*B54*SIN(-K31*PI()/180),PlotData!$CB$4) -> 3 | J54: =IF(ISNUMBER(Knoten!D5),I54+2*$H$1*$E$1*B54*COS(-K31*PI()/180),PlotData!$CB$4) -> 3 | K54: =IF(ISNUMBER(Knoten!D5),H54+2*$H$1*$E$1*B54*COS(-K31*PI()/180),PlotData!$CB$4) -> 3 | L54: 3 | N54: 3 | O54: =1-ABS(SIGN(Knoten!G5)) -> 0 | P54: =IF(ISNUMBER(Knoten!C5),Z8+$H$1*$E$1*O54*COS(-K31*PI()/180)-$H$1*$E$1*O54*SIN(-K31*PI()/180),PlotData!$CB$3) -> 0 | Q54: =IF(ISNUMBER(Knoten!C5),P54-2*$H$1*$E$1*O54*COS(-K31*PI()/180),P54) -> 0 | R54: =IF(ISNUMBER(Knoten!C5),Q54+2*$H$1*$E$1*O54*SIN(-K31*PI()/180),P54) -> 0 | S54: =IF(ISNUMBER(Knoten!C5),P54+2*$H$1*$E$1*O54*SIN(-K31*PI()/180),P54) -> 0 | T54: 0 | U54: =IF(ISNUMBER(Knoten!D5),AA8-$H$1*$E$1*O54*COS(-K31*PI()/180)-$H$1*$E$1*O54*SIN(-K31*PI()/180),PlotData!$CB$4) -> 3 | V54: =IF(ISNUMBER(Knoten!D5),U54+2*$H$1*$E$1*O54*SIN(-K31*PI()/180),PlotData!$CB$4) -> 3 | W54: =IF(ISNUMBER(Knoten!D5),V54+2*$H$1*$E$1*O54*COS(-K31*PI()/180),PlotData!$CB$4) -> 3 | X54: =IF(ISNUMBER(Knoten!D5),U54+2*$H$1*$E$1*O54*COS(-K31*PI()/180),PlotData!$CB$4) -> 3 | Y54: 3
A55: 4 | B55: =1-ABS(SIGN(Knoten!G6)) -> 0 | C55: =IF(ISNUMBER(Knoten!C6),Knoten!C6-$U$1+$H$1*$E$1*B55*COS(-K32*PI()/180)-$H$1*$E$1*B55*SIN(-K32*PI()/180),PlotData!$CB$3) -> 6 | D55: =IF(ISNUMBER(Knoten!C6),C55-2*$H$1*$E$1*B55*COS(-K32*PI()/180),C55) -> 6 | E55: =IF(ISNUMBER(Knoten!C6),D55+2*$H$1*$E$1*B55*SIN(-K32*PI()/180),C55) -> 6 | F55: =IF(ISNUMBER(Knoten!C6),C55+2*$H$1*$E$1*B55*SIN(-K32*PI()/180),C55) -> 6 | G55: 6 | H55: =IF(ISNUMBER(Knoten!D6),Knoten!D6-$X$1-$H$1*$E$1*B55*COS(-K32*PI()/180)-$H$1*$E$1*B55*SIN(-K32*PI()/180),PlotData!$CB$4) -> 3 | I55: =IF(ISNUMBER(Knoten!D6),H55+2*$H$1*$E$1*B55*SIN(-K32*PI()/180),PlotData!$CB$4) -> 3 | J55: =IF(ISNUMBER(Knoten!D6),I55+2*$H$1*$E$1*B55*COS(-K32*PI()/180),PlotData!$CB$4) -> 3 | K55: =IF(ISNUMBER(Knoten!D6),H55+2*$H$1*$E$1*B55*COS(-K32*PI()/180),PlotData!$CB$4) -> 3 | L55: 3 | N55: 4 | O55: =1-ABS(SIGN(Knoten!G6)) -> 0 | P55: =IF(ISNUMBER(Knoten!C6),Z9+$H$1*$E$1*O55*COS(-K32*PI()/180)-$H$1*$E$1*O55*SIN(-K32*PI()/180),PlotData!$CB$3) -> 6 | Q55: =IF(ISNUMBER(Knoten!C6),P55-2*$H$1*$E$1*O55*COS(-K32*PI()/180),P55) -> 6 | R55: =IF(ISNUMBER(Knoten!C6),Q55+2*$H$1*$E$1*O55*SIN(-K32*PI()/180),P55) -> 6 | S55: =IF(ISNUMBER(Knoten!C6),P55+2*$H$1*$E$1*O55*SIN(-K32*PI()/180),P55) -> 6 | T55: 6 | U55: =IF(ISNUMBER(Knoten!D6),AA9-$H$1*$E$1*O55*COS(-K32*PI()/180)-$H$1*$E$1*O55*SIN(-K32*PI()/180),PlotData!$CB$4) -> 3 | V55: =IF(ISNUMBER(Knoten!D6),U55+2*$H$1*$E$1*O55*SIN(-K32*PI()/180),PlotData!$CB$4) -> 3 | W55: =IF(ISNUMBER(Knoten!D6),V55+2*$H$1*$E$1*O55*COS(-K32*PI()/180),PlotData!$CB$4) -> 3 | X55: =IF(ISNUMBER(Knoten!D6),U55+2*$H$1*$E$1*O55*COS(-K32*PI()/180),PlotData!$CB$4) -> 3 | Y55: 3
A56: 5 | B56: =1-ABS(SIGN(Knoten!G7)) -> 0 | C56: =IF(ISNUMBER(Knoten!C7),Knoten!C7-$U$1+$H$1*$E$1*B56*COS(-K33*PI()/180)-$H$1*$E$1*B56*SIN(-K33*PI()/180),PlotData!$CB$3) -> 12 | D56: =IF(ISNUMBER(Knoten!C7),C56-2*$H$1*$E$1*B56*COS(-K33*PI()/180),C56) -> 12 | E56: =IF(ISNUMBER(Knoten!C7),D56+2*$H$1*$E$1*B56*SIN(-K33*PI()/180),C56) -> 12 | F56: =IF(ISNUMBER(Knoten!C7),C56+2*$H$1*$E$1*B56*SIN(-K33*PI()/180),C56) -> 12 | G56: 12 | H56: =IF(ISNUMBER(Knoten!D7),Knoten!D7-$X$1-$H$1*$E$1*B56*COS(-K33*PI()/180)-$H$1*$E$1*B56*SIN(-K33*PI()/180),PlotData!$CB$4) -> 3 | I56: =IF(ISNUMBER(Knoten!D7),H56+2*$H$1*$E$1*B56*SIN(-K33*PI()/180),PlotData!$CB$4) -> 3 | J56: =IF(ISNUMBER(Knoten!D7),I56+2*$H$1*$E$1*B56*COS(-K33*PI()/180),PlotData!$CB$4) -> 3 | K56: =IF(ISNUMBER(Knoten!D7),H56+2*$H$1*$E$1*B56*COS(-K33*PI()/180),PlotData!$CB$4) -> 3 | L56: 3 | N56: 5 | O56: =1-ABS(SIGN(Knoten!G7)) -> 0 | P56: =IF(ISNUMBER(Knoten!C7),Z10+$H$1*$E$1*O56*COS(-K33*PI()/180)-$H$1*$E$1*O56*SIN(-K33*PI()/180),PlotData!$CB$3) -> 12 | Q56: =IF(ISNUMBER(Knoten!C7),P56-2*$H$1*$E$1*O56*COS(-K33*PI()/180),P56) -> 12 | R56: =IF(ISNUMBER(Knoten!C7),Q56+2*$H$1*$E$1*O56*SIN(-K33*PI()/180),P56) -> 12 | S56: =IF(ISNUMBER(Knoten!C7),P56+2*$H$1*$E$1*O56*SIN(-K33*PI()/180),P56) -> 12 | T56: 12 | U56: =IF(ISNUMBER(Knoten!D7),AA10-$H$1*$E$1*O56*COS(-K33*PI()/180)-$H$1*$E$1*O56*SIN(-K33*PI()/180),PlotData!$CB$4) -> 3 | V56: =IF(ISNUMBER(Knoten!D7),U56+2*$H$1*$E$1*O56*SIN(-K33*PI()/180),PlotData!$CB$4) -> 3 | W56: =IF(ISNUMBER(Knoten!D7),V56+2*$H$1*$E$1*O56*COS(-K33*PI()/180),PlotData!$CB$4) -> 3 | X56: =IF(ISNUMBER(Knoten!D7),U56+2*$H$1*$E$1*O56*COS(-K33*PI()/180),PlotData!$CB$4) -> 3 | Y56: 3
A57: 6 | B57: =1-ABS(SIGN(Knoten!G8)) -> 0 | C57: =IF(ISNUMBER(Knoten!C8),Knoten!C8-$U$1+$H$1*$E$1*B57*COS(-K34*PI()/180)-$H$1*$E$1*B57*SIN(-K34*PI()/180),PlotData!$CB$3) -> -6 | D57: =IF(ISNUMBER(Knoten!C8),C57-2*$H$1*$E$1*B57*COS(-K34*PI()/180),C57) -> -6 | E57: =IF(ISNUMBER(Knoten!C8),D57+2*$H$1*$E$1*B57*SIN(-K34*PI()/180),C57) -> -6 | F57: =IF(ISNUMBER(Knoten!C8),C57+2*$H$1*$E$1*B57*SIN(-K34*PI()/180),C57) -> -6 | G57: -6 | H57: =IF(ISNUMBER(Knoten!D8),Knoten!D8-$X$1-$H$1*$E$1*B57*COS(-K34*PI()/180)-$H$1*$E$1*B57*SIN(-K34*PI()/180),PlotData!$CB$4) -> -3 | I57: =IF(ISNUMBER(Knoten!D8),H57+2*$H$1*$E$1*B57*SIN(-K34*PI()/180),PlotData!$CB$4) -> -3 | J57: =IF(ISNUMBER(Knoten!D8),I57+2*$H$1*$E$1*B57*COS(-K34*PI()/180),PlotData!$CB$4) -> -3 | K57: =IF(ISNUMBER(Knoten!D8),H57+2*$H$1*$E$1*B57*COS(-K34*PI()/180),PlotData!$CB$4) -> -3 | L57: -3 | N57: 6 | O57: =1-ABS(SIGN(Knoten!G8)) -> 0 | P57: =IF(ISNUMBER(Knoten!C8),Z11+$H$1*$E$1*O57*COS(-K34*PI()/180)-$H$1*$E$1*O57*SIN(-K34*PI()/180),PlotData!$CB$3) -> -6 | Q57: =IF(ISNUMBER(Knoten!C8),P57-2*$H$1*$E$1*O57*COS(-K34*PI()/180),P57) -> -6 | R57: =IF(ISNUMBER(Knoten!C8),Q57+2*$H$1*$E$1*O57*SIN(-K34*PI()/180),P57) -> -6 | S57: =IF(ISNUMBER(Knoten!C8),P57+2*$H$1*$E$1*O57*SIN(-K34*PI()/180),P57) -> -6 | T57: -6 | U57: =IF(ISNUMBER(Knoten!D8),AA11-$H$1*$E$1*O57*COS(-K34*PI()/180)-$H$1*$E$1*O57*SIN(-K34*PI()/180),PlotData!$CB$4) -> -3 | V57: =IF(ISNUMBER(Knoten!D8),U57+2*$H$1*$E$1*O57*SIN(-K34*PI()/180),PlotData!$CB$4) -> -3 | W57: =IF(ISNUMBER(Knoten!D8),V57+2*$H$1*$E$1*O57*COS(-K34*PI()/180),PlotData!$CB$4) -> -3 | X57: =IF(ISNUMBER(Knoten!D8),U57+2*$H$1*$E$1*O57*COS(-K34*PI()/180),PlotData!$CB$4) -> -3 | Y57: -3
A58: 7 | B58: =1-ABS(SIGN(Knoten!G9)) -> 0 | C58: =IF(ISNUMBER(Knoten!C9),Knoten!C9-$U$1+$H$1*$E$1*B58*COS(-K35*PI()/180)-$H$1*$E$1*B58*SIN(-K35*PI()/180),PlotData!$CB$3) -> 0 | D58: =IF(ISNUMBER(Knoten!C9),C58-2*$H$1*$E$1*B58*COS(-K35*PI()/180),C58) -> 0 | E58: =IF(ISNUMBER(Knoten!C9),D58+2*$H$1*$E$1*B58*SIN(-K35*PI()/180),C58) -> 0 | F58: =IF(ISNUMBER(Knoten!C9),C58+2*$H$1*$E$1*B58*SIN(-K35*PI()/180),C58) -> 0 | G58: 0 | H58: =IF(ISNUMBER(Knoten!D9),Knoten!D9-$X$1-$H$1*$E$1*B58*COS(-K35*PI()/180)-$H$1*$E$1*B58*SIN(-K35*PI()/180),PlotData!$CB$4) -> -3 | I58: =IF(ISNUMBER(Knoten!D9),H58+2*$H$1*$E$1*B58*SIN(-K35*PI()/180),PlotData!$CB$4) -> -3 | J58: =IF(ISNUMBER(Knoten!D9),I58+2*$H$1*$E$1*B58*COS(-K35*PI()/180),PlotData!$CB$4) -> -3 | K58: =IF(ISNUMBER(Knoten!D9),H58+2*$H$1*$E$1*B58*COS(-K35*PI()/180),PlotData!$CB$4) -> -3 | L58: -3 | N58: 7 | O58: =1-ABS(SIGN(Knoten!G9)) -> 0 | P58: =IF(ISNUMBER(Knoten!C9),Z12+$H$1*$E$1*O58*COS(-K35*PI()/180)-$H$1*$E$1*O58*SIN(-K35*PI()/180),PlotData!$CB$3) -> 0 | Q58: =IF(ISNUMBER(Knoten!C9),P58-2*$H$1*$E$1*O58*COS(-K35*PI()/180),P58) -> 0 | R58: =IF(ISNUMBER(Knoten!C9),Q58+2*$H$1*$E$1*O58*SIN(-K35*PI()/180),P58) -> 0 | S58: =IF(ISNUMBER(Knoten!C9),P58+2*$H$1*$E$1*O58*SIN(-K35*PI()/180),P58) -> 0 | T58: 0 | U58: =IF(ISNUMBER(Knoten!D9),AA12-$H$1*$E$1*O58*COS(-K35*PI()/180)-$H$1*$E$1*O58*SIN(-K35*PI()/180),PlotData!$CB$4) -> -3 | V58: =IF(ISNUMBER(Knoten!D9),U58+2*$H$1*$E$1*O58*SIN(-K35*PI()/180),PlotData!$CB$4) -> -3 | W58: =IF(ISNUMBER(Knoten!D9),V58+2*$H$1*$E$1*O58*COS(-K35*PI()/180),PlotData!$CB$4) -> -3 | X58: =IF(ISNUMBER(Knoten!D9),U58+2*$H$1*$E$1*O58*COS(-K35*PI()/180),PlotData!$CB$4) -> -3 | Y58: -3
A59: 8 | B59: =1-ABS(SIGN(Knoten!G10)) -> 0 | C59: =IF(ISNUMBER(Knoten!C10),Knoten!C10-$U$1+$H$1*$E$1*B59*COS(-K36*PI()/180)-$H$1*$E$1*B59*SIN(-K36*PI()/180),PlotData!$CB$3) -> 6 | D59: =IF(ISNUMBER(Knoten!C10),C59-2*$H$1*$E$1*B59*COS(-K36*PI()/180),C59) -> 6 | E59: =IF(ISNUMBER(Knoten!C10),D59+2*$H$1*$E$1*B59*SIN(-K36*PI()/180),C59) -> 6 | F59: =IF(ISNUMBER(Knoten!C10),C59+2*$H$1*$E$1*B59*SIN(-K36*PI()/180),C59) -> 6 | G59: 6 | H59: =IF(ISNUMBER(Knoten!D10),Knoten!D10-$X$1-$H$1*$E$1*B59*COS(-K36*PI()/180)-$H$1*$E$1*B59*SIN(-K36*PI()/180),PlotData!$CB$4) -> -3 | I59: =IF(ISNUMBER(Knoten!D10),H59+2*$H$1*$E$1*B59*SIN(-K36*PI()/180),PlotData!$CB$4) -> -3 | J59: =IF(ISNUMBER(Knoten!D10),I59+2*$H$1*$E$1*B59*COS(-K36*PI()/180),PlotData!$CB$4) -> -3 | K59: =IF(ISNUMBER(Knoten!D10),H59+2*$H$1*$E$1*B59*COS(-K36*PI()/180),PlotData!$CB$4) -> -3 | L59: -3 | N59: 8 | O59: =1-ABS(SIGN(Knoten!G10)) -> 0 | P59: =IF(ISNUMBER(Knoten!C10),Z13+$H$1*$E$1*O59*COS(-K36*PI()/180)-$H$1*$E$1*O59*SIN(-K36*PI()/180),PlotData!$CB$3) -> 6 | Q59: =IF(ISNUMBER(Knoten!C10),P59-2*$H$1*$E$1*O59*COS(-K36*PI()/180),P59) -> 6 | R59: =IF(ISNUMBER(Knoten!C10),Q59+2*$H$1*$E$1*O59*SIN(-K36*PI()/180),P59) -> 6 | S59: =IF(ISNUMBER(Knoten!C10),P59+2*$H$1*$E$1*O59*SIN(-K36*PI()/180),P59) -> 6 | T59: 6 | U59: =IF(ISNUMBER(Knoten!D10),AA13-$H$1*$E$1*O59*COS(-K36*PI()/180)-$H$1*$E$1*O59*SIN(-K36*PI()/180),PlotData!$CB$4) -> -3 | V59: =IF(ISNUMBER(Knoten!D10),U59+2*$H$1*$E$1*O59*SIN(-K36*PI()/180),PlotData!$CB$4) -> -3 | W59: =IF(ISNUMBER(Knoten!D10),V59+2*$H$1*$E$1*O59*COS(-K36*PI()/180),PlotData!$CB$4) -> -3 | X59: =IF(ISNUMBER(Knoten!D10),U59+2*$H$1*$E$1*O59*COS(-K36*PI()/180),PlotData!$CB$4) -> -3 | Y59: -3
A60: 9 | B60: =1-ABS(SIGN(Knoten!G11)) -> 1 | C60: =IF(ISNUMBER(Knoten!C11),Knoten!C11-$U$1+$H$1*$E$1*B60*COS(-K37*PI()/180)-$H$1*$E$1*B60*SIN(-K37*PI()/180),PlotData!$CB$3) -> 0 | D60: =IF(ISNUMBER(Knoten!C11),C60-2*$H$1*$E$1*B60*COS(-K37*PI()/180),C60) -> 0 | E60: =IF(ISNUMBER(Knoten!C11),D60+2*$H$1*$E$1*B60*SIN(-K37*PI()/180),C60) -> 0 | F60: =IF(ISNUMBER(Knoten!C11),C60+2*$H$1*$E$1*B60*SIN(-K37*PI()/180),C60) -> 0 | G60: 0 | H60: =IF(ISNUMBER(Knoten!D11),Knoten!D11-$X$1-$H$1*$E$1*B60*COS(-K37*PI()/180)-$H$1*$E$1*B60*SIN(-K37*PI()/180),PlotData!$CB$4) -> 0 | I60: =IF(ISNUMBER(Knoten!D11),H60+2*$H$1*$E$1*B60*SIN(-K37*PI()/180),PlotData!$CB$4) -> 0 | J60: =IF(ISNUMBER(Knoten!D11),I60+2*$H$1*$E$1*B60*COS(-K37*PI()/180),PlotData!$CB$4) -> 0 | K60: =IF(ISNUMBER(Knoten!D11),H60+2*$H$1*$E$1*B60*COS(-K37*PI()/180),PlotData!$CB$4) -> 0 | L60: 0 | N60: 9 | O60: =1-ABS(SIGN(Knoten!G11)) -> 1 | P60: =IF(ISNUMBER(Knoten!C11),Z14+$H$1*$E$1*O60*COS(-K37*PI()/180)-$H$1*$E$1*O60*SIN(-K37*PI()/180),PlotData!$CB$3) -> 0 | Q60: =IF(ISNUMBER(Knoten!C11),P60-2*$H$1*$E$1*O60*COS(-K37*PI()/180),P60) -> 0 | R60: =IF(ISNUMBER(Knoten!C11),Q60+2*$H$1*$E$1*O60*SIN(-K37*PI()/180),P60) -> 0 | S60: =IF(ISNUMBER(Knoten!C11),P60+2*$H$1*$E$1*O60*SIN(-K37*PI()/180),P60) -> 0 | T60: 0 | U60: =IF(ISNUMBER(Knoten!D11),AA14-$H$1*$E$1*O60*COS(-K37*PI()/180)-$H$1*$E$1*O60*SIN(-K37*PI()/180),PlotData!$CB$4) -> 0 | V60: =IF(ISNUMBER(Knoten!D11),U60+2*$H$1*$E$1*O60*SIN(-K37*PI()/180),PlotData!$CB$4) -> 0 | W60: =IF(ISNUMBER(Knoten!D11),V60+2*$H$1*$E$1*O60*COS(-K37*PI()/180),PlotData!$CB$4) -> 0 | X60: =IF(ISNUMBER(Knoten!D11),U60+2*$H$1*$E$1*O60*COS(-K37*PI()/180),PlotData!$CB$4) -> 0 | Y60: 0
A61: 10 | B61: =1-ABS(SIGN(Knoten!G12)) -> 1 | C61: =IF(ISNUMBER(Knoten!C12),Knoten!C12-$U$1+$H$1*$E$1*B61*COS(-K38*PI()/180)-$H$1*$E$1*B61*SIN(-K38*PI()/180),PlotData!$CB$3) -> 0 | D61: =IF(ISNUMBER(Knoten!C12),C61-2*$H$1*$E$1*B61*COS(-K38*PI()/180),C61) -> 0 | E61: =IF(ISNUMBER(Knoten!C12),D61+2*$H$1*$E$1*B61*SIN(-K38*PI()/180),C61) -> 0 | F61: =IF(ISNUMBER(Knoten!C12),C61+2*$H$1*$E$1*B61*SIN(-K38*PI()/180),C61) -> 0 | G61: 0 | H61: =IF(ISNUMBER(Knoten!D12),Knoten!D12-$X$1-$H$1*$E$1*B61*COS(-K38*PI()/180)-$H$1*$E$1*B61*SIN(-K38*PI()/180),PlotData!$CB$4) -> 0 | I61: =IF(ISNUMBER(Knoten!D12),H61+2*$H$1*$E$1*B61*SIN(-K38*PI()/180),PlotData!$CB$4) -> 0 | J61: =IF(ISNUMBER(Knoten!D12),I61+2*$H$1*$E$1*B61*COS(-K38*PI()/180),PlotData!$CB$4) -> 0 | K61: =IF(ISNUMBER(Knoten!D12),H61+2*$H$1*$E$1*B61*COS(-K38*PI()/180),PlotData!$CB$4) -> 0 | L61: 0 | N61: 10 | O61: =1-ABS(SIGN(Knoten!G12)) -> 1 | P61: =IF(ISNUMBER(Knoten!C12),Z15+$H$1*$E$1*O61*COS(-K38*PI()/180)-$H$1*$E$1*O61*SIN(-K38*PI()/180),PlotData!$CB$3) -> 0 | Q61: =IF(ISNUMBER(Knoten!C12),P61-2*$H$1*$E$1*O61*COS(-K38*PI()/180),P61) -> 0 | R61: =IF(ISNUMBER(Knoten!C12),Q61+2*$H$1*$E$1*O61*SIN(-K38*PI()/180),P61) -> 0 | S61: =IF(ISNUMBER(Knoten!C12),P61+2*$H$1*$E$1*O61*SIN(-K38*PI()/180),P61) -> 0 | T61: 0 | U61: =IF(ISNUMBER(Knoten!D12),AA15-$H$1*$E$1*O61*COS(-K38*PI()/180)-$H$1*$E$1*O61*SIN(-K38*PI()/180),PlotData!$CB$4) -> 0 | V61: =IF(ISNUMBER(Knoten!D12),U61+2*$H$1*$E$1*O61*SIN(-K38*PI()/180),PlotData!$CB$4) -> 0 | W61: =IF(ISNUMBER(Knoten!D12),V61+2*$H$1*$E$1*O61*COS(-K38*PI()/180),PlotData!$CB$4) -> 0 | X61: =IF(ISNUMBER(Knoten!D12),U61+2*$H$1*$E$1*O61*COS(-K38*PI()/180),PlotData!$CB$4) -> 0 | Y61: 0
A62: 11 | B62: =1-ABS(SIGN(Knoten!G13)) -> 1 | C62: =IF(ISNUMBER(Knoten!C13),Knoten!C13-$U$1+$H$1*$E$1*B62*COS(-K39*PI()/180)-$H$1*$E$1*B62*SIN(-K39*PI()/180),PlotData!$CB$3) -> 0 | D62: =IF(ISNUMBER(Knoten!C13),C62-2*$H$1*$E$1*B62*COS(-K39*PI()/180),C62) -> 0 | E62: =IF(ISNUMBER(Knoten!C13),D62+2*$H$1*$E$1*B62*SIN(-K39*PI()/180),C62) -> 0 | F62: =IF(ISNUMBER(Knoten!C13),C62+2*$H$1*$E$1*B62*SIN(-K39*PI()/180),C62) -> 0 | G62: 0 | H62: =IF(ISNUMBER(Knoten!D13),Knoten!D13-$X$1-$H$1*$E$1*B62*COS(-K39*PI()/180)-$H$1*$E$1*B62*SIN(-K39*PI()/180),PlotData!$CB$4) -> 0 | I62: =IF(ISNUMBER(Knoten!D13),H62+2*$H$1*$E$1*B62*SIN(-K39*PI()/180),PlotData!$CB$4) -> 0 | J62: =IF(ISNUMBER(Knoten!D13),I62+2*$H$1*$E$1*B62*COS(-K39*PI()/180),PlotData!$CB$4) -> 0 | K62: =IF(ISNUMBER(Knoten!D13),H62+2*$H$1*$E$1*B62*COS(-K39*PI()/180),PlotData!$CB$4) -> 0 | L62: 0 | N62: 11 | O62: =1-ABS(SIGN(Knoten!G13)) -> 1 | P62: =IF(ISNUMBER(Knoten!C13),Z16+$H$1*$E$1*O62*COS(-K39*PI()/180)-$H$1*$E$1*O62*SIN(-K39*PI()/180),PlotData!$CB$3) -> 0 | Q62: =IF(ISNUMBER(Knoten!C13),P62-2*$H$1*$E$1*O62*COS(-K39*PI()/180),P62) -> 0 | R62: =IF(ISNUMBER(Knoten!C13),Q62+2*$H$1*$E$1*O62*SIN(-K39*PI()/180),P62) -> 0 | S62: =IF(ISNUMBER(Knoten!C13),P62+2*$H$1*$E$1*O62*SIN(-K39*PI()/180),P62) -> 0 | T62: 0 | U62: =IF(ISNUMBER(Knoten!D13),AA16-$H$1*$E$1*O62*COS(-K39*PI()/180)-$H$1*$E$1*O62*SIN(-K39*PI()/180),PlotData!$CB$4) -> 0 | V62: =IF(ISNUMBER(Knoten!D13),U62+2*$H$1*$E$1*O62*SIN(-K39*PI()/180),PlotData!$CB$4) -> 0 | W62: =IF(ISNUMBER(Knoten!D13),V62+2*$H$1*$E$1*O62*COS(-K39*PI()/180),PlotData!$CB$4) -> 0 | X62: =IF(ISNUMBER(Knoten!D13),U62+2*$H$1*$E$1*O62*COS(-K39*PI()/180),PlotData!$CB$4) -> 0 | Y62: 0
A63: 12 | B63: =1-ABS(SIGN(Knoten!G14)) -> 1 | C63: =IF(ISNUMBER(Knoten!C14),Knoten!C14-$U$1+$H$1*$E$1*B63*COS(-K40*PI()/180)-$H$1*$E$1*B63*SIN(-K40*PI()/180),PlotData!$CB$3) -> 0 | D63: =IF(ISNUMBER(Knoten!C14),C63-2*$H$1*$E$1*B63*COS(-K40*PI()/180),C63) -> 0 | E63: =IF(ISNUMBER(Knoten!C14),D63+2*$H$1*$E$1*B63*SIN(-K40*PI()/180),C63) -> 0 | F63: =IF(ISNUMBER(Knoten!C14),C63+2*$H$1*$E$1*B63*SIN(-K40*PI()/180),C63) -> 0 | G63: 0 | H63: =IF(ISNUMBER(Knoten!D14),Knoten!D14-$X$1-$H$1*$E$1*B63*COS(-K40*PI()/180)-$H$1*$E$1*B63*SIN(-K40*PI()/180),PlotData!$CB$4) -> 0 | I63: =IF(ISNUMBER(Knoten!D14),H63+2*$H$1*$E$1*B63*SIN(-K40*PI()/180),PlotData!$CB$4) -> 0 | J63: =IF(ISNUMBER(Knoten!D14),I63+2*$H$1*$E$1*B63*COS(-K40*PI()/180),PlotData!$CB$4) -> 0 | K63: =IF(ISNUMBER(Knoten!D14),H63+2*$H$1*$E$1*B63*COS(-K40*PI()/180),PlotData!$CB$4) -> 0 | L63: 0 | N63: 12 | O63: =1-ABS(SIGN(Knoten!G14)) -> 1 | P63: =IF(ISNUMBER(Knoten!C14),Z17+$H$1*$E$1*O63*COS(-K40*PI()/180)-$H$1*$E$1*O63*SIN(-K40*PI()/180),PlotData!$CB$3) -> 0 | Q63: =IF(ISNUMBER(Knoten!C14),P63-2*$H$1*$E$1*O63*COS(-K40*PI()/180),P63) -> 0 | R63: =IF(ISNUMBER(Knoten!C14),Q63+2*$H$1*$E$1*O63*SIN(-K40*PI()/180),P63) -> 0 | S63: =IF(ISNUMBER(Knoten!C14),P63+2*$H$1*$E$1*O63*SIN(-K40*PI()/180),P63) -> 0 | T63: 0 | U63: =IF(ISNUMBER(Knoten!D14),AA17-$H$1*$E$1*O63*COS(-K40*PI()/180)-$H$1*$E$1*O63*SIN(-K40*PI()/180),PlotData!$CB$4) -> 0 | V63: =IF(ISNUMBER(Knoten!D14),U63+2*$H$1*$E$1*O63*SIN(-K40*PI()/180),PlotData!$CB$4) -> 0 | W63: =IF(ISNUMBER(Knoten!D14),V63+2*$H$1*$E$1*O63*COS(-K40*PI()/180),PlotData!$CB$4) -> 0 | X63: =IF(ISNUMBER(Knoten!D14),U63+2*$H$1*$E$1*O63*COS(-K40*PI()/180),PlotData!$CB$4) -> 0 | Y63: 0
A64: 13 | B64: =1-ABS(SIGN(Knoten!G15)) -> 1 | C64: =IF(ISNUMBER(Knoten!C15),Knoten!C15-$U$1+$H$1*$E$1*B64*COS(-K41*PI()/180)-$H$1*$E$1*B64*SIN(-K41*PI()/180),PlotData!$CB$3) -> 0 | D64: =IF(ISNUMBER(Knoten!C15),C64-2*$H$1*$E$1*B64*COS(-K41*PI()/180),C64) -> 0 | E64: =IF(ISNUMBER(Knoten!C15),D64+2*$H$1*$E$1*B64*SIN(-K41*PI()/180),C64) -> 0 | F64: =IF(ISNUMBER(Knoten!C15),C64+2*$H$1*$E$1*B64*SIN(-K41*PI()/180),C64) -> 0 | G64: 0 | H64: =IF(ISNUMBER(Knoten!D15),Knoten!D15-$X$1-$H$1*$E$1*B64*COS(-K41*PI()/180)-$H$1*$E$1*B64*SIN(-K41*PI()/180),PlotData!$CB$4) -> 0 | I64: =IF(ISNUMBER(Knoten!D15),H64+2*$H$1*$E$1*B64*SIN(-K41*PI()/180),PlotData!$CB$4) -> 0 | J64: =IF(ISNUMBER(Knoten!D15),I64+2*$H$1*$E$1*B64*COS(-K41*PI()/180),PlotData!$CB$4) -> 0 | K64: =IF(ISNUMBER(Knoten!D15),H64+2*$H$1*$E$1*B64*COS(-K41*PI()/180),PlotData!$CB$4) -> 0 | L64: 0 | N64: 13 | O64: =1-ABS(SIGN(Knoten!G15)) -> 1 | P64: =IF(ISNUMBER(Knoten!C15),Z18+$H$1*$E$1*O64*COS(-K41*PI()/180)-$H$1*$E$1*O64*SIN(-K41*PI()/180),PlotData!$CB$3) -> 0 | Q64: =IF(ISNUMBER(Knoten!C15),P64-2*$H$1*$E$1*O64*COS(-K41*PI()/180),P64) -> 0 | R64: =IF(ISNUMBER(Knoten!C15),Q64+2*$H$1*$E$1*O64*SIN(-K41*PI()/180),P64) -> 0 | S64: =IF(ISNUMBER(Knoten!C15),P64+2*$H$1*$E$1*O64*SIN(-K41*PI()/180),P64) -> 0 | T64: 0 | U64: =IF(ISNUMBER(Knoten!D15),AA18-$H$1*$E$1*O64*COS(-K41*PI()/180)-$H$1*$E$1*O64*SIN(-K41*PI()/180),PlotData!$CB$4) -> 0 | V64: =IF(ISNUMBER(Knoten!D15),U64+2*$H$1*$E$1*O64*SIN(-K41*PI()/180),PlotData!$CB$4) -> 0 | W64: =IF(ISNUMBER(Knoten!D15),V64+2*$H$1*$E$1*O64*COS(-K41*PI()/180),PlotData!$CB$4) -> 0 | X64: =IF(ISNUMBER(Knoten!D15),U64+2*$H$1*$E$1*O64*COS(-K41*PI()/180),PlotData!$CB$4) -> 0 | Y64: 0
A65: 14 | B65: =1-ABS(SIGN(Knoten!G16)) -> 1 | C65: =IF(ISNUMBER(Knoten!C16),Knoten!C16-$U$1+$H$1*$E$1*B65*COS(-K42*PI()/180)-$H$1*$E$1*B65*SIN(-K42*PI()/180),PlotData!$CB$3) -> 0 | D65: =IF(ISNUMBER(Knoten!C16),C65-2*$H$1*$E$1*B65*COS(-K42*PI()/180),C65) -> 0 | E65: =IF(ISNUMBER(Knoten!C16),D65+2*$H$1*$E$1*B65*SIN(-K42*PI()/180),C65) -> 0 | F65: =IF(ISNUMBER(Knoten!C16),C65+2*$H$1*$E$1*B65*SIN(-K42*PI()/180),C65) -> 0 | G65: 0 | H65: =IF(ISNUMBER(Knoten!D16),Knoten!D16-$X$1-$H$1*$E$1*B65*COS(-K42*PI()/180)-$H$1*$E$1*B65*SIN(-K42*PI()/180),PlotData!$CB$4) -> 0 | I65: =IF(ISNUMBER(Knoten!D16),H65+2*$H$1*$E$1*B65*SIN(-K42*PI()/180),PlotData!$CB$4) -> 0 | J65: =IF(ISNUMBER(Knoten!D16),I65+2*$H$1*$E$1*B65*COS(-K42*PI()/180),PlotData!$CB$4) -> 0 | K65: =IF(ISNUMBER(Knoten!D16),H65+2*$H$1*$E$1*B65*COS(-K42*PI()/180),PlotData!$CB$4) -> 0 | L65: 0 | N65: 14 | O65: =1-ABS(SIGN(Knoten!G16)) -> 1 | P65: =IF(ISNUMBER(Knoten!C16),Z19+$H$1*$E$1*O65*COS(-K42*PI()/180)-$H$1*$E$1*O65*SIN(-K42*PI()/180),PlotData!$CB$3) -> 0 | Q65: =IF(ISNUMBER(Knoten!C16),P65-2*$H$1*$E$1*O65*COS(-K42*PI()/180),P65) -> 0 | R65: =IF(ISNUMBER(Knoten!C16),Q65+2*$H$1*$E$1*O65*SIN(-K42*PI()/180),P65) -> 0 | S65: =IF(ISNUMBER(Knoten!C16),P65+2*$H$1*$E$1*O65*SIN(-K42*PI()/180),P65) -> 0 | T65: 0 | U65: =IF(ISNUMBER(Knoten!D16),AA19-$H$1*$E$1*O65*COS(-K42*PI()/180)-$H$1*$E$1*O65*SIN(-K42*PI()/180),PlotData!$CB$4) -> 0 | V65: =IF(ISNUMBER(Knoten!D16),U65+2*$H$1*$E$1*O65*SIN(-K42*PI()/180),PlotData!$CB$4) -> 0 | W65: =IF(ISNUMBER(Knoten!D16),V65+2*$H$1*$E$1*O65*COS(-K42*PI()/180),PlotData!$CB$4) -> 0 | X65: =IF(ISNUMBER(Knoten!D16),U65+2*$H$1*$E$1*O65*COS(-K42*PI()/180),PlotData!$CB$4) -> 0 | Y65: 0
A66: 15 | B66: =1-ABS(SIGN(Knoten!G17)) -> 1 | C66: =IF(ISNUMBER(Knoten!C17),Knoten!C17-$U$1+$H$1*$E$1*B66*COS(-K43*PI()/180)-$H$1*$E$1*B66*SIN(-K43*PI()/180),PlotData!$CB$3) -> 0 | D66: =IF(ISNUMBER(Knoten!C17),C66-2*$H$1*$E$1*B66*COS(-K43*PI()/180),C66) -> 0 | E66: =IF(ISNUMBER(Knoten!C17),D66+2*$H$1*$E$1*B66*SIN(-K43*PI()/180),C66) -> 0 | F66: =IF(ISNUMBER(Knoten!C17),C66+2*$H$1*$E$1*B66*SIN(-K43*PI()/180),C66) -> 0 | G66: 0 | H66: =IF(ISNUMBER(Knoten!D17),Knoten!D17-$X$1-$H$1*$E$1*B66*COS(-K43*PI()/180)-$H$1*$E$1*B66*SIN(-K43*PI()/180),PlotData!$CB$4) -> 0 | I66: =IF(ISNUMBER(Knoten!D17),H66+2*$H$1*$E$1*B66*SIN(-K43*PI()/180),PlotData!$CB$4) -> 0 | J66: =IF(ISNUMBER(Knoten!D17),I66+2*$H$1*$E$1*B66*COS(-K43*PI()/180),PlotData!$CB$4) -> 0 | K66: =IF(ISNUMBER(Knoten!D17),H66+2*$H$1*$E$1*B66*COS(-K43*PI()/180),PlotData!$CB$4) -> 0 | L66: 0 | N66: 15 | O66: =1-ABS(SIGN(Knoten!G17)) -> 1 | P66: =IF(ISNUMBER(Knoten!C17),Z20+$H$1*$E$1*O66*COS(-K43*PI()/180)-$H$1*$E$1*O66*SIN(-K43*PI()/180),PlotData!$CB$3) -> 0 | Q66: =IF(ISNUMBER(Knoten!C17),P66-2*$H$1*$E$1*O66*COS(-K43*PI()/180),P66) -> 0 | R66: =IF(ISNUMBER(Knoten!C17),Q66+2*$H$1*$E$1*O66*SIN(-K43*PI()/180),P66) -> 0 | S66: =IF(ISNUMBER(Knoten!C17),P66+2*$H$1*$E$1*O66*SIN(-K43*PI()/180),P66) -> 0 | T66: 0 | U66: =IF(ISNUMBER(Knoten!D17),AA20-$H$1*$E$1*O66*COS(-K43*PI()/180)-$H$1*$E$1*O66*SIN(-K43*PI()/180),PlotData!$CB$4) -> 0 | V66: =IF(ISNUMBER(Knoten!D17),U66+2*$H$1*$E$1*O66*SIN(-K43*PI()/180),PlotData!$CB$4) -> 0 | W66: =IF(ISNUMBER(Knoten!D17),V66+2*$H$1*$E$1*O66*COS(-K43*PI()/180),PlotData!$CB$4) -> 0 | X66: =IF(ISNUMBER(Knoten!D17),U66+2*$H$1*$E$1*O66*COS(-K43*PI()/180),PlotData!$CB$4) -> 0 | Y66: 0
A67: 16 | B67: =1-ABS(SIGN(Knoten!G18)) -> 1 | C67: =IF(ISNUMBER(Knoten!C18),Knoten!C18-$U$1+$H$1*$E$1*B67*COS(-K44*PI()/180)-$H$1*$E$1*B67*SIN(-K44*PI()/180),PlotData!$CB$3) -> 0 | D67: =IF(ISNUMBER(Knoten!C18),C67-2*$H$1*$E$1*B67*COS(-K44*PI()/180),C67) -> 0 | E67: =IF(ISNUMBER(Knoten!C18),D67+2*$H$1*$E$1*B67*SIN(-K44*PI()/180),C67) -> 0 | F67: =IF(ISNUMBER(Knoten!C18),C67+2*$H$1*$E$1*B67*SIN(-K44*PI()/180),C67) -> 0 | G67: 0 | H67: =IF(ISNUMBER(Knoten!D18),Knoten!D18-$X$1-$H$1*$E$1*B67*COS(-K44*PI()/180)-$H$1*$E$1*B67*SIN(-K44*PI()/180),PlotData!$CB$4) -> 0 | I67: =IF(ISNUMBER(Knoten!D18),H67+2*$H$1*$E$1*B67*SIN(-K44*PI()/180),PlotData!$CB$4) -> 0 | J67: =IF(ISNUMBER(Knoten!D18),I67+2*$H$1*$E$1*B67*COS(-K44*PI()/180),PlotData!$CB$4) -> 0 | K67: =IF(ISNUMBER(Knoten!D18),H67+2*$H$1*$E$1*B67*COS(-K44*PI()/180),PlotData!$CB$4) -> 0 | L67: 0 | N67: 16 | O67: =1-ABS(SIGN(Knoten!G18)) -> 1 | P67: =IF(ISNUMBER(Knoten!C18),Z21+$H$1*$E$1*O67*COS(-K44*PI()/180)-$H$1*$E$1*O67*SIN(-K44*PI()/180),PlotData!$CB$3) -> 0 | Q67: =IF(ISNUMBER(Knoten!C18),P67-2*$H$1*$E$1*O67*COS(-K44*PI()/180),P67) -> 0 | R67: =IF(ISNUMBER(Knoten!C18),Q67+2*$H$1*$E$1*O67*SIN(-K44*PI()/180),P67) -> 0 | S67: =IF(ISNUMBER(Knoten!C18),P67+2*$H$1*$E$1*O67*SIN(-K44*PI()/180),P67) -> 0 | T67: 0 | U67: =IF(ISNUMBER(Knoten!D18),AA21-$H$1*$E$1*O67*COS(-K44*PI()/180)-$H$1*$E$1*O67*SIN(-K44*PI()/180),PlotData!$CB$4) -> 0 | V67: =IF(ISNUMBER(Knoten!D18),U67+2*$H$1*$E$1*O67*SIN(-K44*PI()/180),PlotData!$CB$4) -> 0 | W67: =IF(ISNUMBER(Knoten!D18),V67+2*$H$1*$E$1*O67*COS(-K44*PI()/180),PlotData!$CB$4) -> 0 | X67: =IF(ISNUMBER(Knoten!D18),U67+2*$H$1*$E$1*O67*COS(-K44*PI()/180),PlotData!$CB$4) -> 0 | Y67: 0
A68: 17 | B68: =1-ABS(SIGN(Knoten!G19)) -> 1 | C68: =IF(ISNUMBER(Knoten!C19),Knoten!C19-$U$1+$H$1*$E$1*B68*COS(-K45*PI()/180)-$H$1*$E$1*B68*SIN(-K45*PI()/180),PlotData!$CB$3) -> 0 | D68: =IF(ISNUMBER(Knoten!C19),C68-2*$H$1*$E$1*B68*COS(-K45*PI()/180),C68) -> 0 | E68: =IF(ISNUMBER(Knoten!C19),D68+2*$H$1*$E$1*B68*SIN(-K45*PI()/180),C68) -> 0 | F68: =IF(ISNUMBER(Knoten!C19),C68+2*$H$1*$E$1*B68*SIN(-K45*PI()/180),C68) -> 0 | G68: 0 | H68: =IF(ISNUMBER(Knoten!D19),Knoten!D19-$X$1-$H$1*$E$1*B68*COS(-K45*PI()/180)-$H$1*$E$1*B68*SIN(-K45*PI()/180),PlotData!$CB$4) -> 0 | I68: =IF(ISNUMBER(Knoten!D19),H68+2*$H$1*$E$1*B68*SIN(-K45*PI()/180),PlotData!$CB$4) -> 0 | J68: =IF(ISNUMBER(Knoten!D19),I68+2*$H$1*$E$1*B68*COS(-K45*PI()/180),PlotData!$CB$4) -> 0 | K68: =IF(ISNUMBER(Knoten!D19),H68+2*$H$1*$E$1*B68*COS(-K45*PI()/180),PlotData!$CB$4) -> 0 | L68: 0 | N68: 17 | O68: =1-ABS(SIGN(Knoten!G19)) -> 1 | P68: =IF(ISNUMBER(Knoten!C19),Z22+$H$1*$E$1*O68*COS(-K45*PI()/180)-$H$1*$E$1*O68*SIN(-K45*PI()/180),PlotData!$CB$3) -> 0 | Q68: =IF(ISNUMBER(Knoten!C19),P68-2*$H$1*$E$1*O68*COS(-K45*PI()/180),P68) -> 0 | R68: =IF(ISNUMBER(Knoten!C19),Q68+2*$H$1*$E$1*O68*SIN(-K45*PI()/180),P68) -> 0 | S68: =IF(ISNUMBER(Knoten!C19),P68+2*$H$1*$E$1*O68*SIN(-K45*PI()/180),P68) -> 0 | T68: 0 | U68: =IF(ISNUMBER(Knoten!D19),AA22-$H$1*$E$1*O68*COS(-K45*PI()/180)-$H$1*$E$1*O68*SIN(-K45*PI()/180),PlotData!$CB$4) -> 0 | V68: =IF(ISNUMBER(Knoten!D19),U68+2*$H$1*$E$1*O68*SIN(-K45*PI()/180),PlotData!$CB$4) -> 0 | W68: =IF(ISNUMBER(Knoten!D19),V68+2*$H$1*$E$1*O68*COS(-K45*PI()/180),PlotData!$CB$4) -> 0 | X68: =IF(ISNUMBER(Knoten!D19),U68+2*$H$1*$E$1*O68*COS(-K45*PI()/180),PlotData!$CB$4) -> 0 | Y68: 0
A69: 18 | B69: =1-ABS(SIGN(Knoten!G20)) -> 1 | C69: =IF(ISNUMBER(Knoten!C20),Knoten!C20-$U$1+$H$1*$E$1*B69*COS(-K46*PI()/180)-$H$1*$E$1*B69*SIN(-K46*PI()/180),PlotData!$CB$3) -> 0 | D69: =IF(ISNUMBER(Knoten!C20),C69-2*$H$1*$E$1*B69*COS(-K46*PI()/180),C69) -> 0 | E69: =IF(ISNUMBER(Knoten!C20),D69+2*$H$1*$E$1*B69*SIN(-K46*PI()/180),C69) -> 0 | F69: =IF(ISNUMBER(Knoten!C20),C69+2*$H$1*$E$1*B69*SIN(-K46*PI()/180),C69) -> 0 | G69: 0 | H69: =IF(ISNUMBER(Knoten!D20),Knoten!D20-$X$1-$H$1*$E$1*B69*COS(-K46*PI()/180)-$H$1*$E$1*B69*SIN(-K46*PI()/180),PlotData!$CB$4) -> 0 | I69: =IF(ISNUMBER(Knoten!D20),H69+2*$H$1*$E$1*B69*SIN(-K46*PI()/180),PlotData!$CB$4) -> 0 | J69: =IF(ISNUMBER(Knoten!D20),I69+2*$H$1*$E$1*B69*COS(-K46*PI()/180),PlotData!$CB$4) -> 0 | K69: =IF(ISNUMBER(Knoten!D20),H69+2*$H$1*$E$1*B69*COS(-K46*PI()/180),PlotData!$CB$4) -> 0 | L69: 0 | N69: 18 | O69: =1-ABS(SIGN(Knoten!G20)) -> 1 | P69: =IF(ISNUMBER(Knoten!C20),Z23+$H$1*$E$1*O69*COS(-K46*PI()/180)-$H$1*$E$1*O69*SIN(-K46*PI()/180),PlotData!$CB$3) -> 0 | Q69: =IF(ISNUMBER(Knoten!C20),P69-2*$H$1*$E$1*O69*COS(-K46*PI()/180),P69) -> 0 | R69: =IF(ISNUMBER(Knoten!C20),Q69+2*$H$1*$E$1*O69*SIN(-K46*PI()/180),P69) -> 0 | S69: =IF(ISNUMBER(Knoten!C20),P69+2*$H$1*$E$1*O69*SIN(-K46*PI()/180),P69) -> 0 | T69: 0 | U69: =IF(ISNUMBER(Knoten!D20),AA23-$H$1*$E$1*O69*COS(-K46*PI()/180)-$H$1*$E$1*O69*SIN(-K46*PI()/180),PlotData!$CB$4) -> 0 | V69: =IF(ISNUMBER(Knoten!D20),U69+2*$H$1*$E$1*O69*SIN(-K46*PI()/180),PlotData!$CB$4) -> 0 | W69: =IF(ISNUMBER(Knoten!D20),V69+2*$H$1*$E$1*O69*COS(-K46*PI()/180),PlotData!$CB$4) -> 0 | X69: =IF(ISNUMBER(Knoten!D20),U69+2*$H$1*$E$1*O69*COS(-K46*PI()/180),PlotData!$CB$4) -> 0 | Y69: 0
A70: 19 | B70: =1-ABS(SIGN(Knoten!G21)) -> 1 | C70: =IF(ISNUMBER(Knoten!C21),Knoten!C21-$U$1+$H$1*$E$1*B70*COS(-K47*PI()/180)-$H$1*$E$1*B70*SIN(-K47*PI()/180),PlotData!$CB$3) -> 0 | D70: =IF(ISNUMBER(Knoten!C21),C70-2*$H$1*$E$1*B70*COS(-K47*PI()/180),C70) -> 0 | E70: =IF(ISNUMBER(Knoten!C21),D70+2*$H$1*$E$1*B70*SIN(-K47*PI()/180),C70) -> 0 | F70: =IF(ISNUMBER(Knoten!C21),C70+2*$H$1*$E$1*B70*SIN(-K47*PI()/180),C70) -> 0 | G70: 0 | H70: =IF(ISNUMBER(Knoten!D21),Knoten!D21-$X$1-$H$1*$E$1*B70*COS(-K47*PI()/180)-$H$1*$E$1*B70*SIN(-K47*PI()/180),PlotData!$CB$4) -> 0 | I70: =IF(ISNUMBER(Knoten!D21),H70+2*$H$1*$E$1*B70*SIN(-K47*PI()/180),PlotData!$CB$4) -> 0 | J70: =IF(ISNUMBER(Knoten!D21),I70+2*$H$1*$E$1*B70*COS(-K47*PI()/180),PlotData!$CB$4) -> 0 | K70: =IF(ISNUMBER(Knoten!D21),H70+2*$H$1*$E$1*B70*COS(-K47*PI()/180),PlotData!$CB$4) -> 0 | L70: 0 | N70: 19 | O70: =1-ABS(SIGN(Knoten!G21)) -> 1 | P70: =IF(ISNUMBER(Knoten!C21),Z24+$H$1*$E$1*O70*COS(-K47*PI()/180)-$H$1*$E$1*O70*SIN(-K47*PI()/180),PlotData!$CB$3) -> 0 | Q70: =IF(ISNUMBER(Knoten!C21),P70-2*$H$1*$E$1*O70*COS(-K47*PI()/180),P70) -> 0 | R70: =IF(ISNUMBER(Knoten!C21),Q70+2*$H$1*$E$1*O70*SIN(-K47*PI()/180),P70) -> 0 | S70: =IF(ISNUMBER(Knoten!C21),P70+2*$H$1*$E$1*O70*SIN(-K47*PI()/180),P70) -> 0 | T70: =P70 -> 0 | U70: =IF(ISNUMBER(Knoten!D21),AA24-$H$1*$E$1*O70*COS(-K47*PI()/180)-$H$1*$E$1*O70*SIN(-K47*PI()/180),PlotData!$CB$4) -> 0 | V70: =IF(ISNUMBER(Knoten!D21),U70+2*$H$1*$E$1*O70*SIN(-K47*PI()/180),PlotData!$CB$4) -> 0 | W70: =IF(ISNUMBER(Knoten!D21),V70+2*$H$1*$E$1*O70*COS(-K47*PI()/180),PlotData!$CB$4) -> 0 | X70: =IF(ISNUMBER(Knoten!D21),U70+2*$H$1*$E$1*O70*COS(-K47*PI()/180),PlotData!$CB$4) -> 0 | Y70: =U70 -> 0
A71: 20 | B71: =1-ABS(SIGN(Knoten!G22)) -> 1 | C71: =IF(ISNUMBER(Knoten!C22),Knoten!C22-$U$1+$H$1*$E$1*B71*COS(-K48*PI()/180)-$H$1*$E$1*B71*SIN(-K48*PI()/180),PlotData!$CB$3) -> 0 | D71: =IF(ISNUMBER(Knoten!C22),C71-2*$H$1*$E$1*B71*COS(-K48*PI()/180),C71) -> 0 | E71: =IF(ISNUMBER(Knoten!C22),D71+2*$H$1*$E$1*B71*SIN(-K48*PI()/180),C71) -> 0 | F71: =IF(ISNUMBER(Knoten!C22),C71+2*$H$1*$E$1*B71*SIN(-K48*PI()/180),C71) -> 0 | G71: 0 | H71: =IF(ISNUMBER(Knoten!D22),Knoten!D22-$X$1-$H$1*$E$1*B71*COS(-K48*PI()/180)-$H$1*$E$1*B71*SIN(-K48*PI()/180),PlotData!$CB$4) -> 0 | I71: =IF(ISNUMBER(Knoten!D22),H71+2*$H$1*$E$1*B71*SIN(-K48*PI()/180),PlotData!$CB$4) -> 0 | J71: =IF(ISNUMBER(Knoten!D22),I71+2*$H$1*$E$1*B71*COS(-K48*PI()/180),PlotData!$CB$4) -> 0 | K71: =IF(ISNUMBER(Knoten!D22),H71+2*$H$1*$E$1*B71*COS(-K48*PI()/180),PlotData!$CB$4) -> 0 | L71: 0 | N71: 20 | O71: =1-ABS(SIGN(Knoten!G22)) -> 1 | P71: =IF(ISNUMBER(Knoten!C22),Z25+$H$1*$E$1*O71*COS(-K48*PI()/180)-$H$1*$E$1*O71*SIN(-K48*PI()/180),PlotData!$CB$3) -> 0 | Q71: =IF(ISNUMBER(Knoten!C22),P71-2*$H$1*$E$1*O71*COS(-K48*PI()/180),P71) -> 0 | R71: =IF(ISNUMBER(Knoten!C22),Q71+2*$H$1*$E$1*O71*SIN(-K48*PI()/180),P71) -> 0 | S71: =IF(ISNUMBER(Knoten!C22),P71+2*$H$1*$E$1*O71*SIN(-K48*PI()/180),P71) -> 0 | T71: =P71 -> 0 | U71: =IF(ISNUMBER(Knoten!D22),AA25-$H$1*$E$1*O71*COS(-K48*PI()/180)-$H$1*$E$1*O71*SIN(-K48*PI()/180),PlotData!$CB$4) -> 0 | V71: =IF(ISNUMBER(Knoten!D22),U71+2*$H$1*$E$1*O71*SIN(-K48*PI()/180),PlotData!$CB$4) -> 0 | W71: =IF(ISNUMBER(Knoten!D22),V71+2*$H$1*$E$1*O71*COS(-K48*PI()/180),PlotData!$CB$4) -> 0 | X71: =IF(ISNUMBER(Knoten!D22),U71+2*$H$1*$E$1*O71*COS(-K48*PI()/180),PlotData!$CB$4) -> 0 | Y71: =U71 -> 0
D73: Rotzeigeru | F73: Rotzeigerw | H73: Rotzeigeru | J73: Rotzeigerw | Q73: Rotzeigeru | S73: Rotzeigerw | U73: Rotzeigeru | W73: Rotzeigerw
A74: Rotationsanzeiger | D74: x | H74: y | N74: Rotationsanzeiger | Q74: x | U74: y
A75: 1 | B75: =IF(ISNUMBER(Knoten!C3),-INDEX(Knotenverdrehung_node,A6+1,1),0) -> 0 | C75: =IF(AND(B75<>0,ISNUMBER(Knoten!C3)),1,0) -> 0 | D75: =IF(ISNUMBER(Knoten!C3),Knoten!C3-$U$1,PlotData!$CB$3) -> -12 | E75: =D75+COS(B75*PI()/180)*E$95*C75 -> -12 | F75: =D75 -> -12 | G75: =F75-SIN(B75*PI()/180)*$G$95*C75 -> -12 | H75: =IF(ISNUMBER(Knoten!D3),Knoten!D3-$X$1,PlotData!$CB$4) -> 3 | I75: =H75+SIN(B75*PI()/180)*$I$95*C75 -> 3 | J75: =IF(ISNUMBER(Knoten!D3),Knoten!D3-$X$1,PlotData!$CB$4) -> 3 | K75: =J75+COS(B75*PI()/180)*K$95*C75 -> 3 | N75: 1 | O75: =IF(ISNUMBER(Knoten!C3),-INDEX(Knotenverdrehung_node,A6+1,1),0) -> 0 | P75: =IF(O75<>0,1,0) -> 0 | Q75: =IF(ISNUMBER(Knoten!C3),Z6,PlotData!$CB$3) -> -12 | R75: =Q75+COS(O75*PI()/180)*R$95*P75 -> -12 | S75: =Q75 -> -12 | T75: =S75-SIN(O75*PI()/180)*$G$95*P75 -> -12 | U75: =IF(ISNUMBER(Knoten!D3),AA6,PlotData!$CB$4) -> 3 | V75: =U75+SIN(O75*PI()/180)*$V$95*P75 -> 3 | W75: =U75 -> 3 | X75: =W75+COS(O75*PI()/180)*X$95*P75 -> 3
A76: 2 | B76: =IF(ISNUMBER(Knoten!C4),-INDEX(Knotenverdrehung_node,A7+1,1),0) -> 0 | C76: =IF(AND(B76<>0,ISNUMBER(Knoten!C4)),1,0) -> 0 | D76: =IF(ISNUMBER(Knoten!C4),Knoten!C4-$U$1,PlotData!$CB$3) -> -6 | E76: =D76+COS(B76*PI()/180)*E$95*C76 -> -6 | F76: =D76 -> -6 | G76: =F76-SIN(B76*PI()/180)*$G$95*C76 -> -6 | H76: =IF(ISNUMBER(Knoten!D4),Knoten!D4-$X$1,PlotData!$CB$4) -> 3 | I76: 3 | J76: =IF(ISNUMBER(Knoten!D4),Knoten!D4-$X$1,PlotData!$CB$4) -> 3 | K76: =J76+COS(B76*PI()/180)*K$95*C76 -> 3 | N76: 2 | O76: =IF(ISNUMBER(Knoten!C4),-INDEX(Knotenverdrehung_node,A7+1,1),0) -> 0 | P76: 0 | Q76: =IF(ISNUMBER(Knoten!C4),Z7,PlotData!$CB$3) -> -6 | R76: -6 | S76: -6 | T76: -6 | U76: =IF(ISNUMBER(Knoten!D4),AA7,PlotData!$CB$4) -> 3 | V76: 3 | W76: 3 | X76: 3
A77: 3 | B77: =IF(ISNUMBER(Knoten!C5),-INDEX(Knotenverdrehung_node,A8+1,1),0) -> 0 | C77: =IF(AND(B77<>0,ISNUMBER(Knoten!C5)),1,0) -> 0 | D77: =IF(ISNUMBER(Knoten!C5),Knoten!C5-$U$1,PlotData!$CB$3) -> 0 | E77: 0 | F77: 0 | G77: 0 | H77: =IF(ISNUMBER(Knoten!D5),Knoten!D5-$X$1,PlotData!$CB$4) -> 3 | I77: 3 | J77: =IF(ISNUMBER(Knoten!D5),Knoten!D5-$X$1,PlotData!$CB$4) -> 3 | K77: 3 | N77: 3 | O77: =IF(ISNUMBER(Knoten!C5),-INDEX(Knotenverdrehung_node,A8+1,1),0) -> 0 | P77: 0 | Q77: =IF(ISNUMBER(Knoten!C5),Z8,PlotData!$CB$3) -> 0 | R77: 0 | S77: 0 | T77: 0 | U77: =IF(ISNUMBER(Knoten!D5),AA8,PlotData!$CB$4) -> 3 | V77: 3 | W77: 3 | X77: 3
A78: 4 | B78: =IF(ISNUMBER(Knoten!C6),-INDEX(Knotenverdrehung_node,A9+1,1),0) -> 0 | C78: =IF(AND(B78<>0,ISNUMBER(Knoten!C6)),1,0) -> 0 | D78: =IF(ISNUMBER(Knoten!C6),Knoten!C6-$U$1,PlotData!$CB$3) -> 6 | E78: 6 | F78: 6 | G78: 6 | H78: =IF(ISNUMBER(Knoten!D6),Knoten!D6-$X$1,PlotData!$CB$4) -> 3 | I78: 3 | J78: =IF(ISNUMBER(Knoten!D6),Knoten!D6-$X$1,PlotData!$CB$4) -> 3 | K78: 3 | N78: 4 | O78: =IF(ISNUMBER(Knoten!C6),-INDEX(Knotenverdrehung_node,A9+1,1),0) -> 0 | P78: 0 | Q78: =IF(ISNUMBER(Knoten!C6),Z9,PlotData!$CB$3) -> 6 | R78: 6 | S78: 6 | T78: 6 | U78: =IF(ISNUMBER(Knoten!D6),AA9,PlotData!$CB$4) -> 3 | V78: 3 | W78: 3 | X78: 3
A79: 5 | B79: =IF(ISNUMBER(Knoten!C7),-INDEX(Knotenverdrehung_node,A10+1,1),0) -> 0 | C79: =IF(AND(B79<>0,ISNUMBER(Knoten!C7)),1,0) -> 0 | D79: =IF(ISNUMBER(Knoten!C7),Knoten!C7-$U$1,PlotData!$CB$3) -> 12 | E79: 12 | F79: 12 | G79: 12 | H79: =IF(ISNUMBER(Knoten!D7),Knoten!D7-$X$1,PlotData!$CB$4) -> 3 | I79: 3 | J79: =IF(ISNUMBER(Knoten!D7),Knoten!D7-$X$1,PlotData!$CB$4) -> 3 | K79: 3 | N79: 5 | O79: =IF(ISNUMBER(Knoten!C7),-INDEX(Knotenverdrehung_node,A10+1,1),0) -> 0 | P79: 0 | Q79: =IF(ISNUMBER(Knoten!C7),Z10,PlotData!$CB$3) -> 12 | R79: 12 | S79: 12 | T79: 12 | U79: =IF(ISNUMBER(Knoten!D7),AA10,PlotData!$CB$4) -> 3 | V79: 3 | W79: 3 | X79: 3
A80: 6 | B80: =IF(ISNUMBER(Knoten!C8),-INDEX(Knotenverdrehung_node,A11+1,1),0) -> 0 | C80: =IF(AND(B80<>0,ISNUMBER(Knoten!C8)),1,0) -> 0 | D80: =IF(ISNUMBER(Knoten!C8),Knoten!C8-$U$1,PlotData!$CB$3) -> -6 | E80: -6 | F80: -6 | G80: -6 | H80: =IF(ISNUMBER(Knoten!D8),Knoten!D8-$X$1,PlotData!$CB$4) -> -3 | I80: -3 | J80: =IF(ISNUMBER(Knoten!D8),Knoten!D8-$X$1,PlotData!$CB$4) -> -3 | K80: -3 | N80: 6 | O80: =IF(ISNUMBER(Knoten!C8),-INDEX(Knotenverdrehung_node,A11+1,1),0) -> 0 | P80: 0 | Q80: =IF(ISNUMBER(Knoten!C8),Z11,PlotData!$CB$3) -> -6 | R80: -6 | S80: -6 | T80: -6 | U80: =IF(ISNUMBER(Knoten!D8),AA11,PlotData!$CB$4) -> -3 | V80: -3 | W80: -3 | X80: -3
A81: 7 | B81: =IF(ISNUMBER(Knoten!C9),-INDEX(Knotenverdrehung_node,A12+1,1),0) -> 0 | C81: =IF(AND(B81<>0,ISNUMBER(Knoten!C9)),1,0) -> 0 | D81: =IF(ISNUMBER(Knoten!C9),Knoten!C9-$U$1,PlotData!$CB$3) -> 0 | E81: 0 | F81: 0 | G81: 0 | H81: =IF(ISNUMBER(Knoten!D9),Knoten!D9-$X$1,PlotData!$CB$4) -> -3 | I81: -3 | J81: =IF(ISNUMBER(Knoten!D9),Knoten!D9-$X$1,PlotData!$CB$4) -> -3 | K81: -3 | N81: 7 | O81: =IF(ISNUMBER(Knoten!C9),-INDEX(Knotenverdrehung_node,A12+1,1),0) -> 0 | P81: 0 | Q81: =IF(ISNUMBER(Knoten!C9),Z12,PlotData!$CB$3) -> 0 | R81: 0 | S81: 0 | T81: 0 | U81: =IF(ISNUMBER(Knoten!D9),AA12,PlotData!$CB$4) -> -3 | V81: -3 | W81: -3 | X81: -3
A82: 8 | B82: =IF(ISNUMBER(Knoten!C10),-INDEX(Knotenverdrehung_node,A13+1,1),0) -> 0 | C82: =IF(AND(B82<>0,ISNUMBER(Knoten!C10)),1,0) -> 0 | D82: =IF(ISNUMBER(Knoten!C10),Knoten!C10-$U$1,PlotData!$CB$3) -> 6 | E82: 6 | F82: 6 | G82: 6 | H82: =IF(ISNUMBER(Knoten!D10),Knoten!D10-$X$1,PlotData!$CB$4) -> -3 | I82: -3 | J82: =IF(ISNUMBER(Knoten!D10),Knoten!D10-$X$1,PlotData!$CB$4) -> -3 | K82: -3 | N82: 8 | O82: =IF(ISNUMBER(Knoten!C10),-INDEX(Knotenverdrehung_node,A13+1,1),0) -> 0 | P82: 0 | Q82: =IF(ISNUMBER(Knoten!C10),Z13,PlotData!$CB$3) -> 6 | R82: 6 | S82: 6 | T82: 6 | U82: =IF(ISNUMBER(Knoten!D10),AA13,PlotData!$CB$4) -> -3 | V82: -3 | W82: -3 | X82: -3
A83: 9 | B83: =IF(ISNUMBER(Knoten!C11),-INDEX(Knotenverdrehung_node,A14+1,1),0) -> 0 | C83: =IF(AND(B83<>0,ISNUMBER(Knoten!C11)),1,0) -> 0 | D83: =IF(ISNUMBER(Knoten!C11),Knoten!C11-$U$1,PlotData!$CB$3) -> 0 | E83: 0 | F83: 0 | G83: 0 | H83: =IF(ISNUMBER(Knoten!D11),Knoten!D11-$X$1,PlotData!$CB$4) -> 0 | I83: 0 | J83: =IF(ISNUMBER(Knoten!D11),Knoten!D11-$X$1,PlotData!$CB$4) -> 0 | K83: 0 | N83: 9 | O83: =IF(ISNUMBER(Knoten!C11),-INDEX(Knotenverdrehung_node,A14+1,1),0) -> 0 | P83: 0 | Q83: =IF(ISNUMBER(Knoten!C11),Z14,PlotData!$CB$3) -> 0 | R83: 0 | S83: 0 | T83: 0 | U83: =IF(ISNUMBER(Knoten!D11),AA14,PlotData!$CB$4) -> 0 | V83: 0 | W83: 0 | X83: 0
A84: 10 | B84: =IF(ISNUMBER(Knoten!C12),-INDEX(Knotenverdrehung_node,A15+1,1),0) -> 0 | C84: =IF(AND(B84<>0,ISNUMBER(Knoten!C12)),1,0) -> 0 | D84: =IF(ISNUMBER(Knoten!C12),Knoten!C12-$U$1,PlotData!$CB$3) -> 0 | E84: 0 | F84: 0 | G84: 0 | H84: =IF(ISNUMBER(Knoten!D12),Knoten!D12-$X$1,PlotData!$CB$4) -> 0 | I84: 0 | J84: =IF(ISNUMBER(Knoten!D12),Knoten!D12-$X$1,PlotData!$CB$4) -> 0 | K84: 0 | N84: 10 | O84: =IF(ISNUMBER(Knoten!C12),-INDEX(Knotenverdrehung_node,A15+1,1),0) -> 0 | P84: 0 | Q84: =IF(ISNUMBER(Knoten!C12),Z15,PlotData!$CB$3) -> 0 | R84: 0 | S84: 0 | T84: 0 | U84: =IF(ISNUMBER(Knoten!D12),AA15,PlotData!$CB$4) -> 0 | V84: 0 | W84: 0 | X84: 0
A85: 11 | B85: =IF(ISNUMBER(Knoten!C13),-INDEX(Knotenverdrehung_node,A16+1,1),0) -> 0 | C85: =IF(AND(B85<>0,ISNUMBER(Knoten!C13)),1,0) -> 0 | D85: =IF(ISNUMBER(Knoten!C13),Knoten!C13-$U$1,PlotData!$CB$3) -> 0 | E85: 0 | F85: 0 | G85: 0 | H85: =IF(ISNUMBER(Knoten!D13),Knoten!D13-$X$1,PlotData!$CB$4) -> 0 | I85: 0 | J85: =IF(ISNUMBER(Knoten!D13),Knoten!D13-$X$1,PlotData!$CB$4) -> 0 | K85: 0 | N85: 11 | O85: =IF(ISNUMBER(Knoten!C13),-INDEX(Knotenverdrehung_node,A16+1,1),0) -> 0 | P85: 0 | Q85: =IF(ISNUMBER(Knoten!C13),Z16,PlotData!$CB$3) -> 0 | R85: 0 | S85: 0 | T85: 0 | U85: =IF(ISNUMBER(Knoten!D13),AA16,PlotData!$CB$4) -> 0 | V85: 0 | W85: 0 | X85: 0
A86: 12 | B86: =IF(ISNUMBER(Knoten!C14),-INDEX(Knotenverdrehung_node,A17+1,1),0) -> 0 | C86: =IF(AND(B86<>0,ISNUMBER(Knoten!C14)),1,0) -> 0 | D86: =IF(ISNUMBER(Knoten!C14),Knoten!C14-$U$1,PlotData!$CB$3) -> 0 | E86: 0 | F86: 0 | G86: 0 | H86: =IF(ISNUMBER(Knoten!D14),Knoten!D14-$X$1,PlotData!$CB$4) -> 0 | I86: 0 | J86: =IF(ISNUMBER(Knoten!D14),Knoten!D14-$X$1,PlotData!$CB$4) -> 0 | K86: 0 | N86: 12 | O86: =IF(ISNUMBER(Knoten!C14),-INDEX(Knotenverdrehung_node,A17+1,1),0) -> 0 | P86: 0 | Q86: =IF(ISNUMBER(Knoten!C14),Z17,PlotData!$CB$3) -> 0 | R86: 0 | S86: 0 | T86: 0 | U86: =IF(ISNUMBER(Knoten!D14),AA17,PlotData!$CB$4) -> 0 | V86: 0 | W86: 0 | X86: 0
A87: 13 | B87: =IF(ISNUMBER(Knoten!C15),-INDEX(Knotenverdrehung_node,A18+1,1),0) -> 0 | C87: =IF(AND(B87<>0,ISNUMBER(Knoten!C15)),1,0) -> 0 | D87: =IF(ISNUMBER(Knoten!C15),Knoten!C15-$U$1,PlotData!$CB$3) -> 0 | E87: 0 | F87: 0 | G87: 0 | H87: =IF(ISNUMBER(Knoten!D15),Knoten!D15-$X$1,PlotData!$CB$4) -> 0 | I87: 0 | J87: =IF(ISNUMBER(Knoten!D15),Knoten!D15-$X$1,PlotData!$CB$4) -> 0 | K87: 0 | N87: 13 | O87: =IF(ISNUMBER(Knoten!C15),-INDEX(Knotenverdrehung_node,A18+1,1),0) -> 0 | P87: 0 | Q87: =IF(ISNUMBER(Knoten!C15),Z18,PlotData!$CB$3) -> 0 | R87: 0 | S87: 0 | T87: 0 | U87: =IF(ISNUMBER(Knoten!D15),AA18,PlotData!$CB$4) -> 0 | V87: 0 | W87: 0 | X87: 0
A88: 14 | B88: =IF(ISNUMBER(Knoten!C16),-INDEX(Knotenverdrehung_node,A19+1,1),0) -> 0 | C88: =IF(AND(B88<>0,ISNUMBER(Knoten!C16)),1,0) -> 0 | D88: =IF(ISNUMBER(Knoten!C16),Knoten!C16-$U$1,PlotData!$CB$3) -> 0 | E88: 0 | F88: 0 | G88: 0 | H88: =IF(ISNUMBER(Knoten!D16),Knoten!D16-$X$1,PlotData!$CB$4) -> 0 | I88: 0 | J88: =IF(ISNUMBER(Knoten!D16),Knoten!D16-$X$1,PlotData!$CB$4) -> 0 | K88: 0 | N88: 14 | O88: =IF(ISNUMBER(Knoten!C16),-INDEX(Knotenverdrehung_node,A19+1,1),0) -> 0 | P88: 0 | Q88: =IF(ISNUMBER(Knoten!C16),Z19,PlotData!$CB$3) -> 0 | R88: 0 | S88: 0 | T88: 0 | U88: =IF(ISNUMBER(Knoten!D16),AA19,PlotData!$CB$4) -> 0 | V88: 0 | W88: 0 | X88: 0
A89: 15 | B89: =IF(ISNUMBER(Knoten!C17),-INDEX(Knotenverdrehung_node,A20+1,1),0) -> 0 | C89: =IF(AND(B89<>0,ISNUMBER(Knoten!C17)),1,0) -> 0 | D89: =IF(ISNUMBER(Knoten!C17),Knoten!C17-$U$1,PlotData!$CB$3) -> 0 | E89: 0 | F89: 0 | G89: 0 | H89: =IF(ISNUMBER(Knoten!D17),Knoten!D17-$X$1,PlotData!$CB$4) -> 0 | I89: 0 | J89: =IF(ISNUMBER(Knoten!D17),Knoten!D17-$X$1,PlotData!$CB$4) -> 0 | K89: 0 | N89: 15 | O89: =IF(ISNUMBER(Knoten!C17),-INDEX(Knotenverdrehung_node,A20+1,1),0) -> 0 | P89: 0 | Q89: =IF(ISNUMBER(Knoten!C17),Z20,PlotData!$CB$3) -> 0 | R89: 0 | S89: 0 | T89: 0 | U89: =IF(ISNUMBER(Knoten!D17),AA20,PlotData!$CB$4) -> 0 | V89: 0 | W89: 0 | X89: 0
A90: 16 | B90: =IF(ISNUMBER(Knoten!C18),-INDEX(Knotenverdrehung_node,A21+1,1),0) -> 0 | C90: =IF(AND(B90<>0,ISNUMBER(Knoten!C18)),1,0) -> 0 | D90: =IF(ISNUMBER(Knoten!C18),Knoten!C18-$U$1,PlotData!$CB$3) -> 0 | E90: 0 | F90: 0 | G90: 0 | H90: =IF(ISNUMBER(Knoten!D18),Knoten!D18-$X$1,PlotData!$CB$4) -> 0 | I90: 0 | J90: =IF(ISNUMBER(Knoten!D18),Knoten!D18-$X$1,PlotData!$CB$4) -> 0 | K90: 0 | N90: 16 | O90: =IF(ISNUMBER(Knoten!C18),-INDEX(Knotenverdrehung_node,A21+1,1),0) -> 0 | P90: 0 | Q90: =IF(ISNUMBER(Knoten!C18),Z21,PlotData!$CB$3) -> 0 | R90: 0 | S90: 0 | T90: 0 | U90: =IF(ISNUMBER(Knoten!D18),AA21,PlotData!$CB$4) -> 0 | V90: 0 | W90: 0 | X90: 0
A91: 17 | B91: =IF(ISNUMBER(Knoten!C19),-INDEX(Knotenverdrehung_node,A22+1,1),0) -> 0 | C91: =IF(AND(B91<>0,ISNUMBER(Knoten!C19)),1,0) -> 0 | D91: =IF(ISNUMBER(Knoten!C19),Knoten!C19-$U$1,PlotData!$CB$3) -> 0 | E91: 0 | F91: 0 | G91: 0 | H91: =IF(ISNUMBER(Knoten!D19),Knoten!D19-$X$1,PlotData!$CB$4) -> 0 | I91: 0 | J91: =IF(ISNUMBER(Knoten!D19),Knoten!D19-$X$1,PlotData!$CB$4) -> 0 | K91: 0 | N91: 17 | O91: =IF(ISNUMBER(Knoten!C19),-INDEX(Knotenverdrehung_node,A22+1,1),0) -> 0 | P91: 0 | Q91: =IF(ISNUMBER(Knoten!C19),Z22,PlotData!$CB$3) -> 0 | R91: 0 | S91: 0 | T91: 0 | U91: =IF(ISNUMBER(Knoten!D19),AA22,PlotData!$CB$4) -> 0 | V91: 0 | W91: 0 | X91: 0
A92: 18 | B92: =IF(ISNUMBER(Knoten!C20),-INDEX(Knotenverdrehung_node,A23+1,1),0) -> 0 | C92: =IF(AND(B92<>0,ISNUMBER(Knoten!C20)),1,0) -> 0 | D92: =IF(ISNUMBER(Knoten!C20),Knoten!C20-$U$1,PlotData!$CB$3) -> 0 | E92: 0 | F92: 0 | G92: 0 | H92: =IF(ISNUMBER(Knoten!D20),Knoten!D20-$X$1,PlotData!$CB$4) -> 0 | I92: 0 | J92: =IF(ISNUMBER(Knoten!D20),Knoten!D20-$X$1,PlotData!$CB$4) -> 0 | K92: 0 | N92: 18 | O92: =IF(ISNUMBER(Knoten!C20),-INDEX(Knotenverdrehung_node,A23+1,1),0) -> 0 | P92: 0 | Q92: =IF(ISNUMBER(Knoten!C20),Z23,PlotData!$CB$3) -> 0 | R92: 0 | S92: 0 | T92: 0 | U92: =IF(ISNUMBER(Knoten!D20),AA23,PlotData!$CB$4) -> 0 | V92: 0 | W92: 0 | X92: 0
A93: 19 | B93: =IF(ISNUMBER(Knoten!C21),-INDEX(Knotenverdrehung_node,A24+1,1),0) -> 0 | C93: =IF(AND(B93<>0,ISNUMBER(Knoten!C21)),1,0) -> 0 | D93: =IF(ISNUMBER(Knoten!C21),Knoten!C21-$U$1,PlotData!$CB$3) -> 0 | E93: 0 | F93: 0 | G93: 0 | H93: =IF(ISNUMBER(Knoten!D21),Knoten!D21-$X$1,PlotData!$CB$4) -> 0 | I93: =H93+SIN(B93*PI()/180)*$I$95*C93 -> 0 | J93: =IF(ISNUMBER(Knoten!D21),Knoten!D21-$X$1,PlotData!$CB$4) -> 0 | K93: 0 | N93: 19 | O93: =IF(ISNUMBER(Knoten!C21),-INDEX(Knotenverdrehung_node,A24+1,1),0) -> 0 | P93: =IF(O93<>0,1,0) -> 0 | Q93: =IF(ISNUMBER(Knoten!C21),Z24,PlotData!$CB$3) -> 0 | R93: =Q93+COS(O93*PI()/180)*R$95*P93 -> 0 | S93: =Q93 -> 0 | T93: =S93-SIN(O93*PI()/180)*$G$95*P93 -> 0 | U93: =IF(ISNUMBER(Knoten!D21),AA24,PlotData!$CB$4) -> 0 | V93: =U93+SIN(O93*PI()/180)*$V$95*P93 -> 0 | W93: =U93 -> 0 | X93: =W93+COS(O93*PI()/180)*X$95*P93 -> 0
A94: 20 | B94: =IF(ISNUMBER(Knoten!C22),-INDEX(Knotenverdrehung_node,A25+1,1),0) -> 0 | C94: =IF(AND(B94<>0,ISNUMBER(Knoten!C22)),1,0) -> 0 | D94: =IF(ISNUMBER(Knoten!C22),Knoten!C22-$U$1,PlotData!$CB$3) -> 0 | E94: 0 | F94: 0 | G94: 0 | H94: =IF(ISNUMBER(Knoten!D22),Knoten!D22-$X$1,PlotData!$CB$4) -> 0 | I94: =H94+SIN(B94*PI()/180)*$I$95*C94 -> 0 | J94: =IF(ISNUMBER(Knoten!D22),Knoten!D22-$X$1,PlotData!$CB$4) -> 0 | K94: 0 | N94: 20 | O94: =IF(ISNUMBER(Knoten!C22),-INDEX(Knotenverdrehung_node,A25+1,1),0) -> 0 | P94: =IF(O94<>0,1,0) -> 0 | Q94: =IF(ISNUMBER(Knoten!C22),Z25,PlotData!$CB$3) -> 0 | R94: =Q94+COS(O94*PI()/180)*R$95*P94 -> 0 | S94: =Q94 -> 0 | T94: =S94-SIN(O94*PI()/180)*$G$95*P94 -> 0 | U94: =IF(ISNUMBER(Knoten!D22),AA25,PlotData!$CB$4) -> 0 | V94: =U94+SIN(O94*PI()/180)*$V$95*P94 -> 0 | W94: =U94 -> 0 | X94: =W94+COS(O94*PI()/180)*X$95*P94 -> 0
A95: allg | E95: =2*0.866*$E$1 -> 2.57083882 | G95: =E95 -> 2.57083882 | I95: =E95 -> 2.57083882 | K95: =I95 -> 2.57083882 | N95: allg | R95: =2*0.866*$E$1 -> 2.57083882 | T95: =R95 -> 2.57083882 | V95: =R95 -> 2.57083882 | X95: =V95 -> 2.57083882
B97: unverformt | AE97: verformt
A98: Feder vertikal | C98: x - Koordinaten der Feder | J98: x - Koordinaten des Auflager | P98: y - Koordinaten der Feder | W98: y - Koordinaten des Auflager | AD98: Feder vertikal | AF98: x - Koordinaten der Feder | AM98: x - Koordinaten des Auflager | AS98: y - Koordinaten der Feder | AZ98: y - Koordinaten des Auflager
A99: 1 | B99: =IF(Knoten!R3>0,1,0) -> 0 | C99: =IF(ISNUMBER(Knoten!C3),(Knoten!C3-$U$1)*B99,0) -> 0 | D99: =(C99-$C$119/2*COS(Knoten!W3*PI()/180)+$C$119/4*SIN(Knoten!W3*PI()/180))*B99 -> 0 | E99: =(D99+$C$119*COS(Knoten!W3*PI()/180)+$C$119/2*SIN(Knoten!W3*PI()/180))*B99 -> 0 | F99: =(E99-$C$119*COS(Knoten!W3*PI()/180)+$C$119/2*SIN(Knoten!W3*PI()/180))*B99 -> 0 | G99: =(F99+$C$119*COS(Knoten!W3*PI()/180)+$C$119/2*SIN(Knoten!W3*PI()/180))*B99 -> 0 | H99: =(G99-$C$119/2*COS(Knoten!W3*PI()/180)+$C$119/4*SIN(Knoten!W3*PI()/180))*B99 -> 0 | I99: =(H99+$C$119/4*SIN(Knoten!W3*PI()/180))*B99 -> 0 | J99: =I99 -> 0 | K99: =(J99-$E$119/2*COS(Knoten!W3*PI()/180))*B99 -> 0 | L99: =(J99-$E$119/2*COS(Knoten!W3*PI()/180)+$E$119*SIN(Knoten!W3*PI()/180))*B99 -> 0 | M99: =(J99+$E$119/2*COS(Knoten!W3*PI()/180)+$E$119*SIN(Knoten!W3*PI()/180))*B99 -> 0 | N99: =(J99+$E$119/2*COS(Knoten!W3*PI()/180))*B99 -> 0 | O99: =J99 -> 0 | P99: =IF(ISNUMBER(Knoten!D3),(Knoten!D3-$X$1)*B99,0) -> 0 | Q99: =(P99+$C$119/4*COS(Knoten!W3*PI()/180)+$C$119/2*SIN(Knoten!W3*PI()/180))*B99 -> 0 | R99: =(Q99+$C$119/2*COS(Knoten!W3*PI()/180)-$C$119*SIN(Knoten!W3*PI()/180))*B99 -> 0 | S99: =(R99+$C$119/2*COS(Knoten!W3*PI()/180)+$C$119*SIN(Knoten!W3*PI()/180))*B99 -> 0 | T99: =(S99+$C$119/2*COS(Knoten!W3*PI()/180)-$C$119*SIN(Knoten!W3*PI()/180))*B99 -> 0 | U99: =(T99+$C$119/4*COS(Knoten!W3*PI()/180)+$C$119/2*SIN(Knoten!W3*PI()/180))*B99 -> 0 | V99: =(U99+$C$119/4*COS(Knoten!W3*PI()/180))*B99 -> 0 | W99: =V99 -> 0 | X99: =(W99+$E$119/2*SIN(Knoten!W3*PI()/180))*B99 -> 0 | Y99: =(W99+$E$119/2*SIN(Knoten!W3*PI()/180)+$E$119*COS(Knoten!W3*PI()/180))*B99 -> 0 | Z99: =(W99-$E$119/2*SIN(Knoten!W3*PI()/180)+$E$119*COS(Knoten!W3*PI()/180))*B99 -> 0 | AA99: =(W99-$E$119/2*SIN(Knoten!W3*PI()/180))*B99 -> 0 | AB99: =W99 -> 0 | AD99: 1 | AE99: =IF(Knoten!R3>0,1,0) -> 0 | AF99: =IF(ISNUMBER(Knoten!C3),Z6*B99,0) -> 0 | AG99: =(AF99-$C$119/2*COS(Knoten!W3*PI()/180)+$C$119/4*SIN(Knoten!W3*PI()/180))*B99 -> 0 | AH99: =(AG99+$C$119*COS(Knoten!W3*PI()/180)+$C$119/2*SIN(Knoten!W3*PI()/180))*B99 -> 0 | AI99: =(AH99-$C$119*COS(Knoten!W3*PI()/180)+$C$119/2*SIN(Knoten!W3*PI()/180))*B99 -> 0 | AJ99: =(AI99+$C$119*COS(Knoten!W3*PI()/180)+$C$119/2*SIN(Knoten!W3*PI()/180))*B99 -> 0 | AK99: =(AJ99-$C$119/2*COS(Knoten!W3*PI()/180)+$C$119/4*SIN(Knoten!W3*PI()/180))*B99 -> 0 | AL99: =(AK99+$C$119/4*SIN(Knoten!W3*PI()/180))*B99 -> 0 | AM99: =AL99 -> 0 | AN99: =(AM99-$E$119/2*COS(Knoten!W3*PI()/180))*B99 -> 0 | AO99: =(AM99-$E$119/2*COS(Knoten!W3*PI()/180)+$E$119*SIN(Knoten!W3*PI()/180))*B99 -> 0 | AP99: =(AM99+$E$119/2*COS(Knoten!W3*PI()/180)+$E$119*SIN(Knoten!W3*PI()/180))*B99 -> 0 | AQ99: =(AM99+$E$119/2*COS(Knoten!W3*PI()/180))*B99 -> 0 | AR99: =AM99 -> 0 | AS99: =IF(ISNUMBER(Knoten!D3),AA6*B99,0) -> 0 | AT99: =(AS99+$C$119/4*COS(Knoten!W3*PI()/180)+$C$119/2*SIN(Knoten!W3*PI()/180))*B99 -> 0 | AU99: =(AT99+$C$119/2*COS(Knoten!W3*PI()/180)-$C$119*SIN(Knoten!W3*PI()/180))*B99 -> 0 | AV99: =(AU99+$C$119/2*COS(Knoten!W3*PI()/180)+$C$119*SIN(Knoten!W3*PI()/180))*B99 -> 0 | AW99: =(AV99+$C$119/2*COS(Knoten!W3*PI()/180)-$C$119*SIN(Knoten!W3*PI()/180))*B99 -> 0 | AX99: =(AW99+$C$119/4*COS(Knoten!W3*PI()/180)+$C$119/2*SIN(Knoten!W3*PI()/180))*B99 -> 0 | AY99: =(AX99+$C$119/4*COS(Knoten!W3*PI()/180))*B99 -> 0 | AZ99: =AY99 -> 0 | BA99: =(AZ99+$E$119/2*SIN(Knoten!W3*PI()/180))*B99 -> 0 | BB99: =(AZ99+$E$119/2*SIN(Knoten!W3*PI()/180)+$E$119*COS(Knoten!W3*PI()/180))*B99 -> 0 | BC99: =(AZ99-$E$119/2*SIN(Knoten!W3*PI()/180)+$E$119*COS(Knoten!W3*PI()/180))*B99 -> 0 | BD99: =(AZ99-$E$119/2*SIN(Knoten!W3*PI()/180))*B99 -> 0 | BE99: =AZ99 -> 0
A100: 2 | B100: =IF(Knoten!R4>0,1,0) -> 0 | C100: =IF(ISNUMBER(Knoten!C4),(Knoten!C4-$U$1)*B100,0) -> 0 | D100: =(C100-$C$119/2*COS(Knoten!W4*PI()/180)+$C$119/4*SIN(Knoten!W4*PI()/180))*B100 -> 0 | E100: =(D100+$C$119*COS(Knoten!W4*PI()/180)+$C$119/2*SIN(Knoten!W4*PI()/180))*B100 -> 0 | F100: =(E100-$C$119*COS(Knoten!W4*PI()/180)+$C$119/2*SIN(Knoten!W4*PI()/180))*B100 -> 0 | G100: =(F100+$C$119*COS(Knoten!W4*PI()/180)+$C$119/2*SIN(Knoten!W4*PI()/180))*B100 -> 0 | H100: =(G100-$C$119/2*COS(Knoten!W4*PI()/180)+$C$119/4*SIN(Knoten!W4*PI()/180))*B100 -> 0 | I100: =(H100+$C$119/4*SIN(Knoten!W4*PI()/180))*B100 -> 0 | J100: 0 | K100: =(J100-$E$119/2*COS(Knoten!W4*PI()/180))*B100 -> 0 | L100: =(J100-$E$119/2*COS(Knoten!W4*PI()/180)+$E$119*SIN(Knoten!W4*PI()/180))*B100 -> 0 | M100: =(J100+$E$119/2*COS(Knoten!W4*PI()/180)+$E$119*SIN(Knoten!W4*PI()/180))*B100 -> 0 | N100: =(J100+$E$119/2*COS(Knoten!W4*PI()/180))*B100 -> 0 | O100: 0 | P100: =IF(ISNUMBER(Knoten!D4),(Knoten!D4-$X$1)*B100,0) -> 0 | Q100: =(P100+$C$119/4*COS(Knoten!W4*PI()/180)+$C$119/2*SIN(Knoten!W4*PI()/180))*B100 -> 0 | R100: =(Q100+$C$119/2*COS(Knoten!W4*PI()/180)-$C$119*SIN(Knoten!W4*PI()/180))*B100 -> 0 | S100: =(R100+$C$119/2*COS(Knoten!W4*PI()/180)+$C$119*SIN(Knoten!W4*PI()/180))*B100 -> 0 | T100: =(S100+$C$119/2*COS(Knoten!W4*PI()/180)-$C$119*SIN(Knoten!W4*PI()/180))*B100 -> 0 | U100: =(T100+$C$119/4*COS(Knoten!W4*PI()/180)+$C$119/2*SIN(Knoten!W4*PI()/180))*B100 -> 0 | V100: =(U100+$C$119/4*COS(Knoten!W4*PI()/180))*B100 -> 0 | W100: 0 | X100: =(W100+$E$119/2*SIN(Knoten!W4*PI()/180))*B100 -> 0 | Y100: =(W100+$E$119/2*SIN(Knoten!W4*PI()/180)+$E$119*COS(Knoten!W4*PI()/180))*B100 -> 0 | Z100: =(W100-$E$119/2*SIN(Knoten!W4*PI()/180)+$E$119*COS(Knoten!W4*PI()/180))*B100 -> 0 | AA100: =(W100-$E$119/2*SIN(Knoten!W4*PI()/180))*B100 -> 0 | AB100: 0 | AD100: 2 | AE100: =IF(Knoten!R4>0,1,0) -> 0 | AF100: =IF(ISNUMBER(Knoten!C4),Z7*B100,0) -> 0 | AG100: =(AF100-$C$119/2*COS(Knoten!W4*PI()/180)+$C$119/4*SIN(Knoten!W4*PI()/180))*B100 -> 0 | AH100: =(AG100+$C$119*COS(Knoten!W4*PI()/180)+$C$119/2*SIN(Knoten!W4*PI()/180))*B100 -> 0 | AI100: =(AH100-$C$119*COS(Knoten!W4*PI()/180)+$C$119/2*SIN(Knoten!W4*PI()/180))*B100 -> 0 | AJ100: =(AI100+$C$119*COS(Knoten!W4*PI()/180)+$C$119/2*SIN(Knoten!W4*PI()/180))*B100 -> 0 | AK100: =(AJ100-$C$119/2*COS(Knoten!W4*PI()/180)+$C$119/4*SIN(Knoten!W4*PI()/180))*B100 -> 0 | AL100: =(AK100+$C$119/4*SIN(Knoten!W4*PI()/180))*B100 -> 0 | AM100: 0 | AN100: =(AM100-$E$119/2*COS(Knoten!W4*PI()/180))*B100 -> 0 | AO100: =(AM100-$E$119/2*COS(Knoten!W4*PI()/180)+$E$119*SIN(Knoten!W4*PI()/180))*B100 -> 0 | AP100: =(AM100+$E$119/2*COS(Knoten!W4*PI()/180)+$E$119*SIN(Knoten!W4*PI()/180))*B100 -> 0 | AQ100: =(AM100+$E$119/2*COS(Knoten!W4*PI()/180))*B100 -> 0 | AR100: 0 | AS100: =IF(ISNUMBER(Knoten!D4),AA7*B100,0) -> 0 | AT100: =(AS100+$C$119/4*COS(Knoten!W4*PI()/180)+$C$119/2*SIN(Knoten!W4*PI()/180))*B100 -> 0 | AU100: =(AT100+$C$119/2*COS(Knoten!W4*PI()/180)-$C$119*SIN(Knoten!W4*PI()/180))*B100 -> 0 | AV100: =(AU100+$C$119/2*COS(Knoten!W4*PI()/180)+$C$119*SIN(Knoten!W4*PI()/180))*B100 -> 0 | AW100: =(AV100+$C$119/2*COS(Knoten!W4*PI()/180)-$C$119*SIN(Knoten!W4*PI()/180))*B100 -> 0 | AX100: =(AW100+$C$119/4*COS(Knoten!W4*PI()/180)+$C$119/2*SIN(Knoten!W4*PI()/180))*B100 -> 0 | AY100: =(AX100+$C$119/4*COS(Knoten!W4*PI()/180))*B100 -> 0 | AZ100: 0 | BA100: =(AZ100+$E$119/2*SIN(Knoten!W4*PI()/180))*B100 -> 0 | BB100: =(AZ100+$E$119/2*SIN(Knoten!W4*PI()/180)+$E$119*COS(Knoten!W4*PI()/180))*B100 -> 0 | BC100: =(AZ100-$E$119/2*SIN(Knoten!W4*PI()/180)+$E$119*COS(Knoten!W4*PI()/180))*B100 -> 0 | BD100: =(AZ100-$E$119/2*SIN(Knoten!W4*PI()/180))*B100 -> 0 | BE100: 0
A101: 3 | B101: =IF(Knoten!R5>0,1,0) -> 0 | C101: =IF(ISNUMBER(Knoten!C5),(Knoten!C5-$U$1)*B101,0) -> 0 | D101: =(C101-$C$119/2*COS(Knoten!W5*PI()/180)+$C$119/4*SIN(Knoten!W5*PI()/180))*B101 -> 0 | E101: =(D101+$C$119*COS(Knoten!W5*PI()/180)+$C$119/2*SIN(Knoten!W5*PI()/180))*B101 -> 0 | F101: =(E101-$C$119*COS(Knoten!W5*PI()/180)+$C$119/2*SIN(Knoten!W5*PI()/180))*B101 -> 0 | G101: =(F101+$C$119*COS(Knoten!W5*PI()/180)+$C$119/2*SIN(Knoten!W5*PI()/180))*B101 -> 0 | H101: =(G101-$C$119/2*COS(Knoten!W5*PI()/180)+$C$119/4*SIN(Knoten!W5*PI()/180))*B101 -> 0 | I101: =(H101+$C$119/4*SIN(Knoten!W5*PI()/180))*B101 -> 0 | J101: 0 | K101: =(J101-$E$119/2*COS(Knoten!W5*PI()/180))*B101 -> 0 | L101: =(J101-$E$119/2*COS(Knoten!W5*PI()/180)+$E$119*SIN(Knoten!W5*PI()/180))*B101 -> 0 | M101: =(J101+$E$119/2*COS(Knoten!W5*PI()/180)+$E$119*SIN(Knoten!W5*PI()/180))*B101 -> 0 | N101: =(J101+$E$119/2*COS(Knoten!W5*PI()/180))*B101 -> 0 | O101: 0 | P101: =IF(ISNUMBER(Knoten!D5),(Knoten!D5-$X$1)*B101,0) -> 0 | Q101: =(P101+$C$119/4*COS(Knoten!W5*PI()/180)+$C$119/2*SIN(Knoten!W5*PI()/180))*B101 -> 0 | R101: =(Q101+$C$119/2*COS(Knoten!W5*PI()/180)-$C$119*SIN(Knoten!W5*PI()/180))*B101 -> 0 | S101: =(R101+$C$119/2*COS(Knoten!W5*PI()/180)+$C$119*SIN(Knoten!W5*PI()/180))*B101 -> 0 | T101: =(S101+$C$119/2*COS(Knoten!W5*PI()/180)-$C$119*SIN(Knoten!W5*PI()/180))*B101 -> 0 | U101: =(T101+$C$119/4*COS(Knoten!W5*PI()/180)+$C$119/2*SIN(Knoten!W5*PI()/180))*B101 -> 0 | V101: =(U101+$C$119/4*COS(Knoten!W5*PI()/180))*B101 -> 0 | W101: 0 | X101: =(W101+$E$119/2*SIN(Knoten!W5*PI()/180))*B101 -> 0 | Y101: =(W101+$E$119/2*SIN(Knoten!W5*PI()/180)+$E$119*COS(Knoten!W5*PI()/180))*B101 -> 0 | Z101: =(W101-$E$119/2*SIN(Knoten!W5*PI()/180)+$E$119*COS(Knoten!W5*PI()/180))*B101 -> 0 | AA101: =(W101-$E$119/2*SIN(Knoten!W5*PI()/180))*B101 -> 0 | AB101: 0 | AD101: 3 | AE101: =IF(Knoten!R5>0,1,0) -> 0 | AF101: =IF(ISNUMBER(Knoten!C5),Z8*B101,0) -> 0 | AG101: =(AF101-$C$119/2*COS(Knoten!W5*PI()/180)+$C$119/4*SIN(Knoten!W5*PI()/180))*B101 -> 0 | AH101: =(AG101+$C$119*COS(Knoten!W5*PI()/180)+$C$119/2*SIN(Knoten!W5*PI()/180))*B101 -> 0 | AI101: =(AH101-$C$119*COS(Knoten!W5*PI()/180)+$C$119/2*SIN(Knoten!W5*PI()/180))*B101 -> 0 | AJ101: =(AI101+$C$119*COS(Knoten!W5*PI()/180)+$C$119/2*SIN(Knoten!W5*PI()/180))*B101 -> 0 | AK101: =(AJ101-$C$119/2*COS(Knoten!W5*PI()/180)+$C$119/4*SIN(Knoten!W5*PI()/180))*B101 -> 0 | AL101: =(AK101+$C$119/4*SIN(Knoten!W5*PI()/180))*B101 -> 0 | AM101: 0 | AN101: =(AM101-$E$119/2*COS(Knoten!W5*PI()/180))*B101 -> 0 | AO101: =(AM101-$E$119/2*COS(Knoten!W5*PI()/180)+$E$119*SIN(Knoten!W5*PI()/180))*B101 -> 0 | AP101: =(AM101+$E$119/2*COS(Knoten!W5*PI()/180)+$E$119*SIN(Knoten!W5*PI()/180))*B101 -> 0 | AQ101: =(AM101+$E$119/2*COS(Knoten!W5*PI()/180))*B101 -> 0 | AR101: 0 | AS101: =IF(ISNUMBER(Knoten!D5),AA8*B101,0) -> 0 | AT101: =(AS101+$C$119/4*COS(Knoten!W5*PI()/180)+$C$119/2*SIN(Knoten!W5*PI()/180))*B101 -> 0 | AU101: =(AT101+$C$119/2*COS(Knoten!W5*PI()/180)-$C$119*SIN(Knoten!W5*PI()/180))*B101 -> 0 | AV101: =(AU101+$C$119/2*COS(Knoten!W5*PI()/180)+$C$119*SIN(Knoten!W5*PI()/180))*B101 -> 0 | AW101: =(AV101+$C$119/2*COS(Knoten!W5*PI()/180)-$C$119*SIN(Knoten!W5*PI()/180))*B101 -> 0 | AX101: =(AW101+$C$119/4*COS(Knoten!W5*PI()/180)+$C$119/2*SIN(Knoten!W5*PI()/180))*B101 -> 0 | AY101: =(AX101+$C$119/4*COS(Knoten!W5*PI()/180))*B101 -> 0 | AZ101: 0 | BA101: =(AZ101+$E$119/2*SIN(Knoten!W5*PI()/180))*B101 -> 0 | BB101: =(AZ101+$E$119/2*SIN(Knoten!W5*PI()/180)+$E$119*COS(Knoten!W5*PI()/180))*B101 -> 0 | BC101: =(AZ101-$E$119/2*SIN(Knoten!W5*PI()/180)+$E$119*COS(Knoten!W5*PI()/180))*B101 -> 0 | BD101: =(AZ101-$E$119/2*SIN(Knoten!W5*PI()/180))*B101 -> 0 | BE101: 0
A102: 4 | B102: =IF(Knoten!R6>0,1,0) -> 0 | C102: =IF(ISNUMBER(Knoten!C6),(Knoten!C6-$U$1)*B102,0) -> 0 | D102: =(C102-$C$119/2*COS(Knoten!W6*PI()/180)+$C$119/4*SIN(Knoten!W6*PI()/180))*B102 -> 0 | E102: =(D102+$C$119*COS(Knoten!W6*PI()/180)+$C$119/2*SIN(Knoten!W6*PI()/180))*B102 -> 0 | F102: =(E102-$C$119*COS(Knoten!W6*PI()/180)+$C$119/2*SIN(Knoten!W6*PI()/180))*B102 -> 0 | G102: =(F102+$C$119*COS(Knoten!W6*PI()/180)+$C$119/2*SIN(Knoten!W6*PI()/180))*B102 -> 0 | H102: =(G102-$C$119/2*COS(Knoten!W6*PI()/180)+$C$119/4*SIN(Knoten!W6*PI()/180))*B102 -> 0 | I102: =(H102+$C$119/4*SIN(Knoten!W6*PI()/180))*B102 -> 0 | J102: 0 | K102: =(J102-$E$119/2*COS(Knoten!W6*PI()/180))*B102 -> 0 | L102: =(J102-$E$119/2*COS(Knoten!W6*PI()/180)+$E$119*SIN(Knoten!W6*PI()/180))*B102 -> 0 | M102: =(J102+$E$119/2*COS(Knoten!W6*PI()/180)+$E$119*SIN(Knoten!W6*PI()/180))*B102 -> 0 | N102: =(J102+$E$119/2*COS(Knoten!W6*PI()/180))*B102 -> 0 | O102: 0 | P102: =IF(ISNUMBER(Knoten!D6),(Knoten!D6-$X$1)*B102,0) -> 0 | Q102: =(P102+$C$119/4*COS(Knoten!W6*PI()/180)+$C$119/2*SIN(Knoten!W6*PI()/180))*B102 -> 0 | R102: =(Q102+$C$119/2*COS(Knoten!W6*PI()/180)-$C$119*SIN(Knoten!W6*PI()/180))*B102 -> 0 | S102: =(R102+$C$119/2*COS(Knoten!W6*PI()/180)+$C$119*SIN(Knoten!W6*PI()/180))*B102 -> 0 | T102: =(S102+$C$119/2*COS(Knoten!W6*PI()/180)-$C$119*SIN(Knoten!W6*PI()/180))*B102 -> 0 | U102: =(T102+$C$119/4*COS(Knoten!W6*PI()/180)+$C$119/2*SIN(Knoten!W6*PI()/180))*B102 -> 0 | V102: =(U102+$C$119/4*COS(Knoten!W6*PI()/180))*B102 -> 0 | W102: 0 | X102: =(W102+$E$119/2*SIN(Knoten!W6*PI()/180))*B102 -> 0 | Y102: =(W102+$E$119/2*SIN(Knoten!W6*PI()/180)+$E$119*COS(Knoten!W6*PI()/180))*B102 -> 0 | Z102: =(W102-$E$119/2*SIN(Knoten!W6*PI()/180)+$E$119*COS(Knoten!W6*PI()/180))*B102 -> 0 | AA102: =(W102-$E$119/2*SIN(Knoten!W6*PI()/180))*B102 -> 0 | AB102: 0 | AD102: 4 | AE102: =IF(Knoten!R6>0,1,0) -> 0 | AF102: =IF(ISNUMBER(Knoten!C6),Z9*B102,0) -> 0 | AG102: =(AF102-$C$119/2*COS(Knoten!W6*PI()/180)+$C$119/4*SIN(Knoten!W6*PI()/180))*B102 -> 0 | AH102: =(AG102+$C$119*COS(Knoten!W6*PI()/180)+$C$119/2*SIN(Knoten!W6*PI()/180))*B102 -> 0 | AI102: =(AH102-$C$119*COS(Knoten!W6*PI()/180)+$C$119/2*SIN(Knoten!W6*PI()/180))*B102 -> 0 | AJ102: =(AI102+$C$119*COS(Knoten!W6*PI()/180)+$C$119/2*SIN(Knoten!W6*PI()/180))*B102 -> 0 | AK102: =(AJ102-$C$119/2*COS(Knoten!W6*PI()/180)+$C$119/4*SIN(Knoten!W6*PI()/180))*B102 -> 0 | AL102: =(AK102+$C$119/4*SIN(Knoten!W6*PI()/180))*B102 -> 0 | AM102: 0 | AN102: =(AM102-$E$119/2*COS(Knoten!W6*PI()/180))*B102 -> 0 | AO102: =(AM102-$E$119/2*COS(Knoten!W6*PI()/180)+$E$119*SIN(Knoten!W6*PI()/180))*B102 -> 0 | AP102: =(AM102+$E$119/2*COS(Knoten!W6*PI()/180)+$E$119*SIN(Knoten!W6*PI()/180))*B102 -> 0 | AQ102: =(AM102+$E$119/2*COS(Knoten!W6*PI()/180))*B102 -> 0 | AR102: 0 | AS102: =IF(ISNUMBER(Knoten!D6),AA9*B102,0) -> 0 | AT102: =(AS102+$C$119/4*COS(Knoten!W6*PI()/180)+$C$119/2*SIN(Knoten!W6*PI()/180))*B102 -> 0 | AU102: =(AT102+$C$119/2*COS(Knoten!W6*PI()/180)-$C$119*SIN(Knoten!W6*PI()/180))*B102 -> 0 | AV102: =(AU102+$C$119/2*COS(Knoten!W6*PI()/180)+$C$119*SIN(Knoten!W6*PI()/180))*B102 -> 0 | AW102: =(AV102+$C$119/2*COS(Knoten!W6*PI()/180)-$C$119*SIN(Knoten!W6*PI()/180))*B102 -> 0 | AX102: =(AW102+$C$119/4*COS(Knoten!W6*PI()/180)+$C$119/2*SIN(Knoten!W6*PI()/180))*B102 -> 0 | AY102: =(AX102+$C$119/4*COS(Knoten!W6*PI()/180))*B102 -> 0 | AZ102: 0 | BA102: =(AZ102+$E$119/2*SIN(Knoten!W6*PI()/180))*B102 -> 0 | BB102: =(AZ102+$E$119/2*SIN(Knoten!W6*PI()/180)+$E$119*COS(Knoten!W6*PI()/180))*B102 -> 0 | BC102: =(AZ102-$E$119/2*SIN(Knoten!W6*PI()/180)+$E$119*COS(Knoten!W6*PI()/180))*B102 -> 0 | BD102: =(AZ102-$E$119/2*SIN(Knoten!W6*PI()/180))*B102 -> 0 | BE102: 0
A103: 5 | B103: =IF(Knoten!R7>0,1,0) -> 0 | C103: =IF(ISNUMBER(Knoten!C7),(Knoten!C7-$U$1)*B103,0) -> 0 | D103: =(C103-$C$119/2*COS(Knoten!W7*PI()/180)+$C$119/4*SIN(Knoten!W7*PI()/180))*B103 -> 0 | E103: =(D103+$C$119*COS(Knoten!W7*PI()/180)+$C$119/2*SIN(Knoten!W7*PI()/180))*B103 -> 0 | F103: =(E103-$C$119*COS(Knoten!W7*PI()/180)+$C$119/2*SIN(Knoten!W7*PI()/180))*B103 -> 0 | G103: =(F103+$C$119*COS(Knoten!W7*PI()/180)+$C$119/2*SIN(Knoten!W7*PI()/180))*B103 -> 0 | H103: =(G103-$C$119/2*COS(Knoten!W7*PI()/180)+$C$119/4*SIN(Knoten!W7*PI()/180))*B103 -> 0 | I103: =(H103+$C$119/4*SIN(Knoten!W7*PI()/180))*B103 -> 0 | J103: 0 | K103: =(J103-$E$119/2*COS(Knoten!W7*PI()/180))*B103 -> 0 | L103: =(J103-$E$119/2*COS(Knoten!W7*PI()/180)+$E$119*SIN(Knoten!W7*PI()/180))*B103 -> 0 | M103: =(J103+$E$119/2*COS(Knoten!W7*PI()/180)+$E$119*SIN(Knoten!W7*PI()/180))*B103 -> 0 | N103: =(J103+$E$119/2*COS(Knoten!W7*PI()/180))*B103 -> 0 | O103: 0 | P103: =IF(ISNUMBER(Knoten!D7),(Knoten!D7-$X$1)*B103,0) -> 0 | Q103: =(P103+$C$119/4*COS(Knoten!W7*PI()/180)+$C$119/2*SIN(Knoten!W7*PI()/180))*B103 -> 0 | R103: =(Q103+$C$119/2*COS(Knoten!W7*PI()/180)-$C$119*SIN(Knoten!W7*PI()/180))*B103 -> 0 | S103: =(R103+$C$119/2*COS(Knoten!W7*PI()/180)+$C$119*SIN(Knoten!W7*PI()/180))*B103 -> 0 | T103: =(S103+$C$119/2*COS(Knoten!W7*PI()/180)-$C$119*SIN(Knoten!W7*PI()/180))*B103 -> 0 | U103: =(T103+$C$119/4*COS(Knoten!W7*PI()/180)+$C$119/2*SIN(Knoten!W7*PI()/180))*B103 -> 0 | V103: =(U103+$C$119/4*COS(Knoten!W7*PI()/180))*B103 -> 0 | W103: 0 | X103: =(W103+$E$119/2*SIN(Knoten!W7*PI()/180))*B103 -> 0 | Y103: =(W103+$E$119/2*SIN(Knoten!W7*PI()/180)+$E$119*COS(Knoten!W7*PI()/180))*B103 -> 0 | Z103: =(W103-$E$119/2*SIN(Knoten!W7*PI()/180)+$E$119*COS(Knoten!W7*PI()/180))*B103 -> 0 | AA103: =(W103-$E$119/2*SIN(Knoten!W7*PI()/180))*B103 -> 0 | AB103: 0 | AD103: 5 | AE103: =IF(Knoten!R7>0,1,0) -> 0 | AF103: =IF(ISNUMBER(Knoten!C7),Z10*B103,0) -> 0 | AG103: =(AF103-$C$119/2*COS(Knoten!W7*PI()/180)+$C$119/4*SIN(Knoten!W7*PI()/180))*B103 -> 0 | AH103: =(AG103+$C$119*COS(Knoten!W7*PI()/180)+$C$119/2*SIN(Knoten!W7*PI()/180))*B103 -> 0 | AI103: =(AH103-$C$119*COS(Knoten!W7*PI()/180)+$C$119/2*SIN(Knoten!W7*PI()/180))*B103 -> 0 | AJ103: =(AI103+$C$119*COS(Knoten!W7*PI()/180)+$C$119/2*SIN(Knoten!W7*PI()/180))*B103 -> 0 | AK103: =(AJ103-$C$119/2*COS(Knoten!W7*PI()/180)+$C$119/4*SIN(Knoten!W7*PI()/180))*B103 -> 0 | AL103: =(AK103+$C$119/4*SIN(Knoten!W7*PI()/180))*B103 -> 0 | AM103: 0 | AN103: =(AM103-$E$119/2*COS(Knoten!W7*PI()/180))*B103 -> 0 | AO103: =(AM103-$E$119/2*COS(Knoten!W7*PI()/180)+$E$119*SIN(Knoten!W7*PI()/180))*B103 -> 0 | AP103: =(AM103+$E$119/2*COS(Knoten!W7*PI()/180)+$E$119*SIN(Knoten!W7*PI()/180))*B103 -> 0 | AQ103: =(AM103+$E$119/2*COS(Knoten!W7*PI()/180))*B103 -> 0 | AR103: 0 | AS103: =IF(ISNUMBER(Knoten!D7),AA10*B103,0) -> 0 | AT103: =(AS103+$C$119/4*COS(Knoten!W7*PI()/180)+$C$119/2*SIN(Knoten!W7*PI()/180))*B103 -> 0 | AU103: =(AT103+$C$119/2*COS(Knoten!W7*PI()/180)-$C$119*SIN(Knoten!W7*PI()/180))*B103 -> 0 | AV103: =(AU103+$C$119/2*COS(Knoten!W7*PI()/180)+$C$119*SIN(Knoten!W7*PI()/180))*B103 -> 0 | AW103: =(AV103+$C$119/2*COS(Knoten!W7*PI()/180)-$C$119*SIN(Knoten!W7*PI()/180))*B103 -> 0 | AX103: =(AW103+$C$119/4*COS(Knoten!W7*PI()/180)+$C$119/2*SIN(Knoten!W7*PI()/180))*B103 -> 0 | AY103: =(AX103+$C$119/4*COS(Knoten!W7*PI()/180))*B103 -> 0 | AZ103: 0 | BA103: =(AZ103+$E$119/2*SIN(Knoten!W7*PI()/180))*B103 -> 0 | BB103: =(AZ103+$E$119/2*SIN(Knoten!W7*PI()/180)+$E$119*COS(Knoten!W7*PI()/180))*B103 -> 0 | BC103: =(AZ103-$E$119/2*SIN(Knoten!W7*PI()/180)+$E$119*COS(Knoten!W7*PI()/180))*B103 -> 0 | BD103: =(AZ103-$E$119/2*SIN(Knoten!W7*PI()/180))*B103 -> 0 | BE103: 0
A104: 6 | B104: =IF(Knoten!R8>0,1,0) -> 0 | C104: =IF(ISNUMBER(Knoten!C8),(Knoten!C8-$U$1)*B104,0) -> 0 | D104: =(C104-$C$119/2*COS(Knoten!W8*PI()/180)+$C$119/4*SIN(Knoten!W8*PI()/180))*B104 -> 0 | E104: =(D104+$C$119*COS(Knoten!W8*PI()/180)+$C$119/2*SIN(Knoten!W8*PI()/180))*B104 -> 0 | F104: =(E104-$C$119*COS(Knoten!W8*PI()/180)+$C$119/2*SIN(Knoten!W8*PI()/180))*B104 -> 0 | G104: =(F104+$C$119*COS(Knoten!W8*PI()/180)+$C$119/2*SIN(Knoten!W8*PI()/180))*B104 -> 0 | H104: =(G104-$C$119/2*COS(Knoten!W8*PI()/180)+$C$119/4*SIN(Knoten!W8*PI()/180))*B104 -> 0 | I104: =(H104+$C$119/4*SIN(Knoten!W8*PI()/180))*B104 -> 0 | J104: 0 | K104: =(J104-$E$119/2*COS(Knoten!W8*PI()/180))*B104 -> 0 | L104: =(J104-$E$119/2*COS(Knoten!W8*PI()/180)+$E$119*SIN(Knoten!W8*PI()/180))*B104 -> 0 | M104: =(J104+$E$119/2*COS(Knoten!W8*PI()/180)+$E$119*SIN(Knoten!W8*PI()/180))*B104 -> 0 | N104: =(J104+$E$119/2*COS(Knoten!W8*PI()/180))*B104 -> 0 | O104: 0 | P104: =IF(ISNUMBER(Knoten!D8),(Knoten!D8-$X$1)*B104,0) -> 0 | Q104: =(P104+$C$119/4*COS(Knoten!W8*PI()/180)+$C$119/2*SIN(Knoten!W8*PI()/180))*B104 -> 0 | R104: =(Q104+$C$119/2*COS(Knoten!W8*PI()/180)-$C$119*SIN(Knoten!W8*PI()/180))*B104 -> 0 | S104: =(R104+$C$119/2*COS(Knoten!W8*PI()/180)+$C$119*SIN(Knoten!W8*PI()/180))*B104 -> 0 | T104: =(S104+$C$119/2*COS(Knoten!W8*PI()/180)-$C$119*SIN(Knoten!W8*PI()/180))*B104 -> 0 | U104: =(T104+$C$119/4*COS(Knoten!W8*PI()/180)+$C$119/2*SIN(Knoten!W8*PI()/180))*B104 -> 0 | V104: =(U104+$C$119/4*COS(Knoten!W8*PI()/180))*B104 -> 0 | W104: 0 | X104: =(W104+$E$119/2*SIN(Knoten!W8*PI()/180))*B104 -> 0 | Y104: =(W104+$E$119/2*SIN(Knoten!W8*PI()/180)+$E$119*COS(Knoten!W8*PI()/180))*B104 -> 0 | Z104: =(W104-$E$119/2*SIN(Knoten!W8*PI()/180)+$E$119*COS(Knoten!W8*PI()/180))*B104 -> 0 | AA104: =(W104-$E$119/2*SIN(Knoten!W8*PI()/180))*B104 -> 0 | AB104: 0 | AD104: 6 | AE104: =IF(Knoten!R8>0,1,0) -> 0 | AF104: =IF(ISNUMBER(Knoten!C8),Z11*B104,0) -> 0 | AG104: =(AF104-$C$119/2*COS(Knoten!W8*PI()/180)+$C$119/4*SIN(Knoten!W8*PI()/180))*B104 -> 0 | AH104: =(AG104+$C$119*COS(Knoten!W8*PI()/180)+$C$119/2*SIN(Knoten!W8*PI()/180))*B104 -> 0 | AI104: =(AH104-$C$119*COS(Knoten!W8*PI()/180)+$C$119/2*SIN(Knoten!W8*PI()/180))*B104 -> 0 | AJ104: =(AI104+$C$119*COS(Knoten!W8*PI()/180)+$C$119/2*SIN(Knoten!W8*PI()/180))*B104 -> 0 | AK104: =(AJ104-$C$119/2*COS(Knoten!W8*PI()/180)+$C$119/4*SIN(Knoten!W8*PI()/180))*B104 -> 0 | AL104: =(AK104+$C$119/4*SIN(Knoten!W8*PI()/180))*B104 -> 0 | AM104: 0 | AN104: =(AM104-$E$119/2*COS(Knoten!W8*PI()/180))*B104 -> 0 | AO104: =(AM104-$E$119/2*COS(Knoten!W8*PI()/180)+$E$119*SIN(Knoten!W8*PI()/180))*B104 -> 0 | AP104: =(AM104+$E$119/2*COS(Knoten!W8*PI()/180)+$E$119*SIN(Knoten!W8*PI()/180))*B104 -> 0 | AQ104: =(AM104+$E$119/2*COS(Knoten!W8*PI()/180))*B104 -> 0 | AR104: 0 | AS104: =IF(ISNUMBER(Knoten!D8),AA11*B104,0) -> 0 | AT104: =(AS104+$C$119/4*COS(Knoten!W8*PI()/180)+$C$119/2*SIN(Knoten!W8*PI()/180))*B104 -> 0 | AU104: =(AT104+$C$119/2*COS(Knoten!W8*PI()/180)-$C$119*SIN(Knoten!W8*PI()/180))*B104 -> 0 | AV104: =(AU104+$C$119/2*COS(Knoten!W8*PI()/180)+$C$119*SIN(Knoten!W8*PI()/180))*B104 -> 0 | AW104: =(AV104+$C$119/2*COS(Knoten!W8*PI()/180)-$C$119*SIN(Knoten!W8*PI()/180))*B104 -> 0 | AX104: =(AW104+$C$119/4*COS(Knoten!W8*PI()/180)+$C$119/2*SIN(Knoten!W8*PI()/180))*B104 -> 0 | AY104: =(AX104+$C$119/4*COS(Knoten!W8*PI()/180))*B104 -> 0 | AZ104: 0 | BA104: =(AZ104+$E$119/2*SIN(Knoten!W8*PI()/180))*B104 -> 0 | BB104: =(AZ104+$E$119/2*SIN(Knoten!W8*PI()/180)+$E$119*COS(Knoten!W8*PI()/180))*B104 -> 0 | BC104: =(AZ104-$E$119/2*SIN(Knoten!W8*PI()/180)+$E$119*COS(Knoten!W8*PI()/180))*B104 -> 0 | BD104: =(AZ104-$E$119/2*SIN(Knoten!W8*PI()/180))*B104 -> 0 | BE104: 0
A105: 7 | B105: =IF(Knoten!R9>0,1,0) -> 0 | C105: =IF(ISNUMBER(Knoten!C9),(Knoten!C9-$U$1)*B105,0) -> 0 | D105: =(C105-$C$119/2*COS(Knoten!W9*PI()/180)+$C$119/4*SIN(Knoten!W9*PI()/180))*B105 -> 0 | E105: =(D105+$C$119*COS(Knoten!W9*PI()/180)+$C$119/2*SIN(Knoten!W9*PI()/180))*B105 -> 0 | F105: =(E105-$C$119*COS(Knoten!W9*PI()/180)+$C$119/2*SIN(Knoten!W9*PI()/180))*B105 -> 0 | G105: =(F105+$C$119*COS(Knoten!W9*PI()/180)+$C$119/2*SIN(Knoten!W9*PI()/180))*B105 -> 0 | H105: =(G105-$C$119/2*COS(Knoten!W9*PI()/180)+$C$119/4*SIN(Knoten!W9*PI()/180))*B105 -> 0 | I105: =(H105+$C$119/4*SIN(Knoten!W9*PI()/180))*B105 -> 0 | J105: 0 | K105: =(J105-$E$119/2*COS(Knoten!W9*PI()/180))*B105 -> 0 | L105: =(J105-$E$119/2*COS(Knoten!W9*PI()/180)+$E$119*SIN(Knoten!W9*PI()/180))*B105 -> 0 | M105: =(J105+$E$119/2*COS(Knoten!W9*PI()/180)+$E$119*SIN(Knoten!W9*PI()/180))*B105 -> 0 | N105: =(J105+$E$119/2*COS(Knoten!W9*PI()/180))*B105 -> 0 | O105: 0 | P105: =IF(ISNUMBER(Knoten!D9),(Knoten!D9-$X$1)*B105,0) -> 0 | Q105: =(P105+$C$119/4*COS(Knoten!W9*PI()/180)+$C$119/2*SIN(Knoten!W9*PI()/180))*B105 -> 0 | R105: =(Q105+$C$119/2*COS(Knoten!W9*PI()/180)-$C$119*SIN(Knoten!W9*PI()/180))*B105 -> 0 | S105: =(R105+$C$119/2*COS(Knoten!W9*PI()/180)+$C$119*SIN(Knoten!W9*PI()/180))*B105 -> 0 | T105: =(S105+$C$119/2*COS(Knoten!W9*PI()/180)-$C$119*SIN(Knoten!W9*PI()/180))*B105 -> 0 | U105: =(T105+$C$119/4*COS(Knoten!W9*PI()/180)+$C$119/2*SIN(Knoten!W9*PI()/180))*B105 -> 0 | V105: =(U105+$C$119/4*COS(Knoten!W9*PI()/180))*B105 -> 0 | W105: 0 | X105: =(W105+$E$119/2*SIN(Knoten!W9*PI()/180))*B105 -> 0 | Y105: =(W105+$E$119/2*SIN(Knoten!W9*PI()/180)+$E$119*COS(Knoten!W9*PI()/180))*B105 -> 0 | Z105: =(W105-$E$119/2*SIN(Knoten!W9*PI()/180)+$E$119*COS(Knoten!W9*PI()/180))*B105 -> 0 | AA105: =(W105-$E$119/2*SIN(Knoten!W9*PI()/180))*B105 -> 0 | AB105: 0 | AD105: 7 | AE105: =IF(Knoten!R9>0,1,0) -> 0 | AF105: =IF(ISNUMBER(Knoten!C9),Z12*B105,0) -> 0 | AG105: =(AF105-$C$119/2*COS(Knoten!W9*PI()/180)+$C$119/4*SIN(Knoten!W9*PI()/180))*B105 -> 0 | AH105: =(AG105+$C$119*COS(Knoten!W9*PI()/180)+$C$119/2*SIN(Knoten!W9*PI()/180))*B105 -> 0 | AI105: =(AH105-$C$119*COS(Knoten!W9*PI()/180)+$C$119/2*SIN(Knoten!W9*PI()/180))*B105 -> 0 | AJ105: =(AI105+$C$119*COS(Knoten!W9*PI()/180)+$C$119/2*SIN(Knoten!W9*PI()/180))*B105 -> 0 | AK105: =(AJ105-$C$119/2*COS(Knoten!W9*PI()/180)+$C$119/4*SIN(Knoten!W9*PI()/180))*B105 -> 0 | AL105: =(AK105+$C$119/4*SIN(Knoten!W9*PI()/180))*B105 -> 0 | AM105: 0 | AN105: =(AM105-$E$119/2*COS(Knoten!W9*PI()/180))*B105 -> 0 | AO105: =(AM105-$E$119/2*COS(Knoten!W9*PI()/180)+$E$119*SIN(Knoten!W9*PI()/180))*B105 -> 0 | AP105: =(AM105+$E$119/2*COS(Knoten!W9*PI()/180)+$E$119*SIN(Knoten!W9*PI()/180))*B105 -> 0 | AQ105: =(AM105+$E$119/2*COS(Knoten!W9*PI()/180))*B105 -> 0 | AR105: 0 | AS105: =IF(ISNUMBER(Knoten!D9),AA12*B105,0) -> 0 | AT105: =(AS105+$C$119/4*COS(Knoten!W9*PI()/180)+$C$119/2*SIN(Knoten!W9*PI()/180))*B105 -> 0 | AU105: =(AT105+$C$119/2*COS(Knoten!W9*PI()/180)-$C$119*SIN(Knoten!W9*PI()/180))*B105 -> 0 | AV105: =(AU105+$C$119/2*COS(Knoten!W9*PI()/180)+$C$119*SIN(Knoten!W9*PI()/180))*B105 -> 0 | AW105: =(AV105+$C$119/2*COS(Knoten!W9*PI()/180)-$C$119*SIN(Knoten!W9*PI()/180))*B105 -> 0 | AX105: =(AW105+$C$119/4*COS(Knoten!W9*PI()/180)+$C$119/2*SIN(Knoten!W9*PI()/180))*B105 -> 0 | AY105: =(AX105+$C$119/4*COS(Knoten!W9*PI()/180))*B105 -> 0 | AZ105: 0 | BA105: =(AZ105+$E$119/2*SIN(Knoten!W9*PI()/180))*B105 -> 0 | BB105: =(AZ105+$E$119/2*SIN(Knoten!W9*PI()/180)+$E$119*COS(Knoten!W9*PI()/180))*B105 -> 0 | BC105: =(AZ105-$E$119/2*SIN(Knoten!W9*PI()/180)+$E$119*COS(Knoten!W9*PI()/180))*B105 -> 0 | BD105: =(AZ105-$E$119/2*SIN(Knoten!W9*PI()/180))*B105 -> 0 | BE105: 0
A106: 8 | B106: =IF(Knoten!R10>0,1,0) -> 0 | C106: =IF(ISNUMBER(Knoten!C10),(Knoten!C10-$U$1)*B106,0) -> 0 | D106: =(C106-$C$119/2*COS(Knoten!W10*PI()/180)+$C$119/4*SIN(Knoten!W10*PI()/180))*B106 -> 0 | E106: =(D106+$C$119*COS(Knoten!W10*PI()/180)+$C$119/2*SIN(Knoten!W10*PI()/180))*B106 -> 0 | F106: =(E106-$C$119*COS(Knoten!W10*PI()/180)+$C$119/2*SIN(Knoten!W10*PI()/180))*B106 -> 0 | G106: =(F106+$C$119*COS(Knoten!W10*PI()/180)+$C$119/2*SIN(Knoten!W10*PI()/180))*B106 -> 0 | H106: =(G106-$C$119/2*COS(Knoten!W10*PI()/180)+$C$119/4*SIN(Knoten!W10*PI()/180))*B106 -> 0 | I106: =(H106+$C$119/4*SIN(Knoten!W10*PI()/180))*B106 -> 0 | J106: 0 | K106: =(J106-$E$119/2*COS(Knoten!W10*PI()/180))*B106 -> 0 | L106: =(J106-$E$119/2*COS(Knoten!W10*PI()/180)+$E$119*SIN(Knoten!W10*PI()/180))*B106 -> 0 | M106: =(J106+$E$119/2*COS(Knoten!W10*PI()/180)+$E$119*SIN(Knoten!W10*PI()/180))*B106 -> 0 | N106: =(J106+$E$119/2*COS(Knoten!W10*PI()/180))*B106 -> 0 | O106: 0 | P106: =IF(ISNUMBER(Knoten!D10),(Knoten!D10-$X$1)*B106,0) -> 0 | Q106: =(P106+$C$119/4*COS(Knoten!W10*PI()/180)+$C$119/2*SIN(Knoten!W10*PI()/180))*B106 -> 0 | R106: =(Q106+$C$119/2*COS(Knoten!W10*PI()/180)-$C$119*SIN(Knoten!W10*PI()/180))*B106 -> 0 | S106: =(R106+$C$119/2*COS(Knoten!W10*PI()/180)+$C$119*SIN(Knoten!W10*PI()/180))*B106 -> 0 | T106: =(S106+$C$119/2*COS(Knoten!W10*PI()/180)-$C$119*SIN(Knoten!W10*PI()/180))*B106 -> 0 | U106: =(T106+$C$119/4*COS(Knoten!W10*PI()/180)+$C$119/2*SIN(Knoten!W10*PI()/180))*B106 -> 0 | V106: =(U106+$C$119/4*COS(Knoten!W10*PI()/180))*B106 -> 0 | W106: 0 | X106: =(W106+$E$119/2*SIN(Knoten!W10*PI()/180))*B106 -> 0 | Y106: =(W106+$E$119/2*SIN(Knoten!W10*PI()/180)+$E$119*COS(Knoten!W10*PI()/180))*B106 -> 0 | Z106: =(W106-$E$119/2*SIN(Knoten!W10*PI()/180)+$E$119*COS(Knoten!W10*PI()/180))*B106 -> 0 | AA106: =(W106-$E$119/2*SIN(Knoten!W10*PI()/180))*B106 -> 0 | AB106: 0 | AD106: 8 | AE106: =IF(Knoten!R10>0,1,0) -> 0 | AF106: =IF(ISNUMBER(Knoten!C10),Z13*B106,0) -> 0 | AG106: =(AF106-$C$119/2*COS(Knoten!W10*PI()/180)+$C$119/4*SIN(Knoten!W10*PI()/180))*B106 -> 0 | AH106: =(AG106+$C$119*COS(Knoten!W10*PI()/180)+$C$119/2*SIN(Knoten!W10*PI()/180))*B106 -> 0 | AI106: =(AH106-$C$119*COS(Knoten!W10*PI()/180)+$C$119/2*SIN(Knoten!W10*PI()/180))*B106 -> 0 | AJ106: =(AI106+$C$119*COS(Knoten!W10*PI()/180)+$C$119/2*SIN(Knoten!W10*PI()/180))*B106 -> 0 | AK106: =(AJ106-$C$119/2*COS(Knoten!W10*PI()/180)+$C$119/4*SIN(Knoten!W10*PI()/180))*B106 -> 0 | AL106: =(AK106+$C$119/4*SIN(Knoten!W10*PI()/180))*B106 -> 0 | AM106: 0 | AN106: =(AM106-$E$119/2*COS(Knoten!W10*PI()/180))*B106 -> 0 | AO106: =(AM106-$E$119/2*COS(Knoten!W10*PI()/180)+$E$119*SIN(Knoten!W10*PI()/180))*B106 -> 0 | AP106: =(AM106+$E$119/2*COS(Knoten!W10*PI()/180)+$E$119*SIN(Knoten!W10*PI()/180))*B106 -> 0 | AQ106: =(AM106+$E$119/2*COS(Knoten!W10*PI()/180))*B106 -> 0 | AR106: 0 | AS106: =IF(ISNUMBER(Knoten!D10),AA13*B106,0) -> 0 | AT106: =(AS106+$C$119/4*COS(Knoten!W10*PI()/180)+$C$119/2*SIN(Knoten!W10*PI()/180))*B106 -> 0 | AU106: =(AT106+$C$119/2*COS(Knoten!W10*PI()/180)-$C$119*SIN(Knoten!W10*PI()/180))*B106 -> 0 | AV106: =(AU106+$C$119/2*COS(Knoten!W10*PI()/180)+$C$119*SIN(Knoten!W10*PI()/180))*B106 -> 0 | AW106: =(AV106+$C$119/2*COS(Knoten!W10*PI()/180)-$C$119*SIN(Knoten!W10*PI()/180))*B106 -> 0 | AX106: =(AW106+$C$119/4*COS(Knoten!W10*PI()/180)+$C$119/2*SIN(Knoten!W10*PI()/180))*B106 -> 0 | AY106: =(AX106+$C$119/4*COS(Knoten!W10*PI()/180))*B106 -> 0 | AZ106: 0 | BA106: =(AZ106+$E$119/2*SIN(Knoten!W10*PI()/180))*B106 -> 0 | BB106: =(AZ106+$E$119/2*SIN(Knoten!W10*PI()/180)+$E$119*COS(Knoten!W10*PI()/180))*B106 -> 0 | BC106: =(AZ106-$E$119/2*SIN(Knoten!W10*PI()/180)+$E$119*COS(Knoten!W10*PI()/180))*B106 -> 0 | BD106: =(AZ106-$E$119/2*SIN(Knoten!W10*PI()/180))*B106 -> 0 | BE106: 0
A107: 9 | B107: =IF(Knoten!R11>0,1,0) -> 0 | C107: =IF(ISNUMBER(Knoten!C11),(Knoten!C11-$U$1)*B107,0) -> 0 | D107: =(C107-$C$119/2*COS(Knoten!W11*PI()/180)+$C$119/4*SIN(Knoten!W11*PI()/180))*B107 -> 0 | E107: =(D107+$C$119*COS(Knoten!W11*PI()/180)+$C$119/2*SIN(Knoten!W11*PI()/180))*B107 -> 0 | F107: =(E107-$C$119*COS(Knoten!W11*PI()/180)+$C$119/2*SIN(Knoten!W11*PI()/180))*B107 -> 0 | G107: =(F107+$C$119*COS(Knoten!W11*PI()/180)+$C$119/2*SIN(Knoten!W11*PI()/180))*B107 -> 0 | H107: =(G107-$C$119/2*COS(Knoten!W11*PI()/180)+$C$119/4*SIN(Knoten!W11*PI()/180))*B107 -> 0 | I107: =(H107+$C$119/4*SIN(Knoten!W11*PI()/180))*B107 -> 0 | J107: 0 | K107: =(J107-$E$119/2*COS(Knoten!W11*PI()/180))*B107 -> 0 | L107: =(J107-$E$119/2*COS(Knoten!W11*PI()/180)+$E$119*SIN(Knoten!W11*PI()/180))*B107 -> 0 | M107: =(J107+$E$119/2*COS(Knoten!W11*PI()/180)+$E$119*SIN(Knoten!W11*PI()/180))*B107 -> 0 | N107: =(J107+$E$119/2*COS(Knoten!W11*PI()/180))*B107 -> 0 | O107: 0 | P107: =IF(ISNUMBER(Knoten!D11),(Knoten!D11-$X$1)*B107,0) -> 0 | Q107: =(P107+$C$119/4*COS(Knoten!W11*PI()/180)+$C$119/2*SIN(Knoten!W11*PI()/180))*B107 -> 0 | R107: =(Q107+$C$119/2*COS(Knoten!W11*PI()/180)-$C$119*SIN(Knoten!W11*PI()/180))*B107 -> 0 | S107: =(R107+$C$119/2*COS(Knoten!W11*PI()/180)+$C$119*SIN(Knoten!W11*PI()/180))*B107 -> 0 | T107: =(S107+$C$119/2*COS(Knoten!W11*PI()/180)-$C$119*SIN(Knoten!W11*PI()/180))*B107 -> 0 | U107: =(T107+$C$119/4*COS(Knoten!W11*PI()/180)+$C$119/2*SIN(Knoten!W11*PI()/180))*B107 -> 0 | V107: =(U107+$C$119/4*COS(Knoten!W11*PI()/180))*B107 -> 0 | W107: 0 | X107: =(W107+$E$119/2*SIN(Knoten!W11*PI()/180))*B107 -> 0 | Y107: =(W107+$E$119/2*SIN(Knoten!W11*PI()/180)+$E$119*COS(Knoten!W11*PI()/180))*B107 -> 0 | Z107: =(W107-$E$119/2*SIN(Knoten!W11*PI()/180)+$E$119*COS(Knoten!W11*PI()/180))*B107 -> 0 | AA107: =(W107-$E$119/2*SIN(Knoten!W11*PI()/180))*B107 -> 0 | AB107: 0 | AD107: 9 | AE107: =IF(Knoten!R11>0,1,0) -> 0 | AF107: =IF(ISNUMBER(Knoten!C11),Z14*B107,0) -> 0 | AG107: =(AF107-$C$119/2*COS(Knoten!W11*PI()/180)+$C$119/4*SIN(Knoten!W11*PI()/180))*B107 -> 0 | AH107: =(AG107+$C$119*COS(Knoten!W11*PI()/180)+$C$119/2*SIN(Knoten!W11*PI()/180))*B107 -> 0 | AI107: =(AH107-$C$119*COS(Knoten!W11*PI()/180)+$C$119/2*SIN(Knoten!W11*PI()/180))*B107 -> 0 | AJ107: =(AI107+$C$119*COS(Knoten!W11*PI()/180)+$C$119/2*SIN(Knoten!W11*PI()/180))*B107 -> 0 | AK107: =(AJ107-$C$119/2*COS(Knoten!W11*PI()/180)+$C$119/4*SIN(Knoten!W11*PI()/180))*B107 -> 0 | AL107: =(AK107+$C$119/4*SIN(Knoten!W11*PI()/180))*B107 -> 0 | AM107: 0 | AN107: =(AM107-$E$119/2*COS(Knoten!W11*PI()/180))*B107 -> 0 | AO107: =(AM107-$E$119/2*COS(Knoten!W11*PI()/180)+$E$119*SIN(Knoten!W11*PI()/180))*B107 -> 0 | AP107: =(AM107+$E$119/2*COS(Knoten!W11*PI()/180)+$E$119*SIN(Knoten!W11*PI()/180))*B107 -> 0 | AQ107: =(AM107+$E$119/2*COS(Knoten!W11*PI()/180))*B107 -> 0 | AR107: 0 | AS107: =IF(ISNUMBER(Knoten!D11),AA14*B107,0) -> 0 | AT107: =(AS107+$C$119/4*COS(Knoten!W11*PI()/180)+$C$119/2*SIN(Knoten!W11*PI()/180))*B107 -> 0 | AU107: =(AT107+$C$119/2*COS(Knoten!W11*PI()/180)-$C$119*SIN(Knoten!W11*PI()/180))*B107 -> 0 | AV107: =(AU107+$C$119/2*COS(Knoten!W11*PI()/180)+$C$119*SIN(Knoten!W11*PI()/180))*B107 -> 0 | AW107: =(AV107+$C$119/2*COS(Knoten!W11*PI()/180)-$C$119*SIN(Knoten!W11*PI()/180))*B107 -> 0 | AX107: =(AW107+$C$119/4*COS(Knoten!W11*PI()/180)+$C$119/2*SIN(Knoten!W11*PI()/180))*B107 -> 0 | AY107: =(AX107+$C$119/4*COS(Knoten!W11*PI()/180))*B107 -> 0 | AZ107: 0 | BA107: =(AZ107+$E$119/2*SIN(Knoten!W11*PI()/180))*B107 -> 0 | BB107: =(AZ107+$E$119/2*SIN(Knoten!W11*PI()/180)+$E$119*COS(Knoten!W11*PI()/180))*B107 -> 0 | BC107: =(AZ107-$E$119/2*SIN(Knoten!W11*PI()/180)+$E$119*COS(Knoten!W11*PI()/180))*B107 -> 0 | BD107: =(AZ107-$E$119/2*SIN(Knoten!W11*PI()/180))*B107 -> 0 | BE107: 0
A108: 10 | B108: =IF(Knoten!R12>0,1,0) -> 0 | C108: =IF(ISNUMBER(Knoten!C12),(Knoten!C12-$U$1)*B108,0) -> 0 | D108: =(C108-$C$119/2*COS(Knoten!W12*PI()/180)+$C$119/4*SIN(Knoten!W12*PI()/180))*B108 -> 0 | E108: =(D108+$C$119*COS(Knoten!W12*PI()/180)+$C$119/2*SIN(Knoten!W12*PI()/180))*B108 -> 0 | F108: =(E108-$C$119*COS(Knoten!W12*PI()/180)+$C$119/2*SIN(Knoten!W12*PI()/180))*B108 -> 0 | G108: =(F108+$C$119*COS(Knoten!W12*PI()/180)+$C$119/2*SIN(Knoten!W12*PI()/180))*B108 -> 0 | H108: =(G108-$C$119/2*COS(Knoten!W12*PI()/180)+$C$119/4*SIN(Knoten!W12*PI()/180))*B108 -> 0 | I108: =(H108+$C$119/4*SIN(Knoten!W12*PI()/180))*B108 -> 0 | J108: 0 | K108: =(J108-$E$119/2*COS(Knoten!W12*PI()/180))*B108 -> 0 | L108: =(J108-$E$119/2*COS(Knoten!W12*PI()/180)+$E$119*SIN(Knoten!W12*PI()/180))*B108 -> 0 | M108: =(J108+$E$119/2*COS(Knoten!W12*PI()/180)+$E$119*SIN(Knoten!W12*PI()/180))*B108 -> 0 | N108: =(J108+$E$119/2*COS(Knoten!W12*PI()/180))*B108 -> 0 | O108: 0 | P108: =IF(ISNUMBER(Knoten!D12),(Knoten!D12-$X$1)*B108,0) -> 0 | Q108: =(P108+$C$119/4*COS(Knoten!W12*PI()/180)+$C$119/2*SIN(Knoten!W12*PI()/180))*B108 -> 0 | R108: =(Q108+$C$119/2*COS(Knoten!W12*PI()/180)-$C$119*SIN(Knoten!W12*PI()/180))*B108 -> 0 | S108: =(R108+$C$119/2*COS(Knoten!W12*PI()/180)+$C$119*SIN(Knoten!W12*PI()/180))*B108 -> 0 | T108: =(S108+$C$119/2*COS(Knoten!W12*PI()/180)-$C$119*SIN(Knoten!W12*PI()/180))*B108 -> 0 | U108: =(T108+$C$119/4*COS(Knoten!W12*PI()/180)+$C$119/2*SIN(Knoten!W12*PI()/180))*B108 -> 0 | V108: =(U108+$C$119/4*COS(Knoten!W12*PI()/180))*B108 -> 0 | W108: 0 | X108: =(W108+$E$119/2*SIN(Knoten!W12*PI()/180))*B108 -> 0 | Y108: =(W108+$E$119/2*SIN(Knoten!W12*PI()/180)+$E$119*COS(Knoten!W12*PI()/180))*B108 -> 0 | Z108: =(W108-$E$119/2*SIN(Knoten!W12*PI()/180)+$E$119*COS(Knoten!W12*PI()/180))*B108 -> 0 | AA108: =(W108-$E$119/2*SIN(Knoten!W12*PI()/180))*B108 -> 0 | AB108: 0 | AD108: 10 | AE108: =IF(Knoten!R12>0,1,0) -> 0 | AF108: =IF(ISNUMBER(Knoten!C12),Z15*B108,0) -> 0 | AG108: =(AF108-$C$119/2*COS(Knoten!W12*PI()/180)+$C$119/4*SIN(Knoten!W12*PI()/180))*B108 -> 0 | AH108: =(AG108+$C$119*COS(Knoten!W12*PI()/180)+$C$119/2*SIN(Knoten!W12*PI()/180))*B108 -> 0 | AI108: =(AH108-$C$119*COS(Knoten!W12*PI()/180)+$C$119/2*SIN(Knoten!W12*PI()/180))*B108 -> 0 | AJ108: =(AI108+$C$119*COS(Knoten!W12*PI()/180)+$C$119/2*SIN(Knoten!W12*PI()/180))*B108 -> 0 | AK108: =(AJ108-$C$119/2*COS(Knoten!W12*PI()/180)+$C$119/4*SIN(Knoten!W12*PI()/180))*B108 -> 0 | AL108: =(AK108+$C$119/4*SIN(Knoten!W12*PI()/180))*B108 -> 0 | AM108: 0 | AN108: =(AM108-$E$119/2*COS(Knoten!W12*PI()/180))*B108 -> 0 | AO108: =(AM108-$E$119/2*COS(Knoten!W12*PI()/180)+$E$119*SIN(Knoten!W12*PI()/180))*B108 -> 0 | AP108: =(AM108+$E$119/2*COS(Knoten!W12*PI()/180)+$E$119*SIN(Knoten!W12*PI()/180))*B108 -> 0 | AQ108: =(AM108+$E$119/2*COS(Knoten!W12*PI()/180))*B108 -> 0 | AR108: 0 | AS108: =IF(ISNUMBER(Knoten!D12),AA15*B108,0) -> 0 | AT108: =(AS108+$C$119/4*COS(Knoten!W12*PI()/180)+$C$119/2*SIN(Knoten!W12*PI()/180))*B108 -> 0 | AU108: =(AT108+$C$119/2*COS(Knoten!W12*PI()/180)-$C$119*SIN(Knoten!W12*PI()/180))*B108 -> 0 | AV108: =(AU108+$C$119/2*COS(Knoten!W12*PI()/180)+$C$119*SIN(Knoten!W12*PI()/180))*B108 -> 0 | AW108: =(AV108+$C$119/2*COS(Knoten!W12*PI()/180)-$C$119*SIN(Knoten!W12*PI()/180))*B108 -> 0 | AX108: =(AW108+$C$119/4*COS(Knoten!W12*PI()/180)+$C$119/2*SIN(Knoten!W12*PI()/180))*B108 -> 0 | AY108: =(AX108+$C$119/4*COS(Knoten!W12*PI()/180))*B108 -> 0 | AZ108: 0 | BA108: =(AZ108+$E$119/2*SIN(Knoten!W12*PI()/180))*B108 -> 0 | BB108: =(AZ108+$E$119/2*SIN(Knoten!W12*PI()/180)+$E$119*COS(Knoten!W12*PI()/180))*B108 -> 0 | BC108: =(AZ108-$E$119/2*SIN(Knoten!W12*PI()/180)+$E$119*COS(Knoten!W12*PI()/180))*B108 -> 0 | BD108: =(AZ108-$E$119/2*SIN(Knoten!W12*PI()/180))*B108 -> 0 | BE108: 0
A109: 11 | B109: =IF(Knoten!R13>0,1,0) -> 0 | C109: =IF(ISNUMBER(Knoten!C13),(Knoten!C13-$U$1)*B109,0) -> 0 | D109: =(C109-$C$119/2*COS(Knoten!W13*PI()/180)+$C$119/4*SIN(Knoten!W13*PI()/180))*B109 -> 0 | E109: =(D109+$C$119*COS(Knoten!W13*PI()/180)+$C$119/2*SIN(Knoten!W13*PI()/180))*B109 -> 0 | F109: =(E109-$C$119*COS(Knoten!W13*PI()/180)+$C$119/2*SIN(Knoten!W13*PI()/180))*B109 -> 0 | G109: =(F109+$C$119*COS(Knoten!W13*PI()/180)+$C$119/2*SIN(Knoten!W13*PI()/180))*B109 -> 0 | H109: =(G109-$C$119/2*COS(Knoten!W13*PI()/180)+$C$119/4*SIN(Knoten!W13*PI()/180))*B109 -> 0 | I109: =(H109+$C$119/4*SIN(Knoten!W13*PI()/180))*B109 -> 0 | J109: 0 | K109: =(J109-$E$119/2*COS(Knoten!W13*PI()/180))*B109 -> 0 | L109: =(J109-$E$119/2*COS(Knoten!W13*PI()/180)+$E$119*SIN(Knoten!W13*PI()/180))*B109 -> 0 | M109: =(J109+$E$119/2*COS(Knoten!W13*PI()/180)+$E$119*SIN(Knoten!W13*PI()/180))*B109 -> 0 | N109: =(J109+$E$119/2*COS(Knoten!W13*PI()/180))*B109 -> 0 | O109: 0 | P109: =IF(ISNUMBER(Knoten!D13),(Knoten!D13-$X$1)*B109,0) -> 0 | Q109: =(P109+$C$119/4*COS(Knoten!W13*PI()/180)+$C$119/2*SIN(Knoten!W13*PI()/180))*B109 -> 0 | R109: =(Q109+$C$119/2*COS(Knoten!W13*PI()/180)-$C$119*SIN(Knoten!W13*PI()/180))*B109 -> 0 | S109: =(R109+$C$119/2*COS(Knoten!W13*PI()/180)+$C$119*SIN(Knoten!W13*PI()/180))*B109 -> 0 | T109: =(S109+$C$119/2*COS(Knoten!W13*PI()/180)-$C$119*SIN(Knoten!W13*PI()/180))*B109 -> 0 | U109: =(T109+$C$119/4*COS(Knoten!W13*PI()/180)+$C$119/2*SIN(Knoten!W13*PI()/180))*B109 -> 0 | V109: =(U109+$C$119/4*COS(Knoten!W13*PI()/180))*B109 -> 0 | W109: 0 | X109: =(W109+$E$119/2*SIN(Knoten!W13*PI()/180))*B109 -> 0 | Y109: =(W109+$E$119/2*SIN(Knoten!W13*PI()/180)+$E$119*COS(Knoten!W13*PI()/180))*B109 -> 0 | Z109: =(W109-$E$119/2*SIN(Knoten!W13*PI()/180)+$E$119*COS(Knoten!W13*PI()/180))*B109 -> 0 | AA109: =(W109-$E$119/2*SIN(Knoten!W13*PI()/180))*B109 -> 0 | AB109: 0 | AD109: 11 | AE109: =IF(Knoten!R13>0,1,0) -> 0 | AF109: =IF(ISNUMBER(Knoten!C13),Z16*B109,0) -> 0 | AG109: =(AF109-$C$119/2*COS(Knoten!W13*PI()/180)+$C$119/4*SIN(Knoten!W13*PI()/180))*B109 -> 0 | AH109: =(AG109+$C$119*COS(Knoten!W13*PI()/180)+$C$119/2*SIN(Knoten!W13*PI()/180))*B109 -> 0 | AI109: =(AH109-$C$119*COS(Knoten!W13*PI()/180)+$C$119/2*SIN(Knoten!W13*PI()/180))*B109 -> 0 | AJ109: =(AI109+$C$119*COS(Knoten!W13*PI()/180)+$C$119/2*SIN(Knoten!W13*PI()/180))*B109 -> 0 | AK109: =(AJ109-$C$119/2*COS(Knoten!W13*PI()/180)+$C$119/4*SIN(Knoten!W13*PI()/180))*B109 -> 0 | AL109: =(AK109+$C$119/4*SIN(Knoten!W13*PI()/180))*B109 -> 0 | AM109: 0 | AN109: =(AM109-$E$119/2*COS(Knoten!W13*PI()/180))*B109 -> 0 | AO109: =(AM109-$E$119/2*COS(Knoten!W13*PI()/180)+$E$119*SIN(Knoten!W13*PI()/180))*B109 -> 0 | AP109: =(AM109+$E$119/2*COS(Knoten!W13*PI()/180)+$E$119*SIN(Knoten!W13*PI()/180))*B109 -> 0 | AQ109: =(AM109+$E$119/2*COS(Knoten!W13*PI()/180))*B109 -> 0 | AR109: 0 | AS109: =IF(ISNUMBER(Knoten!D13),AA16*B109,0) -> 0 | AT109: =(AS109+$C$119/4*COS(Knoten!W13*PI()/180)+$C$119/2*SIN(Knoten!W13*PI()/180))*B109 -> 0 | AU109: =(AT109+$C$119/2*COS(Knoten!W13*PI()/180)-$C$119*SIN(Knoten!W13*PI()/180))*B109 -> 0 | AV109: =(AU109+$C$119/2*COS(Knoten!W13*PI()/180)+$C$119*SIN(Knoten!W13*PI()/180))*B109 -> 0 | AW109: =(AV109+$C$119/2*COS(Knoten!W13*PI()/180)-$C$119*SIN(Knoten!W13*PI()/180))*B109 -> 0 | AX109: =(AW109+$C$119/4*COS(Knoten!W13*PI()/180)+$C$119/2*SIN(Knoten!W13*PI()/180))*B109 -> 0 | AY109: =(AX109+$C$119/4*COS(Knoten!W13*PI()/180))*B109 -> 0 | AZ109: 0 | BA109: =(AZ109+$E$119/2*SIN(Knoten!W13*PI()/180))*B109 -> 0 | BB109: =(AZ109+$E$119/2*SIN(Knoten!W13*PI()/180)+$E$119*COS(Knoten!W13*PI()/180))*B109 -> 0 | BC109: =(AZ109-$E$119/2*SIN(Knoten!W13*PI()/180)+$E$119*COS(Knoten!W13*PI()/180))*B109 -> 0 | BD109: =(AZ109-$E$119/2*SIN(Knoten!W13*PI()/180))*B109 -> 0 | BE109: 0
A110: 12 | B110: =IF(Knoten!R14>0,1,0) -> 0 | C110: =IF(ISNUMBER(Knoten!C14),(Knoten!C14-$U$1)*B110,0) -> 0 | D110: =(C110-$C$119/2*COS(Knoten!W14*PI()/180)+$C$119/4*SIN(Knoten!W14*PI()/180))*B110 -> 0 | E110: =(D110+$C$119*COS(Knoten!W14*PI()/180)+$C$119/2*SIN(Knoten!W14*PI()/180))*B110 -> 0 | F110: =(E110-$C$119*COS(Knoten!W14*PI()/180)+$C$119/2*SIN(Knoten!W14*PI()/180))*B110 -> 0 | G110: =(F110+$C$119*COS(Knoten!W14*PI()/180)+$C$119/2*SIN(Knoten!W14*PI()/180))*B110 -> 0 | H110: =(G110-$C$119/2*COS(Knoten!W14*PI()/180)+$C$119/4*SIN(Knoten!W14*PI()/180))*B110 -> 0 | I110: =(H110+$C$119/4*SIN(Knoten!W14*PI()/180))*B110 -> 0 | J110: 0 | K110: =(J110-$E$119/2*COS(Knoten!W14*PI()/180))*B110 -> 0 | L110: =(J110-$E$119/2*COS(Knoten!W14*PI()/180)+$E$119*SIN(Knoten!W14*PI()/180))*B110 -> 0 | M110: =(J110+$E$119/2*COS(Knoten!W14*PI()/180)+$E$119*SIN(Knoten!W14*PI()/180))*B110 -> 0 | N110: =(J110+$E$119/2*COS(Knoten!W14*PI()/180))*B110 -> 0 | O110: 0 | P110: =IF(ISNUMBER(Knoten!D14),(Knoten!D14-$X$1)*B110,0) -> 0 | Q110: =(P110+$C$119/4*COS(Knoten!W14*PI()/180)+$C$119/2*SIN(Knoten!W14*PI()/180))*B110 -> 0 | R110: =(Q110+$C$119/2*COS(Knoten!W14*PI()/180)-$C$119*SIN(Knoten!W14*PI()/180))*B110 -> 0 | S110: =(R110+$C$119/2*COS(Knoten!W14*PI()/180)+$C$119*SIN(Knoten!W14*PI()/180))*B110 -> 0 | T110: =(S110+$C$119/2*COS(Knoten!W14*PI()/180)-$C$119*SIN(Knoten!W14*PI()/180))*B110 -> 0 | U110: =(T110+$C$119/4*COS(Knoten!W14*PI()/180)+$C$119/2*SIN(Knoten!W14*PI()/180))*B110 -> 0 | V110: =(U110+$C$119/4*COS(Knoten!W14*PI()/180))*B110 -> 0 | W110: 0 | X110: =(W110+$E$119/2*SIN(Knoten!W14*PI()/180))*B110 -> 0 | Y110: =(W110+$E$119/2*SIN(Knoten!W14*PI()/180)+$E$119*COS(Knoten!W14*PI()/180))*B110 -> 0 | Z110: =(W110-$E$119/2*SIN(Knoten!W14*PI()/180)+$E$119*COS(Knoten!W14*PI()/180))*B110 -> 0 | AA110: =(W110-$E$119/2*SIN(Knoten!W14*PI()/180))*B110 -> 0 | AB110: 0 | AD110: 12 | AE110: =IF(Knoten!R14>0,1,0) -> 0 | AF110: =IF(ISNUMBER(Knoten!C14),Z17*B110,0) -> 0 | AG110: =(AF110-$C$119/2*COS(Knoten!W14*PI()/180)+$C$119/4*SIN(Knoten!W14*PI()/180))*B110 -> 0 | AH110: =(AG110+$C$119*COS(Knoten!W14*PI()/180)+$C$119/2*SIN(Knoten!W14*PI()/180))*B110 -> 0 | AI110: =(AH110-$C$119*COS(Knoten!W14*PI()/180)+$C$119/2*SIN(Knoten!W14*PI()/180))*B110 -> 0 | AJ110: =(AI110+$C$119*COS(Knoten!W14*PI()/180)+$C$119/2*SIN(Knoten!W14*PI()/180))*B110 -> 0 | AK110: =(AJ110-$C$119/2*COS(Knoten!W14*PI()/180)+$C$119/4*SIN(Knoten!W14*PI()/180))*B110 -> 0 | AL110: =(AK110+$C$119/4*SIN(Knoten!W14*PI()/180))*B110 -> 0 | AM110: 0 | AN110: =(AM110-$E$119/2*COS(Knoten!W14*PI()/180))*B110 -> 0 | AO110: =(AM110-$E$119/2*COS(Knoten!W14*PI()/180)+$E$119*SIN(Knoten!W14*PI()/180))*B110 -> 0 | AP110: =(AM110+$E$119/2*COS(Knoten!W14*PI()/180)+$E$119*SIN(Knoten!W14*PI()/180))*B110 -> 0 | AQ110: =(AM110+$E$119/2*COS(Knoten!W14*PI()/180))*B110 -> 0 | AR110: 0 | AS110: =IF(ISNUMBER(Knoten!D14),AA17*B110,0) -> 0 | AT110: =(AS110+$C$119/4*COS(Knoten!W14*PI()/180)+$C$119/2*SIN(Knoten!W14*PI()/180))*B110 -> 0 | AU110: =(AT110+$C$119/2*COS(Knoten!W14*PI()/180)-$C$119*SIN(Knoten!W14*PI()/180))*B110 -> 0 | AV110: =(AU110+$C$119/2*COS(Knoten!W14*PI()/180)+$C$119*SIN(Knoten!W14*PI()/180))*B110 -> 0 | AW110: =(AV110+$C$119/2*COS(Knoten!W14*PI()/180)-$C$119*SIN(Knoten!W14*PI()/180))*B110 -> 0 | AX110: =(AW110+$C$119/4*COS(Knoten!W14*PI()/180)+$C$119/2*SIN(Knoten!W14*PI()/180))*B110 -> 0 | AY110: =(AX110+$C$119/4*COS(Knoten!W14*PI()/180))*B110 -> 0 | AZ110: 0 | BA110: =(AZ110+$E$119/2*SIN(Knoten!W14*PI()/180))*B110 -> 0 | BB110: =(AZ110+$E$119/2*SIN(Knoten!W14*PI()/180)+$E$119*COS(Knoten!W14*PI()/180))*B110 -> 0 | BC110: =(AZ110-$E$119/2*SIN(Knoten!W14*PI()/180)+$E$119*COS(Knoten!W14*PI()/180))*B110 -> 0 | BD110: =(AZ110-$E$119/2*SIN(Knoten!W14*PI()/180))*B110 -> 0 | BE110: 0
A111: 13 | B111: =IF(Knoten!R15>0,1,0) -> 0 | C111: =IF(ISNUMBER(Knoten!C15),(Knoten!C15-$U$1)*B111,0) -> 0 | D111: =(C111-$C$119/2*COS(Knoten!W15*PI()/180)+$C$119/4*SIN(Knoten!W15*PI()/180))*B111 -> 0 | E111: =(D111+$C$119*COS(Knoten!W15*PI()/180)+$C$119/2*SIN(Knoten!W15*PI()/180))*B111 -> 0 | F111: =(E111-$C$119*COS(Knoten!W15*PI()/180)+$C$119/2*SIN(Knoten!W15*PI()/180))*B111 -> 0 | G111: =(F111+$C$119*COS(Knoten!W15*PI()/180)+$C$119/2*SIN(Knoten!W15*PI()/180))*B111 -> 0 | H111: =(G111-$C$119/2*COS(Knoten!W15*PI()/180)+$C$119/4*SIN(Knoten!W15*PI()/180))*B111 -> 0 | I111: =(H111+$C$119/4*SIN(Knoten!W15*PI()/180))*B111 -> 0 | J111: 0 | K111: =(J111-$E$119/2*COS(Knoten!W15*PI()/180))*B111 -> 0 | L111: =(J111-$E$119/2*COS(Knoten!W15*PI()/180)+$E$119*SIN(Knoten!W15*PI()/180))*B111 -> 0 | M111: =(J111+$E$119/2*COS(Knoten!W15*PI()/180)+$E$119*SIN(Knoten!W15*PI()/180))*B111 -> 0 | N111: =(J111+$E$119/2*COS(Knoten!W15*PI()/180))*B111 -> 0 | O111: 0 | P111: =IF(ISNUMBER(Knoten!D15),(Knoten!D15-$X$1)*B111,0) -> 0 | Q111: =(P111+$C$119/4*COS(Knoten!W15*PI()/180)+$C$119/2*SIN(Knoten!W15*PI()/180))*B111 -> 0 | R111: =(Q111+$C$119/2*COS(Knoten!W15*PI()/180)-$C$119*SIN(Knoten!W15*PI()/180))*B111 -> 0 | S111: =(R111+$C$119/2*COS(Knoten!W15*PI()/180)+$C$119*SIN(Knoten!W15*PI()/180))*B111 -> 0 | T111: =(S111+$C$119/2*COS(Knoten!W15*PI()/180)-$C$119*SIN(Knoten!W15*PI()/180))*B111 -> 0 | U111: =(T111+$C$119/4*COS(Knoten!W15*PI()/180)+$C$119/2*SIN(Knoten!W15*PI()/180))*B111 -> 0 | V111: =(U111+$C$119/4*COS(Knoten!W15*PI()/180))*B111 -> 0 | W111: 0 | X111: =(W111+$E$119/2*SIN(Knoten!W15*PI()/180))*B111 -> 0 | Y111: =(W111+$E$119/2*SIN(Knoten!W15*PI()/180)+$E$119*COS(Knoten!W15*PI()/180))*B111 -> 0 | Z111: =(W111-$E$119/2*SIN(Knoten!W15*PI()/180)+$E$119*COS(Knoten!W15*PI()/180))*B111 -> 0 | AA111: =(W111-$E$119/2*SIN(Knoten!W15*PI()/180))*B111 -> 0 | AB111: 0 | AD111: 13 | AE111: =IF(Knoten!R15>0,1,0) -> 0 | AF111: =IF(ISNUMBER(Knoten!C15),Z18*B111,0) -> 0 | AG111: =(AF111-$C$119/2*COS(Knoten!W15*PI()/180)+$C$119/4*SIN(Knoten!W15*PI()/180))*B111 -> 0 | AH111: =(AG111+$C$119*COS(Knoten!W15*PI()/180)+$C$119/2*SIN(Knoten!W15*PI()/180))*B111 -> 0 | AI111: =(AH111-$C$119*COS(Knoten!W15*PI()/180)+$C$119/2*SIN(Knoten!W15*PI()/180))*B111 -> 0 | AJ111: =(AI111+$C$119*COS(Knoten!W15*PI()/180)+$C$119/2*SIN(Knoten!W15*PI()/180))*B111 -> 0 | AK111: =(AJ111-$C$119/2*COS(Knoten!W15*PI()/180)+$C$119/4*SIN(Knoten!W15*PI()/180))*B111 -> 0 | AL111: =(AK111+$C$119/4*SIN(Knoten!W15*PI()/180))*B111 -> 0 | AM111: 0 | AN111: =(AM111-$E$119/2*COS(Knoten!W15*PI()/180))*B111 -> 0 | AO111: =(AM111-$E$119/2*COS(Knoten!W15*PI()/180)+$E$119*SIN(Knoten!W15*PI()/180))*B111 -> 0 | AP111: =(AM111+$E$119/2*COS(Knoten!W15*PI()/180)+$E$119*SIN(Knoten!W15*PI()/180))*B111 -> 0 | AQ111: =(AM111+$E$119/2*COS(Knoten!W15*PI()/180))*B111 -> 0 | AR111: 0 | AS111: =IF(ISNUMBER(Knoten!D15),AA18*B111,0) -> 0 | AT111: =(AS111+$C$119/4*COS(Knoten!W15*PI()/180)+$C$119/2*SIN(Knoten!W15*PI()/180))*B111 -> 0 | AU111: =(AT111+$C$119/2*COS(Knoten!W15*PI()/180)-$C$119*SIN(Knoten!W15*PI()/180))*B111 -> 0 | AV111: =(AU111+$C$119/2*COS(Knoten!W15*PI()/180)+$C$119*SIN(Knoten!W15*PI()/180))*B111 -> 0 | AW111: =(AV111+$C$119/2*COS(Knoten!W15*PI()/180)-$C$119*SIN(Knoten!W15*PI()/180))*B111 -> 0 | AX111: =(AW111+$C$119/4*COS(Knoten!W15*PI()/180)+$C$119/2*SIN(Knoten!W15*PI()/180))*B111 -> 0 | AY111: =(AX111+$C$119/4*COS(Knoten!W15*PI()/180))*B111 -> 0 | AZ111: 0 | BA111: =(AZ111+$E$119/2*SIN(Knoten!W15*PI()/180))*B111 -> 0 | BB111: =(AZ111+$E$119/2*SIN(Knoten!W15*PI()/180)+$E$119*COS(Knoten!W15*PI()/180))*B111 -> 0 | BC111: =(AZ111-$E$119/2*SIN(Knoten!W15*PI()/180)+$E$119*COS(Knoten!W15*PI()/180))*B111 -> 0 | BD111: =(AZ111-$E$119/2*SIN(Knoten!W15*PI()/180))*B111 -> 0 | BE111: 0
A112: 14 | B112: =IF(Knoten!R16>0,1,0) -> 0 | C112: =IF(ISNUMBER(Knoten!C16),(Knoten!C16-$U$1)*B112,0) -> 0 | D112: =(C112-$C$119/2*COS(Knoten!W16*PI()/180)+$C$119/4*SIN(Knoten!W16*PI()/180))*B112 -> 0 | E112: =(D112+$C$119*COS(Knoten!W16*PI()/180)+$C$119/2*SIN(Knoten!W16*PI()/180))*B112 -> 0 | F112: =(E112-$C$119*COS(Knoten!W16*PI()/180)+$C$119/2*SIN(Knoten!W16*PI()/180))*B112 -> 0 | G112: =(F112+$C$119*COS(Knoten!W16*PI()/180)+$C$119/2*SIN(Knoten!W16*PI()/180))*B112 -> 0 | H112: =(G112-$C$119/2*COS(Knoten!W16*PI()/180)+$C$119/4*SIN(Knoten!W16*PI()/180))*B112 -> 0 | I112: =(H112+$C$119/4*SIN(Knoten!W16*PI()/180))*B112 -> 0 | J112: 0 | K112: =(J112-$E$119/2*COS(Knoten!W16*PI()/180))*B112 -> 0 | L112: =(J112-$E$119/2*COS(Knoten!W16*PI()/180)+$E$119*SIN(Knoten!W16*PI()/180))*B112 -> 0 | M112: =(J112+$E$119/2*COS(Knoten!W16*PI()/180)+$E$119*SIN(Knoten!W16*PI()/180))*B112 -> 0 | N112: =(J112+$E$119/2*COS(Knoten!W16*PI()/180))*B112 -> 0 | O112: 0 | P112: =IF(ISNUMBER(Knoten!D16),(Knoten!D16-$X$1)*B112,0) -> 0 | Q112: =(P112+$C$119/4*COS(Knoten!W16*PI()/180)+$C$119/2*SIN(Knoten!W16*PI()/180))*B112 -> 0 | R112: =(Q112+$C$119/2*COS(Knoten!W16*PI()/180)-$C$119*SIN(Knoten!W16*PI()/180))*B112 -> 0 | S112: =(R112+$C$119/2*COS(Knoten!W16*PI()/180)+$C$119*SIN(Knoten!W16*PI()/180))*B112 -> 0 | T112: =(S112+$C$119/2*COS(Knoten!W16*PI()/180)-$C$119*SIN(Knoten!W16*PI()/180))*B112 -> 0 | U112: =(T112+$C$119/4*COS(Knoten!W16*PI()/180)+$C$119/2*SIN(Knoten!W16*PI()/180))*B112 -> 0 | V112: =(U112+$C$119/4*COS(Knoten!W16*PI()/180))*B112 -> 0 | W112: 0 | X112: =(W112+$E$119/2*SIN(Knoten!W16*PI()/180))*B112 -> 0 | Y112: =(W112+$E$119/2*SIN(Knoten!W16*PI()/180)+$E$119*COS(Knoten!W16*PI()/180))*B112 -> 0 | Z112: =(W112-$E$119/2*SIN(Knoten!W16*PI()/180)+$E$119*COS(Knoten!W16*PI()/180))*B112 -> 0 | AA112: =(W112-$E$119/2*SIN(Knoten!W16*PI()/180))*B112 -> 0 | AB112: 0 | AD112: 14 | AE112: =IF(Knoten!R16>0,1,0) -> 0 | AF112: =IF(ISNUMBER(Knoten!C16),Z19*B112,0) -> 0 | AG112: =(AF112-$C$119/2*COS(Knoten!W16*PI()/180)+$C$119/4*SIN(Knoten!W16*PI()/180))*B112 -> 0 | AH112: =(AG112+$C$119*COS(Knoten!W16*PI()/180)+$C$119/2*SIN(Knoten!W16*PI()/180))*B112 -> 0 | AI112: =(AH112-$C$119*COS(Knoten!W16*PI()/180)+$C$119/2*SIN(Knoten!W16*PI()/180))*B112 -> 0 | AJ112: =(AI112+$C$119*COS(Knoten!W16*PI()/180)+$C$119/2*SIN(Knoten!W16*PI()/180))*B112 -> 0 | AK112: =(AJ112-$C$119/2*COS(Knoten!W16*PI()/180)+$C$119/4*SIN(Knoten!W16*PI()/180))*B112 -> 0 | AL112: =(AK112+$C$119/4*SIN(Knoten!W16*PI()/180))*B112 -> 0 | AM112: 0 | AN112: =(AM112-$E$119/2*COS(Knoten!W16*PI()/180))*B112 -> 0 | AO112: =(AM112-$E$119/2*COS(Knoten!W16*PI()/180)+$E$119*SIN(Knoten!W16*PI()/180))*B112 -> 0 | AP112: =(AM112+$E$119/2*COS(Knoten!W16*PI()/180)+$E$119*SIN(Knoten!W16*PI()/180))*B112 -> 0 | AQ112: =(AM112+$E$119/2*COS(Knoten!W16*PI()/180))*B112 -> 0 | AR112: 0 | AS112: =IF(ISNUMBER(Knoten!D16),AA19*B112,0) -> 0 | AT112: =(AS112+$C$119/4*COS(Knoten!W16*PI()/180)+$C$119/2*SIN(Knoten!W16*PI()/180))*B112 -> 0 | AU112: =(AT112+$C$119/2*COS(Knoten!W16*PI()/180)-$C$119*SIN(Knoten!W16*PI()/180))*B112 -> 0 | AV112: =(AU112+$C$119/2*COS(Knoten!W16*PI()/180)+$C$119*SIN(Knoten!W16*PI()/180))*B112 -> 0 | AW112: =(AV112+$C$119/2*COS(Knoten!W16*PI()/180)-$C$119*SIN(Knoten!W16*PI()/180))*B112 -> 0 | AX112: =(AW112+$C$119/4*COS(Knoten!W16*PI()/180)+$C$119/2*SIN(Knoten!W16*PI()/180))*B112 -> 0 | AY112: =(AX112+$C$119/4*COS(Knoten!W16*PI()/180))*B112 -> 0 | AZ112: 0 | BA112: =(AZ112+$E$119/2*SIN(Knoten!W16*PI()/180))*B112 -> 0 | BB112: =(AZ112+$E$119/2*SIN(Knoten!W16*PI()/180)+$E$119*COS(Knoten!W16*PI()/180))*B112 -> 0 | BC112: =(AZ112-$E$119/2*SIN(Knoten!W16*PI()/180)+$E$119*COS(Knoten!W16*PI()/180))*B112 -> 0 | BD112: =(AZ112-$E$119/2*SIN(Knoten!W16*PI()/180))*B112 -> 0 | BE112: 0
A113: 15 | B113: =IF(Knoten!R17>0,1,0) -> 0 | C113: =IF(ISNUMBER(Knoten!C17),(Knoten!C17-$U$1)*B113,0) -> 0 | D113: =(C113-$C$119/2*COS(Knoten!W17*PI()/180)+$C$119/4*SIN(Knoten!W17*PI()/180))*B113 -> 0 | E113: =(D113+$C$119*COS(Knoten!W17*PI()/180)+$C$119/2*SIN(Knoten!W17*PI()/180))*B113 -> 0 | F113: =(E113-$C$119*COS(Knoten!W17*PI()/180)+$C$119/2*SIN(Knoten!W17*PI()/180))*B113 -> 0 | G113: =(F113+$C$119*COS(Knoten!W17*PI()/180)+$C$119/2*SIN(Knoten!W17*PI()/180))*B113 -> 0 | H113: =(G113-$C$119/2*COS(Knoten!W17*PI()/180)+$C$119/4*SIN(Knoten!W17*PI()/180))*B113 -> 0 | I113: =(H113+$C$119/4*SIN(Knoten!W17*PI()/180))*B113 -> 0 | J113: 0 | K113: =(J113-$E$119/2*COS(Knoten!W17*PI()/180))*B113 -> 0 | L113: =(J113-$E$119/2*COS(Knoten!W17*PI()/180)+$E$119*SIN(Knoten!W17*PI()/180))*B113 -> 0 | M113: =(J113+$E$119/2*COS(Knoten!W17*PI()/180)+$E$119*SIN(Knoten!W17*PI()/180))*B113 -> 0 | N113: =(J113+$E$119/2*COS(Knoten!W17*PI()/180))*B113 -> 0 | O113: 0 | P113: =IF(ISNUMBER(Knoten!D17),(Knoten!D17-$X$1)*B113,0) -> 0 | Q113: =(P113+$C$119/4*COS(Knoten!W17*PI()/180)+$C$119/2*SIN(Knoten!W17*PI()/180))*B113 -> 0 | R113: =(Q113+$C$119/2*COS(Knoten!W17*PI()/180)-$C$119*SIN(Knoten!W17*PI()/180))*B113 -> 0 | S113: =(R113+$C$119/2*COS(Knoten!W17*PI()/180)+$C$119*SIN(Knoten!W17*PI()/180))*B113 -> 0 | T113: =(S113+$C$119/2*COS(Knoten!W17*PI()/180)-$C$119*SIN(Knoten!W17*PI()/180))*B113 -> 0 | U113: =(T113+$C$119/4*COS(Knoten!W17*PI()/180)+$C$119/2*SIN(Knoten!W17*PI()/180))*B113 -> 0 | V113: =(U113+$C$119/4*COS(Knoten!W17*PI()/180))*B113 -> 0 | W113: 0 | X113: =(W113+$E$119/2*SIN(Knoten!W17*PI()/180))*B113 -> 0 | Y113: =(W113+$E$119/2*SIN(Knoten!W17*PI()/180)+$E$119*COS(Knoten!W17*PI()/180))*B113 -> 0 | Z113: =(W113-$E$119/2*SIN(Knoten!W17*PI()/180)+$E$119*COS(Knoten!W17*PI()/180))*B113 -> 0 | AA113: =(W113-$E$119/2*SIN(Knoten!W17*PI()/180))*B113 -> 0 | AB113: 0 | AD113: 15 | AE113: =IF(Knoten!R17>0,1,0) -> 0 | AF113: =IF(ISNUMBER(Knoten!C17),Z20*B113,0) -> 0 | AG113: =(AF113-$C$119/2*COS(Knoten!W17*PI()/180)+$C$119/4*SIN(Knoten!W17*PI()/180))*B113 -> 0 | AH113: =(AG113+$C$119*COS(Knoten!W17*PI()/180)+$C$119/2*SIN(Knoten!W17*PI()/180))*B113 -> 0 | AI113: =(AH113-$C$119*COS(Knoten!W17*PI()/180)+$C$119/2*SIN(Knoten!W17*PI()/180))*B113 -> 0 | AJ113: =(AI113+$C$119*COS(Knoten!W17*PI()/180)+$C$119/2*SIN(Knoten!W17*PI()/180))*B113 -> 0 | AK113: =(AJ113-$C$119/2*COS(Knoten!W17*PI()/180)+$C$119/4*SIN(Knoten!W17*PI()/180))*B113 -> 0 | AL113: =(AK113+$C$119/4*SIN(Knoten!W17*PI()/180))*B113 -> 0 | AM113: 0 | AN113: =(AM113-$E$119/2*COS(Knoten!W17*PI()/180))*B113 -> 0 | AO113: =(AM113-$E$119/2*COS(Knoten!W17*PI()/180)+$E$119*SIN(Knoten!W17*PI()/180))*B113 -> 0 | AP113: =(AM113+$E$119/2*COS(Knoten!W17*PI()/180)+$E$119*SIN(Knoten!W17*PI()/180))*B113 -> 0 | AQ113: =(AM113+$E$119/2*COS(Knoten!W17*PI()/180))*B113 -> 0 | AR113: 0 | AS113: =IF(ISNUMBER(Knoten!D17),AA20*B113,0) -> 0 | AT113: =(AS113+$C$119/4*COS(Knoten!W17*PI()/180)+$C$119/2*SIN(Knoten!W17*PI()/180))*B113 -> 0 | AU113: =(AT113+$C$119/2*COS(Knoten!W17*PI()/180)-$C$119*SIN(Knoten!W17*PI()/180))*B113 -> 0 | AV113: =(AU113+$C$119/2*COS(Knoten!W17*PI()/180)+$C$119*SIN(Knoten!W17*PI()/180))*B113 -> 0 | AW113: =(AV113+$C$119/2*COS(Knoten!W17*PI()/180)-$C$119*SIN(Knoten!W17*PI()/180))*B113 -> 0 | AX113: =(AW113+$C$119/4*COS(Knoten!W17*PI()/180)+$C$119/2*SIN(Knoten!W17*PI()/180))*B113 -> 0 | AY113: =(AX113+$C$119/4*COS(Knoten!W17*PI()/180))*B113 -> 0 | AZ113: 0 | BA113: =(AZ113+$E$119/2*SIN(Knoten!W17*PI()/180))*B113 -> 0 | BB113: =(AZ113+$E$119/2*SIN(Knoten!W17*PI()/180)+$E$119*COS(Knoten!W17*PI()/180))*B113 -> 0 | BC113: =(AZ113-$E$119/2*SIN(Knoten!W17*PI()/180)+$E$119*COS(Knoten!W17*PI()/180))*B113 -> 0 | BD113: =(AZ113-$E$119/2*SIN(Knoten!W17*PI()/180))*B113 -> 0 | BE113: 0
A114: 16 | B114: =IF(Knoten!R18>0,1,0) -> 0 | C114: =IF(ISNUMBER(Knoten!C18),(Knoten!C18-$U$1)*B114,0) -> 0 | D114: =(C114-$C$119/2*COS(Knoten!W18*PI()/180)+$C$119/4*SIN(Knoten!W18*PI()/180))*B114 -> 0 | E114: =(D114+$C$119*COS(Knoten!W18*PI()/180)+$C$119/2*SIN(Knoten!W18*PI()/180))*B114 -> 0 | F114: =(E114-$C$119*COS(Knoten!W18*PI()/180)+$C$119/2*SIN(Knoten!W18*PI()/180))*B114 -> 0 | G114: =(F114+$C$119*COS(Knoten!W18*PI()/180)+$C$119/2*SIN(Knoten!W18*PI()/180))*B114 -> 0 | H114: =(G114-$C$119/2*COS(Knoten!W18*PI()/180)+$C$119/4*SIN(Knoten!W18*PI()/180))*B114 -> 0 | I114: =(H114+$C$119/4*SIN(Knoten!W18*PI()/180))*B114 -> 0 | J114: 0 | K114: =(J114-$E$119/2*COS(Knoten!W18*PI()/180))*B114 -> 0 | L114: =(J114-$E$119/2*COS(Knoten!W18*PI()/180)+$E$119*SIN(Knoten!W18*PI()/180))*B114 -> 0 | M114: =(J114+$E$119/2*COS(Knoten!W18*PI()/180)+$E$119*SIN(Knoten!W18*PI()/180))*B114 -> 0 | N114: =(J114+$E$119/2*COS(Knoten!W18*PI()/180))*B114 -> 0 | O114: 0 | P114: =IF(ISNUMBER(Knoten!D18),(Knoten!D18-$X$1)*B114,0) -> 0 | Q114: =(P114+$C$119/4*COS(Knoten!W18*PI()/180)+$C$119/2*SIN(Knoten!W18*PI()/180))*B114 -> 0 | R114: =(Q114+$C$119/2*COS(Knoten!W18*PI()/180)-$C$119*SIN(Knoten!W18*PI()/180))*B114 -> 0 | S114: =(R114+$C$119/2*COS(Knoten!W18*PI()/180)+$C$119*SIN(Knoten!W18*PI()/180))*B114 -> 0 | T114: =(S114+$C$119/2*COS(Knoten!W18*PI()/180)-$C$119*SIN(Knoten!W18*PI()/180))*B114 -> 0 | U114: =(T114+$C$119/4*COS(Knoten!W18*PI()/180)+$C$119/2*SIN(Knoten!W18*PI()/180))*B114 -> 0 | V114: =(U114+$C$119/4*COS(Knoten!W18*PI()/180))*B114 -> 0 | W114: 0 | X114: =(W114+$E$119/2*SIN(Knoten!W18*PI()/180))*B114 -> 0 | Y114: =(W114+$E$119/2*SIN(Knoten!W18*PI()/180)+$E$119*COS(Knoten!W18*PI()/180))*B114 -> 0 | Z114: =(W114-$E$119/2*SIN(Knoten!W18*PI()/180)+$E$119*COS(Knoten!W18*PI()/180))*B114 -> 0 | AA114: =(W114-$E$119/2*SIN(Knoten!W18*PI()/180))*B114 -> 0 | AB114: 0 | AD114: 16 | AE114: =IF(Knoten!R18>0,1,0) -> 0 | AF114: =IF(ISNUMBER(Knoten!C18),Z21*B114,0) -> 0 | AG114: =(AF114-$C$119/2*COS(Knoten!W18*PI()/180)+$C$119/4*SIN(Knoten!W18*PI()/180))*B114 -> 0 | AH114: =(AG114+$C$119*COS(Knoten!W18*PI()/180)+$C$119/2*SIN(Knoten!W18*PI()/180))*B114 -> 0 | AI114: =(AH114-$C$119*COS(Knoten!W18*PI()/180)+$C$119/2*SIN(Knoten!W18*PI()/180))*B114 -> 0 | AJ114: =(AI114+$C$119*COS(Knoten!W18*PI()/180)+$C$119/2*SIN(Knoten!W18*PI()/180))*B114 -> 0 | AK114: =(AJ114-$C$119/2*COS(Knoten!W18*PI()/180)+$C$119/4*SIN(Knoten!W18*PI()/180))*B114 -> 0 | AL114: =(AK114+$C$119/4*SIN(Knoten!W18*PI()/180))*B114 -> 0 | AM114: 0 | AN114: =(AM114-$E$119/2*COS(Knoten!W18*PI()/180))*B114 -> 0 | AO114: =(AM114-$E$119/2*COS(Knoten!W18*PI()/180)+$E$119*SIN(Knoten!W18*PI()/180))*B114 -> 0 | AP114: =(AM114+$E$119/2*COS(Knoten!W18*PI()/180)+$E$119*SIN(Knoten!W18*PI()/180))*B114 -> 0 | AQ114: =(AM114+$E$119/2*COS(Knoten!W18*PI()/180))*B114 -> 0 | AR114: 0 | AS114: =IF(ISNUMBER(Knoten!D18),AA21*B114,0) -> 0 | AT114: =(AS114+$C$119/4*COS(Knoten!W18*PI()/180)+$C$119/2*SIN(Knoten!W18*PI()/180))*B114 -> 0 | AU114: =(AT114+$C$119/2*COS(Knoten!W18*PI()/180)-$C$119*SIN(Knoten!W18*PI()/180))*B114 -> 0 | AV114: =(AU114+$C$119/2*COS(Knoten!W18*PI()/180)+$C$119*SIN(Knoten!W18*PI()/180))*B114 -> 0 | AW114: =(AV114+$C$119/2*COS(Knoten!W18*PI()/180)-$C$119*SIN(Knoten!W18*PI()/180))*B114 -> 0 | AX114: =(AW114+$C$119/4*COS(Knoten!W18*PI()/180)+$C$119/2*SIN(Knoten!W18*PI()/180))*B114 -> 0 | AY114: =(AX114+$C$119/4*COS(Knoten!W18*PI()/180))*B114 -> 0 | AZ114: 0 | BA114: =(AZ114+$E$119/2*SIN(Knoten!W18*PI()/180))*B114 -> 0 | BB114: =(AZ114+$E$119/2*SIN(Knoten!W18*PI()/180)+$E$119*COS(Knoten!W18*PI()/180))*B114 -> 0 | BC114: =(AZ114-$E$119/2*SIN(Knoten!W18*PI()/180)+$E$119*COS(Knoten!W18*PI()/180))*B114 -> 0 | BD114: =(AZ114-$E$119/2*SIN(Knoten!W18*PI()/180))*B114 -> 0 | BE114: 0
A115: 17 | B115: =IF(Knoten!R19>0,1,0) -> 0 | C115: =IF(ISNUMBER(Knoten!C19),(Knoten!C19-$U$1)*B115,0) -> 0 | D115: =(C115-$C$119/2*COS(Knoten!W19*PI()/180)+$C$119/4*SIN(Knoten!W19*PI()/180))*B115 -> 0 | E115: =(D115+$C$119*COS(Knoten!W19*PI()/180)+$C$119/2*SIN(Knoten!W19*PI()/180))*B115 -> 0 | F115: =(E115-$C$119*COS(Knoten!W19*PI()/180)+$C$119/2*SIN(Knoten!W19*PI()/180))*B115 -> 0 | G115: =(F115+$C$119*COS(Knoten!W19*PI()/180)+$C$119/2*SIN(Knoten!W19*PI()/180))*B115 -> 0 | H115: =(G115-$C$119/2*COS(Knoten!W19*PI()/180)+$C$119/4*SIN(Knoten!W19*PI()/180))*B115 -> 0 | I115: =(H115+$C$119/4*SIN(Knoten!W19*PI()/180))*B115 -> 0 | J115: 0 | K115: =(J115-$E$119/2*COS(Knoten!W19*PI()/180))*B115 -> 0 | L115: =(J115-$E$119/2*COS(Knoten!W19*PI()/180)+$E$119*SIN(Knoten!W19*PI()/180))*B115 -> 0 | M115: =(J115+$E$119/2*COS(Knoten!W19*PI()/180)+$E$119*SIN(Knoten!W19*PI()/180))*B115 -> 0 | N115: =(J115+$E$119/2*COS(Knoten!W19*PI()/180))*B115 -> 0 | O115: 0 | P115: =IF(ISNUMBER(Knoten!D19),(Knoten!D19-$X$1)*B115,0) -> 0 | Q115: =(P115+$C$119/4*COS(Knoten!W19*PI()/180)+$C$119/2*SIN(Knoten!W19*PI()/180))*B115 -> 0 | R115: =(Q115+$C$119/2*COS(Knoten!W19*PI()/180)-$C$119*SIN(Knoten!W19*PI()/180))*B115 -> 0 | S115: =(R115+$C$119/2*COS(Knoten!W19*PI()/180)+$C$119*SIN(Knoten!W19*PI()/180))*B115 -> 0 | T115: =(S115+$C$119/2*COS(Knoten!W19*PI()/180)-$C$119*SIN(Knoten!W19*PI()/180))*B115 -> 0 | U115: =(T115+$C$119/4*COS(Knoten!W19*PI()/180)+$C$119/2*SIN(Knoten!W19*PI()/180))*B115 -> 0 | V115: =(U115+$C$119/4*COS(Knoten!W19*PI()/180))*B115 -> 0 | W115: 0 | X115: =(W115+$E$119/2*SIN(Knoten!W19*PI()/180))*B115 -> 0 | Y115: =(W115+$E$119/2*SIN(Knoten!W19*PI()/180)+$E$119*COS(Knoten!W19*PI()/180))*B115 -> 0 | Z115: =(W115-$E$119/2*SIN(Knoten!W19*PI()/180)+$E$119*COS(Knoten!W19*PI()/180))*B115 -> 0 | AA115: =(W115-$E$119/2*SIN(Knoten!W19*PI()/180))*B115 -> 0 | AB115: 0 | AD115: 17 | AE115: =IF(Knoten!R19>0,1,0) -> 0 | AF115: =IF(ISNUMBER(Knoten!C19),Z22*B115,0) -> 0 | AG115: =(AF115-$C$119/2*COS(Knoten!W19*PI()/180)+$C$119/4*SIN(Knoten!W19*PI()/180))*B115 -> 0 | AH115: =(AG115+$C$119*COS(Knoten!W19*PI()/180)+$C$119/2*SIN(Knoten!W19*PI()/180))*B115 -> 0 | AI115: =(AH115-$C$119*COS(Knoten!W19*PI()/180)+$C$119/2*SIN(Knoten!W19*PI()/180))*B115 -> 0 | AJ115: =(AI115+$C$119*COS(Knoten!W19*PI()/180)+$C$119/2*SIN(Knoten!W19*PI()/180))*B115 -> 0 | AK115: =(AJ115-$C$119/2*COS(Knoten!W19*PI()/180)+$C$119/4*SIN(Knoten!W19*PI()/180))*B115 -> 0 | AL115: =(AK115+$C$119/4*SIN(Knoten!W19*PI()/180))*B115 -> 0 | AM115: 0 | AN115: =(AM115-$E$119/2*COS(Knoten!W19*PI()/180))*B115 -> 0 | AO115: =(AM115-$E$119/2*COS(Knoten!W19*PI()/180)+$E$119*SIN(Knoten!W19*PI()/180))*B115 -> 0 | AP115: =(AM115+$E$119/2*COS(Knoten!W19*PI()/180)+$E$119*SIN(Knoten!W19*PI()/180))*B115 -> 0 | AQ115: =(AM115+$E$119/2*COS(Knoten!W19*PI()/180))*B115 -> 0 | AR115: 0 | AS115: =IF(ISNUMBER(Knoten!D19),AA22*B115,0) -> 0 | AT115: =(AS115+$C$119/4*COS(Knoten!W19*PI()/180)+$C$119/2*SIN(Knoten!W19*PI()/180))*B115 -> 0 | AU115: =(AT115+$C$119/2*COS(Knoten!W19*PI()/180)-$C$119*SIN(Knoten!W19*PI()/180))*B115 -> 0 | AV115: =(AU115+$C$119/2*COS(Knoten!W19*PI()/180)+$C$119*SIN(Knoten!W19*PI()/180))*B115 -> 0 | AW115: =(AV115+$C$119/2*COS(Knoten!W19*PI()/180)-$C$119*SIN(Knoten!W19*PI()/180))*B115 -> 0 | AX115: =(AW115+$C$119/4*COS(Knoten!W19*PI()/180)+$C$119/2*SIN(Knoten!W19*PI()/180))*B115 -> 0 | AY115: =(AX115+$C$119/4*COS(Knoten!W19*PI()/180))*B115 -> 0 | AZ115: 0 | BA115: =(AZ115+$E$119/2*SIN(Knoten!W19*PI()/180))*B115 -> 0 | BB115: =(AZ115+$E$119/2*SIN(Knoten!W19*PI()/180)+$E$119*COS(Knoten!W19*PI()/180))*B115 -> 0 | BC115: =(AZ115-$E$119/2*SIN(Knoten!W19*PI()/180)+$E$119*COS(Knoten!W19*PI()/180))*B115 -> 0 | BD115: =(AZ115-$E$119/2*SIN(Knoten!W19*PI()/180))*B115 -> 0 | BE115: 0
A116: 18 | B116: =IF(Knoten!R20>0,1,0) -> 0 | C116: =IF(ISNUMBER(Knoten!C20),(Knoten!C20-$U$1)*B116,0) -> 0 | D116: =(C116-$C$119/2*COS(Knoten!W20*PI()/180)+$C$119/4*SIN(Knoten!W20*PI()/180))*B116 -> 0 | E116: =(D116+$C$119*COS(Knoten!W20*PI()/180)+$C$119/2*SIN(Knoten!W20*PI()/180))*B116 -> 0 | F116: =(E116-$C$119*COS(Knoten!W20*PI()/180)+$C$119/2*SIN(Knoten!W20*PI()/180))*B116 -> 0 | G116: =(F116+$C$119*COS(Knoten!W20*PI()/180)+$C$119/2*SIN(Knoten!W20*PI()/180))*B116 -> 0 | H116: =(G116-$C$119/2*COS(Knoten!W20*PI()/180)+$C$119/4*SIN(Knoten!W20*PI()/180))*B116 -> 0 | I116: =(H116+$C$119/4*SIN(Knoten!W20*PI()/180))*B116 -> 0 | J116: 0 | K116: =(J116-$E$119/2*COS(Knoten!W20*PI()/180))*B116 -> 0 | L116: =(J116-$E$119/2*COS(Knoten!W20*PI()/180)+$E$119*SIN(Knoten!W20*PI()/180))*B116 -> 0 | M116: =(J116+$E$119/2*COS(Knoten!W20*PI()/180)+$E$119*SIN(Knoten!W20*PI()/180))*B116 -> 0 | N116: =(J116+$E$119/2*COS(Knoten!W20*PI()/180))*B116 -> 0 | O116: 0 | P116: =IF(ISNUMBER(Knoten!D20),(Knoten!D20-$X$1)*B116,0) -> 0 | Q116: =(P116+$C$119/4*COS(Knoten!W20*PI()/180)+$C$119/2*SIN(Knoten!W20*PI()/180))*B116 -> 0 | R116: =(Q116+$C$119/2*COS(Knoten!W20*PI()/180)-$C$119*SIN(Knoten!W20*PI()/180))*B116 -> 0 | S116: =(R116+$C$119/2*COS(Knoten!W20*PI()/180)+$C$119*SIN(Knoten!W20*PI()/180))*B116 -> 0 | T116: =(S116+$C$119/2*COS(Knoten!W20*PI()/180)-$C$119*SIN(Knoten!W20*PI()/180))*B116 -> 0 | U116: =(T116+$C$119/4*COS(Knoten!W20*PI()/180)+$C$119/2*SIN(Knoten!W20*PI()/180))*B116 -> 0 | V116: =(U116+$C$119/4*COS(Knoten!W20*PI()/180))*B116 -> 0 | W116: 0 | X116: =(W116+$E$119/2*SIN(Knoten!W20*PI()/180))*B116 -> 0 | Y116: =(W116+$E$119/2*SIN(Knoten!W20*PI()/180)+$E$119*COS(Knoten!W20*PI()/180))*B116 -> 0 | Z116: =(W116-$E$119/2*SIN(Knoten!W20*PI()/180)+$E$119*COS(Knoten!W20*PI()/180))*B116 -> 0 | AA116: =(W116-$E$119/2*SIN(Knoten!W20*PI()/180))*B116 -> 0 | AB116: 0 | AD116: 18 | AE116: =IF(Knoten!R20>0,1,0) -> 0 | AF116: =IF(ISNUMBER(Knoten!C20),Z23*B116,0) -> 0 | AG116: =(AF116-$C$119/2*COS(Knoten!W20*PI()/180)+$C$119/4*SIN(Knoten!W20*PI()/180))*B116 -> 0 | AH116: =(AG116+$C$119*COS(Knoten!W20*PI()/180)+$C$119/2*SIN(Knoten!W20*PI()/180))*B116 -> 0 | AI116: =(AH116-$C$119*COS(Knoten!W20*PI()/180)+$C$119/2*SIN(Knoten!W20*PI()/180))*B116 -> 0 | AJ116: =(AI116+$C$119*COS(Knoten!W20*PI()/180)+$C$119/2*SIN(Knoten!W20*PI()/180))*B116 -> 0 | AK116: =(AJ116-$C$119/2*COS(Knoten!W20*PI()/180)+$C$119/4*SIN(Knoten!W20*PI()/180))*B116 -> 0 | AL116: =(AK116+$C$119/4*SIN(Knoten!W20*PI()/180))*B116 -> 0 | AM116: 0 | AN116: =(AM116-$E$119/2*COS(Knoten!W20*PI()/180))*B116 -> 0 | AO116: =(AM116-$E$119/2*COS(Knoten!W20*PI()/180)+$E$119*SIN(Knoten!W20*PI()/180))*B116 -> 0 | AP116: =(AM116+$E$119/2*COS(Knoten!W20*PI()/180)+$E$119*SIN(Knoten!W20*PI()/180))*B116 -> 0 | AQ116: =(AM116+$E$119/2*COS(Knoten!W20*PI()/180))*B116 -> 0 | AR116: 0 | AS116: =IF(ISNUMBER(Knoten!D20),AA23*B116,0) -> 0 | AT116: =(AS116+$C$119/4*COS(Knoten!W20*PI()/180)+$C$119/2*SIN(Knoten!W20*PI()/180))*B116 -> 0 | AU116: =(AT116+$C$119/2*COS(Knoten!W20*PI()/180)-$C$119*SIN(Knoten!W20*PI()/180))*B116 -> 0 | AV116: =(AU116+$C$119/2*COS(Knoten!W20*PI()/180)+$C$119*SIN(Knoten!W20*PI()/180))*B116 -> 0 | AW116: =(AV116+$C$119/2*COS(Knoten!W20*PI()/180)-$C$119*SIN(Knoten!W20*PI()/180))*B116 -> 0 | AX116: =(AW116+$C$119/4*COS(Knoten!W20*PI()/180)+$C$119/2*SIN(Knoten!W20*PI()/180))*B116 -> 0 | AY116: =(AX116+$C$119/4*COS(Knoten!W20*PI()/180))*B116 -> 0 | AZ116: 0 | BA116: =(AZ116+$E$119/2*SIN(Knoten!W20*PI()/180))*B116 -> 0 | BB116: =(AZ116+$E$119/2*SIN(Knoten!W20*PI()/180)+$E$119*COS(Knoten!W20*PI()/180))*B116 -> 0 | BC116: =(AZ116-$E$119/2*SIN(Knoten!W20*PI()/180)+$E$119*COS(Knoten!W20*PI()/180))*B116 -> 0 | BD116: =(AZ116-$E$119/2*SIN(Knoten!W20*PI()/180))*B116 -> 0 | BE116: 0
A117: 19 | B117: =IF(Knoten!R21>0,1,0) -> 0 | C117: =IF(ISNUMBER(Knoten!C21),(Knoten!C21-$U$1)*B117,0) -> 0 | D117: =(C117-$C$119/2*COS(Knoten!W21*PI()/180)+$C$119/4*SIN(Knoten!W21*PI()/180))*B117 -> 0 | E117: =(D117+$C$119*COS(Knoten!W21*PI()/180)+$C$119/2*SIN(Knoten!W21*PI()/180))*B117 -> 0 | F117: =(E117-$C$119*COS(Knoten!W21*PI()/180)+$C$119/2*SIN(Knoten!W21*PI()/180))*B117 -> 0 | G117: =(F117+$C$119*COS(Knoten!W21*PI()/180)+$C$119/2*SIN(Knoten!W21*PI()/180))*B117 -> 0 | H117: =(G117-$C$119/2*COS(Knoten!W21*PI()/180)+$C$119/4*SIN(Knoten!W21*PI()/180))*B117 -> 0 | I117: =(H117+$C$119/4*SIN(Knoten!W21*PI()/180))*B117 -> 0 | J117: =I117 -> 0 | K117: =(J117-$E$119/2*COS(Knoten!W21*PI()/180))*B117 -> 0 | L117: =(J117-$E$119/2*COS(Knoten!W21*PI()/180)+$E$119*SIN(Knoten!W21*PI()/180))*B117 -> 0 | M117: =(J117+$E$119/2*COS(Knoten!W21*PI()/180)+$E$119*SIN(Knoten!W21*PI()/180))*B117 -> 0 | N117: =(J117+$E$119/2*COS(Knoten!W21*PI()/180))*B117 -> 0 | O117: =J117 -> 0 | P117: =IF(ISNUMBER(Knoten!D21),(Knoten!D21-$X$1)*B117,0) -> 0 | Q117: =(P117+$C$119/4*COS(Knoten!W21*PI()/180)+$C$119/2*SIN(Knoten!W21*PI()/180))*B117 -> 0 | R117: =(Q117+$C$119/2*COS(Knoten!W21*PI()/180)-$C$119*SIN(Knoten!W21*PI()/180))*B117 -> 0 | S117: =(R117+$C$119/2*COS(Knoten!W21*PI()/180)+$C$119*SIN(Knoten!W21*PI()/180))*B117 -> 0 | T117: =(S117+$C$119/2*COS(Knoten!W21*PI()/180)-$C$119*SIN(Knoten!W21*PI()/180))*B117 -> 0 | U117: =(T117+$C$119/4*COS(Knoten!W21*PI()/180)+$C$119/2*SIN(Knoten!W21*PI()/180))*B117 -> 0 | V117: =(U117+$C$119/4*COS(Knoten!W21*PI()/180))*B117 -> 0 | W117: =V117 -> 0 | X117: =(W117+$E$119/2*SIN(Knoten!W21*PI()/180))*B117 -> 0 | Y117: =(W117+$E$119/2*SIN(Knoten!W21*PI()/180)+$E$119*COS(Knoten!W21*PI()/180))*B117 -> 0 | Z117: =(W117-$E$119/2*SIN(Knoten!W21*PI()/180)+$E$119*COS(Knoten!W21*PI()/180))*B117 -> 0 | AA117: =(W117-$E$119/2*SIN(Knoten!W21*PI()/180))*B117 -> 0 | AB117: =W117 -> 0 | AD117: 19 | AE117: =IF(Knoten!R21>0,1,0) -> 0 | AF117: =IF(ISNUMBER(Knoten!C21),Z24*B117,0) -> 0 | AG117: =(AF117-$C$119/2*COS(Knoten!W21*PI()/180)+$C$119/4*SIN(Knoten!W21*PI()/180))*B117 -> 0 | AH117: =(AG117+$C$119*COS(Knoten!W21*PI()/180)+$C$119/2*SIN(Knoten!W21*PI()/180))*B117 -> 0 | AI117: =(AH117-$C$119*COS(Knoten!W21*PI()/180)+$C$119/2*SIN(Knoten!W21*PI()/180))*B117 -> 0 | AJ117: =(AI117+$C$119*COS(Knoten!W21*PI()/180)+$C$119/2*SIN(Knoten!W21*PI()/180))*B117 -> 0 | AK117: =(AJ117-$C$119/2*COS(Knoten!W21*PI()/180)+$C$119/4*SIN(Knoten!W21*PI()/180))*B117 -> 0 | AL117: =(AK117+$C$119/4*SIN(Knoten!W21*PI()/180))*B117 -> 0 | AM117: =AL117 -> 0 | AN117: =(AM117-$E$119/2*COS(Knoten!W21*PI()/180))*B117 -> 0 | AO117: =(AM117-$E$119/2*COS(Knoten!W21*PI()/180)+$E$119*SIN(Knoten!W21*PI()/180))*B117 -> 0 | AP117: =(AM117+$E$119/2*COS(Knoten!W21*PI()/180)+$E$119*SIN(Knoten!W21*PI()/180))*B117 -> 0 | AQ117: =(AM117+$E$119/2*COS(Knoten!W21*PI()/180))*B117 -> 0 | AR117: =AM117 -> 0 | AS117: =IF(ISNUMBER(Knoten!D21),AA24*B117,0) -> 0 | AT117: =(AS117+$C$119/4*COS(Knoten!W21*PI()/180)+$C$119/2*SIN(Knoten!W21*PI()/180))*B117 -> 0 | AU117: =(AT117+$C$119/2*COS(Knoten!W21*PI()/180)-$C$119*SIN(Knoten!W21*PI()/180))*B117 -> 0 | AV117: =(AU117+$C$119/2*COS(Knoten!W21*PI()/180)+$C$119*SIN(Knoten!W21*PI()/180))*B117 -> 0 | AW117: =(AV117+$C$119/2*COS(Knoten!W21*PI()/180)-$C$119*SIN(Knoten!W21*PI()/180))*B117 -> 0 | AX117: =(AW117+$C$119/4*COS(Knoten!W21*PI()/180)+$C$119/2*SIN(Knoten!W21*PI()/180))*B117 -> 0 | AY117: =(AX117+$C$119/4*COS(Knoten!W21*PI()/180))*B117 -> 0 | AZ117: =AY117 -> 0 | BA117: =(AZ117+$E$119/2*SIN(Knoten!W21*PI()/180))*B117 -> 0 | BB117: =(AZ117+$E$119/2*SIN(Knoten!W21*PI()/180)+$E$119*COS(Knoten!W21*PI()/180))*B117 -> 0 | BC117: =(AZ117-$E$119/2*SIN(Knoten!W21*PI()/180)+$E$119*COS(Knoten!W21*PI()/180))*B117 -> 0 | BD117: =(AZ117-$E$119/2*SIN(Knoten!W21*PI()/180))*B117 -> 0 | BE117: =AZ117 -> 0
A118: 20 | B118: =IF(Knoten!R22>0,1,0) -> 0 | C118: =IF(ISNUMBER(Knoten!C22),(Knoten!C22-$U$1)*B118,0) -> 0 | D118: =(C118-$C$119/2*COS(Knoten!W22*PI()/180)+$C$119/4*SIN(Knoten!W22*PI()/180))*B118 -> 0 | E118: =(D118+$C$119*COS(Knoten!W22*PI()/180)+$C$119/2*SIN(Knoten!W22*PI()/180))*B118 -> 0 | F118: =(E118-$C$119*COS(Knoten!W22*PI()/180)+$C$119/2*SIN(Knoten!W22*PI()/180))*B118 -> 0 | G118: =(F118+$C$119*COS(Knoten!W22*PI()/180)+$C$119/2*SIN(Knoten!W22*PI()/180))*B118 -> 0 | H118: =(G118-$C$119/2*COS(Knoten!W22*PI()/180)+$C$119/4*SIN(Knoten!W22*PI()/180))*B118 -> 0 | I118: =(H118+$C$119/4*SIN(Knoten!W22*PI()/180))*B118 -> 0 | J118: =I118 -> 0 | K118: =(J118-$E$119/2*COS(Knoten!W22*PI()/180))*B118 -> 0 | L118: =(J118-$E$119/2*COS(Knoten!W22*PI()/180)+$E$119*SIN(Knoten!W22*PI()/180))*B118 -> 0 | M118: =(J118+$E$119/2*COS(Knoten!W22*PI()/180)+$E$119*SIN(Knoten!W22*PI()/180))*B118 -> 0 | N118: =(J118+$E$119/2*COS(Knoten!W22*PI()/180))*B118 -> 0 | O118: =J118 -> 0 | P118: =IF(ISNUMBER(Knoten!D22),(Knoten!D22-$X$1)*B118,0) -> 0 | Q118: =(P118+$C$119/4*COS(Knoten!W22*PI()/180)+$C$119/2*SIN(Knoten!W22*PI()/180))*B118 -> 0 | R118: =(Q118+$C$119/2*COS(Knoten!W22*PI()/180)-$C$119*SIN(Knoten!W22*PI()/180))*B118 -> 0 | S118: =(R118+$C$119/2*COS(Knoten!W22*PI()/180)+$C$119*SIN(Knoten!W22*PI()/180))*B118 -> 0 | T118: =(S118+$C$119/2*COS(Knoten!W22*PI()/180)-$C$119*SIN(Knoten!W22*PI()/180))*B118 -> 0 | U118: =(T118+$C$119/4*COS(Knoten!W22*PI()/180)+$C$119/2*SIN(Knoten!W22*PI()/180))*B118 -> 0 | V118: =(U118+$C$119/4*COS(Knoten!W22*PI()/180))*B118 -> 0 | W118: =V118 -> 0 | X118: =(W118+$E$119/2*SIN(Knoten!W22*PI()/180))*B118 -> 0 | Y118: =(W118+$E$119/2*SIN(Knoten!W22*PI()/180)+$E$119*COS(Knoten!W22*PI()/180))*B118 -> 0 | Z118: =(W118-$E$119/2*SIN(Knoten!W22*PI()/180)+$E$119*COS(Knoten!W22*PI()/180))*B118 -> 0 | AA118: =(W118-$E$119/2*SIN(Knoten!W22*PI()/180))*B118 -> 0 | AB118: =W118 -> 0 | AD118: 20 | AE118: =IF(Knoten!R22>0,1,0) -> 0 | AF118: =IF(ISNUMBER(Knoten!C22),Z25*B118,0) -> 0 | AG118: =(AF118-$C$119/2*COS(Knoten!W22*PI()/180)+$C$119/4*SIN(Knoten!W22*PI()/180))*B118 -> 0 | AH118: =(AG118+$C$119*COS(Knoten!W22*PI()/180)+$C$119/2*SIN(Knoten!W22*PI()/180))*B118 -> 0 | AI118: =(AH118-$C$119*COS(Knoten!W22*PI()/180)+$C$119/2*SIN(Knoten!W22*PI()/180))*B118 -> 0 | AJ118: =(AI118+$C$119*COS(Knoten!W22*PI()/180)+$C$119/2*SIN(Knoten!W22*PI()/180))*B118 -> 0 | AK118: =(AJ118-$C$119/2*COS(Knoten!W22*PI()/180)+$C$119/4*SIN(Knoten!W22*PI()/180))*B118 -> 0 | AL118: =(AK118+$C$119/4*SIN(Knoten!W22*PI()/180))*B118 -> 0 | AM118: =AL118 -> 0 | AN118: =(AM118-$E$119/2*COS(Knoten!W22*PI()/180))*B118 -> 0 | AO118: =(AM118-$E$119/2*COS(Knoten!W22*PI()/180)+$E$119*SIN(Knoten!W22*PI()/180))*B118 -> 0 | AP118: =(AM118+$E$119/2*COS(Knoten!W22*PI()/180)+$E$119*SIN(Knoten!W22*PI()/180))*B118 -> 0 | AQ118: =(AM118+$E$119/2*COS(Knoten!W22*PI()/180))*B118 -> 0 | AR118: =AM118 -> 0 | AS118: =IF(ISNUMBER(Knoten!D22),AA25*B118,0) -> 0 | AT118: =(AS118+$C$119/4*COS(Knoten!W22*PI()/180)+$C$119/2*SIN(Knoten!W22*PI()/180))*B118 -> 0 | AU118: =(AT118+$C$119/2*COS(Knoten!W22*PI()/180)-$C$119*SIN(Knoten!W22*PI()/180))*B118 -> 0 | AV118: =(AU118+$C$119/2*COS(Knoten!W22*PI()/180)+$C$119*SIN(Knoten!W22*PI()/180))*B118 -> 0 | AW118: =(AV118+$C$119/2*COS(Knoten!W22*PI()/180)-$C$119*SIN(Knoten!W22*PI()/180))*B118 -> 0 | AX118: =(AW118+$C$119/4*COS(Knoten!W22*PI()/180)+$C$119/2*SIN(Knoten!W22*PI()/180))*B118 -> 0 | AY118: =(AX118+$C$119/4*COS(Knoten!W22*PI()/180))*B118 -> 0 | AZ118: =AY118 -> 0 | BA118: =(AZ118+$E$119/2*SIN(Knoten!W22*PI()/180))*B118 -> 0 | BB118: =(AZ118+$E$119/2*SIN(Knoten!W22*PI()/180)+$E$119*COS(Knoten!W22*PI()/180))*B118 -> 0 | BC118: =(AZ118-$E$119/2*SIN(Knoten!W22*PI()/180)+$E$119*COS(Knoten!W22*PI()/180))*B118 -> 0 | BD118: =(AZ118-$E$119/2*SIN(Knoten!W22*PI()/180))*B118 -> 0 | BE118: =AZ118 -> 0
B119: Feder | C119: =4*$E$1*$H$1 -> 1.484318025 | D119: Auflager | E119: =2*$E$1*$H$1 -> 0.7421590126
B121: unverformt | AE121: verformt
A122: Feder horizontal | C122: x - Koordinaten der Feder | J122: x - Koordinaten des Auflager | P122: y - Koordinaten der Feder | W122: y - Koordinaten des Auflager | AD122: Feder horizontal | AF122: x - Koordinaten der Feder | AM122: x - Koordinaten des Auflager | AS122: y - Koordinaten der Feder | AZ122: y - Koordinaten des Auflager
A123: 1 | B123: =IF(Knoten!Q3>0,1,0) -> 0 | C123: =IF(ISNUMBER(Knoten!C3),(Knoten!C3-$U$1)*B123,0) -> 0 | D123: =(C123-$C$143/4*COS(Knoten!W3*PI()/180)+$C$143/2*SIN(Knoten!W3*PI()/180))*B123 -> 0 | E123: =(D123-$C$143/2*COS(Knoten!W3*PI()/180)-$C$143*SIN(Knoten!W3*PI()/180))*B123 -> 0 | F123: =(E123-$C$143/2*COS(Knoten!W3*PI()/180)+$C$143*SIN(Knoten!W3*PI()/180))*B123 -> 0 | G123: =(F123-$C$143/2*COS(Knoten!W3*PI()/180)-$C$143*SIN(Knoten!W3*PI()/180))*B123 -> 0 | H123: =(G123-$C$143/4*COS(Knoten!W3*PI()/180)+$C$143/2*SIN(Knoten!W3*PI()/180))*B123 -> 0 | I123: =(H123-$C$143/4*COS(Knoten!W3*PI()/180))*B123 -> 0 | J123: =I123 -> 0 | K123: =(J123-$E$143/2*SIN(Knoten!W3*PI()/180))*B123 -> 0 | L123: =(J123-$E$143/2*SIN(Knoten!W3*PI()/180)-$E$143*COS(Knoten!W3*PI()/180))*B123 -> 0 | M123: =(J123+$E$143/2*SIN(Knoten!W3*PI()/180)-$E$143*COS(Knoten!W3*PI()/180))*B123 -> 0 | N123: =(J123+$E$143/2*SIN(Knoten!W3*PI()/180))*B123 -> 0 | O123: =J123 -> 0 | P123: =IF(ISNUMBER(Knoten!D3),(Knoten!D3-$X$1)*B123,0) -> 0 | Q123: =(P123+$C$143/2*COS(Knoten!W3*PI()/180)+$C$143/4*SIN(Knoten!W3*PI()/180))*B123 -> 0 | R123: =(Q123-$C$143*COS(Knoten!W3*PI()/180)+$C$143/2*SIN(Knoten!W3*PI()/180))*B123 -> 0 | S123: =(R123+$C$143*COS(Knoten!W3*PI()/180)+$C$143/2*SIN(Knoten!W3*PI()/180))*B123 -> 0 | T123: =(S123-$C$143*COS(Knoten!W3*PI()/180)+$C$143/2*SIN(Knoten!W3*PI()/180))*B123 -> 0 | U123: =(T123+$C$143/2*COS(Knoten!W3*PI()/180)+$C$143/4*SIN(Knoten!W3*PI()/180))*B123 -> 0 | V123: =(U123+$C$143/4*SIN(Knoten!W3*PI()/180))*B123 -> 0 | W123: =V123 -> 0 | X123: =(W123-$E$143/2*COS(Knoten!W3*PI()/180))*B123 -> 0 | Y123: =(W123+$E$143*SIN(Knoten!W3*PI()/180)-$E$143/2*COS(Knoten!W3*PI()/180))*B123 -> 0 | Z123: =(W123+$E$143*SIN(Knoten!W3*PI()/180)+$E$143/2*COS(Knoten!W3*PI()/180))*B123 -> 0 | AA123: =(W123+$E$143/2*COS(Knoten!W3*PI()/180))*B123 -> 0 | AB123: =W123 -> 0 | AD123: 1 | AE123: =IF(Knoten!Q3>0,1,0) -> 0 | AF123: =IF(ISNUMBER(Knoten!C3),Z6*B123,0) -> 0 | AG123: =(AF123-$C$143/4*COS(Knoten!W3*PI()/180)+$C$143/2*SIN(Knoten!W3*PI()/180))*B123 -> 0 | AH123: =(AG123-$C$143/2*COS(Knoten!W3*PI()/180)-$C$143*SIN(Knoten!W3*PI()/180))*B123 -> 0 | AI123: =(AH123-$C$143/2*COS(Knoten!W3*PI()/180)+$C$143*SIN(Knoten!W3*PI()/180))*B123 -> 0 | AJ123: =(AI123-$C$143/2*COS(Knoten!W3*PI()/180)-$C$143*SIN(Knoten!W3*PI()/180))*B123 -> 0 | AK123: =(AJ123-$C$143/4*COS(Knoten!W3*PI()/180)+$C$143/2*SIN(Knoten!W3*PI()/180))*B123 -> 0 | AL123: =(AK123-$C$143/4*COS(Knoten!W3*PI()/180))*B123 -> 0 | AM123: =AL123 -> 0 | AN123: =(AM123-$E$143/2*SIN(Knoten!W3*PI()/180))*B123 -> 0 | AO123: =(AM123-$E$143/2*SIN(Knoten!W3*PI()/180)-$E$143*COS(Knoten!W3*PI()/180))*B123 -> 0 | AP123: =(AM123+$E$143/2*SIN(Knoten!W3*PI()/180)-$E$143*COS(Knoten!W3*PI()/180))*B123 -> 0 | AQ123: =(AM123+$E$143/2*SIN(Knoten!W3*PI()/180))*B123 -> 0 | AR123: =AM123 -> 0 | AS123: =IF(ISNUMBER(Knoten!D3),AA6*B123,0) -> 0 | AT123: =(AS123+$C$143/2*COS(Knoten!W3*PI()/180)+$C$143/4*SIN(Knoten!W3*PI()/180))*B123 -> 0 | AU123: =(AT123-$C$143*COS(Knoten!W3*PI()/180)+$C$143/2*SIN(Knoten!W3*PI()/180))*B123 -> 0 | AV123: =(AU123+$C$143*COS(Knoten!W3*PI()/180)+$C$143/2*SIN(Knoten!W3*PI()/180))*B123 -> 0 | AW123: =(AV123-$C$143*COS(Knoten!W3*PI()/180)+$C$143/2*SIN(Knoten!W3*PI()/180))*B123 -> 0 | AX123: =(AW123+$C$143/2*COS(Knoten!W3*PI()/180)+$C$143/4*SIN(Knoten!W3*PI()/180))*B123 -> 0 | AY123: =(AX123+$C$143/4*SIN(Knoten!W3*PI()/180))*B123 -> 0 | AZ123: =AY123 -> 0 | BA123: =(AZ123-$E$143/2*COS(Knoten!W3*PI()/180))*B123 -> 0 | BB123: =(AZ123+$E$143*SIN(Knoten!W3*PI()/180)-$E$143/2*COS(Knoten!W3*PI()/180))*B123 -> 0 | BC123: =(AZ123+$E$143*SIN(Knoten!W3*PI()/180)+$E$143/2*COS(Knoten!W3*PI()/180))*B123 -> 0 | BD123: =(AZ123+$E$143/2*COS(Knoten!W3*PI()/180))*B123 -> 0 | BE123: =AZ123 -> 0
A124: 2 | B124: =IF(Knoten!Q4>0,1,0) -> 0 | C124: =IF(ISNUMBER(Knoten!C4),(Knoten!C4-$U$1)*B124,0) -> 0 | D124: =(C124-$C$143/4*COS(Knoten!W4*PI()/180)+$C$143/2*SIN(Knoten!W4*PI()/180))*B124 -> 0 | E124: =(D124-$C$143/2*COS(Knoten!W4*PI()/180)-$C$143*SIN(Knoten!W4*PI()/180))*B124 -> 0 | F124: =(E124-$C$143/2*COS(Knoten!W4*PI()/180)+$C$143*SIN(Knoten!W4*PI()/180))*B124 -> 0 | G124: =(F124-$C$143/2*COS(Knoten!W4*PI()/180)-$C$143*SIN(Knoten!W4*PI()/180))*B124 -> 0 | H124: =(G124-$C$143/4*COS(Knoten!W4*PI()/180)+$C$143/2*SIN(Knoten!W4*PI()/180))*B124 -> 0 | I124: =(H124-$C$143/4*COS(Knoten!W4*PI()/180))*B124 -> 0 | J124: 0 | K124: =(J124-$E$143/2*SIN(Knoten!W4*PI()/180))*B124 -> 0 | L124: =(J124-$E$143/2*SIN(Knoten!W4*PI()/180)-$E$143*COS(Knoten!W4*PI()/180))*B124 -> 0 | M124: =(J124+$E$143/2*SIN(Knoten!W4*PI()/180)-$E$143*COS(Knoten!W4*PI()/180))*B124 -> 0 | N124: =(J124+$E$143/2*SIN(Knoten!W4*PI()/180))*B124 -> 0 | O124: 0 | P124: =IF(ISNUMBER(Knoten!D4),(Knoten!D4-$X$1)*B124,0) -> 0 | Q124: =(P124+$C$143/2*COS(Knoten!W4*PI()/180)+$C$143/4*SIN(Knoten!W4*PI()/180))*B124 -> 0 | R124: =(Q124-$C$143*COS(Knoten!W4*PI()/180)+$C$143/2*SIN(Knoten!W4*PI()/180))*B124 -> 0 | S124: =(R124+$C$143*COS(Knoten!W4*PI()/180)+$C$143/2*SIN(Knoten!W4*PI()/180))*B124 -> 0 | T124: =(S124-$C$143*COS(Knoten!W4*PI()/180)+$C$143/2*SIN(Knoten!W4*PI()/180))*B124 -> 0 | U124: =(T124+$C$143/2*COS(Knoten!W4*PI()/180)+$C$143/4*SIN(Knoten!W4*PI()/180))*B124 -> 0 | V124: =(U124+$C$143/4*SIN(Knoten!W4*PI()/180))*B124 -> 0 | W124: 0 | X124: =(W124-$E$143/2*COS(Knoten!W4*PI()/180))*B124 -> 0 | Y124: =(W124+$E$143*SIN(Knoten!W4*PI()/180)-$E$143/2*COS(Knoten!W4*PI()/180))*B124 -> 0 | Z124: =(W124+$E$143*SIN(Knoten!W4*PI()/180)+$E$143/2*COS(Knoten!W4*PI()/180))*B124 -> 0 | AA124: =(W124+$E$143/2*COS(Knoten!W4*PI()/180))*B124 -> 0 | AB124: 0 | AD124: 2 | AE124: =IF(Knoten!Q4>0,1,0) -> 0 | AF124: =IF(ISNUMBER(Knoten!C4),Z7*B124,0) -> 0 | AG124: =(AF124-$C$143/4*COS(Knoten!W4*PI()/180)+$C$143/2*SIN(Knoten!W4*PI()/180))*B124 -> 0 | AH124: =(AG124-$C$143/2*COS(Knoten!W4*PI()/180)-$C$143*SIN(Knoten!W4*PI()/180))*B124 -> 0 | AI124: =(AH124-$C$143/2*COS(Knoten!W4*PI()/180)+$C$143*SIN(Knoten!W4*PI()/180))*B124 -> 0 | AJ124: =(AI124-$C$143/2*COS(Knoten!W4*PI()/180)-$C$143*SIN(Knoten!W4*PI()/180))*B124 -> 0 | AK124: =(AJ124-$C$143/4*COS(Knoten!W4*PI()/180)+$C$143/2*SIN(Knoten!W4*PI()/180))*B124 -> 0 | AL124: =(AK124-$C$143/4*COS(Knoten!W4*PI()/180))*B124 -> 0 | AM124: 0 | AN124: =(AM124-$E$143/2*SIN(Knoten!W4*PI()/180))*B124 -> 0 | AO124: =(AM124-$E$143/2*SIN(Knoten!W4*PI()/180)-$E$143*COS(Knoten!W4*PI()/180))*B124 -> 0 | AP124: =(AM124+$E$143/2*SIN(Knoten!W4*PI()/180)-$E$143*COS(Knoten!W4*PI()/180))*B124 -> 0 | AQ124: =(AM124+$E$143/2*SIN(Knoten!W4*PI()/180))*B124 -> 0 | AR124: 0 | AS124: =IF(ISNUMBER(Knoten!D4),AA7*B124,0) -> 0 | AT124: =(AS124+$C$143/2*COS(Knoten!W4*PI()/180)+$C$143/4*SIN(Knoten!W4*PI()/180))*B124 -> 0 | AU124: =(AT124-$C$143*COS(Knoten!W4*PI()/180)+$C$143/2*SIN(Knoten!W4*PI()/180))*B124 -> 0 | AV124: =(AU124+$C$143*COS(Knoten!W4*PI()/180)+$C$143/2*SIN(Knoten!W4*PI()/180))*B124 -> 0 | AW124: =(AV124-$C$143*COS(Knoten!W4*PI()/180)+$C$143/2*SIN(Knoten!W4*PI()/180))*B124 -> 0 | AX124: =(AW124+$C$143/2*COS(Knoten!W4*PI()/180)+$C$143/4*SIN(Knoten!W4*PI()/180))*B124 -> 0 | AY124: =(AX124+$C$143/4*SIN(Knoten!W4*PI()/180))*B124 -> 0 | AZ124: 0 | BA124: =(AZ124-$E$143/2*COS(Knoten!W4*PI()/180))*B124 -> 0 | BB124: =(AZ124+$E$143*SIN(Knoten!W4*PI()/180)-$E$143/2*COS(Knoten!W4*PI()/180))*B124 -> 0 | BC124: =(AZ124+$E$143*SIN(Knoten!W4*PI()/180)+$E$143/2*COS(Knoten!W4*PI()/180))*B124 -> 0 | BD124: =(AZ124+$E$143/2*COS(Knoten!W4*PI()/180))*B124 -> 0 | BE124: 0
A125: 3 | B125: =IF(Knoten!Q5>0,1,0) -> 0 | C125: =IF(ISNUMBER(Knoten!C5),(Knoten!C5-$U$1)*B125,0) -> 0 | D125: =(C125-$C$143/4*COS(Knoten!W5*PI()/180)+$C$143/2*SIN(Knoten!W5*PI()/180))*B125 -> 0 | E125: =(D125-$C$143/2*COS(Knoten!W5*PI()/180)-$C$143*SIN(Knoten!W5*PI()/180))*B125 -> 0 | F125: =(E125-$C$143/2*COS(Knoten!W5*PI()/180)+$C$143*SIN(Knoten!W5*PI()/180))*B125 -> 0 | G125: =(F125-$C$143/2*COS(Knoten!W5*PI()/180)-$C$143*SIN(Knoten!W5*PI()/180))*B125 -> 0 | H125: =(G125-$C$143/4*COS(Knoten!W5*PI()/180)+$C$143/2*SIN(Knoten!W5*PI()/180))*B125 -> 0 | I125: =(H125-$C$143/4*COS(Knoten!W5*PI()/180))*B125 -> 0 | J125: 0 | K125: =(J125-$E$143/2*SIN(Knoten!W5*PI()/180))*B125 -> 0 | L125: =(J125-$E$143/2*SIN(Knoten!W5*PI()/180)-$E$143*COS(Knoten!W5*PI()/180))*B125 -> 0 | M125: =(J125+$E$143/2*SIN(Knoten!W5*PI()/180)-$E$143*COS(Knoten!W5*PI()/180))*B125 -> 0 | N125: =(J125+$E$143/2*SIN(Knoten!W5*PI()/180))*B125 -> 0 | O125: 0 | P125: =IF(ISNUMBER(Knoten!D5),(Knoten!D5-$X$1)*B125,0) -> 0 | Q125: =(P125+$C$143/2*COS(Knoten!W5*PI()/180)+$C$143/4*SIN(Knoten!W5*PI()/180))*B125 -> 0 | R125: =(Q125-$C$143*COS(Knoten!W5*PI()/180)+$C$143/2*SIN(Knoten!W5*PI()/180))*B125 -> 0 | S125: =(R125+$C$143*COS(Knoten!W5*PI()/180)+$C$143/2*SIN(Knoten!W5*PI()/180))*B125 -> 0 | T125: =(S125-$C$143*COS(Knoten!W5*PI()/180)+$C$143/2*SIN(Knoten!W5*PI()/180))*B125 -> 0 | U125: =(T125+$C$143/2*COS(Knoten!W5*PI()/180)+$C$143/4*SIN(Knoten!W5*PI()/180))*B125 -> 0 | V125: =(U125+$C$143/4*SIN(Knoten!W5*PI()/180))*B125 -> 0 | W125: 0 | X125: =(W125-$E$143/2*COS(Knoten!W5*PI()/180))*B125 -> 0 | Y125: =(W125+$E$143*SIN(Knoten!W5*PI()/180)-$E$143/2*COS(Knoten!W5*PI()/180))*B125 -> 0 | Z125: =(W125+$E$143*SIN(Knoten!W5*PI()/180)+$E$143/2*COS(Knoten!W5*PI()/180))*B125 -> 0 | AA125: =(W125+$E$143/2*COS(Knoten!W5*PI()/180))*B125 -> 0 | AB125: 0 | AD125: 3 | AE125: =IF(Knoten!Q5>0,1,0) -> 0 | AF125: =IF(ISNUMBER(Knoten!C5),Z8*B125,0) -> 0 | AG125: =(AF125-$C$143/4*COS(Knoten!W5*PI()/180)+$C$143/2*SIN(Knoten!W5*PI()/180))*B125 -> 0 | AH125: =(AG125-$C$143/2*COS(Knoten!W5*PI()/180)-$C$143*SIN(Knoten!W5*PI()/180))*B125 -> 0 | AI125: =(AH125-$C$143/2*COS(Knoten!W5*PI()/180)+$C$143*SIN(Knoten!W5*PI()/180))*B125 -> 0 | AJ125: =(AI125-$C$143/2*COS(Knoten!W5*PI()/180)-$C$143*SIN(Knoten!W5*PI()/180))*B125 -> 0 | AK125: =(AJ125-$C$143/4*COS(Knoten!W5*PI()/180)+$C$143/2*SIN(Knoten!W5*PI()/180))*B125 -> 0 | AL125: =(AK125-$C$143/4*COS(Knoten!W5*PI()/180))*B125 -> 0 | AM125: 0 | AN125: =(AM125-$E$143/2*SIN(Knoten!W5*PI()/180))*B125 -> 0 | AO125: =(AM125-$E$143/2*SIN(Knoten!W5*PI()/180)-$E$143*COS(Knoten!W5*PI()/180))*B125 -> 0 | AP125: =(AM125+$E$143/2*SIN(Knoten!W5*PI()/180)-$E$143*COS(Knoten!W5*PI()/180))*B125 -> 0 | AQ125: =(AM125+$E$143/2*SIN(Knoten!W5*PI()/180))*B125 -> 0 | AR125: 0 | AS125: =IF(ISNUMBER(Knoten!D5),AA8*B125,0) -> 0 | AT125: =(AS125+$C$143/2*COS(Knoten!W5*PI()/180)+$C$143/4*SIN(Knoten!W5*PI()/180))*B125 -> 0 | AU125: =(AT125-$C$143*COS(Knoten!W5*PI()/180)+$C$143/2*SIN(Knoten!W5*PI()/180))*B125 -> 0 | AV125: =(AU125+$C$143*COS(Knoten!W5*PI()/180)+$C$143/2*SIN(Knoten!W5*PI()/180))*B125 -> 0 | AW125: =(AV125-$C$143*COS(Knoten!W5*PI()/180)+$C$143/2*SIN(Knoten!W5*PI()/180))*B125 -> 0 | AX125: =(AW125+$C$143/2*COS(Knoten!W5*PI()/180)+$C$143/4*SIN(Knoten!W5*PI()/180))*B125 -> 0 | AY125: =(AX125+$C$143/4*SIN(Knoten!W5*PI()/180))*B125 -> 0 | AZ125: 0 | BA125: =(AZ125-$E$143/2*COS(Knoten!W5*PI()/180))*B125 -> 0 | BB125: =(AZ125+$E$143*SIN(Knoten!W5*PI()/180)-$E$143/2*COS(Knoten!W5*PI()/180))*B125 -> 0 | BC125: =(AZ125+$E$143*SIN(Knoten!W5*PI()/180)+$E$143/2*COS(Knoten!W5*PI()/180))*B125 -> 0 | BD125: =(AZ125+$E$143/2*COS(Knoten!W5*PI()/180))*B125 -> 0 | BE125: 0
A126: 4 | B126: =IF(Knoten!Q6>0,1,0) -> 0 | C126: =IF(ISNUMBER(Knoten!C6),(Knoten!C6-$U$1)*B126,0) -> 0 | D126: =(C126-$C$143/4*COS(Knoten!W6*PI()/180)+$C$143/2*SIN(Knoten!W6*PI()/180))*B126 -> 0 | E126: =(D126-$C$143/2*COS(Knoten!W6*PI()/180)-$C$143*SIN(Knoten!W6*PI()/180))*B126 -> 0 | F126: =(E126-$C$143/2*COS(Knoten!W6*PI()/180)+$C$143*SIN(Knoten!W6*PI()/180))*B126 -> 0 | G126: =(F126-$C$143/2*COS(Knoten!W6*PI()/180)-$C$143*SIN(Knoten!W6*PI()/180))*B126 -> 0 | H126: =(G126-$C$143/4*COS(Knoten!W6*PI()/180)+$C$143/2*SIN(Knoten!W6*PI()/180))*B126 -> 0 | I126: =(H126-$C$143/4*COS(Knoten!W6*PI()/180))*B126 -> 0 | J126: 0 | K126: =(J126-$E$143/2*SIN(Knoten!W6*PI()/180))*B126 -> 0 | L126: =(J126-$E$143/2*SIN(Knoten!W6*PI()/180)-$E$143*COS(Knoten!W6*PI()/180))*B126 -> 0 | M126: =(J126+$E$143/2*SIN(Knoten!W6*PI()/180)-$E$143*COS(Knoten!W6*PI()/180))*B126 -> 0 | N126: =(J126+$E$143/2*SIN(Knoten!W6*PI()/180))*B126 -> 0 | O126: 0 | P126: =IF(ISNUMBER(Knoten!D6),(Knoten!D6-$X$1)*B126,0) -> 0 | Q126: =(P126+$C$143/2*COS(Knoten!W6*PI()/180)+$C$143/4*SIN(Knoten!W6*PI()/180))*B126 -> 0 | R126: =(Q126-$C$143*COS(Knoten!W6*PI()/180)+$C$143/2*SIN(Knoten!W6*PI()/180))*B126 -> 0 | S126: =(R126+$C$143*COS(Knoten!W6*PI()/180)+$C$143/2*SIN(Knoten!W6*PI()/180))*B126 -> 0 | T126: =(S126-$C$143*COS(Knoten!W6*PI()/180)+$C$143/2*SIN(Knoten!W6*PI()/180))*B126 -> 0 | U126: =(T126+$C$143/2*COS(Knoten!W6*PI()/180)+$C$143/4*SIN(Knoten!W6*PI()/180))*B126 -> 0 | V126: =(U126+$C$143/4*SIN(Knoten!W6*PI()/180))*B126 -> 0 | W126: 0 | X126: =(W126-$E$143/2*COS(Knoten!W6*PI()/180))*B126 -> 0 | Y126: =(W126+$E$143*SIN(Knoten!W6*PI()/180)-$E$143/2*COS(Knoten!W6*PI()/180))*B126 -> 0 | Z126: =(W126+$E$143*SIN(Knoten!W6*PI()/180)+$E$143/2*COS(Knoten!W6*PI()/180))*B126 -> 0 | AA126: =(W126+$E$143/2*COS(Knoten!W6*PI()/180))*B126 -> 0 | AB126: 0 | AD126: 4 | AE126: =IF(Knoten!Q6>0,1,0) -> 0 | AF126: =IF(ISNUMBER(Knoten!C6),Z9*B126,0) -> 0 | AG126: =(AF126-$C$143/4*COS(Knoten!W6*PI()/180)+$C$143/2*SIN(Knoten!W6*PI()/180))*B126 -> 0 | AH126: =(AG126-$C$143/2*COS(Knoten!W6*PI()/180)-$C$143*SIN(Knoten!W6*PI()/180))*B126 -> 0 | AI126: =(AH126-$C$143/2*COS(Knoten!W6*PI()/180)+$C$143*SIN(Knoten!W6*PI()/180))*B126 -> 0 | AJ126: =(AI126-$C$143/2*COS(Knoten!W6*PI()/180)-$C$143*SIN(Knoten!W6*PI()/180))*B126 -> 0 | AK126: =(AJ126-$C$143/4*COS(Knoten!W6*PI()/180)+$C$143/2*SIN(Knoten!W6*PI()/180))*B126 -> 0 | AL126: =(AK126-$C$143/4*COS(Knoten!W6*PI()/180))*B126 -> 0 | AM126: 0 | AN126: =(AM126-$E$143/2*SIN(Knoten!W6*PI()/180))*B126 -> 0 | AO126: =(AM126-$E$143/2*SIN(Knoten!W6*PI()/180)-$E$143*COS(Knoten!W6*PI()/180))*B126 -> 0 | AP126: =(AM126+$E$143/2*SIN(Knoten!W6*PI()/180)-$E$143*COS(Knoten!W6*PI()/180))*B126 -> 0 | AQ126: =(AM126+$E$143/2*SIN(Knoten!W6*PI()/180))*B126 -> 0 | AR126: 0 | AS126: =IF(ISNUMBER(Knoten!D6),AA9*B126,0) -> 0 | AT126: =(AS126+$C$143/2*COS(Knoten!W6*PI()/180)+$C$143/4*SIN(Knoten!W6*PI()/180))*B126 -> 0 | AU126: =(AT126-$C$143*COS(Knoten!W6*PI()/180)+$C$143/2*SIN(Knoten!W6*PI()/180))*B126 -> 0 | AV126: =(AU126+$C$143*COS(Knoten!W6*PI()/180)+$C$143/2*SIN(Knoten!W6*PI()/180))*B126 -> 0 | AW126: =(AV126-$C$143*COS(Knoten!W6*PI()/180)+$C$143/2*SIN(Knoten!W6*PI()/180))*B126 -> 0 | AX126: =(AW126+$C$143/2*COS(Knoten!W6*PI()/180)+$C$143/4*SIN(Knoten!W6*PI()/180))*B126 -> 0 | AY126: =(AX126+$C$143/4*SIN(Knoten!W6*PI()/180))*B126 -> 0 | AZ126: 0 | BA126: =(AZ126-$E$143/2*COS(Knoten!W6*PI()/180))*B126 -> 0 | BB126: =(AZ126+$E$143*SIN(Knoten!W6*PI()/180)-$E$143/2*COS(Knoten!W6*PI()/180))*B126 -> 0 | BC126: =(AZ126+$E$143*SIN(Knoten!W6*PI()/180)+$E$143/2*COS(Knoten!W6*PI()/180))*B126 -> 0 | BD126: =(AZ126+$E$143/2*COS(Knoten!W6*PI()/180))*B126 -> 0 | BE126: 0
A127: 5 | B127: =IF(Knoten!Q7>0,1,0) -> 0 | C127: =IF(ISNUMBER(Knoten!C7),(Knoten!C7-$U$1)*B127,0) -> 0 | D127: =(C127-$C$143/4*COS(Knoten!W7*PI()/180)+$C$143/2*SIN(Knoten!W7*PI()/180))*B127 -> 0 | E127: =(D127-$C$143/2*COS(Knoten!W7*PI()/180)-$C$143*SIN(Knoten!W7*PI()/180))*B127 -> 0 | F127: =(E127-$C$143/2*COS(Knoten!W7*PI()/180)+$C$143*SIN(Knoten!W7*PI()/180))*B127 -> 0 | G127: =(F127-$C$143/2*COS(Knoten!W7*PI()/180)-$C$143*SIN(Knoten!W7*PI()/180))*B127 -> 0 | H127: =(G127-$C$143/4*COS(Knoten!W7*PI()/180)+$C$143/2*SIN(Knoten!W7*PI()/180))*B127 -> 0 | I127: =(H127-$C$143/4*COS(Knoten!W7*PI()/180))*B127 -> 0 | J127: 0 | K127: =(J127-$E$143/2*SIN(Knoten!W7*PI()/180))*B127 -> 0 | L127: =(J127-$E$143/2*SIN(Knoten!W7*PI()/180)-$E$143*COS(Knoten!W7*PI()/180))*B127 -> 0 | M127: =(J127+$E$143/2*SIN(Knoten!W7*PI()/180)-$E$143*COS(Knoten!W7*PI()/180))*B127 -> 0 | N127: =(J127+$E$143/2*SIN(Knoten!W7*PI()/180))*B127 -> 0 | O127: 0 | P127: =IF(ISNUMBER(Knoten!D7),(Knoten!D7-$X$1)*B127,0) -> 0 | Q127: =(P127+$C$143/2*COS(Knoten!W7*PI()/180)+$C$143/4*SIN(Knoten!W7*PI()/180))*B127 -> 0 | R127: =(Q127-$C$143*COS(Knoten!W7*PI()/180)+$C$143/2*SIN(Knoten!W7*PI()/180))*B127 -> 0 | S127: =(R127+$C$143*COS(Knoten!W7*PI()/180)+$C$143/2*SIN(Knoten!W7*PI()/180))*B127 -> 0 | T127: =(S127-$C$143*COS(Knoten!W7*PI()/180)+$C$143/2*SIN(Knoten!W7*PI()/180))*B127 -> 0 | U127: =(T127+$C$143/2*COS(Knoten!W7*PI()/180)+$C$143/4*SIN(Knoten!W7*PI()/180))*B127 -> 0 | V127: =(U127+$C$143/4*SIN(Knoten!W7*PI()/180))*B127 -> 0 | W127: 0 | X127: =(W127-$E$143/2*COS(Knoten!W7*PI()/180))*B127 -> 0 | Y127: =(W127+$E$143*SIN(Knoten!W7*PI()/180)-$E$143/2*COS(Knoten!W7*PI()/180))*B127 -> 0 | Z127: =(W127+$E$143*SIN(Knoten!W7*PI()/180)+$E$143/2*COS(Knoten!W7*PI()/180))*B127 -> 0 | AA127: =(W127+$E$143/2*COS(Knoten!W7*PI()/180))*B127 -> 0 | AB127: 0 | AD127: 5 | AE127: =IF(Knoten!Q7>0,1,0) -> 0 | AF127: =IF(ISNUMBER(Knoten!C7),Z10*B127,0) -> 0 | AG127: =(AF127-$C$143/4*COS(Knoten!W7*PI()/180)+$C$143/2*SIN(Knoten!W7*PI()/180))*B127 -> 0 | AH127: =(AG127-$C$143/2*COS(Knoten!W7*PI()/180)-$C$143*SIN(Knoten!W7*PI()/180))*B127 -> 0 | AI127: =(AH127-$C$143/2*COS(Knoten!W7*PI()/180)+$C$143*SIN(Knoten!W7*PI()/180))*B127 -> 0 | AJ127: =(AI127-$C$143/2*COS(Knoten!W7*PI()/180)-$C$143*SIN(Knoten!W7*PI()/180))*B127 -> 0 | AK127: =(AJ127-$C$143/4*COS(Knoten!W7*PI()/180)+$C$143/2*SIN(Knoten!W7*PI()/180))*B127 -> 0 | AL127: =(AK127-$C$143/4*COS(Knoten!W7*PI()/180))*B127 -> 0 | AM127: 0 | AN127: =(AM127-$E$143/2*SIN(Knoten!W7*PI()/180))*B127 -> 0 | AO127: =(AM127-$E$143/2*SIN(Knoten!W7*PI()/180)-$E$143*COS(Knoten!W7*PI()/180))*B127 -> 0 | AP127: =(AM127+$E$143/2*SIN(Knoten!W7*PI()/180)-$E$143*COS(Knoten!W7*PI()/180))*B127 -> 0 | AQ127: =(AM127+$E$143/2*SIN(Knoten!W7*PI()/180))*B127 -> 0 | AR127: 0 | AS127: =IF(ISNUMBER(Knoten!D7),AA10*B127,0) -> 0 | AT127: =(AS127+$C$143/2*COS(Knoten!W7*PI()/180)+$C$143/4*SIN(Knoten!W7*PI()/180))*B127 -> 0 | AU127: =(AT127-$C$143*COS(Knoten!W7*PI()/180)+$C$143/2*SIN(Knoten!W7*PI()/180))*B127 -> 0 | AV127: =(AU127+$C$143*COS(Knoten!W7*PI()/180)+$C$143/2*SIN(Knoten!W7*PI()/180))*B127 -> 0 | AW127: =(AV127-$C$143*COS(Knoten!W7*PI()/180)+$C$143/2*SIN(Knoten!W7*PI()/180))*B127 -> 0 | AX127: =(AW127+$C$143/2*COS(Knoten!W7*PI()/180)+$C$143/4*SIN(Knoten!W7*PI()/180))*B127 -> 0 | AY127: =(AX127+$C$143/4*SIN(Knoten!W7*PI()/180))*B127 -> 0 | AZ127: 0 | BA127: =(AZ127-$E$143/2*COS(Knoten!W7*PI()/180))*B127 -> 0 | BB127: =(AZ127+$E$143*SIN(Knoten!W7*PI()/180)-$E$143/2*COS(Knoten!W7*PI()/180))*B127 -> 0 | BC127: =(AZ127+$E$143*SIN(Knoten!W7*PI()/180)+$E$143/2*COS(Knoten!W7*PI()/180))*B127 -> 0 | BD127: =(AZ127+$E$143/2*COS(Knoten!W7*PI()/180))*B127 -> 0 | BE127: 0
A128: 6 | B128: =IF(Knoten!Q8>0,1,0) -> 0 | C128: =IF(ISNUMBER(Knoten!C8),(Knoten!C8-$U$1)*B128,0) -> 0 | D128: =(C128-$C$143/4*COS(Knoten!W8*PI()/180)+$C$143/2*SIN(Knoten!W8*PI()/180))*B128 -> 0 | E128: =(D128-$C$143/2*COS(Knoten!W8*PI()/180)-$C$143*SIN(Knoten!W8*PI()/180))*B128 -> 0 | F128: =(E128-$C$143/2*COS(Knoten!W8*PI()/180)+$C$143*SIN(Knoten!W8*PI()/180))*B128 -> 0 | G128: =(F128-$C$143/2*COS(Knoten!W8*PI()/180)-$C$143*SIN(Knoten!W8*PI()/180))*B128 -> 0 | H128: =(G128-$C$143/4*COS(Knoten!W8*PI()/180)+$C$143/2*SIN(Knoten!W8*PI()/180))*B128 -> 0 | I128: =(H128-$C$143/4*COS(Knoten!W8*PI()/180))*B128 -> 0 | J128: 0 | K128: =(J128-$E$143/2*SIN(Knoten!W8*PI()/180))*B128 -> 0 | L128: =(J128-$E$143/2*SIN(Knoten!W8*PI()/180)-$E$143*COS(Knoten!W8*PI()/180))*B128 -> 0 | M128: =(J128+$E$143/2*SIN(Knoten!W8*PI()/180)-$E$143*COS(Knoten!W8*PI()/180))*B128 -> 0 | N128: =(J128+$E$143/2*SIN(Knoten!W8*PI()/180))*B128 -> 0 | O128: 0 | P128: =IF(ISNUMBER(Knoten!D8),(Knoten!D8-$X$1)*B128,0) -> 0 | Q128: =(P128+$C$143/2*COS(Knoten!W8*PI()/180)+$C$143/4*SIN(Knoten!W8*PI()/180))*B128 -> 0 | R128: =(Q128-$C$143*COS(Knoten!W8*PI()/180)+$C$143/2*SIN(Knoten!W8*PI()/180))*B128 -> 0 | S128: =(R128+$C$143*COS(Knoten!W8*PI()/180)+$C$143/2*SIN(Knoten!W8*PI()/180))*B128 -> 0 | T128: =(S128-$C$143*COS(Knoten!W8*PI()/180)+$C$143/2*SIN(Knoten!W8*PI()/180))*B128 -> 0 | U128: =(T128+$C$143/2*COS(Knoten!W8*PI()/180)+$C$143/4*SIN(Knoten!W8*PI()/180))*B128 -> 0 | V128: =(U128+$C$143/4*SIN(Knoten!W8*PI()/180))*B128 -> 0 | W128: 0 | X128: =(W128-$E$143/2*COS(Knoten!W8*PI()/180))*B128 -> 0 | Y128: =(W128+$E$143*SIN(Knoten!W8*PI()/180)-$E$143/2*COS(Knoten!W8*PI()/180))*B128 -> 0 | Z128: =(W128+$E$143*SIN(Knoten!W8*PI()/180)+$E$143/2*COS(Knoten!W8*PI()/180))*B128 -> 0 | AA128: =(W128+$E$143/2*COS(Knoten!W8*PI()/180))*B128 -> 0 | AB128: 0 | AD128: 6 | AE128: =IF(Knoten!Q8>0,1,0) -> 0 | AF128: =IF(ISNUMBER(Knoten!C8),Z11*B128,0) -> 0 | AG128: =(AF128-$C$143/4*COS(Knoten!W8*PI()/180)+$C$143/2*SIN(Knoten!W8*PI()/180))*B128 -> 0 | AH128: =(AG128-$C$143/2*COS(Knoten!W8*PI()/180)-$C$143*SIN(Knoten!W8*PI()/180))*B128 -> 0 | AI128: =(AH128-$C$143/2*COS(Knoten!W8*PI()/180)+$C$143*SIN(Knoten!W8*PI()/180))*B128 -> 0 | AJ128: =(AI128-$C$143/2*COS(Knoten!W8*PI()/180)-$C$143*SIN(Knoten!W8*PI()/180))*B128 -> 0 | AK128: =(AJ128-$C$143/4*COS(Knoten!W8*PI()/180)+$C$143/2*SIN(Knoten!W8*PI()/180))*B128 -> 0 | AL128: =(AK128-$C$143/4*COS(Knoten!W8*PI()/180))*B128 -> 0 | AM128: 0 | AN128: =(AM128-$E$143/2*SIN(Knoten!W8*PI()/180))*B128 -> 0 | AO128: =(AM128-$E$143/2*SIN(Knoten!W8*PI()/180)-$E$143*COS(Knoten!W8*PI()/180))*B128 -> 0 | AP128: =(AM128+$E$143/2*SIN(Knoten!W8*PI()/180)-$E$143*COS(Knoten!W8*PI()/180))*B128 -> 0 | AQ128: =(AM128+$E$143/2*SIN(Knoten!W8*PI()/180))*B128 -> 0 | AR128: 0 | AS128: =IF(ISNUMBER(Knoten!D8),AA11*B128,0) -> 0 | AT128: =(AS128+$C$143/2*COS(Knoten!W8*PI()/180)+$C$143/4*SIN(Knoten!W8*PI()/180))*B128 -> 0 | AU128: =(AT128-$C$143*COS(Knoten!W8*PI()/180)+$C$143/2*SIN(Knoten!W8*PI()/180))*B128 -> 0 | AV128: =(AU128+$C$143*COS(Knoten!W8*PI()/180)+$C$143/2*SIN(Knoten!W8*PI()/180))*B128 -> 0 | AW128: =(AV128-$C$143*COS(Knoten!W8*PI()/180)+$C$143/2*SIN(Knoten!W8*PI()/180))*B128 -> 0 | AX128: =(AW128+$C$143/2*COS(Knoten!W8*PI()/180)+$C$143/4*SIN(Knoten!W8*PI()/180))*B128 -> 0 | AY128: =(AX128+$C$143/4*SIN(Knoten!W8*PI()/180))*B128 -> 0 | AZ128: 0 | BA128: =(AZ128-$E$143/2*COS(Knoten!W8*PI()/180))*B128 -> 0 | BB128: =(AZ128+$E$143*SIN(Knoten!W8*PI()/180)-$E$143/2*COS(Knoten!W8*PI()/180))*B128 -> 0 | BC128: =(AZ128+$E$143*SIN(Knoten!W8*PI()/180)+$E$143/2*COS(Knoten!W8*PI()/180))*B128 -> 0 | BD128: =(AZ128+$E$143/2*COS(Knoten!W8*PI()/180))*B128 -> 0 | BE128: 0
A129: 7 | B129: =IF(Knoten!Q9>0,1,0) -> 0 | C129: =IF(ISNUMBER(Knoten!C9),(Knoten!C9-$U$1)*B129,0) -> 0 | D129: =(C129-$C$143/4*COS(Knoten!W9*PI()/180)+$C$143/2*SIN(Knoten!W9*PI()/180))*B129 -> 0 | E129: =(D129-$C$143/2*COS(Knoten!W9*PI()/180)-$C$143*SIN(Knoten!W9*PI()/180))*B129 -> 0 | F129: =(E129-$C$143/2*COS(Knoten!W9*PI()/180)+$C$143*SIN(Knoten!W9*PI()/180))*B129 -> 0 | G129: =(F129-$C$143/2*COS(Knoten!W9*PI()/180)-$C$143*SIN(Knoten!W9*PI()/180))*B129 -> 0 | H129: =(G129-$C$143/4*COS(Knoten!W9*PI()/180)+$C$143/2*SIN(Knoten!W9*PI()/180))*B129 -> 0 | I129: =(H129-$C$143/4*COS(Knoten!W9*PI()/180))*B129 -> 0 | J129: 0 | K129: =(J129-$E$143/2*SIN(Knoten!W9*PI()/180))*B129 -> 0 | L129: =(J129-$E$143/2*SIN(Knoten!W9*PI()/180)-$E$143*COS(Knoten!W9*PI()/180))*B129 -> 0 | M129: =(J129+$E$143/2*SIN(Knoten!W9*PI()/180)-$E$143*COS(Knoten!W9*PI()/180))*B129 -> 0 | N129: =(J129+$E$143/2*SIN(Knoten!W9*PI()/180))*B129 -> 0 | O129: 0 | P129: =IF(ISNUMBER(Knoten!D9),(Knoten!D9-$X$1)*B129,0) -> 0 | Q129: =(P129+$C$143/2*COS(Knoten!W9*PI()/180)+$C$143/4*SIN(Knoten!W9*PI()/180))*B129 -> 0 | R129: =(Q129-$C$143*COS(Knoten!W9*PI()/180)+$C$143/2*SIN(Knoten!W9*PI()/180))*B129 -> 0 | S129: =(R129+$C$143*COS(Knoten!W9*PI()/180)+$C$143/2*SIN(Knoten!W9*PI()/180))*B129 -> 0 | T129: =(S129-$C$143*COS(Knoten!W9*PI()/180)+$C$143/2*SIN(Knoten!W9*PI()/180))*B129 -> 0 | U129: =(T129+$C$143/2*COS(Knoten!W9*PI()/180)+$C$143/4*SIN(Knoten!W9*PI()/180))*B129 -> 0 | V129: =(U129+$C$143/4*SIN(Knoten!W9*PI()/180))*B129 -> 0 | W129: 0 | X129: =(W129-$E$143/2*COS(Knoten!W9*PI()/180))*B129 -> 0 | Y129: =(W129+$E$143*SIN(Knoten!W9*PI()/180)-$E$143/2*COS(Knoten!W9*PI()/180))*B129 -> 0 | Z129: =(W129+$E$143*SIN(Knoten!W9*PI()/180)+$E$143/2*COS(Knoten!W9*PI()/180))*B129 -> 0 | AA129: =(W129+$E$143/2*COS(Knoten!W9*PI()/180))*B129 -> 0 | AB129: 0 | AD129: 7 | AE129: =IF(Knoten!Q9>0,1,0) -> 0 | AF129: =IF(ISNUMBER(Knoten!C9),Z12*B129,0) -> 0 | AG129: =(AF129-$C$143/4*COS(Knoten!W9*PI()/180)+$C$143/2*SIN(Knoten!W9*PI()/180))*B129 -> 0 | AH129: =(AG129-$C$143/2*COS(Knoten!W9*PI()/180)-$C$143*SIN(Knoten!W9*PI()/180))*B129 -> 0 | AI129: =(AH129-$C$143/2*COS(Knoten!W9*PI()/180)+$C$143*SIN(Knoten!W9*PI()/180))*B129 -> 0 | AJ129: =(AI129-$C$143/2*COS(Knoten!W9*PI()/180)-$C$143*SIN(Knoten!W9*PI()/180))*B129 -> 0 | AK129: =(AJ129-$C$143/4*COS(Knoten!W9*PI()/180)+$C$143/2*SIN(Knoten!W9*PI()/180))*B129 -> 0 | AL129: =(AK129-$C$143/4*COS(Knoten!W9*PI()/180))*B129 -> 0 | AM129: 0 | AN129: =(AM129-$E$143/2*SIN(Knoten!W9*PI()/180))*B129 -> 0 | AO129: =(AM129-$E$143/2*SIN(Knoten!W9*PI()/180)-$E$143*COS(Knoten!W9*PI()/180))*B129 -> 0 | AP129: =(AM129+$E$143/2*SIN(Knoten!W9*PI()/180)-$E$143*COS(Knoten!W9*PI()/180))*B129 -> 0 | AQ129: =(AM129+$E$143/2*SIN(Knoten!W9*PI()/180))*B129 -> 0 | AR129: 0 | AS129: =IF(ISNUMBER(Knoten!D9),AA12*B129,0) -> 0 | AT129: =(AS129+$C$143/2*COS(Knoten!W9*PI()/180)+$C$143/4*SIN(Knoten!W9*PI()/180))*B129 -> 0 | AU129: =(AT129-$C$143*COS(Knoten!W9*PI()/180)+$C$143/2*SIN(Knoten!W9*PI()/180))*B129 -> 0 | AV129: =(AU129+$C$143*COS(Knoten!W9*PI()/180)+$C$143/2*SIN(Knoten!W9*PI()/180))*B129 -> 0 | AW129: =(AV129-$C$143*COS(Knoten!W9*PI()/180)+$C$143/2*SIN(Knoten!W9*PI()/180))*B129 -> 0 | AX129: =(AW129+$C$143/2*COS(Knoten!W9*PI()/180)+$C$143/4*SIN(Knoten!W9*PI()/180))*B129 -> 0 | AY129: =(AX129+$C$143/4*SIN(Knoten!W9*PI()/180))*B129 -> 0 | AZ129: 0 | BA129: =(AZ129-$E$143/2*COS(Knoten!W9*PI()/180))*B129 -> 0 | BB129: =(AZ129+$E$143*SIN(Knoten!W9*PI()/180)-$E$143/2*COS(Knoten!W9*PI()/180))*B129 -> 0 | BC129: =(AZ129+$E$143*SIN(Knoten!W9*PI()/180)+$E$143/2*COS(Knoten!W9*PI()/180))*B129 -> 0 | BD129: =(AZ129+$E$143/2*COS(Knoten!W9*PI()/180))*B129 -> 0 | BE129: 0
A130: 8 | B130: =IF(Knoten!Q10>0,1,0) -> 0 | C130: =IF(ISNUMBER(Knoten!C10),(Knoten!C10-$U$1)*B130,0) -> 0 | D130: =(C130-$C$143/4*COS(Knoten!W10*PI()/180)+$C$143/2*SIN(Knoten!W10*PI()/180))*B130 -> 0 | E130: =(D130-$C$143/2*COS(Knoten!W10*PI()/180)-$C$143*SIN(Knoten!W10*PI()/180))*B130 -> 0 | F130: =(E130-$C$143/2*COS(Knoten!W10*PI()/180)+$C$143*SIN(Knoten!W10*PI()/180))*B130 -> 0 | G130: =(F130-$C$143/2*COS(Knoten!W10*PI()/180)-$C$143*SIN(Knoten!W10*PI()/180))*B130 -> 0 | H130: =(G130-$C$143/4*COS(Knoten!W10*PI()/180)+$C$143/2*SIN(Knoten!W10*PI()/180))*B130 -> 0 | I130: =(H130-$C$143/4*COS(Knoten!W10*PI()/180))*B130 -> 0 | J130: 0 | K130: =(J130-$E$143/2*SIN(Knoten!W10*PI()/180))*B130 -> 0 | L130: =(J130-$E$143/2*SIN(Knoten!W10*PI()/180)-$E$143*COS(Knoten!W10*PI()/180))*B130 -> 0 | M130: =(J130+$E$143/2*SIN(Knoten!W10*PI()/180)-$E$143*COS(Knoten!W10*PI()/180))*B130 -> 0 | N130: =(J130+$E$143/2*SIN(Knoten!W10*PI()/180))*B130 -> 0 | O130: 0 | P130: =IF(ISNUMBER(Knoten!D10),(Knoten!D10-$X$1)*B130,0) -> 0 | Q130: =(P130+$C$143/2*COS(Knoten!W10*PI()/180)+$C$143/4*SIN(Knoten!W10*PI()/180))*B130 -> 0 | R130: =(Q130-$C$143*COS(Knoten!W10*PI()/180)+$C$143/2*SIN(Knoten!W10*PI()/180))*B130 -> 0 | S130: =(R130+$C$143*COS(Knoten!W10*PI()/180)+$C$143/2*SIN(Knoten!W10*PI()/180))*B130 -> 0 | T130: =(S130-$C$143*COS(Knoten!W10*PI()/180)+$C$143/2*SIN(Knoten!W10*PI()/180))*B130 -> 0 | U130: =(T130+$C$143/2*COS(Knoten!W10*PI()/180)+$C$143/4*SIN(Knoten!W10*PI()/180))*B130 -> 0 | V130: =(U130+$C$143/4*SIN(Knoten!W10*PI()/180))*B130 -> 0 | W130: 0 | X130: =(W130-$E$143/2*COS(Knoten!W10*PI()/180))*B130 -> 0 | Y130: =(W130+$E$143*SIN(Knoten!W10*PI()/180)-$E$143/2*COS(Knoten!W10*PI()/180))*B130 -> 0 | Z130: =(W130+$E$143*SIN(Knoten!W10*PI()/180)+$E$143/2*COS(Knoten!W10*PI()/180))*B130 -> 0 | AA130: =(W130+$E$143/2*COS(Knoten!W10*PI()/180))*B130 -> 0 | AB130: 0 | AD130: 8 | AE130: =IF(Knoten!Q10>0,1,0) -> 0 | AF130: =IF(ISNUMBER(Knoten!C10),Z13*B130,0) -> 0 | AG130: =(AF130-$C$143/4*COS(Knoten!W10*PI()/180)+$C$143/2*SIN(Knoten!W10*PI()/180))*B130 -> 0 | AH130: =(AG130-$C$143/2*COS(Knoten!W10*PI()/180)-$C$143*SIN(Knoten!W10*PI()/180))*B130 -> 0 | AI130: =(AH130-$C$143/2*COS(Knoten!W10*PI()/180)+$C$143*SIN(Knoten!W10*PI()/180))*B130 -> 0 | AJ130: =(AI130-$C$143/2*COS(Knoten!W10*PI()/180)-$C$143*SIN(Knoten!W10*PI()/180))*B130 -> 0 | AK130: =(AJ130-$C$143/4*COS(Knoten!W10*PI()/180)+$C$143/2*SIN(Knoten!W10*PI()/180))*B130 -> 0 | AL130: =(AK130-$C$143/4*COS(Knoten!W10*PI()/180))*B130 -> 0 | AM130: 0 | AN130: =(AM130-$E$143/2*SIN(Knoten!W10*PI()/180))*B130 -> 0 | AO130: =(AM130-$E$143/2*SIN(Knoten!W10*PI()/180)-$E$143*COS(Knoten!W10*PI()/180))*B130 -> 0 | AP130: =(AM130+$E$143/2*SIN(Knoten!W10*PI()/180)-$E$143*COS(Knoten!W10*PI()/180))*B130 -> 0 | AQ130: =(AM130+$E$143/2*SIN(Knoten!W10*PI()/180))*B130 -> 0 | AR130: 0 | AS130: =IF(ISNUMBER(Knoten!D10),AA13*B130,0) -> 0 | AT130: =(AS130+$C$143/2*COS(Knoten!W10*PI()/180)+$C$143/4*SIN(Knoten!W10*PI()/180))*B130 -> 0 | AU130: =(AT130-$C$143*COS(Knoten!W10*PI()/180)+$C$143/2*SIN(Knoten!W10*PI()/180))*B130 -> 0 | AV130: =(AU130+$C$143*COS(Knoten!W10*PI()/180)+$C$143/2*SIN(Knoten!W10*PI()/180))*B130 -> 0 | AW130: =(AV130-$C$143*COS(Knoten!W10*PI()/180)+$C$143/2*SIN(Knoten!W10*PI()/180))*B130 -> 0 | AX130: =(AW130+$C$143/2*COS(Knoten!W10*PI()/180)+$C$143/4*SIN(Knoten!W10*PI()/180))*B130 -> 0 | AY130: =(AX130+$C$143/4*SIN(Knoten!W10*PI()/180))*B130 -> 0 | AZ130: 0 | BA130: =(AZ130-$E$143/2*COS(Knoten!W10*PI()/180))*B130 -> 0 | BB130: =(AZ130+$E$143*SIN(Knoten!W10*PI()/180)-$E$143/2*COS(Knoten!W10*PI()/180))*B130 -> 0 | BC130: =(AZ130+$E$143*SIN(Knoten!W10*PI()/180)+$E$143/2*COS(Knoten!W10*PI()/180))*B130 -> 0 | BD130: =(AZ130+$E$143/2*COS(Knoten!W10*PI()/180))*B130 -> 0 | BE130: 0
A131: 9 | B131: =IF(Knoten!Q11>0,1,0) -> 0 | C131: =IF(ISNUMBER(Knoten!C11),(Knoten!C11-$U$1)*B131,0) -> 0 | D131: =(C131-$C$143/4*COS(Knoten!W11*PI()/180)+$C$143/2*SIN(Knoten!W11*PI()/180))*B131 -> 0 | E131: =(D131-$C$143/2*COS(Knoten!W11*PI()/180)-$C$143*SIN(Knoten!W11*PI()/180))*B131 -> 0 | F131: =(E131-$C$143/2*COS(Knoten!W11*PI()/180)+$C$143*SIN(Knoten!W11*PI()/180))*B131 -> 0 | G131: =(F131-$C$143/2*COS(Knoten!W11*PI()/180)-$C$143*SIN(Knoten!W11*PI()/180))*B131 -> 0 | H131: =(G131-$C$143/4*COS(Knoten!W11*PI()/180)+$C$143/2*SIN(Knoten!W11*PI()/180))*B131 -> 0 | I131: =(H131-$C$143/4*COS(Knoten!W11*PI()/180))*B131 -> 0 | J131: 0 | K131: =(J131-$E$143/2*SIN(Knoten!W11*PI()/180))*B131 -> 0 | L131: =(J131-$E$143/2*SIN(Knoten!W11*PI()/180)-$E$143*COS(Knoten!W11*PI()/180))*B131 -> 0 | M131: =(J131+$E$143/2*SIN(Knoten!W11*PI()/180)-$E$143*COS(Knoten!W11*PI()/180))*B131 -> 0 | N131: =(J131+$E$143/2*SIN(Knoten!W11*PI()/180))*B131 -> 0 | O131: 0 | P131: =IF(ISNUMBER(Knoten!D11),(Knoten!D11-$X$1)*B131,0) -> 0 | Q131: =(P131+$C$143/2*COS(Knoten!W11*PI()/180)+$C$143/4*SIN(Knoten!W11*PI()/180))*B131 -> 0 | R131: =(Q131-$C$143*COS(Knoten!W11*PI()/180)+$C$143/2*SIN(Knoten!W11*PI()/180))*B131 -> 0 | S131: =(R131+$C$143*COS(Knoten!W11*PI()/180)+$C$143/2*SIN(Knoten!W11*PI()/180))*B131 -> 0 | T131: =(S131-$C$143*COS(Knoten!W11*PI()/180)+$C$143/2*SIN(Knoten!W11*PI()/180))*B131 -> 0 | U131: =(T131+$C$143/2*COS(Knoten!W11*PI()/180)+$C$143/4*SIN(Knoten!W11*PI()/180))*B131 -> 0 | V131: =(U131+$C$143/4*SIN(Knoten!W11*PI()/180))*B131 -> 0 | W131: 0 | X131: =(W131-$E$143/2*COS(Knoten!W11*PI()/180))*B131 -> 0 | Y131: =(W131+$E$143*SIN(Knoten!W11*PI()/180)-$E$143/2*COS(Knoten!W11*PI()/180))*B131 -> 0 | Z131: =(W131+$E$143*SIN(Knoten!W11*PI()/180)+$E$143/2*COS(Knoten!W11*PI()/180))*B131 -> 0 | AA131: =(W131+$E$143/2*COS(Knoten!W11*PI()/180))*B131 -> 0 | AB131: 0 | AD131: 9 | AE131: =IF(Knoten!Q11>0,1,0) -> 0 | AF131: =IF(ISNUMBER(Knoten!C11),Z14*B131,0) -> 0 | AG131: =(AF131-$C$143/4*COS(Knoten!W11*PI()/180)+$C$143/2*SIN(Knoten!W11*PI()/180))*B131 -> 0 | AH131: =(AG131-$C$143/2*COS(Knoten!W11*PI()/180)-$C$143*SIN(Knoten!W11*PI()/180))*B131 -> 0 | AI131: =(AH131-$C$143/2*COS(Knoten!W11*PI()/180)+$C$143*SIN(Knoten!W11*PI()/180))*B131 -> 0 | AJ131: =(AI131-$C$143/2*COS(Knoten!W11*PI()/180)-$C$143*SIN(Knoten!W11*PI()/180))*B131 -> 0 | AK131: =(AJ131-$C$143/4*COS(Knoten!W11*PI()/180)+$C$143/2*SIN(Knoten!W11*PI()/180))*B131 -> 0 | AL131: =(AK131-$C$143/4*COS(Knoten!W11*PI()/180))*B131 -> 0 | AM131: 0 | AN131: =(AM131-$E$143/2*SIN(Knoten!W11*PI()/180))*B131 -> 0 | AO131: =(AM131-$E$143/2*SIN(Knoten!W11*PI()/180)-$E$143*COS(Knoten!W11*PI()/180))*B131 -> 0 | AP131: =(AM131+$E$143/2*SIN(Knoten!W11*PI()/180)-$E$143*COS(Knoten!W11*PI()/180))*B131 -> 0 | AQ131: =(AM131+$E$143/2*SIN(Knoten!W11*PI()/180))*B131 -> 0 | AR131: 0 | AS131: =IF(ISNUMBER(Knoten!D11),AA14*B131,0) -> 0 | AT131: =(AS131+$C$143/2*COS(Knoten!W11*PI()/180)+$C$143/4*SIN(Knoten!W11*PI()/180))*B131 -> 0 | AU131: =(AT131-$C$143*COS(Knoten!W11*PI()/180)+$C$143/2*SIN(Knoten!W11*PI()/180))*B131 -> 0 | AV131: =(AU131+$C$143*COS(Knoten!W11*PI()/180)+$C$143/2*SIN(Knoten!W11*PI()/180))*B131 -> 0 | AW131: =(AV131-$C$143*COS(Knoten!W11*PI()/180)+$C$143/2*SIN(Knoten!W11*PI()/180))*B131 -> 0 | AX131: =(AW131+$C$143/2*COS(Knoten!W11*PI()/180)+$C$143/4*SIN(Knoten!W11*PI()/180))*B131 -> 0 | AY131: =(AX131+$C$143/4*SIN(Knoten!W11*PI()/180))*B131 -> 0 | AZ131: 0 | BA131: =(AZ131-$E$143/2*COS(Knoten!W11*PI()/180))*B131 -> 0 | BB131: =(AZ131+$E$143*SIN(Knoten!W11*PI()/180)-$E$143/2*COS(Knoten!W11*PI()/180))*B131 -> 0 | BC131: =(AZ131+$E$143*SIN(Knoten!W11*PI()/180)+$E$143/2*COS(Knoten!W11*PI()/180))*B131 -> 0 | BD131: =(AZ131+$E$143/2*COS(Knoten!W11*PI()/180))*B131 -> 0 | BE131: 0
A132: 10 | B132: =IF(Knoten!Q12>0,1,0) -> 0 | C132: =IF(ISNUMBER(Knoten!C12),(Knoten!C12-$U$1)*B132,0) -> 0 | D132: =(C132-$C$143/4*COS(Knoten!W12*PI()/180)+$C$143/2*SIN(Knoten!W12*PI()/180))*B132 -> 0 | E132: =(D132-$C$143/2*COS(Knoten!W12*PI()/180)-$C$143*SIN(Knoten!W12*PI()/180))*B132 -> 0 | F132: =(E132-$C$143/2*COS(Knoten!W12*PI()/180)+$C$143*SIN(Knoten!W12*PI()/180))*B132 -> 0 | G132: =(F132-$C$143/2*COS(Knoten!W12*PI()/180)-$C$143*SIN(Knoten!W12*PI()/180))*B132 -> 0 | H132: =(G132-$C$143/4*COS(Knoten!W12*PI()/180)+$C$143/2*SIN(Knoten!W12*PI()/180))*B132 -> 0 | I132: =(H132-$C$143/4*COS(Knoten!W12*PI()/180))*B132 -> 0 | J132: 0 | K132: =(J132-$E$143/2*SIN(Knoten!W12*PI()/180))*B132 -> 0 | L132: =(J132-$E$143/2*SIN(Knoten!W12*PI()/180)-$E$143*COS(Knoten!W12*PI()/180))*B132 -> 0 | M132: =(J132+$E$143/2*SIN(Knoten!W12*PI()/180)-$E$143*COS(Knoten!W12*PI()/180))*B132 -> 0 | N132: =(J132+$E$143/2*SIN(Knoten!W12*PI()/180))*B132 -> 0 | O132: 0 | P132: =IF(ISNUMBER(Knoten!D12),(Knoten!D12-$X$1)*B132,0) -> 0 | Q132: =(P132+$C$143/2*COS(Knoten!W12*PI()/180)+$C$143/4*SIN(Knoten!W12*PI()/180))*B132 -> 0 | R132: =(Q132-$C$143*COS(Knoten!W12*PI()/180)+$C$143/2*SIN(Knoten!W12*PI()/180))*B132 -> 0 | S132: =(R132+$C$143*COS(Knoten!W12*PI()/180)+$C$143/2*SIN(Knoten!W12*PI()/180))*B132 -> 0 | T132: =(S132-$C$143*COS(Knoten!W12*PI()/180)+$C$143/2*SIN(Knoten!W12*PI()/180))*B132 -> 0 | U132: =(T132+$C$143/2*COS(Knoten!W12*PI()/180)+$C$143/4*SIN(Knoten!W12*PI()/180))*B132 -> 0 | V132: =(U132+$C$143/4*SIN(Knoten!W12*PI()/180))*B132 -> 0 | W132: 0 | X132: =(W132-$E$143/2*COS(Knoten!W12*PI()/180))*B132 -> 0 | Y132: =(W132+$E$143*SIN(Knoten!W12*PI()/180)-$E$143/2*COS(Knoten!W12*PI()/180))*B132 -> 0 | Z132: =(W132+$E$143*SIN(Knoten!W12*PI()/180)+$E$143/2*COS(Knoten!W12*PI()/180))*B132 -> 0 | AA132: =(W132+$E$143/2*COS(Knoten!W12*PI()/180))*B132 -> 0 | AB132: 0 | AD132: 10 | AE132: =IF(Knoten!Q12>0,1,0) -> 0 | AF132: =IF(ISNUMBER(Knoten!C12),Z15*B132,0) -> 0 | AG132: =(AF132-$C$143/4*COS(Knoten!W12*PI()/180)+$C$143/2*SIN(Knoten!W12*PI()/180))*B132 -> 0 | AH132: =(AG132-$C$143/2*COS(Knoten!W12*PI()/180)-$C$143*SIN(Knoten!W12*PI()/180))*B132 -> 0 | AI132: =(AH132-$C$143/2*COS(Knoten!W12*PI()/180)+$C$143*SIN(Knoten!W12*PI()/180))*B132 -> 0 | AJ132: =(AI132-$C$143/2*COS(Knoten!W12*PI()/180)-$C$143*SIN(Knoten!W12*PI()/180))*B132 -> 0 | AK132: =(AJ132-$C$143/4*COS(Knoten!W12*PI()/180)+$C$143/2*SIN(Knoten!W12*PI()/180))*B132 -> 0 | AL132: =(AK132-$C$143/4*COS(Knoten!W12*PI()/180))*B132 -> 0 | AM132: 0 | AN132: =(AM132-$E$143/2*SIN(Knoten!W12*PI()/180))*B132 -> 0 | AO132: =(AM132-$E$143/2*SIN(Knoten!W12*PI()/180)-$E$143*COS(Knoten!W12*PI()/180))*B132 -> 0 | AP132: =(AM132+$E$143/2*SIN(Knoten!W12*PI()/180)-$E$143*COS(Knoten!W12*PI()/180))*B132 -> 0 | AQ132: =(AM132+$E$143/2*SIN(Knoten!W12*PI()/180))*B132 -> 0 | AR132: 0 | AS132: =IF(ISNUMBER(Knoten!D12),AA15*B132,0) -> 0 | AT132: =(AS132+$C$143/2*COS(Knoten!W12*PI()/180)+$C$143/4*SIN(Knoten!W12*PI()/180))*B132 -> 0 | AU132: =(AT132-$C$143*COS(Knoten!W12*PI()/180)+$C$143/2*SIN(Knoten!W12*PI()/180))*B132 -> 0 | AV132: =(AU132+$C$143*COS(Knoten!W12*PI()/180)+$C$143/2*SIN(Knoten!W12*PI()/180))*B132 -> 0 | AW132: =(AV132-$C$143*COS(Knoten!W12*PI()/180)+$C$143/2*SIN(Knoten!W12*PI()/180))*B132 -> 0 | AX132: =(AW132+$C$143/2*COS(Knoten!W12*PI()/180)+$C$143/4*SIN(Knoten!W12*PI()/180))*B132 -> 0 | AY132: =(AX132+$C$143/4*SIN(Knoten!W12*PI()/180))*B132 -> 0 | AZ132: 0 | BA132: =(AZ132-$E$143/2*COS(Knoten!W12*PI()/180))*B132 -> 0 | BB132: =(AZ132+$E$143*SIN(Knoten!W12*PI()/180)-$E$143/2*COS(Knoten!W12*PI()/180))*B132 -> 0 | BC132: =(AZ132+$E$143*SIN(Knoten!W12*PI()/180)+$E$143/2*COS(Knoten!W12*PI()/180))*B132 -> 0 | BD132: =(AZ132+$E$143/2*COS(Knoten!W12*PI()/180))*B132 -> 0 | BE132: 0
A133: 11 | B133: =IF(Knoten!Q13>0,1,0) -> 0 | C133: =IF(ISNUMBER(Knoten!C13),(Knoten!C13-$U$1)*B133,0) -> 0 | D133: =(C133-$C$143/4*COS(Knoten!W13*PI()/180)+$C$143/2*SIN(Knoten!W13*PI()/180))*B133 -> 0 | E133: =(D133-$C$143/2*COS(Knoten!W13*PI()/180)-$C$143*SIN(Knoten!W13*PI()/180))*B133 -> 0 | F133: =(E133-$C$143/2*COS(Knoten!W13*PI()/180)+$C$143*SIN(Knoten!W13*PI()/180))*B133 -> 0 | G133: =(F133-$C$143/2*COS(Knoten!W13*PI()/180)-$C$143*SIN(Knoten!W13*PI()/180))*B133 -> 0 | H133: =(G133-$C$143/4*COS(Knoten!W13*PI()/180)+$C$143/2*SIN(Knoten!W13*PI()/180))*B133 -> 0 | I133: =(H133-$C$143/4*COS(Knoten!W13*PI()/180))*B133 -> 0 | J133: 0 | K133: =(J133-$E$143/2*SIN(Knoten!W13*PI()/180))*B133 -> 0 | L133: =(J133-$E$143/2*SIN(Knoten!W13*PI()/180)-$E$143*COS(Knoten!W13*PI()/180))*B133 -> 0 | M133: =(J133+$E$143/2*SIN(Knoten!W13*PI()/180)-$E$143*COS(Knoten!W13*PI()/180))*B133 -> 0 | N133: =(J133+$E$143/2*SIN(Knoten!W13*PI()/180))*B133 -> 0 | O133: 0 | P133: =IF(ISNUMBER(Knoten!D13),(Knoten!D13-$X$1)*B133,0) -> 0 | Q133: =(P133+$C$143/2*COS(Knoten!W13*PI()/180)+$C$143/4*SIN(Knoten!W13*PI()/180))*B133 -> 0 | R133: =(Q133-$C$143*COS(Knoten!W13*PI()/180)+$C$143/2*SIN(Knoten!W13*PI()/180))*B133 -> 0 | S133: =(R133+$C$143*COS(Knoten!W13*PI()/180)+$C$143/2*SIN(Knoten!W13*PI()/180))*B133 -> 0 | T133: =(S133-$C$143*COS(Knoten!W13*PI()/180)+$C$143/2*SIN(Knoten!W13*PI()/180))*B133 -> 0 | U133: =(T133+$C$143/2*COS(Knoten!W13*PI()/180)+$C$143/4*SIN(Knoten!W13*PI()/180))*B133 -> 0 | V133: =(U133+$C$143/4*SIN(Knoten!W13*PI()/180))*B133 -> 0 | W133: 0 | X133: =(W133-$E$143/2*COS(Knoten!W13*PI()/180))*B133 -> 0 | Y133: =(W133+$E$143*SIN(Knoten!W13*PI()/180)-$E$143/2*COS(Knoten!W13*PI()/180))*B133 -> 0 | Z133: =(W133+$E$143*SIN(Knoten!W13*PI()/180)+$E$143/2*COS(Knoten!W13*PI()/180))*B133 -> 0 | AA133: =(W133+$E$143/2*COS(Knoten!W13*PI()/180))*B133 -> 0 | AB133: 0 | AD133: 11 | AE133: =IF(Knoten!Q13>0,1,0) -> 0 | AF133: =IF(ISNUMBER(Knoten!C13),Z16*B133,0) -> 0 | AG133: =(AF133-$C$143/4*COS(Knoten!W13*PI()/180)+$C$143/2*SIN(Knoten!W13*PI()/180))*B133 -> 0 | AH133: =(AG133-$C$143/2*COS(Knoten!W13*PI()/180)-$C$143*SIN(Knoten!W13*PI()/180))*B133 -> 0 | AI133: =(AH133-$C$143/2*COS(Knoten!W13*PI()/180)+$C$143*SIN(Knoten!W13*PI()/180))*B133 -> 0 | AJ133: =(AI133-$C$143/2*COS(Knoten!W13*PI()/180)-$C$143*SIN(Knoten!W13*PI()/180))*B133 -> 0 | AK133: =(AJ133-$C$143/4*COS(Knoten!W13*PI()/180)+$C$143/2*SIN(Knoten!W13*PI()/180))*B133 -> 0 | AL133: =(AK133-$C$143/4*COS(Knoten!W13*PI()/180))*B133 -> 0 | AM133: 0 | AN133: =(AM133-$E$143/2*SIN(Knoten!W13*PI()/180))*B133 -> 0 | AO133: =(AM133-$E$143/2*SIN(Knoten!W13*PI()/180)-$E$143*COS(Knoten!W13*PI()/180))*B133 -> 0 | AP133: =(AM133+$E$143/2*SIN(Knoten!W13*PI()/180)-$E$143*COS(Knoten!W13*PI()/180))*B133 -> 0 | AQ133: =(AM133+$E$143/2*SIN(Knoten!W13*PI()/180))*B133 -> 0 | AR133: 0 | AS133: =IF(ISNUMBER(Knoten!D13),AA16*B133,0) -> 0 | AT133: =(AS133+$C$143/2*COS(Knoten!W13*PI()/180)+$C$143/4*SIN(Knoten!W13*PI()/180))*B133 -> 0 | AU133: =(AT133-$C$143*COS(Knoten!W13*PI()/180)+$C$143/2*SIN(Knoten!W13*PI()/180))*B133 -> 0 | AV133: =(AU133+$C$143*COS(Knoten!W13*PI()/180)+$C$143/2*SIN(Knoten!W13*PI()/180))*B133 -> 0 | AW133: =(AV133-$C$143*COS(Knoten!W13*PI()/180)+$C$143/2*SIN(Knoten!W13*PI()/180))*B133 -> 0 | AX133: =(AW133+$C$143/2*COS(Knoten!W13*PI()/180)+$C$143/4*SIN(Knoten!W13*PI()/180))*B133 -> 0 | AY133: =(AX133+$C$143/4*SIN(Knoten!W13*PI()/180))*B133 -> 0 | AZ133: 0 | BA133: =(AZ133-$E$143/2*COS(Knoten!W13*PI()/180))*B133 -> 0 | BB133: =(AZ133+$E$143*SIN(Knoten!W13*PI()/180)-$E$143/2*COS(Knoten!W13*PI()/180))*B133 -> 0 | BC133: =(AZ133+$E$143*SIN(Knoten!W13*PI()/180)+$E$143/2*COS(Knoten!W13*PI()/180))*B133 -> 0 | BD133: =(AZ133+$E$143/2*COS(Knoten!W13*PI()/180))*B133 -> 0 | BE133: 0
